Workbook

Sheet Function
E1: =H114 -> UTAH | F1: =+H114 -> UTAH | G1: =C109 -> 2010 PROTOCOL | R1: UNADJUSTED RESULTS OF OPERATIONS
R2: =Variables!AE27 -> 2010 PROTOCOL
E3: Function | F3: Description | I3: Production | J3: Transmission | K3: Distribution | L3: Poles & Wires | M3: Customer | N3: Misc | O3: Total | R3: =Variables!AE28 ->  | AN3: JAMLINKjars
E4: ACCMDIT | F4: Deferred Income Tax - Balance | I4: =T61 -> 0.7467366097 | J4: 0.1282381657 | K4: 0.1250252246 | L4: 0.1223780251 | M4: 0.002647199535 | N4: 0 | O4: =SUM(I4:K4) -> 1 | P4: =K4-L4-M4-N4 -> 1.25767452e-17 | AN4: =+I4 -> 0.7467366097 | AO4: 0.1282381657 | AP4: 0.1250252246 | AQ4: 0.1223780251 | AR4: 0.002647199535 | AS4: 0 | AT4: =Report!P192 -> 649974944.8
E5: BOOKDEPR | F5: Book Depreciation | I5: 0.5333088308 | J5: 0.1666185282 | K5: =L5+M5+N5 -> 0.300072641 | L5: 0.296637073 | M5: 0.003435567996 | N5: 0 | O5: 1 | P5: -1.734723476e-17 | U5: PACIFICORP | V5: PACIFICORP | AN5: 0.5333088308 | AO5: 0.1666185282 | AP5: 0.300072641 | AQ5: 0.296637073 | AR5: 0.003435567996 | AS5: 0 | AT5: =Report!P193 -> 0
C6: N/A | E6: COM_EQ | F6: Communication Equipment Acct 397 | I6: 0 | J6: 0 | K6: =L6+M6+N6 -> 0 | L6: 0 | M6: 0 | N6: 0 | O6: 0 | P6: 0 | R6: FERC | S6: DESCRIPTION | U6: LABOR | V6: O&M | AN6: 0 | AO6: 0 | AP6: 0 | AQ6: 0 | AR6: 0 | AS6: 0 | AT6: =Report!P194 -> 649974944.8
E7: CUST | F7: Distribution Retail | I7: 0 | J7: 0 | K7: =L7+M7+N7 -> 1 | L7: 0 | M7: 1 | N7: 0 | O7: 1 | P7: 0 | R7: ACCT | U7: ONLY | V7: TOTAL | W7: =Variables!X24 -> UTAH | AN7: 0 | AO7: 0 | AP7: 1 | AQ7: 0 | AR7: 1 | AS7: 0 | AT7: =Report!P195 -> 0
E8: CWC | F8: Cash Working Capital | I8: =T58/$S58 -> 0.7338472772 | J8: =U58/$S58 -> 0.09462264867 | K8: =SUM(L8:N8) -> 0.1715300741 | L8: =W58/$S58 -> 0.1259141087 | M8: =X58/$S58 -> 0.05656688224 | N8: =Y58/$S58 -> -0.01095091682 | O8: 1 | P8: 0 | AN8: 0.7338472772 | AO8: 0.09462264867 | AP8: 0.1715300741 | AQ8: 0.1259141087 | AR8: 0.05656688224 | AS8: -0.01095091682 | AT8: =Report!P196 -> 0
E9: DDS2 | F9: Deferred Debits - Situs | I9: 0.8654170763 | J9: 0.01134440937 | K9: =L9+M9+N9 -> 0.1232385143 | L9: 0.007189450857 | M9: 0.1453915654 | N9: -0.02934250188 | O9: 1 | P9: 0 | AN9: 0.8654170763 | AO9: 0.01134440937 | AP9: 0.1232385143 | AQ9: 0.007189450857 | AR9: 0.1453915654 | AS9: -0.02934250188 | AT9: =Report!P197 -> 1064275002
E10: DDS6 | F10: Deferred Debits - Situs | I10: 0 | J10: 0 | K10: =L10+M10+N10 -> 0 | L10: 0 | M10: 0 | N10: 0 | O10: 0 | P10: 0 | R10: NET PRODUCTION EXPENSE | U10: 90698845 | V10: =URO!I653 -> 2113111501 | W10: =IF(Variables!AO3=12,URO!N653+URO!Q653,CHOOSE(Variables!AO3,URO!J653,URO!K653,URO!L653,URO!M653,URO!N653,URO!O653,URO!P653,URO!Q653,URO!R653,URO!S653,URO!T653)) -> 948257412.2 | AN10: 0 | AO10: 0 | AP10: 0 | AQ10: 0 | AR10: 0 | AS10: 0 | AT10: =Report!P198 -> 0
E11: DDSO2 | F11: Deferred Debits - System Overhead | I11: 0.1117746861 | J11: 0.03725822871 | K11: =L11+M11+N11 -> 0.8509670852 | L11: 0.2235493722 | M11: 0 | N11: 0.6274177129 | O11: 1 | P11: 0 | R11: NET TRANSMISSION EXPENSE | U11: 10748429 | V11: =URO!I752 -> 204569251.7 | W11: =IF(Variables!AO3=12,URO!N752+URO!Q752,CHOOSE(Variables!AO3,URO!J752,URO!K752,URO!L752,URO!M752,URO!N752,URO!O752,URO!P752,URO!Q752,URO!R752,URO!S752,URO!T752)) -> 87465469.99 | AN11: 0.1117746861 | AO11: 0.03725822871 | AP11: 0.8509670852 | AQ11: 0.2235493722 | AR11: 0 | AS11: 0.6274177129 | AT11: =Report!P199 -> 0
E12: DDSO6 | F12: Deferred Debits - System Overhead | I12: 0 | J12: 0 | K12: =L12+M12+N12 -> 0 | L12: 0 | M12: 0 | N12: 0 | O12: 0 | P12: 0 | R12: TOTAL DISTRIBUTION EXPENSE | U12: =U18 -> 82047328 | V12: =V18 -> 321855512.4 | W12: =W18 -> 130593885.3 | AN12: 0 | AO12: 0 | AP12: 0 | AQ12: 0 | AR12: 0 | AS12: 0 | AT12: =Report!P200 -> 0
E13: DEFSG | F13: Deferred Debit - System Generation | I13: 0.6346481617 | J13: 0.3653518383 | K13: =L13+M13+N13 -> 0 | L13: 0 | M13: 0 | N13: 0 | O13: 1 | P13: 0 | R13: TOTAL | U13: =SUM(U10:U12) -> 183494602 | V13: =SUM(V10:V12) -> 2639536265 | W13: =SUM(W10:W12) -> 1166316768 | AN13: 0.6346481617 | AO13: 0.3653518383 | AP13: 0 | AQ13: 0 | AR13: 0 | AS13: 0 | AT13: =Report!P201 -> 0
C14: N/A | E14: DITEXP | F14: Deferred Income Tax - Expense | I14: 0 | J14: 0 | K14: 0 | L14: 0 | M14: 0 | N14: 0 | O14: 0 | P14: 0 | AN14: 0 | AO14: 0 | AP14: 0 | AQ14: 0 | AR14: 0 | AS14: 0 | AT14: =Report!P202 -> 1064275002
E15: DMSC | F15: Distribution Miscellaneous | I15: 0 | J15: 0 | K15: =L15+M15+N15 -> 1 | L15: 0 | M15: 0 | N15: 1 | O15: =SUM(I15:K15) -> 1 | P15: 0 | R15: POLES & WIRES | U15: 45597212 | V15: =URO!I853 -> 208601620.8 | W15: =IF(Variables!AO3=12,URO!N853+URO!Q853,CHOOSE(Variables!AO3,URO!J853,URO!K853,URO!L853,URO!M853,URO!N853,URO!O853,URO!P853,URO!Q853,URO!R853,URO!S853,URO!T853)) -> 87092561.37 | AN15: 0 | AO15: 0 | AP15: 1 | AQ15: 0 | AR15: 0 | AS15: 1 | AT15: =Report!P203 -> 0
E16: DPW | F16: Distribution Poles & Wires | I16: 0 | J16: 0 | K16: =L16+M16+N16 -> 1 | L16: 1 | M16: 0 | N16: 0 | O16: 1 | P16: 0 | R16: Customers | U16: 36450116 | V16: =URO!I888+URO!I957 -> 113253891.7 | W16: =IF(Variables!AO3=12,URO!N888+URO!N957+URO!Q888+URO!Q957,CHOOSE(Variables!AO3,URO!J888+URO!J957,URO!K888+URO!K957,URO!L888+URO!L957,URO!M888+URO!M957,URO!N888+URO!N957,URO!O888+URO!O957,URO!P888+URO!P957,URO!Q888+URO!Q957,URO!R888+URO!R957,URO!S888+URO!S957,URO!T888+URO!T957)) -> 43501323.92 | AN16: 0 | AO16: 0 | AP16: 1 | AQ16: 1 | AR16: 0 | AS16: 0 | AT16: =Report!P204 -> 0
E17: ESD | F17: Environmental Services Department | I17: 0.3 | J17: 0.1 | K17: =L17+M17+N17 -> 0.6 | L17: 0.6 | M17: 0 | N17: 0 | O17: 1 | P17: 0 | R17: MISC | U17: 0 | V17: 0 | W17: 0 | AN17: 0.3 | AO17: 0.1 | AP17: 0.6 | AQ17: 0.6 | AR17: 0 | AS17: 0 | AT17: =Report!P205 -> 10140626.13
E18: FERC | F18: FERC Fees | I18: 0.5372886628 | J18: 0.4627113372 | K18: =L18+M18+N18 -> 0 | L18: 0 | M18: 0 | N18: 0 | O18: 1 | P18: 0 | R18: TOTAL DISTRIBUTION | U18: =SUM(U15:U17) -> 82047328 | V18: =SUM(V15:V17) -> 321855512.4 | W18: =SUM(W15:W17) -> 130593885.3 | AN18: 0.5372886628 | AO18: 0.4627113372 | AP18: 0 | AQ18: 0 | AR18: 0 | AS18: 0 | AT18: =Report!P206 -> 0
E19: FIT | F19: Federal Income Taxes | I19: =I1439/$H1439 -> 2.475993972 | J19: =J1439/$H1439 -> 0.03594751432 | K19: =SUM(L19:N19) -> -0.45378939 | L19: =L1439/$H1439 -> -0.4503009691 | M19: =M1439/$H1439 -> -0.3254101089 | N19: =N1439/$H1439 -> 0.3219216881 | O19: 2.058152096 | P19: 0 | AN19: 2.475993972 | AO19: 0.03594751432 | AP19: -0.45378939 | AQ19: -0.4503009691 | AR19: -0.3254101089 | AS19: 0.3219216881 | AT19: =Report!P207 -> 10140626.13
E20: G | F20: General Plant | I20: 0.2328424472 | J20: 0.2990202444 | K20: =L20+M20+N20 -> 0.4681373084 | L20: 0.4419311617 | M20: 0.02620614672 | N20: 0 | O20: 1 | P20: 3.469446952e-18 | AN20: =+I20 -> 0.2328424472 | AO20: 0.2990202444 | AP20: 0.4681373084 | AQ20: 0.4419311617 | AR20: 0.02620614672 | AS20: 0 | AT20: =Report!P208 -> 0
E21: G-DGP | F21: General Plant - DGP Factor | I21: 0.6855986064 | J21: 0.3144013936 | K21: =L21+M21+N21 -> 0 | L21: 0 | M21: 0 | N21: 0 | O21: 1 | P21: 0 | R21: LABOR/O&M | AN21: 0.6855986064 | AO21: 0.3144013936 | AP21: 0 | AQ21: 0 | AR21: 0 | AS21: 0 | AT21: =Report!P209 -> 0
E22: G-DGU | F22: General Plant - DGU Factor | I22: 0.6855986064 | J22: 0.3144013936 | K22: =L22+M22+N22 -> 0 | L22: 0 | M22: 0 | N22: 0 | O22: 1 | P22: 0 | R22: NET PRODUCTION EXPENSE | U22: =U10/U$13 -> 0.4942861752 | V22: 0.8005616475 | W22: =W10/W$13 -> 0.8130359081 | AN22: 0.6855986064 | AO22: 0.3144013936 | AP22: 0 | AQ22: 0 | AR22: 0 | AS22: 0 | AT22: =Report!P210 -> 17630021.32
E23: GP | F23: Total Plant | I23: 0.5092664563 | J23: 0.2157600698 | K23: 0.2749734739 | L23: 0.268675091 | M23: 0.006298382938 | N23: 0 | O23: 1 | P23: 2.255140519e-17 | R23: NET TRANSMISSION EXPENSE | U23: 0.05857626809 | V23: 0.07750196668 | W23: =W11/W$13 -> 0.07499289424 | AN23: 0.5092664563 | AO23: 0.2157600698 | AP23: 0.2749734739 | AQ23: 0.268675091 | AR23: 0.006298382938 | AS23: 0 | AT23: =Report!P211 -> 0
E24: G-SG | F24: General Plant - SG Factor | I24: 0.4715666024 | J24: 0.5284333976 | K24: 0 | L24: 0 | M24: 0 | N24: 0 | O24: =SUM(I24:K24) -> 1 | P24: 0 | R24: TOTAL DISTRIBUTION EXPENSE | U24: 0.4471375567 | V24: 0.1219363858 | W24: =W12/W$13 -> 0.1119711976 | AN24: 0.4715666024 | AO24: 0.5284333976 | AP24: 0 | AQ24: 0 | AR24: 0 | AS24: 0 | AT24: =Report!P212 -> 17630021.32
E25: G-SITUS | F25: General Plant - SITUS Factor | I25: 0 | J25: 0.2571292981 | K25: 0.7428707019 | L25: 0.7428707019 | M25: 0 | N25: 0 | O25: 1 | P25: 0 | R25: TOTAL | U25: 1 | V25: 1 | W25: =W13/W$13 -> 1 | AN25: 0 | AO25: 0.2571292981 | AP25: 0.7428707019 | AQ25: 0.7428707019 | AR25: 0 | AS25: 0 | AT25: =Report!P213 -> 0
E26: I | F26: Intangible Plant | I26: 0.5565693786 | J26: 0.1476908877 | K26: 0.2957397337 | L26: 0.1412390394 | M26: 0.1545006943 | N26: 0 | O26: 1 | P26: 0 | AN26: 0.5565693786 | AO26: 0.1476908877 | AP26: 0.2957397337 | AQ26: 0.1412390394 | AR26: 0.1545006943 | AS26: 0 | AT26: =Report!P214 -> 0
E27: IBT | F27: Income Before Taxes | I27: =I1424/$H1424 -> 3.80287012 | J27: =J1424/$H1424 -> 0.07055985219 | K27: =SUM(L27:N27) -> -0.8907239593 | L27: =L1424/$H1424 -> -0.8838766859 | M27: =M1424/$H1424 -> -0.63873371 | N27: =N1424/$H1424 -> 0.6318864366 | O27: 2.982706013 | P27: 0 | R27: POLES & WIRES | U27: =U15/U$13 -> 0.2484934788 | V27: 0.07902964756 | W27: =W15/W$13 -> 0.07467316238 | AN27: 3.80287012 | AO27: 0.07055985219 | AP27: -0.8907239593 | AQ27: -0.8838766859 | AR27: -0.63873371 | AS27: 0.6318864366 | AT27: =Report!P215 -> 0
E28: I-DGP | F28: Intangible Plant - DGP Factor | I28: 1 | J28: 0 | K28: =L28+M28+N28 -> 0 | L28: 0 | M28: 0 | N28: 0 | O28: 1 | P28: 0 | R28: RETAIL | U28: 0.1986440778 | V28: 0.04290673826 | W28: =W16/W$13 -> 0.03729803526 | AN28: 1 | AO28: 0 | AP28: 0 | AQ28: 0 | AR28: 0 | AS28: 0 | AT28: =Report!P216 -> 0
E29: I-DGU | F29: Intangible Plant - DGU Factor | I29: 1 | J29: 0 | K29: 0 | L29: 0 | M29: 0 | N29: 0 | O29: 1 | P29: 0 | R29: MISC | U29: 0 | V29: 0 | W29: =W17/W$13 -> 0 | AN29: 1 | AO29: 0 | AP29: 0 | AQ29: 0 | AR29: 0 | AS29: 0 | AT29: =Report!P217 -> 0
E30: I-SG | F30: Intangible Plant - SG Factor | I30: 0.8545976251 | J30: 0.1454023749 | K30: 0 | L30: 0 | M30: 0 | N30: 0 | O30: 1 | P30: 0 | R30: TOTAL DISTRIBUTION | U30: =U18/U13 -> 0.4471375567 | V30: =V18/V13 -> 0.1219363858 | W30: =W18/W13 -> 0.1119711976 | AN30: 0.8545976251 | AO30: 0.1454023749 | AP30: 0 | AQ30: 0 | AR30: 0 | AS30: 0 | AT30: =Report!P218 -> 0
E31: I-SITUS | F31: Intangible Plant - SITUS Factor | I31: 0.0276342919 | J31: 0.4679663045 | K31: 0.5043994036 | L31: 0.5043994036 | M31: 0 | N31: 0 | O31: 1 | P31: 0 | AN31: 0.0276342919 | AO31: 0.4679663045 | AP31: 0.5043994036 | AQ31: 0.5043994036 | AR31: 0 | AS31: 0 | AT31: =Report!P219 -> 1742020594
E32: LABOR | F32: Direct Labor Expense | I32: 0.4271290455 | J32: 0.06855059318 | K32: 0.5043203613 | L32: 0.3553382213 | M32: 0.14898214 | N32: 0 | O32: 1 | P32: 5.551115123e-17 | AN32: 0.4271290455 | AO32: 0.06855059318 | AP32: 0.5043203613 | AQ32: 0.3553382213 | AR32: 0.14898214 | AS32: 0 | AT32: =Report!P220 -> 0
E33: MSS | F33: Materials & Supplies | I33: 0.8430955205 | J33: 0.00648440484 | K33: 0.1504200747 | L33: 0.1504200747 | M33: 0 | N33: 0 | O33: 1 | P33: 0 | R33: TOTAL PRODUCTION PLANT | V33: =URO!I1696 -> 1.030433738e+10 | W33: =IF(Variables!AO3=12,URO!N1696+URO!Q1696,CHOOSE(Variables!AO3,URO!J1696,URO!K1696,URO!L1696,URO!M1696,URO!N1696,URO!O1696,URO!P1696,URO!Q1696,URO!R1696,URO!S1696,URO!T1696)) -> 4408315766 | AN33: 0.8430955205 | AO33: 0.00648440484 | AP33: 0.1504200747 | AQ33: 0.1504200747 | AR33: 0 | AS33: 0 | AT33: =Report!P221 -> 0
E34: NONE | F34: Not Functionalized | I34: 0 | J34: 0 | K34: =L34+M34+N34 -> 0 | L34: 0 | M34: 0 | N34: 0 | O34: 0 | P34: 0 | R34: TOTAL TRANSMISSION PLANT | V34: =URO!I1760 -> 4500682108 | W34: =IF(Variables!AO3=12,URO!N1760+URO!Q1760,CHOOSE(Variables!AO3,URO!J1760,URO!K1760,URO!L1760,URO!M1760,URO!N1760,URO!O1760,URO!P1760,URO!Q1760,URO!R1760,URO!S1760,URO!T1760)) -> 1925444322 | AN34: 0 | AO34: 0 | AP34: 0 | AQ34: 0 | AR34: 0 | AS34: 0 | AT34: =Report!P222 -> 0
E35: NUTIL | F35: Non-Utility | I35: 0 | J35: 0 | K35: =L35+M35+N35 -> 0 | L35: 0 | M35: 0 | N35: 0 | O35: 0 | P35: 0 | R35: TOTAL DISTRIBUTION PLANT | V35: =URO!I1834 -> 5665494307 | W35: =IF(Variables!AO3=12,URO!N1834+URO!Q1834,CHOOSE(Variables!AO3,URO!J1834,URO!K1834,URO!L1834,URO!M1834,URO!N1834,URO!O1834,URO!P1834,URO!Q1834,URO!R1834,URO!S1834,URO!T1834)) -> 2408956539 | AN35: 0 | AO35: 0 | AP35: 0 | AQ35: 0 | AR35: 0 | AS35: 0 | AT35: =Report!P223 -> 0
E36: OTHDGP | F36: Other Revenues - DGP Factor | I36: 0.6577867594 | J36: 0.3422132406 | K36: =L36+M36+N36 -> 0 | L36: 0 | M36: 0 | N36: 0 | O36: 1 | P36: 0 | R36: TOTAL | V36: =SUM(V33:V35) -> 2.047051379e+10 | W36: =SUM(W33:W35) -> 8742716627 | AN36: 0.6577867594 | AO36: 0.3422132406 | AP36: 0 | AQ36: 0 | AR36: 0 | AS36: 0 | AT36: =Report!P224 -> 0
E37: OTHDGU | F37: Other Revenues - DGU Factor | I37: 0.6577867594 | J37: 0.3422132406 | K37: 0 | L37: 0 | M37: 0 | N37: 0 | O37: 1 | P37: 0 | AN37: 0.6577867594 | AO37: 0.3422132406 | AP37: 0 | AQ37: 0 | AR37: 0 | AS37: 0 | AT37: =Report!P225 -> 0
E38: OTHSE | F38: Other Revenues - SE Factor | I38: 0 | J38: 1 | K38: 0 | L38: 0 | M38: 0 | N38: 0 | O38: 1 | P38: 0 | R38: PTD | AN38: 0 | AO38: 1 | AP38: 0 | AQ38: 0 | AR38: 0 | AS38: 0 | AT38: =Report!P226 -> 0
E39: OTHSG | F39: Other Revenues - SG Factor | I39: 0.6577867594 | J39: 0.3422132406 | K39: 0 | L39: 0 | M39: 0 | N39: 0 | O39: 1 | P39: 0 | R39: TOTAL PRODUCTION PLANT | V39: =V33/V$36 -> 0.5033746334 | W39: 0.5042272275 | AN39: 0.6577867594 | AO39: 0.3422132406 | AP39: 0 | AQ39: 0 | AR39: 0 | AS39: 0 | AT39: =Report!P227 -> 0
E40: OTHSGR | F40: Other Revenues - Rolled-In SG Factor | I40: 0.6577867594 | J40: 0.3422132406 | K40: 0 | L40: 0 | M40: 0 | N40: 0 | O40: 1 | P40: 0 | R40: TOTAL TRANSMISSION PLANT | V40: 0.2198617071 | W40: 0.2202340993 | AN40: 0.6577867594 | AO40: 0.3422132406 | AP40: 0 | AQ40: 0 | AR40: 0 | AS40: 0 | AT40: =Report!P228 -> 140980701.7
E41: OTHSITUS | F41: Other Revenues - Situs | I41: 0 | J41: 0 | K41: 1 | L41: 0 | M41: 0 | N41: 1 | O41: 1 | P41: 0 | R41: TOTAL DISTRIBUTION PLANT | V41: 0.2767636594 | W41: 0.2755386731 | AN41: 0 | AO41: 0 | AP41: 1 | AQ41: 0 | AR41: 0 | AS41: 1 | AT41: =Report!P229 -> 789.8218172
E42: OTHSO | F42: Other Revenues - SO Factor | I42: 0 | J42: 0 | K42: 1 | L42: 0 | M42: 0 | N42: 1 | O42: 1 | P42: 0 | R42: TOTAL | V42: =SUM(V39:V41) -> 1 | W42: =W36/W$36 -> 1 | AN42: 0 | AO42: 0 | AP42: 1 | AQ42: 0 | AR42: 0 | AS42: 1 | AT42: =Report!P230 -> 0
E43: P | F43: Production | I43: 1 | J43: 0 | K43: 0 | L43: 0 | M43: 0 | N43: 0 | O43: 1 | P43: 0 | AN43: 1 | AO43: 0 | AP43: 0 | AQ43: 0 | AR43: 0 | AS43: 0 | AT43: =Report!P231 -> 140981491.5
E44: PT | F44: Production / Transmission | I44: =IF(Variables!Y23=1,Function!V45,Function!W45) -> 0.6960029595 | J44: =IF(Variables!Y23=1,Function!V46,Function!W46) -> 0.3039970405 | K44: =SUM(L44:N44) -> 0 | L44: 0 | M44: 0 | N44: 0 | O44: 1 | P44: 0 | R44: PT | AN44: 0.6960029595 | AO44: 0.3039970405 | AP44: 0 | AQ44: 0 | AR44: 0 | AS44: 0 | AT44: =Report!P232 -> 0
E45: PTD | F45: Prod, Trans, Dist Plant | I45: =IF(Variables!Y23=1,Function!V39,Function!W39) -> 0.5042272275 | J45: =IF(Variables!Y23=1,Function!V40,Function!W40) -> 0.2202340993 | K45: =SUM(L45:N45) -> 0.2755386731 | L45: =IF(Variables!Y23=1,Function!V41,Function!W41) -> 0.2755386731 | M45: 0 | N45: 0 | O45: 1 | P45: 0 | R45: TOTAL PRODUCTION PLANT | V45: =V33/(V$33+V$34) -> 0.6960029595 | W45: =W33/(W$33+W$34) -> 0.6960029595 | AN45: 0.5042272275 | AO45: 0.2202340993 | AP45: 0.2755386731 | AQ45: 0.2755386731 | AR45: 0 | AS45: 0 | AT45: =Report!P233 -> 140981491.5
E46: REVREQ | F46: Revenue Requirement | I46: =+I122/$H$122 -> 0.5911495274 | J46: =+J122/$H$122 -> 0.1271285274 | K46: =SUM(L46:N46) -> 0.1972156456 | L46: =+L122/$H$122 -> 0.1676089731 | M46: =+M122/$H$122 -> 0.05287075923 | N46: =+N122/$H$122 -> -0.0232640867 | O46: 0.9154937004 | P46: 0 | R46: TOTAL TRANSMISSION PLANT | V46: =V34/(V$33+V$34) -> 0.3039970405 | W46: =W34/(W$33+W$34) -> 0.3039970405 | AN46: 0.5911495274 | AO46: 0.1271285274 | AP46: 0.1972156456 | AQ46: 0.1676089731 | AR46: 0.05287075923 | AS46: -0.0232640867 | AT46: =Report!P234 -> 0
E47: SCHMA | F47: Schedule M Additions | I47: 0.5259273579 | J47: 0.1774923045 | K47: =L47+M47+N47 -> 0.2965803376 | L47: 0.2797551698 | M47: 0.01209048408 | N47: 0.004734683748 | O47: 1 | P47: 1.387778781e-17 | R47: TOTAL | V47: =SUM(V45:V46) -> 1 | W47: =SUM(W45:W46) -> 1 | AN47: 0.5259273579 | AO47: 0.1774923045 | AP47: 0.2965803376 | AQ47: 0.2797551698 | AR47: 0.01209048408 | AS47: 0.004734683748 | AT47: =Report!P235 -> 0
E48: SCHMAF | F48: Schedule M Additions - Flow Through | I48: 1 | J48: 0 | K48: 0 | L48: 0 | M48: 0 | N48: 0 | O48: 1 | P48: 0 | AN48: 1 | AO48: 0 | AP48: 0 | AQ48: 0 | AR48: 0 | AS48: 0 | AT48: =Report!P236 -> 0
E49: SCHMAP | F49: Schedule M Additions - Permanent | I49: 0.4395609841 | J49: 0.07868996996 | K49: 0.4817490459 | L49: 0.345274554 | M49: 0.136474492 | N49: 0 | O49: 1 | P49: 0 | R49: TD | AN49: 0.4395609841 | AO49: 0.07868996996 | AP49: 0.4817490459 | AQ49: 0.345274554 | AR49: 0.136474492 | AS49: 0 | AT49: =Report!P237 -> 0
E50: SCHMAP-SO | F50: Schedule M Additions - Permanent-SO | I50: 0.4328192325 | J50: 0.0791881397 | K50: 0.4879926278 | L50: 0.3495187311 | M50: 0.1384738967 | N50: 0 | O50: 1 | P50: 0 | R50: TOTAL TRANSMISSION PLANT | V50: =V34/(V$34+V$35) -> 0.4427113916 | W50: =W34/(W$34+W$35) -> 0.4442238694 | AN50: 0.4328192325 | AO50: 0.0791881397 | AP50: 0.4879926278 | AQ50: 0.3495187311 | AR50: 0.1384738967 | AS50: 0 | AT50: =Report!P238 -> 0
E51: SCHMAT | F51: Schedule M Additions - Temporary | I51: 0.5274051795 | J51: 0.1791829187 | K51: 0.2934119019 | L51: 0.2786340627 | M51: 0.009962139945 | N51: 0.004815699279 | O51: 1 | P51: -3.816391647e-17 | R51: TOTAL DISTRIBUTION PLANT | V51: =V35/(V$34+V$35) -> 0.5572886084 | W51: =W35/(W$34+W$35) -> 0.5557761306 | AN51: 0.5274051795 | AO51: 0.1791829187 | AP51: 0.2934119019 | AQ51: 0.2786340627 | AR51: 0.009962139945 | AS51: 0.004815699279 | AT51: =Report!P239 -> 0
E52: SCHMAT-GPS | F52: Schedule M Additions - Temporary-GPS | I52: 0 | J52: 0 | K52: 0 | L52: 0 | M52: 0 | N52: 0 | O52: 0 | P52: 0 | R52: TOTAL | V52: =SUM(V50:V51) -> 1 | W52: =SUM(W50:W51) -> 1 | AN52: 0 | AO52: 0 | AP52: 0 | AQ52: 0 | AR52: 0 | AS52: 0 | AT52: =Report!P240 -> 0
E53: SCHMAT-SE | F53: Schedule M Additions - Temporary-SE | I53: 0.9997027317 | J53: 3.557156631e-05 | K53: 0.0002616967169 | L53: 0.0001843884424 | M53: 7.730827448e-05 | N53: 0 | O53: 1 | P53: 2.710505431e-20 | AN53: 0.9997027317 | AO53: 3.557156631e-05 | AP53: 0.0002616967169 | AQ53: 0.0001843884424 | AR53: 7.730827448e-05 | AS53: 0 | AT53: =Report!P241 -> 0
E54: SCHMAT-SITUS | F54: Schedule M Additions - Temporary-SITUS | I54: 0.5617108356 | J54: 0.04522194091 | K54: 0.3930672234 | L54: 0.2292405844 | M54: 0.03586322665 | N54: 0.1279634124 | O54: 1 | P54: 0 | AN54: 0.5617108356 | AO54: 0.04522194091 | AP54: 0.3930672234 | AQ54: 0.2292405844 | AR54: 0.03586322665 | AS54: 0.1279634124 | AT54: =Report!P242 -> 1883002085
E55: SCHMAT-SNP | F55: Schedule M Additions - Temporary-SNP | I55: 0.5078698338 | J55: 0.219200088 | K55: 0.2729300782 | L55: 0.2726403702 | M55: 0.0002897079667 | N55: 0 | O55: 1 | P55: 1.864827737e-17 | T55: Prod | U55: Trans | V55: Dist | W55: DPW | X55: CUST | Y55: DMSC | AN55: 0.5078698338 | AO55: 0.219200088 | AP55: 0.2729300782 | AQ55: 0.2726403702 | AR55: 0.0002897079667 | AS55: 0 | AT55: =Report!P243 -> 0
E56: SCHMAT-SO | F56: Schedule M Additions - Temporary-SO | I56: 0.4795353426 | J56: 0.166521788 | K56: 0.3539428695 | L56: 0.301741049 | M56: 0.05220182049 | N56: 0 | O56: =SUM(I56:K56) -> 1 | P56: -2.775557562e-17 | R56: (O&M + Taxes) / 365 | T56: =((I1042+I1230+I1406+I1439)/365) -> 2317703.41 | U56: 298845.8802 | V56: 541741.9264 | W56: 397673.4235 | X56: 178654.6873 | Y56: -34586.18441 | AN56: 0.4795353426 | AO56: 0.166521788 | AP56: 0.3539428695 | AQ56: 0.301741049 | AR56: 0.05220182049 | AS56: 0 | AT56: =Report!P244 -> 3027295.35
E57: SCHMD | F57: Schedule M Deductions | I57: 0.588862778 | J57: 0.1828931507 | K57: 0.2282440713 | L57: 0.2068982353 | M57: 0.005299510458 | N57: 0.01604632562 | O57: 1 | P57: 0 | R57: Net LAG Days | T57: =IF(Variables!$AO$3=12,Variables!$J20,IF(Variables!$Y23=2,CHOOSE(Variables!$AO3,Variables!$F20,Variables!$G20,Variables!$H20,Variables!$I20,Variables!$J20,Variables!$K20,Variables!$L20,Variables!$M20,Variables!$N20),Variables!$O20)) -> 4.762502313 | U57: =IF(Variables!$AO$3=12,Variables!$J20,IF(Variables!$Y23=2,CHOOSE(Variables!$AO3,Variables!$F20,Variables!$G20,Variables!$H20,Variables!$I20,Variables!$J20,Variables!$K20,Variables!$L20,Variables!$M20,Variables!$N20),Variables!$O20)) -> 4.762502313 | V57: =IF(Variables!$AO$3=12,Variables!$J20,IF(Variables!$Y23=2,CHOOSE(Variables!$AO3,Variables!$F20,Variables!$G20,Variables!$H20,Variables!$I20,Variables!$J20,Variables!$K20,Variables!$L20,Variables!$M20,Variables!$N20),Variables!$O20)) -> 4.762502313 | W57: =IF(Variables!$AO$3=12,Variables!$J20,IF(Variables!$Y23=2,CHOOSE(Variables!$AO3,Variables!$F20,Variables!$G20,Variables!$H20,Variables!$I20,Variables!$J20,Variables!$K20,Variables!$L20,Variables!$M20,Variables!$N20),Variables!$O20)) -> 4.762502313 | X57: =IF(Variables!$AO$3=12,Variables!$J20,IF(Variables!$Y23=2,CHOOSE(Variables!$AO3,Variables!$F20,Variables!$G20,Variables!$H20,Variables!$I20,Variables!$J20,Variables!$K20,Variables!$L20,Variables!$M20,Variables!$N20),Variables!$O20)) -> 4.762502313 | Y57: =IF(Variables!$AO$3=12,Variables!$J20,IF(Variables!$Y23=2,CHOOSE(Variables!$AO3,Variables!$F20,Variables!$G20,Variables!$H20,Variables!$I20,Variables!$J20,Variables!$K20,Variables!$L20,Variables!$M20,Variables!$N20),Variables!$O20)) -> 4.762502313 | AN57: 0.588862778 | AO57: 0.1828931507 | AP57: 0.2282440713 | AQ57: 0.2068982353 | AR57: 0.005299510458 | AS57: 0.01604632562 | AT57: =Report!P245 -> 0
E58: SCHMDF | F58: Schedule M Deductions - Flow Through | I58: 1 | J58: 0 | K58: 0 | L58: 0 | M58: 0 | N58: 0 | O58: 1 | P58: 0 | R58: CWC | S58: =SUM(T58:V58) -> 15041369.23 | T58: =T56*T57 -> 11038067.85 | U58: 1423254.196 | V58: 2580047.178 | W58: 1893920.599 | X58: 850843.3617 | Y58: -164716.7833 | AN58: 1 | AO58: 0 | AP58: 0 | AQ58: 0 | AR58: 0 | AS58: 0 | AT58: =Report!P246 -> 3027295.35
E59: SCHMDP | F59: Schedule M Deductions - Permanent | I59: 0.443506747 | J59: 0.06924130981 | K59: 0.4872519432 | L59: 0.3446432613 | M59: 0.1426086819 | N59: 0 | O59: 1 | P59: 0 | AN59: 0.443506747 | AO59: 0.06924130981 | AP59: 0.4872519432 | AQ59: 0.3446432613 | AR59: 0.1426086819 | AS59: 0 | AT59: =Report!P247 -> 0
E60: SCHMDP-SO | F60: Schedule M Deductions - Permanent- SO | I60: 0.4271290455 | J60: 0.06855059318 | K60: 0.5043203613 | L60: 0.3553382213 | M60: 0.14898214 | N60: 0 | O60: 1 | P60: 5.551115123e-17 | AN60: 0.4271290455 | AO60: 0.06855059318 | AP60: 0.5043203613 | AQ60: 0.3553382213 | AR60: 0.14898214 | AS60: 0 | AT60: =Report!P248 -> 0
E61: SCHMDT | F61: Schedule M Deductions - Temporary | I61: 0.5898361662 | J61: 0.1836542292 | K61: 0.2265096046 | L61: 0.2059758148 | M61: 0.004380008739 | N61: 0.0161537811 | O61: 1 | P61: 0 | R61: ACCUMDIT | S61: =Variables!AE27 -> 2010 PROTOCOL | T61: =IF(Variables!$AD$24=2,Function!V98,Function!AG98) -> 0.7467366097 | U61: =IF(Variables!$AD$24=2,Function!W98,Function!AH98) -> 0.1282381657 | V61: =IF(Variables!$AD$24=2,Function!X98,Function!AI98) -> 0.1250252246 | W61: =IF(Variables!$AD$24=2,Function!Y98,Function!AJ98) -> 0.1223780251 | X61: =IF(Variables!$AD$24=2,Function!Z98,Function!AK98) -> 0.002647199535 | Y61: =IF(Variables!$AD$24=2,Function!AA98,Function!AL98) -> 0 | AN61: 0.5898361662 | AO61: 0.1836542292 | AP61: 0.2265096046 | AQ61: 0.2059758148 | AR61: 0.004380008739 | AS61: 0.0161537811 | AT61: =Report!P249 -> 3904049.62
E62: SCHMDT-GPS | F62: Schedule M Deductions - Temporary-GPS | I62: 0.5079072977 | J62: 0.2191078108 | K62: 0.2729848916 | L62: 0.2725340031 | M62: 0.0004508884824 | N62: 0 | O62: 1 | P62: 2.32561366e-17 | R62: DITEXP | S62: =Variables!AE27 -> 2010 PROTOCOL | T62: =IF(Variables!$AD$24=2,Function!V133,Function!AG133) ->  | U62: =IF(Variables!$AD$24=2,Function!W133,Function!AH133) ->  | V62: =IF(Variables!$AD$24=2,Function!X133,Function!AI133) ->  | W62: =IF(Variables!$AD$24=2,Function!Y133,Function!AJ133) ->  | X62: =IF(Variables!$AD$24=2,Function!Z133,Function!AK133) ->  | Y62: =IF(Variables!$AD$24=2,Function!AA133,Function!AL133) ->  | AN62: 0.5079072977 | AO62: 0.2191078108 | AP62: 0.2729848916 | AQ62: =+L62 -> 0.2725340031 | AR62: 0.0004508884824 | AS62: 0 | AT62: =Report!P250 -> 0
E63: SCHMDT-SG | F63: Schedule M Deductions - Temporary-SG | I63: 1 | J63: 0 | K63: 0 | L63: 0 | M63: 0 | N63: 0 | O63: 1 | P63: 0 | AN63: =+I63 -> 1 | AO63: 0 | AP63: 0 | AQ63: 0 | AR63: 0 | AS63: 0 | AT63: =Report!P251 -> 1757.58011
E64: SCHMDT-SITUS | F64: Schedule M Deductions - Temporary-SITUS | I64: 0.8344666423 | J64: 0.01183861175 | K64: 0.1536947459 | L64: 0.06331607949 | M64: 0.02943826634 | N64: 0.06094040008 | O64: 1 | P64: 0 | AN64: 0.8344666423 | AO64: 0.01183861175 | AP64: 0.1536947459 | AQ64: 0.06331607949 | AR64: 0.02943826634 | AS64: 0.06094040008 | AT64: =Report!P252 -> 3905807.2
E65: SCHMDT-SNP | F65: Schedule M Deductions - Temporary-SNP | I65: 0.5078024957 | J65: 0.2193659483 | K65: 0.272831556 | L65: 0.272831556 | M65: 0 | N65: 0 | O65: 1 | P65: 0 | R65: DITBALRL | AC65: DITBALMA | AN65: 0.5078024957 | AO65: 0.2193659483 | AP65: 0.272831556 | AQ65: 0.272831556 | AR65: 0 | AS65: 0 | AT65: =Report!P253 -> 0
E66: SCHMDT-SO | F66: Schedule M Deductions - Temporary-SO | I66: 0.4477732506 | J66: 0.1816132325 | K66: 0.3706135169 | L66: 0.365968925 | M66: 0.004644591842 | N66: 0 | O66: 1 | P66: -2.341876693e-17 | R66: Pacific Division | T66: Total | U66: =Variables!X24 -> UTAH | V66: Production | W66: Transmission | X66: Distribution | Y66: DPW | Z66: CUST | AA66: DMSC | AC66: Pacific Division | AE66: Total | AF66: =Variables!X24 -> UTAH | AG66: Production | AH66: Transmission | AI66: Distribution | AJ66: DPW | AK66: CUST | AL66: DMSC | AN66: =+I66 -> 0.4477732506 | AO66: 0.1816132325 | AP66: 0.3706135169 | AQ66: 0.365968925 | AR66: 0.004644591842 | AS66: 0 | AT66: =Report!P254 -> 0
E67: SIT | F67: State Income Tax | I67: =+I1406/$H$1406 -> 1.273288188 | J67: =+J1406/$H$1406 -> 0.02351136067 | K67: -0.2967995484 | L67: =+L1406/$H$1406 -> -0.2945179575 | M67: =+M1406/$H$1406 -> -0.2128334763 | N67: =+N1406/$H$1406 -> 0.2105518854 | O67: 1 | P67: 0 | R67: Pacific Division | AC67: Pacific Division | AN67: 1.273288188 | AO67: 0.02351136067 | AP67: -0.2967995484 | AQ67: -0.2945179575 | AR67: -0.2128334763 | AS67: 0.2105518854 | AT67: =Report!P255 -> 5174.938286
E68: T | F68: Transmission | I68: 0 | J68: 1 | K68: 0 | L68: 0 | M68: 0 | N68: 0 | O68: 1 | P68: =K68-L68-M68-N68 -> 0 | R68: Production | S68: P | T68: =Factors!C433 -> 53689800 | U68: =IF(Variables!$AO$3=12,Factors!H433+Factors!K433,CHOOSE(Variables!AO$3,Factors!D433,Factors!E433,Factors!F433,Factors!G433,Factors!H433,Factors!I433,Factors!J433,Factors!K433,Factors!L433,Factors!M433,Factors!N433)) -> 2043681 | V68: =VLOOKUP($S68,$E$4:$O$71,5,FALSE)*IF(Variables!$Y$23=1,$T68,$U68) -> 2043681 | W68: =VLOOKUP($S68,$E$4:$O$71,6,FALSE)*IF(Variables!$Y$23=1,$T68,$U68) -> 0 | X68: =VLOOKUP($S68,$E$4:$O$71,7,FALSE)*IF(Variables!$Y$23=1,$T68,$U68) -> 0 | Y68: =VLOOKUP($S68,$E$4:$O$71,8,FALSE)*IF(Variables!$Y$23=1,$T68,$U68) -> 0 | Z68: =VLOOKUP($S68,$E$4:$O$71,9,FALSE)*IF(Variables!$Y$23=1,$T68,$U68) -> 0 | AA68: =VLOOKUP($S68,$E$4:$O$71,10,FALSE)*IF(Variables!$Y$23=1,$T68,$U68) -> 0 | AC68: Production | AD68: P | AE68: =T68 -> 53689800 | AF68: 2043681 | AG68: =VLOOKUP($AD68,$E$4:$O$71,5,FALSE)*IF(Variables!$Y$23=1,$AE68,$AF68) -> 2043681 | AH68: =VLOOKUP($AD68,$E$4:$O$71,6,FALSE)*IF(Variables!$Y$23=1,$AE68,$AF68) -> 0 | AI68: =VLOOKUP($AD68,$E$4:$O$71,7,FALSE)*IF(Variables!$Y$23=1,$AE68,$AF68) -> 0 | AJ68: =VLOOKUP($AD68,$E$4:$O$71,8,FALSE)*IF(Variables!$Y$23=1,$AE68,$AF68) -> 0 | AK68: =VLOOKUP($AD68,$E$4:$O$71,9,FALSE)*IF(Variables!$Y$23=1,$AE68,$AF68) -> 0 | AL68: =VLOOKUP($AD68,$E$4:$O$71,10,FALSE)*IF(Variables!$Y$23=1,$AE68,$AF68) -> 0 | AN68: 0 | AO68: 1 | AP68: 0 | AQ68: 0 | AR68: 0 | AS68: 0 | AT68: =Report!P256 -> 5174.938286
E69: TAXDEPR | F69: Tax Depreciation | I69: 0.5835074932 | J69: 0.19492994 | K69: =L69+M69+N69 -> 0.2215625668 | L69: 0.2170587656 | M69: 0.00450380126 | N69: 0 | O69: =SUM(I69:K69) -> 1 | P69: =K69-L69-M69-N69 -> 1.127570259e-17 | R69: Transmission | S69: T | T69: =Factors!C434 -> 20238170 | U69: =IF(Variables!$AO$3=12,Factors!H434+Factors!K434,CHOOSE(Variables!AO$3,Factors!D434,Factors!E434,Factors!F434,Factors!G434,Factors!H434,Factors!I434,Factors!J434,Factors!K434,Factors!L434,Factors!M434,Factors!N434)) -> 888638 | V69: =VLOOKUP($S69,$E$4:$O$71,5,FALSE)*IF(Variables!$Y$23=1,$T69,$U69) -> 0 | W69: =VLOOKUP($S69,$E$4:$O$71,6,FALSE)*IF(Variables!$Y$23=1,$T69,$U69) -> 888638 | X69: =VLOOKUP($S69,$E$4:$O$71,7,FALSE)*IF(Variables!$Y$23=1,$T69,$U69) -> 0 | Y69: =VLOOKUP($S69,$E$4:$O$71,8,FALSE)*IF(Variables!$Y$23=1,$T69,$U69) -> 0 | Z69: =VLOOKUP($S69,$E$4:$O$71,9,FALSE)*IF(Variables!$Y$23=1,$T69,$U69) -> 0 | AA69: =VLOOKUP($S69,$E$4:$O$71,10,FALSE)*IF(Variables!$Y$23=1,$T69,$U69) -> 0 | AC69: Transmission | AD69: T | AE69: 20238170 | AF69: 888638 | AG69: =VLOOKUP($AD69,$E$4:$O$71,5,FALSE)*IF(Variables!$Y$23=1,$AE69,$AF69) -> 0 | AH69: =VLOOKUP($AD69,$E$4:$O$71,6,FALSE)*IF(Variables!$Y$23=1,$AE69,$AF69) -> 888638 | AI69: =VLOOKUP($AD69,$E$4:$O$71,7,FALSE)*IF(Variables!$Y$23=1,$AE69,$AF69) -> 0 | AJ69: =VLOOKUP($AD69,$E$4:$O$71,8,FALSE)*IF(Variables!$Y$23=1,$AE69,$AF69) -> 0 | AK69: =VLOOKUP($AD69,$E$4:$O$71,9,FALSE)*IF(Variables!$Y$23=1,$AE69,$AF69) -> 0 | AL69: =VLOOKUP($AD69,$E$4:$O$71,10,FALSE)*IF(Variables!$Y$23=1,$AE69,$AF69) -> 0 | AN69: 0.5835074932 | AO69: 0.19492994 | AP69: 0.2215625668 | AQ69: 0.2170587656 | AR69: 0.00450380126 | AS69: 0 | AT69: =Report!P257 -> 0
E70: TD | F70: Transmission / Distribution | I70: 0 | J70: 0.4456868359 | K70: =SUM(L70:N70) -> 0.5543131641 | L70: 0.5543131641 | M70: 0 | N70: 0 | O70: =SUM(I70:K70) -> 1 | P70: =K69-L69-M69-N69 -> 1.127570259e-17 | R70: Distribution | S70: DPW | T70: =Factors!C435 -> 35048821 | U70: =IF(Variables!$AO$3=12,Factors!H435+Factors!K435,CHOOSE(Variables!AO$3,Factors!D435,Factors!E435,Factors!F435,Factors!G435,Factors!H435,Factors!I435,Factors!J435,Factors!K435,Factors!L435,Factors!M435,Factors!N435)) -> 0 | V70: =VLOOKUP($S70,$E$4:$O$71,5,FALSE)*IF(Variables!$Y$23=1,$T70,$U70) -> 0 | W70: =VLOOKUP($S70,$E$4:$O$71,6,FALSE)*IF(Variables!$Y$23=1,$T70,$U70) -> 0 | X70: =VLOOKUP($S70,$E$4:$O$71,7,FALSE)*IF(Variables!$Y$23=1,$T70,$U70) -> 0 | Y70: =VLOOKUP($S70,$E$4:$O$71,8,FALSE)*IF(Variables!$Y$23=1,$T70,$U70) -> 0 | Z70: =VLOOKUP($S70,$E$4:$O$71,9,FALSE)*IF(Variables!$Y$23=1,$T70,$U70) -> 0 | AA70: =VLOOKUP($S70,$E$4:$O$71,10,FALSE)*IF(Variables!$Y$23=1,$T70,$U70) -> 0 | AC70: Distribution | AD70: DPW | AE70: 35048821 | AF70: 0 | AG70: =VLOOKUP($AD70,$E$4:$O$71,5,FALSE)*IF(Variables!$Y$23=1,$AE70,$AF70) -> 0 | AH70: =VLOOKUP($AD70,$E$4:$O$71,6,FALSE)*IF(Variables!$Y$23=1,$AE70,$AF70) -> 0 | AI70: =VLOOKUP($AD70,$E$4:$O$71,7,FALSE)*IF(Variables!$Y$23=1,$AE70,$AF70) -> 0 | AJ70: =VLOOKUP($AD70,$E$4:$O$71,8,FALSE)*IF(Variables!$Y$23=1,$AE70,$AF70) -> 0 | AK70: =VLOOKUP($AD70,$E$4:$O$71,9,FALSE)*IF(Variables!$Y$23=1,$AE70,$AF70) -> 0 | AL70: =VLOOKUP($AD70,$E$4:$O$71,10,FALSE)*IF(Variables!$Y$23=1,$AE70,$AF70) -> 0 | AN70: 0 | AO70: 0.4456868359 | AP70: 0.5543131641 | AQ70: 0.5543131641 | AR70: 0 | AS70: 0 | AT70: =Report!P258 -> 0
P71: =K70-L70-M70-N70 -> 0 | R71: General | S71: G | T71: =Factors!C436 -> -490246 | U71: =IF(Variables!$AO$3=12,Factors!H436+Factors!K436,CHOOSE(Variables!AO$3,Factors!D436,Factors!E436,Factors!F436,Factors!G436,Factors!H436,Factors!I436,Factors!J436,Factors!K436,Factors!L436,Factors!M436,Factors!N436)) -> -55274 | V71: =VLOOKUP($S71,$E$4:$O$71,5,FALSE)*IF(Variables!$Y$23=1,$T71,$U71) -> -12870.13343 | W71: =VLOOKUP($S71,$E$4:$O$71,6,FALSE)*IF(Variables!$Y$23=1,$T71,$U71) -> -16528.04499 | X71: =VLOOKUP($S71,$E$4:$O$71,7,FALSE)*IF(Variables!$Y$23=1,$T71,$U71) -> -25875.82158 | Y71: =VLOOKUP($S71,$E$4:$O$71,8,FALSE)*IF(Variables!$Y$23=1,$T71,$U71) -> -24427.30303 | Z71: =VLOOKUP($S71,$E$4:$O$71,9,FALSE)*IF(Variables!$Y$23=1,$T71,$U71) -> -1448.518554 | AA71: =VLOOKUP($S71,$E$4:$O$71,10,FALSE)*IF(Variables!$Y$23=1,$T71,$U71) -> 0 | AC71: General | AD71: G | AE71: -490246 | AF71: -55274 | AG71: =VLOOKUP($AD71,$E$4:$O$71,5,FALSE)*IF(Variables!$Y$23=1,$AE71,$AF71) -> -12870.13343 | AH71: =VLOOKUP($AD71,$E$4:$O$71,6,FALSE)*IF(Variables!$Y$23=1,$AE71,$AF71) -> -16528.04499 | AI71: =VLOOKUP($AD71,$E$4:$O$71,7,FALSE)*IF(Variables!$Y$23=1,$AE71,$AF71) -> -25875.82158 | AJ71: =VLOOKUP($AD71,$E$4:$O$71,8,FALSE)*IF(Variables!$Y$23=1,$AE71,$AF71) -> -24427.30303 | AK71: =VLOOKUP($AD71,$E$4:$O$71,9,FALSE)*IF(Variables!$Y$23=1,$AE71,$AF71) -> -1448.518554 | AL71: =VLOOKUP($AD71,$E$4:$O$71,10,FALSE)*IF(Variables!$Y$23=1,$AE71,$AF71) -> 0 | AN71: 0 | AO71: 0 | AP71: 0 | AQ71: 0 | AR71: 0 | AS71: 0 | AT71: =Report!P259 -> 3461819.55
P72: =K71-L71-M71-N71 -> 0 | R72: Mining Plant | S72: P | T72: =Factors!C437 -> 2565 | U72: =IF(Variables!$AO$3=12,Factors!H437+Factors!K437,CHOOSE(Variables!AO$3,Factors!D437,Factors!E437,Factors!F437,Factors!G437,Factors!H437,Factors!I437,Factors!J437,Factors!K437,Factors!L437,Factors!M437,Factors!N437)) -> 1059 | V72: =VLOOKUP($S72,$E$4:$O$71,5,FALSE)*IF(Variables!$Y$23=1,$T72,$U72) -> 1059 | W72: =VLOOKUP($S72,$E$4:$O$71,6,FALSE)*IF(Variables!$Y$23=1,$T72,$U72) -> 0 | X72: =VLOOKUP($S72,$E$4:$O$71,7,FALSE)*IF(Variables!$Y$23=1,$T72,$U72) -> 0 | Y72: =VLOOKUP($S72,$E$4:$O$71,8,FALSE)*IF(Variables!$Y$23=1,$T72,$U72) -> 0 | Z72: =VLOOKUP($S72,$E$4:$O$71,9,FALSE)*IF(Variables!$Y$23=1,$T72,$U72) -> 0 | AA72: =VLOOKUP($S72,$E$4:$O$71,10,FALSE)*IF(Variables!$Y$23=1,$T72,$U72) -> 0 | AC72: Mining Plant | AD72: P | AE72: 2565 | AF72: 1059 | AG72: =VLOOKUP($AD72,$E$4:$O$71,5,FALSE)*IF(Variables!$Y$23=1,$AE72,$AF72) -> 1059 | AH72: =VLOOKUP($AD72,$E$4:$O$71,6,FALSE)*IF(Variables!$Y$23=1,$AE72,$AF72) -> 0 | AI72: =VLOOKUP($AD72,$E$4:$O$71,7,FALSE)*IF(Variables!$Y$23=1,$AE72,$AF72) -> 0 | AJ72: =VLOOKUP($AD72,$E$4:$O$71,8,FALSE)*IF(Variables!$Y$23=1,$AE72,$AF72) -> 0 | AK72: =VLOOKUP($AD72,$E$4:$O$71,9,FALSE)*IF(Variables!$Y$23=1,$AE72,$AF72) -> 0 | AL72: =VLOOKUP($AD72,$E$4:$O$71,10,FALSE)*IF(Variables!$Y$23=1,$AE72,$AF72) -> 0 | AT72: =Report!P260 -> 2411131.308
AT73: =Report!P261 -> 1542944.078
R74: Total Pacific Division | T74: =SUM(T68:T73) -> 108489110 | U74: 2878104 | V74: 2031869.867 | W74: 872109.955 | X74: -25875.82158 | Y74: -24427.30303 | Z74: -1448.518554 | AA74: 0 | AC74: Total Pacific Division | AE74: =SUM(AE68:AE73) -> 108489110 | AF74: 2878104 | AG74: 2031869.867 | AH74: 872109.955 | AI74: -25875.82158 | AJ74: -24427.30303 | AK74: -1448.518554 | AL74: 0 | AT74: =Report!P262 -> 7415894.936
AT75: =Report!P263 -> 0
R76: Utah Division | AC76: Utah Division | AT76: =Report!P264 -> 0
R77: Production | S77: P | T77: =Factors!C443 -> 84854158 | U77: =IF(Variables!$AO$3=12,Factors!H443+Factors!K443,CHOOSE(Variables!AO$3,Factors!D443,Factors!E443,Factors!F443,Factors!G443,Factors!H443,Factors!I443,Factors!J443,Factors!K443,Factors!L443,Factors!M443,Factors!N443)) -> 66333521 | V77: =VLOOKUP($S77,$E$4:$O$71,5,FALSE)*IF(Variables!$Y$23=1,$T77,$U77) -> 66333521 | W77: =VLOOKUP($S77,$E$4:$O$71,6,FALSE)*IF(Variables!$Y$23=1,$T77,$U77) -> 0 | X77: =VLOOKUP($S77,$E$4:$O$71,7,FALSE)*IF(Variables!$Y$23=1,$T77,$U77) -> 0 | Y77: =VLOOKUP($S77,$E$4:$O$71,8,FALSE)*IF(Variables!$Y$23=1,$T77,$U77) -> 0 | Z77: =VLOOKUP($S77,$E$4:$O$71,9,FALSE)*IF(Variables!$Y$23=1,$T77,$U77) -> 0 | AA77: =VLOOKUP($S77,$E$4:$O$71,10,FALSE)*IF(Variables!$Y$23=1,$T77,$U77) -> 0 | AC77: Production | AD77: P | AE77: =T77 -> 84854158 | AF77: 66333521 | AG77: =VLOOKUP($AD77,$E$4:$O$71,5,FALSE)*IF(Variables!$Y$23=1,$AE77,$AF77) -> 66333521 | AH77: =VLOOKUP($AD77,$E$4:$O$71,6,FALSE)*IF(Variables!$Y$23=1,$AE77,$AF77) -> 0 | AI77: =VLOOKUP($AD77,$E$4:$O$71,7,FALSE)*IF(Variables!$Y$23=1,$AE77,$AF77) -> 0 | AJ77: =VLOOKUP($AD77,$E$4:$O$71,8,FALSE)*IF(Variables!$Y$23=1,$AE77,$AF77) -> 0 | AK77: =VLOOKUP($AD77,$E$4:$O$71,9,FALSE)*IF(Variables!$Y$23=1,$AE77,$AF77) -> 0 | AL77: =VLOOKUP($AD77,$E$4:$O$71,10,FALSE)*IF(Variables!$Y$23=1,$AE77,$AF77) -> 0 | AT77: =Report!P265 -> 0
R78: Transmission | S78: T | T78: =Factors!C444 -> 48065539 | U78: =IF(Variables!$AO$3=12,Factors!H444+Factors!K444,CHOOSE(Variables!AO$3,Factors!D444,Factors!E444,Factors!F444,Factors!G444,Factors!H444,Factors!I444,Factors!J444,Factors!K444,Factors!L444,Factors!M444,Factors!N444)) -> 40331079 | V78: =VLOOKUP($S78,$E$4:$O$71,5,FALSE)*IF(Variables!$Y$23=1,$T78,$U78) -> 0 | W78: =VLOOKUP($S78,$E$4:$O$71,6,FALSE)*IF(Variables!$Y$23=1,$T78,$U78) -> 40331079 | X78: =VLOOKUP($S78,$E$4:$O$71,7,FALSE)*IF(Variables!$Y$23=1,$T78,$U78) -> 0 | Y78: =VLOOKUP($S78,$E$4:$O$71,8,FALSE)*IF(Variables!$Y$23=1,$T78,$U78) -> 0 | Z78: =VLOOKUP($S78,$E$4:$O$71,9,FALSE)*IF(Variables!$Y$23=1,$T78,$U78) -> 0 | AA78: =VLOOKUP($S78,$E$4:$O$71,10,FALSE)*IF(Variables!$Y$23=1,$T78,$U78) -> 0 | AC78: Transmission | AD78: T | AE78: 48065539 | AF78: 40331079 | AG78: =VLOOKUP($AD78,$E$4:$O$71,5,FALSE)*IF(Variables!$Y$23=1,$AE78,$AF78) -> 0 | AH78: =VLOOKUP($AD78,$E$4:$O$71,6,FALSE)*IF(Variables!$Y$23=1,$AE78,$AF78) -> 40331079 | AI78: =VLOOKUP($AD78,$E$4:$O$71,7,FALSE)*IF(Variables!$Y$23=1,$AE78,$AF78) -> 0 | AJ78: =VLOOKUP($AD78,$E$4:$O$71,8,FALSE)*IF(Variables!$Y$23=1,$AE78,$AF78) -> 0 | AK78: =VLOOKUP($AD78,$E$4:$O$71,9,FALSE)*IF(Variables!$Y$23=1,$AE78,$AF78) -> 0 | AL78: =VLOOKUP($AD78,$E$4:$O$71,10,FALSE)*IF(Variables!$Y$23=1,$AE78,$AF78) -> 0 | AN78: JAM Factors | AT78: =Report!P266 -> 0
R79: Distribution | S79: DPW | T79: =Factors!C445 -> 40497841 | U79: =IF(Variables!$AO$3=12,Factors!H445+Factors!K445,CHOOSE(Variables!AO$3,Factors!D445,Factors!E445,Factors!F445,Factors!G445,Factors!H445,Factors!I445,Factors!J445,Factors!K445,Factors!L445,Factors!M445,Factors!N445)) -> 32685798 | V79: =VLOOKUP($S79,$E$4:$O$71,5,FALSE)*IF(Variables!$Y$23=1,$T79,$U79) -> 0 | W79: =VLOOKUP($S79,$E$4:$O$71,6,FALSE)*IF(Variables!$Y$23=1,$T79,$U79) -> 0 | X79: =VLOOKUP($S79,$E$4:$O$71,7,FALSE)*IF(Variables!$Y$23=1,$T79,$U79) -> 32685798 | Y79: =VLOOKUP($S79,$E$4:$O$71,8,FALSE)*IF(Variables!$Y$23=1,$T79,$U79) -> 32685798 | Z79: =VLOOKUP($S79,$E$4:$O$71,9,FALSE)*IF(Variables!$Y$23=1,$T79,$U79) -> 0 | AA79: =VLOOKUP($S79,$E$4:$O$71,10,FALSE)*IF(Variables!$Y$23=1,$T79,$U79) -> 0 | AC79: Distribution | AD79: DPW | AE79: 40497841 | AF79: 32685798 | AG79: =VLOOKUP($AD79,$E$4:$O$71,5,FALSE)*IF(Variables!$Y$23=1,$AE79,$AF79) -> 0 | AH79: =VLOOKUP($AD79,$E$4:$O$71,6,FALSE)*IF(Variables!$Y$23=1,$AE79,$AF79) -> 0 | AI79: =VLOOKUP($AD79,$E$4:$O$71,7,FALSE)*IF(Variables!$Y$23=1,$AE79,$AF79) -> 32685798 | AJ79: =VLOOKUP($AD79,$E$4:$O$71,8,FALSE)*IF(Variables!$Y$23=1,$AE79,$AF79) -> 32685798 | AK79: =VLOOKUP($AD79,$E$4:$O$71,9,FALSE)*IF(Variables!$Y$23=1,$AE79,$AF79) -> 0 | AL79: =VLOOKUP($AD79,$E$4:$O$71,10,FALSE)*IF(Variables!$Y$23=1,$AE79,$AF79) -> 0 | AN79: SG | AO79: =+Factors!H4 -> 0.4278116685 | AT79: =Report!P267 -> 70003.89
R80: General | S80: G | T80: =Factors!C446 -> -780617 | U80: =IF(Variables!$AO$3=12,Factors!H446+Factors!K446,CHOOSE(Variables!AO$3,Factors!D446,Factors!E446,Factors!F446,Factors!G446,Factors!H446,Factors!I446,Factors!J446,Factors!K446,Factors!L446,Factors!M446,Factors!N446)) -> -163814 | V80: =VLOOKUP($S80,$E$4:$O$71,5,FALSE)*IF(Variables!$Y$23=1,$T80,$U80) -> -38142.85265 | W80: =VLOOKUP($S80,$E$4:$O$71,6,FALSE)*IF(Variables!$Y$23=1,$T80,$U80) -> -48983.70231 | X80: =VLOOKUP($S80,$E$4:$O$71,7,FALSE)*IF(Variables!$Y$23=1,$T80,$U80) -> -76687.44504 | Y80: =VLOOKUP($S80,$E$4:$O$71,8,FALSE)*IF(Variables!$Y$23=1,$T80,$U80) -> -72394.51132 | Z80: =VLOOKUP($S80,$E$4:$O$71,9,FALSE)*IF(Variables!$Y$23=1,$T80,$U80) -> -4292.933718 | AA80: =VLOOKUP($S80,$E$4:$O$71,10,FALSE)*IF(Variables!$Y$23=1,$T80,$U80) -> 0 | AC80: General | AD80: G | AE80: -780617 | AF80: -163814 | AG80: =VLOOKUP($AD80,$E$4:$O$71,5,FALSE)*IF(Variables!$Y$23=1,$AE80,$AF80) -> -38142.85265 | AH80: =VLOOKUP($AD80,$E$4:$O$71,6,FALSE)*IF(Variables!$Y$23=1,$AE80,$AF80) -> -48983.70231 | AI80: =VLOOKUP($AD80,$E$4:$O$71,7,FALSE)*IF(Variables!$Y$23=1,$AE80,$AF80) -> -76687.44504 | AJ80: =VLOOKUP($AD80,$E$4:$O$71,8,FALSE)*IF(Variables!$Y$23=1,$AE80,$AF80) -> -72394.51132 | AK80: =VLOOKUP($AD80,$E$4:$O$71,9,FALSE)*IF(Variables!$Y$23=1,$AE80,$AF80) -> -4292.933718 | AL80: =VLOOKUP($AD80,$E$4:$O$71,10,FALSE)*IF(Variables!$Y$23=1,$AE80,$AF80) -> 0 | AN80: SE | AO80: =+Factors!H10 -> 0.4223646081 | AT80: =Report!P268 -> 0
R81: Mining Plant | S81: P | T81: =Factors!C447 -> 6820 | U81: =IF(Variables!$AO$3=12,Factors!H447+Factors!K447,CHOOSE(Variables!AO$3,Factors!D447,Factors!E447,Factors!F447,Factors!G447,Factors!H447,Factors!I447,Factors!J447,Factors!K447,Factors!L447,Factors!M447,Factors!N447)) -> 2815 | V81: =VLOOKUP($S81,$E$4:$O$71,5,FALSE)*IF(Variables!$Y$23=1,$T81,$U81) -> 2815 | W81: =VLOOKUP($S81,$E$4:$O$71,6,FALSE)*IF(Variables!$Y$23=1,$T81,$U81) -> 0 | X81: =VLOOKUP($S81,$E$4:$O$71,7,FALSE)*IF(Variables!$Y$23=1,$T81,$U81) -> 0 | Y81: =VLOOKUP($S81,$E$4:$O$71,8,FALSE)*IF(Variables!$Y$23=1,$T81,$U81) -> 0 | Z81: =VLOOKUP($S81,$E$4:$O$71,9,FALSE)*IF(Variables!$Y$23=1,$T81,$U81) -> 0 | AA81: =VLOOKUP($S81,$E$4:$O$71,10,FALSE)*IF(Variables!$Y$23=1,$T81,$U81) -> 0 | AC81: Mining Plant | AD81: P | AE81: 6820 | AF81: 2815 | AG81: =VLOOKUP($AD81,$E$4:$O$71,5,FALSE)*IF(Variables!$Y$23=1,$AE81,$AF81) -> 2815 | AH81: =VLOOKUP($AD81,$E$4:$O$71,6,FALSE)*IF(Variables!$Y$23=1,$AE81,$AF81) -> 0 | AI81: =VLOOKUP($AD81,$E$4:$O$71,7,FALSE)*IF(Variables!$Y$23=1,$AE81,$AF81) -> 0 | AJ81: =VLOOKUP($AD81,$E$4:$O$71,8,FALSE)*IF(Variables!$Y$23=1,$AE81,$AF81) -> 0 | AK81: =VLOOKUP($AD81,$E$4:$O$71,9,FALSE)*IF(Variables!$Y$23=1,$AE81,$AF81) -> 0 | AL81: =VLOOKUP($AD81,$E$4:$O$71,10,FALSE)*IF(Variables!$Y$23=1,$AE81,$AF81) -> 0 | AN81: SSGC | AO81: =+Factors!H31 -> 0 | AT81: =Report!P269 -> 4796995.486
AN82: SSECH | AO82: =+Factors!H27 -> 0.4223646081 | AT82: =Report!P270 -> -11310.66232
R83: Total Utah Division | T83: =SUM(T77:T82) -> 172643741 | U83: 139189399 | V83: 66298193.15 | W83: 40282095.3 | X83: 32609110.55 | Y83: 32613403.49 | Z83: -4292.933718 | AA83: 0 | AC83: Total Utah Division | AE83: =SUM(AE77:AE82) -> 172643741 | AF83: 139189399 | AG83: 66298193.15 | AH83: 40282095.3 | AI83: 32609110.55 | AJ83: 32613403.49 | AK83: -4292.933718 | AL83: 0 | AN83: SSECT | AO83: =+Factors!H25 -> 0.4174242803 | AT83: =Report!P271 -> 83226656.37
AT84: =Report!P272 -> 0
R85: PACIFICORP | AC85: PACIFICORP | AT85: =Report!P273 -> 0
R86: Production | S86: P | T86: =Factors!C453 -> 507962754 | U86: =IF(Variables!$AO$3=12,Factors!H453+Factors!K453,CHOOSE(Variables!AO$3,Factors!D453,Factors!E453,Factors!F453,Factors!G453,Factors!H453,Factors!I453,Factors!J453,Factors!K453,Factors!L453,Factors!M453,Factors!N453)) -> 205418292 | V86: =VLOOKUP($S86,$E$4:$O$71,5,FALSE)*IF(Variables!$Y$23=1,$T86,$U86) -> 205418292 | W86: =VLOOKUP($S86,$E$4:$O$71,6,FALSE)*IF(Variables!$Y$23=1,$T86,$U86) -> 0 | X86: =VLOOKUP($S86,$E$4:$O$71,7,FALSE)*IF(Variables!$Y$23=1,$T86,$U86) -> 0 | Y86: =VLOOKUP($S86,$E$4:$O$71,8,FALSE)*IF(Variables!$Y$23=1,$T86,$U86) -> 0 | Z86: =VLOOKUP($S86,$E$4:$O$71,9,FALSE)*IF(Variables!$Y$23=1,$T86,$U86) -> 0 | AA86: =VLOOKUP($S86,$E$4:$O$71,10,FALSE)*IF(Variables!$Y$23=1,$T86,$U86) -> 0 | AC86: Production | AD86: P | AE86: =T86 -> 507962754 | AF86: =U86 -> 205418292 | AG86: =VLOOKUP($AD86,$E$4:$O$71,5,FALSE)*IF(Variables!$Y$23=1,$AE86,$AF86) -> 205418292 | AH86: =VLOOKUP($AD86,$E$4:$O$71,6,FALSE)*IF(Variables!$Y$23=1,$AE86,$AF86) -> 0 | AI86: =VLOOKUP($AD86,$E$4:$O$71,7,FALSE)*IF(Variables!$Y$23=1,$AE86,$AF86) -> 0 | AJ86: =VLOOKUP($AD86,$E$4:$O$71,8,FALSE)*IF(Variables!$Y$23=1,$AE86,$AF86) -> 0 | AK86: =VLOOKUP($AD86,$E$4:$O$71,9,FALSE)*IF(Variables!$Y$23=1,$AE86,$AF86) -> 0 | AL86: =VLOOKUP($AD86,$E$4:$O$71,10,FALSE)*IF(Variables!$Y$23=1,$AE86,$AF86) -> 0 | AT86: =Report!P274 -> 88082345.08
R87: Hydro - P | S87: P | T87: =Factors!C454 -> 7451084 | U87: =IF(Variables!$AO$3=12,Factors!H454+Factors!K454,CHOOSE(Variables!AO$3,Factors!D454,Factors!E454,Factors!F454,Factors!G454,Factors!H454,Factors!I454,Factors!J454,Factors!K454,Factors!L454,Factors!M454,Factors!N454)) -> 2443553 | V87: =VLOOKUP($S87,$E$4:$O$71,5,FALSE)*IF(Variables!$Y$23=1,$T87,$U87) -> 2443553 | W87: =VLOOKUP($S87,$E$4:$O$71,6,FALSE)*IF(Variables!$Y$23=1,$T87,$U87) -> 0 | X87: =VLOOKUP($S87,$E$4:$O$71,7,FALSE)*IF(Variables!$Y$23=1,$T87,$U87) -> 0 | Y87: =VLOOKUP($S87,$E$4:$O$71,8,FALSE)*IF(Variables!$Y$23=1,$T87,$U87) -> 0 | Z87: =VLOOKUP($S87,$E$4:$O$71,9,FALSE)*IF(Variables!$Y$23=1,$T87,$U87) -> 0 | AA87: =VLOOKUP($S87,$E$4:$O$71,10,FALSE)*IF(Variables!$Y$23=1,$T87,$U87) -> 0 | AC87: Hydro - P | AD87: P | AE87: 7451084 | AF87: 2443553 | AG87: =VLOOKUP($AD87,$E$4:$O$71,5,FALSE)*IF(Variables!$Y$23=1,$AE87,$AF87) -> 2443553 | AH87: =VLOOKUP($AD87,$E$4:$O$71,6,FALSE)*IF(Variables!$Y$23=1,$AE87,$AF87) -> 0 | AI87: =VLOOKUP($AD87,$E$4:$O$71,7,FALSE)*IF(Variables!$Y$23=1,$AE87,$AF87) -> 0 | AJ87: =VLOOKUP($AD87,$E$4:$O$71,8,FALSE)*IF(Variables!$Y$23=1,$AE87,$AF87) -> 0 | AK87: =VLOOKUP($AD87,$E$4:$O$71,9,FALSE)*IF(Variables!$Y$23=1,$AE87,$AF87) -> 0 | AL87: =VLOOKUP($AD87,$E$4:$O$71,10,FALSE)*IF(Variables!$Y$23=1,$AE87,$AF87) -> 0 | AT87: =Report!P275 -> 0
R88: Hydro - U | S88: P | T88: =Factors!C455 -> 3825269 | U88: =IF(Variables!$AO$3=12,Factors!H455+Factors!K455,CHOOSE(Variables!AO$3,Factors!D455,Factors!E455,Factors!F455,Factors!G455,Factors!H455,Factors!I455,Factors!J455,Factors!K455,Factors!L455,Factors!M455,Factors!N455)) -> 1684970 | V88: =VLOOKUP($S88,$E$4:$O$71,5,FALSE)*IF(Variables!$Y$23=1,$T88,$U88) -> 1684970 | W88: =VLOOKUP($S88,$E$4:$O$71,6,FALSE)*IF(Variables!$Y$23=1,$T88,$U88) -> 0 | X88: =VLOOKUP($S88,$E$4:$O$71,7,FALSE)*IF(Variables!$Y$23=1,$T88,$U88) -> 0 | Y88: =VLOOKUP($S88,$E$4:$O$71,8,FALSE)*IF(Variables!$Y$23=1,$T88,$U88) -> 0 | Z88: =VLOOKUP($S88,$E$4:$O$71,9,FALSE)*IF(Variables!$Y$23=1,$T88,$U88) -> 0 | AA88: =VLOOKUP($S88,$E$4:$O$71,10,FALSE)*IF(Variables!$Y$23=1,$T88,$U88) -> 0 | AC88: Hydro - U | AD88: P | AE88: 3825269 | AF88: 1684970 | AG88: =VLOOKUP($AD88,$E$4:$O$71,5,FALSE)*IF(Variables!$Y$23=1,$AE88,$AF88) -> 1684970 | AH88: =VLOOKUP($AD88,$E$4:$O$71,6,FALSE)*IF(Variables!$Y$23=1,$AE88,$AF88) -> 0 | AI88: =VLOOKUP($AD88,$E$4:$O$71,7,FALSE)*IF(Variables!$Y$23=1,$AE88,$AF88) -> 0 | AJ88: =VLOOKUP($AD88,$E$4:$O$71,8,FALSE)*IF(Variables!$Y$23=1,$AE88,$AF88) -> 0 | AK88: =VLOOKUP($AD88,$E$4:$O$71,9,FALSE)*IF(Variables!$Y$23=1,$AE88,$AF88) -> 0 | AL88: =VLOOKUP($AD88,$E$4:$O$71,10,FALSE)*IF(Variables!$Y$23=1,$AE88,$AF88) -> 0 | AT88: =Report!P276 -> 102436517.5
R89: Transmission | S89: T | T89: =Factors!C465 -> 0 | U89: =IF(Variables!$AO$3=12,Factors!H465+Factors!K465,CHOOSE(Variables!AO$3,Factors!D465,Factors!E465,Factors!F465,Factors!G465,Factors!H465,Factors!I465,Factors!J465,Factors!K465,Factors!L465,Factors!M465,Factors!N465)) -> 0 | V89: =VLOOKUP($S89,$E$4:$O$71,5,FALSE)*IF(Variables!$Y$23=1,$T89,$U89) -> 0 | W89: =VLOOKUP($S89,$E$4:$O$71,6,FALSE)*IF(Variables!$Y$23=1,$T89,$U89) -> 0 | X89: =VLOOKUP($S89,$E$4:$O$71,7,FALSE)*IF(Variables!$Y$23=1,$T89,$U89) -> 0 | Y89: =VLOOKUP($S89,$E$4:$O$71,8,FALSE)*IF(Variables!$Y$23=1,$T89,$U89) -> 0 | Z89: =VLOOKUP($S89,$E$4:$O$71,9,FALSE)*IF(Variables!$Y$23=1,$T89,$U89) -> 0 | AA89: =VLOOKUP($S89,$E$4:$O$71,10,FALSE)*IF(Variables!$Y$23=1,$T89,$U89) -> 0 | AC89: Transmission | AD89: T | AE89: 0 | AF89: 0 | AG89: =VLOOKUP($AD89,$E$4:$O$71,5,FALSE)*IF(Variables!$Y$23=1,$AE89,$AF89) -> 0 | AH89: =VLOOKUP($AD89,$E$4:$O$71,6,FALSE)*IF(Variables!$Y$23=1,$AE89,$AF89) -> 0 | AI89: =VLOOKUP($AD89,$E$4:$O$71,7,FALSE)*IF(Variables!$Y$23=1,$AE89,$AF89) -> 0 | AJ89: =VLOOKUP($AD89,$E$4:$O$71,8,FALSE)*IF(Variables!$Y$23=1,$AE89,$AF89) -> 0 | AK89: =VLOOKUP($AD89,$E$4:$O$71,9,FALSE)*IF(Variables!$Y$23=1,$AE89,$AF89) -> 0 | AL89: =VLOOKUP($AD89,$E$4:$O$71,10,FALSE)*IF(Variables!$Y$23=1,$AE89,$AF89) -> 0 | AT89: =Report!P277 -> 0
R90: Distribution | S90: DPW | T90: =Factors!C466 -> 0 | U90: =IF(Variables!$AO$3=12,Factors!H466+Factors!K466,CHOOSE(Variables!AO$3,Factors!D466,Factors!E466,Factors!F466,Factors!G466,Factors!H466,Factors!I466,Factors!J466,Factors!K466,Factors!L466,Factors!M466,Factors!N466)) -> 0 | V90: =VLOOKUP($S90,$E$4:$O$71,5,FALSE)*IF(Variables!$Y$23=1,$T90,$U90) -> 0 | W90: =VLOOKUP($S90,$E$4:$O$71,6,FALSE)*IF(Variables!$Y$23=1,$T90,$U90) -> 0 | X90: =VLOOKUP($S90,$E$4:$O$71,7,FALSE)*IF(Variables!$Y$23=1,$T90,$U90) -> 0 | Y90: =VLOOKUP($S90,$E$4:$O$71,8,FALSE)*IF(Variables!$Y$23=1,$T90,$U90) -> 0 | Z90: =VLOOKUP($S90,$E$4:$O$71,9,FALSE)*IF(Variables!$Y$23=1,$T90,$U90) -> 0 | AA90: =VLOOKUP($S90,$E$4:$O$71,10,FALSE)*IF(Variables!$Y$23=1,$T90,$U90) -> 0 | AC90: Distribution | AD90: DPW | AE90: 0 | AF90: 0 | AG90: =VLOOKUP($AD90,$E$4:$O$71,5,FALSE)*IF(Variables!$Y$23=1,$AE90,$AF90) -> 0 | AH90: =VLOOKUP($AD90,$E$4:$O$71,6,FALSE)*IF(Variables!$Y$23=1,$AE90,$AF90) -> 0 | AI90: =VLOOKUP($AD90,$E$4:$O$71,7,FALSE)*IF(Variables!$Y$23=1,$AE90,$AF90) -> 0 | AJ90: =VLOOKUP($AD90,$E$4:$O$71,8,FALSE)*IF(Variables!$Y$23=1,$AE90,$AF90) -> 0 | AK90: =VLOOKUP($AD90,$E$4:$O$71,9,FALSE)*IF(Variables!$Y$23=1,$AE90,$AF90) -> 0 | AL90: =VLOOKUP($AD90,$E$4:$O$71,10,FALSE)*IF(Variables!$Y$23=1,$AE90,$AF90) -> 0 | AT90: =Report!P278 -> 1985438603
R91: General | S91: G | T91: =Factors!C467 -> 106944155 | U91: =IF(Variables!$AO$3=12,Factors!H467+Factors!K467,CHOOSE(Variables!AO$3,Factors!D467,Factors!E467,Factors!F467,Factors!G467,Factors!H467,Factors!I467,Factors!J467,Factors!K467,Factors!L467,Factors!M467,Factors!N467)) -> 42692496 | V91: =VLOOKUP($S91,$E$4:$O$71,5,FALSE)*IF(Variables!$Y$23=1,$T91,$U91) -> 9940625.247 | W91: =VLOOKUP($S91,$E$4:$O$71,6,FALSE)*IF(Variables!$Y$23=1,$T91,$U91) -> 12765920.59 | X91: =VLOOKUP($S91,$E$4:$O$71,7,FALSE)*IF(Variables!$Y$23=1,$T91,$U91) -> 19985950.17 | Y91: =VLOOKUP($S91,$E$4:$O$71,8,FALSE)*IF(Variables!$Y$23=1,$T91,$U91) -> 18867144.35 | Z91: =VLOOKUP($S91,$E$4:$O$71,9,FALSE)*IF(Variables!$Y$23=1,$T91,$U91) -> 1118805.814 | AA91: =VLOOKUP($S91,$E$4:$O$71,10,FALSE)*IF(Variables!$Y$23=1,$T91,$U91) -> 0 | AC91: General | AD91: G | AE91: 106944155 | AF91: 42692496 | AG91: =VLOOKUP($AD91,$E$4:$O$71,5,FALSE)*IF(Variables!$Y$23=1,$AE91,$AF91) -> 9940625.247 | AH91: =VLOOKUP($AD91,$E$4:$O$71,6,FALSE)*IF(Variables!$Y$23=1,$AE91,$AF91) -> 12765920.59 | AI91: =VLOOKUP($AD91,$E$4:$O$71,7,FALSE)*IF(Variables!$Y$23=1,$AE91,$AF91) -> 19985950.17 | AJ91: =VLOOKUP($AD91,$E$4:$O$71,8,FALSE)*IF(Variables!$Y$23=1,$AE91,$AF91) -> 18867144.35 | AK91: =VLOOKUP($AD91,$E$4:$O$71,9,FALSE)*IF(Variables!$Y$23=1,$AE91,$AF91) -> 1118805.814 | AL91: =VLOOKUP($AD91,$E$4:$O$71,10,FALSE)*IF(Variables!$Y$23=1,$AE91,$AF91) -> 0 | AT91: =Report!P279 -> 0
R92: Mining Plant | S92: P | T92: =Factors!C468 -> 62297566 | U92: =IF(Variables!$AO$3=12,Factors!H468+Factors!K468,CHOOSE(Variables!AO$3,Factors!D468,Factors!E468,Factors!F468,Factors!G468,Factors!H468,Factors!I468,Factors!J468,Factors!K468,Factors!L468,Factors!M468,Factors!N468)) -> 26161816 | V92: =VLOOKUP($S92,$E$4:$O$71,5,FALSE)*IF(Variables!$Y$23=1,$T92,$U92) -> 26161816 | W92: =VLOOKUP($S92,$E$4:$O$71,6,FALSE)*IF(Variables!$Y$23=1,$T92,$U92) -> 0 | X92: =VLOOKUP($S92,$E$4:$O$71,7,FALSE)*IF(Variables!$Y$23=1,$T92,$U92) -> 0 | Y92: =VLOOKUP($S92,$E$4:$O$71,8,FALSE)*IF(Variables!$Y$23=1,$T92,$U92) -> 0 | Z92: =VLOOKUP($S92,$E$4:$O$71,9,FALSE)*IF(Variables!$Y$23=1,$T92,$U92) -> 0 | AA92: =VLOOKUP($S92,$E$4:$O$71,10,FALSE)*IF(Variables!$Y$23=1,$T92,$U92) -> 0 | AC92: Mining Plant | AD92: P | AE92: 62297566 | AF92: 26161816 | AG92: =VLOOKUP($AD92,$E$4:$O$71,5,FALSE)*IF(Variables!$Y$23=1,$AE92,$AF92) -> 26161816 | AH92: =VLOOKUP($AD92,$E$4:$O$71,6,FALSE)*IF(Variables!$Y$23=1,$AE92,$AF92) -> 0 | AI92: =VLOOKUP($AD92,$E$4:$O$71,7,FALSE)*IF(Variables!$Y$23=1,$AE92,$AF92) -> 0 | AJ92: =VLOOKUP($AD92,$E$4:$O$71,8,FALSE)*IF(Variables!$Y$23=1,$AE92,$AF92) -> 0 | AK92: =VLOOKUP($AD92,$E$4:$O$71,9,FALSE)*IF(Variables!$Y$23=1,$AE92,$AF92) -> 0 | AL92: =VLOOKUP($AD92,$E$4:$O$71,10,FALSE)*IF(Variables!$Y$23=1,$AE92,$AF92) -> 0 | AT92: =Report!P280 -> 0
AT93: =Report!P281 -> 1752483762
R94: Total PC (Post Merger) | T94: =SUM(T86:T93) -> 688480828 | U94: 278401127 | V94: 245649256.2 | W94: 12765920.59 | X94: 19985950.17 | Y94: 18867144.35 | Z94: 1118805.814 | AA94: 0 | AC94: Total PC (Post Merger) | AE94: =SUM(AE86:AE93) -> 688480828 | AF94: 278401127 | AG94: 245649256.2 | AH94: 12765920.59 | AI94: 19985950.17 | AJ94: 18867144.35 | AK94: 1118805.814 | AL94: 0 | AT94: =Report!P282 -> 0
AT95: =Report!P283 -> 4797785.308
R96: Total Deferred Taxes | T96: =T74+T83+T94 -> 969613679 | U96: 420468630 | V96: 313979319.3 | W96: 53920125.84 | X96: 52569184.9 | Y96: 51456120.54 | Z96: 1113064.362 | AA96: 0 | AC96: Total Deferred Taxes | AE96: =AE74+AE83+AE94 -> 969613679 | AF96: 420468630 | AG96: 313979319.3 | AH96: 53920125.84 | AI96: 52569184.9 | AJ96: 51456120.54 | AK96: 1113064.362 | AL96: 0 | AT96: =Report!P284 -> 1533390.995
AT97: =Report!P285 -> 226623664.3
R98: ACCMDITRL FACTOR | T98: =T96/$T96 -> 1 | U98: =U96/$U96 -> 1 | V98: =V96/IF(Variables!$Y$23=2,$U96,$T96) -> 0.7467366097 | W98: =W96/IF(Variables!$Y23=2,$U96,$T96) -> 0.1282381657 | X98: =X96/IF(Variables!$Y23=2,$U96,$T96) -> 0.1250252246 | Y98: =Y96/IF(Variables!$Y23=2,$U96,$T96) -> 0.1223780251 | Z98: =Z96/IF(Variables!$Y23=2,$U96,$T96) -> 0.002647199535 | AA98: =AA96/IF(Variables!$Y23=2,$U96,$T96) -> 0 | AC98: ACCMDITMA FACTOR | AE98: =AE96/$AE96 -> 1 | AF98: =AF96/$AF96 -> 1 | AG98: =AG96/IF(Variables!$Y23=2,$AF96,$AE96) -> 0.7467366097 | AH98: =AH96/IF(Variables!$Y23=2,$AF96,$AE96) -> 0.1282381657 | AI98: =AI96/IF(Variables!$Y23=2,$AF96,$AE96) -> 0.1250252246 | AJ98: =AJ96/IF(Variables!$Y23=2,$AF96,$AE96) -> 0.1223780251 | AK98: =AK96/IF(Variables!$Y23=2,$AF96,$AE96) -> 0.002647199535 | AL98: =AL96/IF(Variables!$Y23=2,$AF96,$AE96) -> 0 | AT98: =Report!P286 -> 0
AT99: =Report!P287 -> 0
AT100: =Report!P288 -> 1985438603
AT101: =Report!P289 -> 0
R102: DITEXPRL | AC102: DITEXPMA | AT102: =Report!P290 -> 0
R103: Pacific Division | T103: Total | U103: =Variables!X24 -> UTAH | V103: Production | W103: Transmission | X103: Distribution | Y103: DPW | Z103: CUST | AA103: DMSC | AC103: Pacific Division | AE103: Total | AF103: =Variables!X24 -> UTAH | AG103: Production | AH103: Transmission | AI103: Distribution | AJ103: DPW | AK103: CUST | AL103: DMSC | AT103: =Report!P291 -> 0
R104: Pacific Division | AC104: Pacific Division | AT104: =Report!P292 -> 0
R105: Production | S105: P | T105: =Factors!C376 -> 0 | U105: =IF(Variables!$AO$3=12,Factors!H376+Factors!K376,CHOOSE(Variables!AO$3,Factors!D376,Factors!E376,Factors!F376,Factors!G376,Factors!H376,Factors!I376,Factors!J376,Factors!K376,Factors!L376,Factors!M376,Factors!N376)) -> 0 | V105: =VLOOKUP($S105,$E$4:$O$71,5,FALSE)*IF(Variables!$Y$23=1,$T105,$U105) -> 0 | W105: =VLOOKUP($S105,$E$4:$O$71,6,FALSE)*IF(Variables!$Y$23=1,$T105,$U105) -> 0 | X105: =VLOOKUP($S105,$E$4:$O$71,7,FALSE)*IF(Variables!$Y$23=1,$T105,$U105) -> 0 | Y105: =VLOOKUP($S105,$E$4:$O$71,8,FALSE)*IF(Variables!$Y$23=1,$T105,$U105) -> 0 | Z105: =VLOOKUP($S105,$E$4:$O$71,9,FALSE)*IF(Variables!$Y$23=1,$T105,$U105) -> 0 | AA105: =VLOOKUP($S105,$E$4:$O$71,10,FALSE)*IF(Variables!$Y$23=1,$T105,$U105) -> 0 | AB105: 0 | AC105: Production | AD105: P | AE105: =T105 -> 0 | AF105: 0 | AG105: =VLOOKUP($AD105,$E$4:$O$71,5,FALSE)*IF(Variables!$Y$23=1,$AE105,$AF105) -> 0 | AH105: =VLOOKUP($AD105,$E$4:$O$71,6,FALSE)*IF(Variables!$Y$23=1,$AE105,$AF105) -> 0 | AI105: =VLOOKUP($AD105,$E$4:$O$71,7,FALSE)*IF(Variables!$Y$23=1,$AE105,$AF105) -> 0 | AJ105: =VLOOKUP($AD105,$E$4:$O$71,8,FALSE)*IF(Variables!$Y$23=1,$AE105,$AF105) -> 0 | AK105: =VLOOKUP($AD105,$E$4:$O$71,9,FALSE)*IF(Variables!$Y$23=1,$AE105,$AF105) -> 0 | AL105: =VLOOKUP($AD105,$E$4:$O$71,10,FALSE)*IF(Variables!$Y$23=1,$AE105,$AF105) -> 0 | AT105: =Report!P293 -> 0
R106: Transmission | S106: T | T106: =Factors!C377 -> 0 | U106: =IF(Variables!$AO$3=12,Factors!H377+Factors!K377,CHOOSE(Variables!AO$3,Factors!D377,Factors!E377,Factors!F377,Factors!G377,Factors!H377,Factors!I377,Factors!J377,Factors!K377,Factors!L377,Factors!M377,Factors!N377)) -> 0 | V106: =VLOOKUP($S106,$E$4:$O$71,5,FALSE)*IF(Variables!$Y$23=1,$T106,$U106) -> 0 | W106: =VLOOKUP($S106,$E$4:$O$71,6,FALSE)*IF(Variables!$Y$23=1,$T106,$U106) -> 0 | X106: =VLOOKUP($S106,$E$4:$O$71,7,FALSE)*IF(Variables!$Y$23=1,$T106,$U106) -> 0 | Y106: =VLOOKUP($S106,$E$4:$O$71,8,FALSE)*IF(Variables!$Y$23=1,$T106,$U106) -> 0 | Z106: =VLOOKUP($S106,$E$4:$O$71,9,FALSE)*IF(Variables!$Y$23=1,$T106,$U106) -> 0 | AA106: =VLOOKUP($S106,$E$4:$O$71,10,FALSE)*IF(Variables!$Y$23=1,$T106,$U106) -> 0 | AC106: Transmission | AD106: T | AE106: 0 | AF106: 0 | AG106: =VLOOKUP($AD106,$E$4:$O$71,5,FALSE)*IF(Variables!$Y$23=1,$AE106,$AF106) -> 0 | AH106: =VLOOKUP($AD106,$E$4:$O$71,6,FALSE)*IF(Variables!$Y$23=1,$AE106,$AF106) -> 0 | AI106: =VLOOKUP($AD106,$E$4:$O$71,7,FALSE)*IF(Variables!$Y$23=1,$AE106,$AF106) -> 0 | AJ106: =VLOOKUP($AD106,$E$4:$O$71,8,FALSE)*IF(Variables!$Y$23=1,$AE106,$AF106) -> 0 | AK106: =VLOOKUP($AD106,$E$4:$O$71,9,FALSE)*IF(Variables!$Y$23=1,$AE106,$AF106) -> 0 | AL106: =VLOOKUP($AD106,$E$4:$O$71,10,FALSE)*IF(Variables!$Y$23=1,$AE106,$AF106) -> 0 | AT106: =Report!P294 -> 0
R107: Distribution | S107: DPW | T107: =Factors!C378 -> 0 | U107: =IF(Variables!$AO$3=12,Factors!H378+Factors!K378,CHOOSE(Variables!AO$3,Factors!D378,Factors!E378,Factors!F378,Factors!G378,Factors!H378,Factors!I378,Factors!J378,Factors!K378,Factors!L378,Factors!M378,Factors!N378)) -> 0 | V107: =VLOOKUP($S107,$E$4:$O$71,5,FALSE)*IF(Variables!$Y$23=1,$T107,$U107) -> 0 | W107: =VLOOKUP($S107,$E$4:$O$71,6,FALSE)*IF(Variables!$Y$23=1,$T107,$U107) -> 0 | X107: =VLOOKUP($S107,$E$4:$O$71,7,FALSE)*IF(Variables!$Y$23=1,$T107,$U107) -> 0 | Y107: =VLOOKUP($S107,$E$4:$O$71,8,FALSE)*IF(Variables!$Y$23=1,$T107,$U107) -> 0 | Z107: =VLOOKUP($S107,$E$4:$O$71,9,FALSE)*IF(Variables!$Y$23=1,$T107,$U107) -> 0 | AA107: =VLOOKUP($S107,$E$4:$O$71,10,FALSE)*IF(Variables!$Y$23=1,$T107,$U107) -> 0 | AC107: Distribution | AD107: DPW | AE107: 0 | AF107: 0 | AG107: =VLOOKUP($AD107,$E$4:$O$71,5,FALSE)*IF(Variables!$Y$23=1,$AE107,$AF107) -> 0 | AH107: =VLOOKUP($AD107,$E$4:$O$71,6,FALSE)*IF(Variables!$Y$23=1,$AE107,$AF107) -> 0 | AI107: =VLOOKUP($AD107,$E$4:$O$71,7,FALSE)*IF(Variables!$Y$23=1,$AE107,$AF107) -> 0 | AJ107: =VLOOKUP($AD107,$E$4:$O$71,8,FALSE)*IF(Variables!$Y$23=1,$AE107,$AF107) -> 0 | AK107: =VLOOKUP($AD107,$E$4:$O$71,9,FALSE)*IF(Variables!$Y$23=1,$AE107,$AF107) -> 0 | AL107: =VLOOKUP($AD107,$E$4:$O$71,10,FALSE)*IF(Variables!$Y$23=1,$AE107,$AF107) -> 0 | AT107: =Report!P295 -> 0
R108: General | S108: G | T108: =Factors!C379 -> 0 | U108: =IF(Variables!$AO$3=12,Factors!H379+Factors!K379,CHOOSE(Variables!AO$3,Factors!D379,Factors!E379,Factors!F379,Factors!G379,Factors!H379,Factors!I379,Factors!J379,Factors!K379,Factors!L379,Factors!M379,Factors!N379)) -> 0 | V108: =VLOOKUP($S108,$E$4:$O$71,5,FALSE)*IF(Variables!$Y$23=1,$T108,$U108) -> 0 | W108: =VLOOKUP($S108,$E$4:$O$71,6,FALSE)*IF(Variables!$Y$23=1,$T108,$U108) -> 0 | X108: =VLOOKUP($S108,$E$4:$O$71,7,FALSE)*IF(Variables!$Y$23=1,$T108,$U108) -> 0 | Y108: =VLOOKUP($S108,$E$4:$O$71,8,FALSE)*IF(Variables!$Y$23=1,$T108,$U108) -> 0 | Z108: =VLOOKUP($S108,$E$4:$O$71,9,FALSE)*IF(Variables!$Y$23=1,$T108,$U108) -> 0 | AA108: =VLOOKUP($S108,$E$4:$O$71,10,FALSE)*IF(Variables!$Y$23=1,$T108,$U108) -> 0 | AC108: General | AD108: G | AE108: 0 | AF108: 0 | AG108: =VLOOKUP($AD108,$E$4:$O$71,5,FALSE)*IF(Variables!$Y$23=1,$AE108,$AF108) -> 0 | AH108: =VLOOKUP($AD108,$E$4:$O$71,6,FALSE)*IF(Variables!$Y$23=1,$AE108,$AF108) -> 0 | AI108: =VLOOKUP($AD108,$E$4:$O$71,7,FALSE)*IF(Variables!$Y$23=1,$AE108,$AF108) -> 0 | AJ108: =VLOOKUP($AD108,$E$4:$O$71,8,FALSE)*IF(Variables!$Y$23=1,$AE108,$AF108) -> 0 | AK108: =VLOOKUP($AD108,$E$4:$O$71,9,FALSE)*IF(Variables!$Y$23=1,$AE108,$AF108) -> 0 | AL108: =VLOOKUP($AD108,$E$4:$O$71,10,FALSE)*IF(Variables!$Y$23=1,$AE108,$AF108) -> 0 | AT108: =Report!P296 -> 0
C109: =Variables!AE29 -> 2010 PROTOCOL | R109: Mining Plant | S109: P | T109: =Factors!C380 -> 0 | U109: =IF(Variables!$AO$3=12,Factors!H380+Factors!K380,CHOOSE(Variables!AO$3,Factors!D380,Factors!E380,Factors!F380,Factors!G380,Factors!H380,Factors!I380,Factors!J380,Factors!K380,Factors!L380,Factors!M380,Factors!N380)) -> 0 | V109: =VLOOKUP($S109,$E$4:$O$71,5,FALSE)*IF(Variables!$Y$23=1,$T109,$U109) -> 0 | W109: =VLOOKUP($S109,$E$4:$O$71,6,FALSE)*IF(Variables!$Y$23=1,$T109,$U109) -> 0 | X109: =VLOOKUP($S109,$E$4:$O$71,7,FALSE)*IF(Variables!$Y$23=1,$T109,$U109) -> 0 | Y109: =VLOOKUP($S109,$E$4:$O$71,8,FALSE)*IF(Variables!$Y$23=1,$T109,$U109) -> 0 | Z109: =VLOOKUP($S109,$E$4:$O$71,9,FALSE)*IF(Variables!$Y$23=1,$T109,$U109) -> 0 | AA109: =VLOOKUP($S109,$E$4:$O$71,10,FALSE)*IF(Variables!$Y$23=1,$T109,$U109) -> 0 | AC109: Mining Plant | AD109: P | AE109: 0 | AF109: 0 | AG109: =VLOOKUP($AD109,$E$4:$O$71,5,FALSE)*IF(Variables!$Y$23=1,$AE109,$AF109) -> 0 | AH109: =VLOOKUP($AD109,$E$4:$O$71,6,FALSE)*IF(Variables!$Y$23=1,$AE109,$AF109) -> 0 | AI109: =VLOOKUP($AD109,$E$4:$O$71,7,FALSE)*IF(Variables!$Y$23=1,$AE109,$AF109) -> 0 | AJ109: =VLOOKUP($AD109,$E$4:$O$71,8,FALSE)*IF(Variables!$Y$23=1,$AE109,$AF109) -> 0 | AK109: =VLOOKUP($AD109,$E$4:$O$71,9,FALSE)*IF(Variables!$Y$23=1,$AE109,$AF109) -> 0 | AL109: =VLOOKUP($AD109,$E$4:$O$71,10,FALSE)*IF(Variables!$Y$23=1,$AE109,$AF109) -> 0 | AT109: =Report!P297 -> 0
C110: =IF(Variables!Y23=1," ",Variables!AO19) -> 13-Month Average | AT110: =Report!P298 -> 0
C111: RESULTS OF OPERATIONS SUMMARY | R111: Total Pacific Division | T111: =SUM(T105:T109) -> 0 | U111: =SUM(U105:U109) -> 0 | V111: =SUM(V105:V109) -> 0 | W111: 0 | X111: 0 | Y111: 0 | Z111: 0 | AA111: 0 | AC111: Total Pacific Division | AE111: =SUM(AE105:AE109) -> 0 | AF111: 0 | AG111: 0 | AH111: 0 | AI111: 0 | AJ111: 0 | AK111: 0 | AL111: 0 | AT111: =Report!P299 -> 0
AT112: =Report!P300 -> 0
R113: Utah Division | AC113: Utah Division | AT113: =Report!P301 -> 0
H114: =IF(Variables!Y23=1,Variables!X23,Report!N115) -> UTAH | R114: Transmission | S114: T | T114: =Factors!C387 -> 0 | U114: =IF(Variables!$AO$3=12,Factors!H387+Factors!K387,CHOOSE(Variables!AO$3,Factors!D387,Factors!E387,Factors!F387,Factors!G387,Factors!H387,Factors!I387,Factors!J387,Factors!K387,Factors!L387,Factors!M387,Factors!N387)) -> 0 | V114: =VLOOKUP($S114,$E$4:$O$71,5,FALSE)*IF(Variables!$Y$23=1,$T114,$U114) -> 0 | W114: =VLOOKUP($S114,$E$4:$O$71,6,FALSE)*IF(Variables!$Y$23=1,$T114,$U114) -> 0 | X114: =VLOOKUP($S114,$E$4:$O$71,7,FALSE)*IF(Variables!$Y$23=1,$T114,$U114) -> 0 | Y114: =VLOOKUP($S114,$E$4:$O$71,8,FALSE)*IF(Variables!$Y$23=1,$T114,$U114) -> 0 | Z114: =VLOOKUP($S114,$E$4:$O$71,9,FALSE)*IF(Variables!$Y$23=1,$T114,$U114) -> 0 | AA114: =VLOOKUP($S114,$E$4:$O$71,10,FALSE)*IF(Variables!$Y$23=1,$T114,$U114) -> 0 | AC114: Transmission | AD114: T | AE114: =T114 -> 0 | AF114: 0 | AG114: =VLOOKUP($AD114,$E$4:$O$71,5,FALSE)*IF(Variables!$Y$23=1,$AE114,$AF114) -> 0 | AH114: =VLOOKUP($AD114,$E$4:$O$71,6,FALSE)*IF(Variables!$Y$23=1,$AE114,$AF114) -> 0 | AI114: =VLOOKUP($AD114,$E$4:$O$71,7,FALSE)*IF(Variables!$Y$23=1,$AE114,$AF114) -> 0 | AJ114: =VLOOKUP($AD114,$E$4:$O$71,8,FALSE)*IF(Variables!$Y$23=1,$AE114,$AF114) -> 0 | AK114: =VLOOKUP($AD114,$E$4:$O$71,9,FALSE)*IF(Variables!$Y$23=1,$AE114,$AF114) -> 0 | AL114: =VLOOKUP($AD114,$E$4:$O$71,10,FALSE)*IF(Variables!$Y$23=1,$AE114,$AF114) -> 0 | AT114: =Report!P302 -> 0
C115: Description of Account Summary: | H115: Normalized | I115: Production | J115: Transmission | K115: Distribution | L115: Distribution | M115: Retail | N115: Misc | R115: Distribution | S115: DPW | T115: =Factors!C388 -> 0 | U115: =IF(Variables!$AO$3=12,Factors!H388+Factors!K388,CHOOSE(Variables!AO$3,Factors!D388,Factors!E388,Factors!F388,Factors!G388,Factors!H388,Factors!I388,Factors!J388,Factors!K388,Factors!L388,Factors!M388,Factors!N388)) -> 0 | V115: =VLOOKUP($S115,$E$4:$O$71,5,FALSE)*IF(Variables!$Y$23=1,$T115,$U115) -> 0 | W115: =VLOOKUP($S115,$E$4:$O$71,6,FALSE)*IF(Variables!$Y$23=1,$T115,$U115) -> 0 | X115: =VLOOKUP($S115,$E$4:$O$71,7,FALSE)*IF(Variables!$Y$23=1,$T115,$U115) -> 0 | Y115: =VLOOKUP($S115,$E$4:$O$71,8,FALSE)*IF(Variables!$Y$23=1,$T115,$U115) -> 0 | Z115: =VLOOKUP($S115,$E$4:$O$71,9,FALSE)*IF(Variables!$Y$23=1,$T115,$U115) -> 0 | AA115: =VLOOKUP($S115,$E$4:$O$71,10,FALSE)*IF(Variables!$Y$23=1,$T115,$U115) -> 0 | AC115: Distribution | AD115: DPW | AE115: 0 | AF115: 0 | AG115: =VLOOKUP($AD115,$E$4:$O$71,5,FALSE)*IF(Variables!$Y$23=1,$AE115,$AF115) -> 0 | AH115: =VLOOKUP($AD115,$E$4:$O$71,6,FALSE)*IF(Variables!$Y$23=1,$AE115,$AF115) -> 0 | AI115: =VLOOKUP($AD115,$E$4:$O$71,7,FALSE)*IF(Variables!$Y$23=1,$AE115,$AF115) -> 0 | AJ115: =VLOOKUP($AD115,$E$4:$O$71,8,FALSE)*IF(Variables!$Y$23=1,$AE115,$AF115) -> 0 | AK115: =VLOOKUP($AD115,$E$4:$O$71,9,FALSE)*IF(Variables!$Y$23=1,$AE115,$AF115) -> 0 | AL115: =VLOOKUP($AD115,$E$4:$O$71,10,FALSE)*IF(Variables!$Y$23=1,$AE115,$AF115) -> 0 | AT115: =Report!P303 -> 0
R116: General | S116: G | T116: =Factors!C389 -> 0 | U116: =IF(Variables!$AO$3=12,Factors!H389+Factors!K389,CHOOSE(Variables!AO$3,Factors!D389,Factors!E389,Factors!F389,Factors!G389,Factors!H389,Factors!I389,Factors!J389,Factors!K389,Factors!L389,Factors!M389,Factors!N389)) -> 0 | V116: =VLOOKUP($S116,$E$4:$O$71,5,FALSE)*IF(Variables!$Y$23=1,$T116,$U116) -> 0 | W116: =VLOOKUP($S116,$E$4:$O$71,6,FALSE)*IF(Variables!$Y$23=1,$T116,$U116) -> 0 | X116: =VLOOKUP($S116,$E$4:$O$71,7,FALSE)*IF(Variables!$Y$23=1,$T116,$U116) -> 0 | Y116: =VLOOKUP($S116,$E$4:$O$71,8,FALSE)*IF(Variables!$Y$23=1,$T116,$U116) -> 0 | Z116: =VLOOKUP($S116,$E$4:$O$71,9,FALSE)*IF(Variables!$Y$23=1,$T116,$U116) -> 0 | AA116: =VLOOKUP($S116,$E$4:$O$71,10,FALSE)*IF(Variables!$Y$23=1,$T116,$U116) -> 0 | AC116: General | AD116: G | AE116: 0 | AF116: 0 | AG116: =VLOOKUP($AD116,$E$4:$O$71,5,FALSE)*IF(Variables!$Y$23=1,$AE116,$AF116) -> 0 | AH116: =VLOOKUP($AD116,$E$4:$O$71,6,FALSE)*IF(Variables!$Y$23=1,$AE116,$AF116) -> 0 | AI116: =VLOOKUP($AD116,$E$4:$O$71,7,FALSE)*IF(Variables!$Y$23=1,$AE116,$AF116) -> 0 | AJ116: =VLOOKUP($AD116,$E$4:$O$71,8,FALSE)*IF(Variables!$Y$23=1,$AE116,$AF116) -> 0 | AK116: =VLOOKUP($AD116,$E$4:$O$71,9,FALSE)*IF(Variables!$Y$23=1,$AE116,$AF116) -> 0 | AL116: =VLOOKUP($AD116,$E$4:$O$71,10,FALSE)*IF(Variables!$Y$23=1,$AE116,$AF116) -> 0 | AT116: =Report!P304 -> 0
A117: 1 | E117: General Business Revenues | H117: =H219-H118-H119 -> 1742020594 | I117: 977172367.9 | J117: 216383210.4 | K117: 380682946.1 | L117: 328900482.9 | M117: 98030572.23 | N117: -46248109.03 | AT117: =Report!P305 -> -1400922.741
A118: 2 | E118: General Business Revenues | H118: =H198+H199 -> 0 | I118: =I198+I199 -> 0 | J118: 0 | K118: 0 | L118: 0 | M118: 0 | N118: 0 | R118: Total Utah Division | T118: =SUM(T114:T116) -> 0 | U118: 0 | V118: 0 | W118: 0 | X118: 0 | Y118: 0 | Z118: 0 | AA118: 0 | AC118: Total Utah Division | AE118: =SUM(AE114:AE116) -> 0 | AF118: 0 | AG118: 0 | AH118: 0 | AI118: 0 | AJ118: 0 | AK118: 0 | AL118: 0 | AT118: =Report!P306 -> -1400922.741
A119: 3 | E119: Interdepartmental | H119: =H217 -> 0 | I119: 0 | J119: 0 | K119: =K217 -> 0 | L119: 0 | M119: 0 | N119: =N217 -> 0 | AT119: =Report!P307 -> 0
A120: 4 | E120: Special Sales | H120: =H233 -> 140981491.5 | I120: 140981491.5 | J120: 0 | K120: =K233 -> 0 | L120: 0 | M120: 0 | N120: =N233 -> 0 | R120: PACIFICORP | AC120: PACIFICORP | AT120: =Report!P308 -> 0
A121: 5 | E121: Other Operating Revenues | H121: =H276+H240 -> 102436517.5 | I121: 55537232.27 | J121: 36022675.51 | K121: 10876609.73 | L121: 3876842.408 | M121: 6941074.093 | N121: 58693.22768 | R121: Production | S121: P | T121: =Factors!C396 -> 0 | U121: =IF(Variables!$AO$3=12,Factors!H396+Factors!K396,CHOOSE(Variables!AO$3,Factors!D396,Factors!E396,Factors!F396,Factors!G396,Factors!H396,Factors!I396,Factors!J396,Factors!K396,Factors!L396,Factors!M396,Factors!N396)) -> 0 | V121: =VLOOKUP($S121,$E$4:$O$71,5,FALSE)*IF(Variables!$Y$23=1,$T121,$U121) -> 0 | W121: =VLOOKUP($S121,$E$4:$O$71,6,FALSE)*IF(Variables!$Y$23=1,$T121,$U121) -> 0 | X121: =VLOOKUP($S121,$E$4:$O$71,7,FALSE)*IF(Variables!$Y$23=1,$T121,$U121) -> 0 | Y121: =VLOOKUP($S121,$E$4:$O$71,8,FALSE)*IF(Variables!$Y$23=1,$T121,$U121) -> 0 | Z121: =VLOOKUP($S121,$E$4:$O$71,9,FALSE)*IF(Variables!$Y$23=1,$T121,$U121) -> 0 | AA121: =VLOOKUP($S121,$E$4:$O$71,10,FALSE)*IF(Variables!$Y$23=1,$T121,$U121) -> 0 | AC121: Production | AD121: P | AE121: =T121 -> 0 | AF121: =U121 -> 0 | AG121: =VLOOKUP($AD121,$E$4:$O$71,5,FALSE)*IF(Variables!$Y$23=1,$AE121,$AF121) -> 0 | AH121: =VLOOKUP($AD121,$E$4:$O$71,6,FALSE)*IF(Variables!$Y$23=1,$AE121,$AF121) -> 0 | AI121: =VLOOKUP($AD121,$E$4:$O$71,7,FALSE)*IF(Variables!$Y$23=1,$AE121,$AF121) -> 0 | AJ121: =VLOOKUP($AD121,$E$4:$O$71,8,FALSE)*IF(Variables!$Y$23=1,$AE121,$AF121) -> 0 | AK121: =VLOOKUP($AD121,$E$4:$O$71,9,FALSE)*IF(Variables!$Y$23=1,$AE121,$AF121) -> 0 | AL121: =VLOOKUP($AD121,$E$4:$O$71,10,FALSE)*IF(Variables!$Y$23=1,$AE121,$AF121) -> 0 | AT121: =Report!P309 -> 0
A122: 6 | E122: Total Operating Revenues | H122: =SUM(H117:H121) -> 1985438603 | I122: 1173691092 | J122: 252405885.9 | K122: 391559555.9 | L122: 332777325.3 | M122: 104971646.3 | N122: -46189415.8 | R122: Hydro - P | S122: P | T122: =Factors!C397 -> 0 | U122: =IF(Variables!$AO$3=12,Factors!H397+Factors!K397,CHOOSE(Variables!AO$3,Factors!D397,Factors!E397,Factors!F397,Factors!G397,Factors!H397,Factors!I397,Factors!J397,Factors!K397,Factors!L397,Factors!M397,Factors!N397)) -> 0 | V122: =VLOOKUP($S122,$E$4:$O$71,5,FALSE)*IF(Variables!$Y$23=1,$T122,$U122) -> 0 | W122: =VLOOKUP($S122,$E$4:$O$71,6,FALSE)*IF(Variables!$Y$23=1,$T122,$U122) -> 0 | X122: =VLOOKUP($S122,$E$4:$O$71,7,FALSE)*IF(Variables!$Y$23=1,$T122,$U122) -> 0 | Y122: =VLOOKUP($S122,$E$4:$O$71,8,FALSE)*IF(Variables!$Y$23=1,$T122,$U122) -> 0 | Z122: =VLOOKUP($S122,$E$4:$O$71,9,FALSE)*IF(Variables!$Y$23=1,$T122,$U122) -> 0 | AA122: =VLOOKUP($S122,$E$4:$O$71,10,FALSE)*IF(Variables!$Y$23=1,$T122,$U122) -> 0 | AC122: Hydro - P | AD122: P | AE122: 0 | AF122: 0 | AG122: =VLOOKUP($AD122,$E$4:$O$71,5,FALSE)*IF(Variables!$Y$23=1,$AE122,$AF122) -> 0 | AH122: =VLOOKUP($AD122,$E$4:$O$71,6,FALSE)*IF(Variables!$Y$23=1,$AE122,$AF122) -> 0 | AI122: =VLOOKUP($AD122,$E$4:$O$71,7,FALSE)*IF(Variables!$Y$23=1,$AE122,$AF122) -> 0 | AJ122: =VLOOKUP($AD122,$E$4:$O$71,8,FALSE)*IF(Variables!$Y$23=1,$AE122,$AF122) -> 0 | AK122: =VLOOKUP($AD122,$E$4:$O$71,9,FALSE)*IF(Variables!$Y$23=1,$AE122,$AF122) -> 0 | AL122: =VLOOKUP($AD122,$E$4:$O$71,10,FALSE)*IF(Variables!$Y$23=1,$AE122,$AF122) -> 0 | AT122: =Report!P310 -> 0
A123: 7 | R123: Hydro - U | S123: P | T123: =Factors!C398 -> 0 | U123: =IF(Variables!$AO$3=12,Factors!H398+Factors!K398,CHOOSE(Variables!AO$3,Factors!D398,Factors!E398,Factors!F398,Factors!G398,Factors!H398,Factors!I398,Factors!J398,Factors!K398,Factors!L398,Factors!M398,Factors!N398)) -> 0 | V123: =VLOOKUP($S123,$E$4:$O$71,5,FALSE)*IF(Variables!$Y$23=1,$T123,$U123) -> 0 | W123: =VLOOKUP($S123,$E$4:$O$71,6,FALSE)*IF(Variables!$Y$23=1,$T123,$U123) -> 0 | X123: =VLOOKUP($S123,$E$4:$O$71,7,FALSE)*IF(Variables!$Y$23=1,$T123,$U123) -> 0 | Y123: =VLOOKUP($S123,$E$4:$O$71,8,FALSE)*IF(Variables!$Y$23=1,$T123,$U123) -> 0 | Z123: =VLOOKUP($S123,$E$4:$O$71,9,FALSE)*IF(Variables!$Y$23=1,$T123,$U123) -> 0 | AA123: =VLOOKUP($S123,$E$4:$O$71,10,FALSE)*IF(Variables!$Y$23=1,$T123,$U123) -> 0 | AC123: Hydro - U | AD123: P | AE123: 0 | AF123: 0 | AG123: =VLOOKUP($AD123,$E$4:$O$71,5,FALSE)*IF(Variables!$Y$23=1,$AE123,$AF123) -> 0 | AH123: =VLOOKUP($AD123,$E$4:$O$71,6,FALSE)*IF(Variables!$Y$23=1,$AE123,$AF123) -> 0 | AI123: =VLOOKUP($AD123,$E$4:$O$71,7,FALSE)*IF(Variables!$Y$23=1,$AE123,$AF123) -> 0 | AJ123: =VLOOKUP($AD123,$E$4:$O$71,8,FALSE)*IF(Variables!$Y$23=1,$AE123,$AF123) -> 0 | AK123: =VLOOKUP($AD123,$E$4:$O$71,9,FALSE)*IF(Variables!$Y$23=1,$AE123,$AF123) -> 0 | AL123: =VLOOKUP($AD123,$E$4:$O$71,10,FALSE)*IF(Variables!$Y$23=1,$AE123,$AF123) -> 0 | AT123: =Report!P311 -> 0
A124: 8 | C124: Operating Expenses: | R124: Transmission | S124: T | T124: =Factors!C408 -> 0 | U124: =IF(Variables!$AO$3=12,Factors!H408+Factors!K408,CHOOSE(Variables!AO$3,Factors!D408,Factors!E408,Factors!F408,Factors!G408,Factors!H408,Factors!I408,Factors!J408,Factors!K408,Factors!L408,Factors!M408,Factors!N408)) -> 0 | V124: =VLOOKUP($S124,$E$4:$O$71,5,FALSE)*IF(Variables!$Y$23=1,$T124,$U124) -> 0 | W124: =VLOOKUP($S124,$E$4:$O$71,6,FALSE)*IF(Variables!$Y$23=1,$T124,$U124) -> 0 | X124: =VLOOKUP($S124,$E$4:$O$71,7,FALSE)*IF(Variables!$Y$23=1,$T124,$U124) -> 0 | Y124: =VLOOKUP($S124,$E$4:$O$71,8,FALSE)*IF(Variables!$Y$23=1,$T124,$U124) -> 0 | Z124: =VLOOKUP($S124,$E$4:$O$71,9,FALSE)*IF(Variables!$Y$23=1,$T124,$U124) -> 0 | AA124: =VLOOKUP($S124,$E$4:$O$71,10,FALSE)*IF(Variables!$Y$23=1,$T124,$U124) -> 0 | AC124: Transmission | AD124: T | AE124: 0 | AF124: 0 | AG124: =VLOOKUP($AD124,$E$4:$O$71,5,FALSE)*IF(Variables!$Y$23=1,$AE124,$AF124) -> 0 | AH124: =VLOOKUP($AD124,$E$4:$O$71,6,FALSE)*IF(Variables!$Y$23=1,$AE124,$AF124) -> 0 | AI124: =VLOOKUP($AD124,$E$4:$O$71,7,FALSE)*IF(Variables!$Y$23=1,$AE124,$AF124) -> 0 | AJ124: =VLOOKUP($AD124,$E$4:$O$71,8,FALSE)*IF(Variables!$Y$23=1,$AE124,$AF124) -> 0 | AK124: =VLOOKUP($AD124,$E$4:$O$71,9,FALSE)*IF(Variables!$Y$23=1,$AE124,$AF124) -> 0 | AL124: =VLOOKUP($AD124,$E$4:$O$71,10,FALSE)*IF(Variables!$Y$23=1,$AE124,$AF124) -> 0 | AT124: =Report!P312 -> 0
A125: 9 | D125: Steam Production | H125: =H413 -> 435033082.7 | I125: 435033082.7 | J125: 0 | K125: 0 | L125: 0 | M125: 0 | N125: 0 | R125: Distribution | S125: DPW | T125: =Factors!C409 -> 0 | U125: =IF(Variables!$AO$3=12,Factors!H409+Factors!K409,CHOOSE(Variables!AO$3,Factors!D409,Factors!E409,Factors!F409,Factors!G409,Factors!H409,Factors!I409,Factors!J409,Factors!K409,Factors!L409,Factors!M409,Factors!N409)) -> 0 | V125: =VLOOKUP($S125,$E$4:$O$71,5,FALSE)*IF(Variables!$Y$23=1,$T125,$U125) -> 0 | W125: =VLOOKUP($S125,$E$4:$O$71,6,FALSE)*IF(Variables!$Y$23=1,$T125,$U125) -> 0 | X125: =VLOOKUP($S125,$E$4:$O$71,7,FALSE)*IF(Variables!$Y$23=1,$T125,$U125) -> 0 | Y125: =VLOOKUP($S125,$E$4:$O$71,8,FALSE)*IF(Variables!$Y$23=1,$T125,$U125) -> 0 | Z125: =VLOOKUP($S125,$E$4:$O$71,9,FALSE)*IF(Variables!$Y$23=1,$T125,$U125) -> 0 | AA125: =VLOOKUP($S125,$E$4:$O$71,10,FALSE)*IF(Variables!$Y$23=1,$T125,$U125) -> 0 | AC125: Distribution | AD125: DPW | AE125: 0 | AF125: 0 | AG125: =VLOOKUP($AD125,$E$4:$O$71,5,FALSE)*IF(Variables!$Y$23=1,$AE125,$AF125) -> 0 | AH125: =VLOOKUP($AD125,$E$4:$O$71,6,FALSE)*IF(Variables!$Y$23=1,$AE125,$AF125) -> 0 | AI125: =VLOOKUP($AD125,$E$4:$O$71,7,FALSE)*IF(Variables!$Y$23=1,$AE125,$AF125) -> 0 | AJ125: =VLOOKUP($AD125,$E$4:$O$71,8,FALSE)*IF(Variables!$Y$23=1,$AE125,$AF125) -> 0 | AK125: =VLOOKUP($AD125,$E$4:$O$71,9,FALSE)*IF(Variables!$Y$23=1,$AE125,$AF125) -> 0 | AL125: =VLOOKUP($AD125,$E$4:$O$71,10,FALSE)*IF(Variables!$Y$23=1,$AE125,$AF125) -> 0 | AT125: =Report!P313 -> 0
A126: 10 | D126: Nuclear Production | H126: =H461 -> 0 | I126: 0 | J126: 0 | K126: 0 | L126: 0 | M126: 0 | N126: 0 | R126: General | S126: G | T126: =Factors!C410 -> 0 | U126: =IF(Variables!$AO$3=12,Factors!H410+Factors!K410,CHOOSE(Variables!AO$3,Factors!D410,Factors!E410,Factors!F410,Factors!G410,Factors!H410,Factors!I410,Factors!J410,Factors!K410,Factors!L410,Factors!M410,Factors!N410)) -> 0 | V126: =VLOOKUP($S126,$E$4:$O$71,5,FALSE)*IF(Variables!$Y$23=1,$T126,$U126) -> 0 | W126: =VLOOKUP($S126,$E$4:$O$71,6,FALSE)*IF(Variables!$Y$23=1,$T126,$U126) -> 0 | X126: =VLOOKUP($S126,$E$4:$O$71,7,FALSE)*IF(Variables!$Y$23=1,$T126,$U126) -> 0 | Y126: =VLOOKUP($S126,$E$4:$O$71,8,FALSE)*IF(Variables!$Y$23=1,$T126,$U126) -> 0 | Z126: =VLOOKUP($S126,$E$4:$O$71,9,FALSE)*IF(Variables!$Y$23=1,$T126,$U126) -> 0 | AA126: =VLOOKUP($S126,$E$4:$O$71,10,FALSE)*IF(Variables!$Y$23=1,$T126,$U126) -> 0 | AC126: General | AD126: G | AE126: 0 | AF126: 0 | AG126: =VLOOKUP($AD126,$E$4:$O$71,5,FALSE)*IF(Variables!$Y$23=1,$AE126,$AF126) -> 0 | AH126: =VLOOKUP($AD126,$E$4:$O$71,6,FALSE)*IF(Variables!$Y$23=1,$AE126,$AF126) -> 0 | AI126: =VLOOKUP($AD126,$E$4:$O$71,7,FALSE)*IF(Variables!$Y$23=1,$AE126,$AF126) -> 0 | AJ126: =VLOOKUP($AD126,$E$4:$O$71,8,FALSE)*IF(Variables!$Y$23=1,$AE126,$AF126) -> 0 | AK126: =VLOOKUP($AD126,$E$4:$O$71,9,FALSE)*IF(Variables!$Y$23=1,$AE126,$AF126) -> 0 | AL126: =VLOOKUP($AD126,$E$4:$O$71,10,FALSE)*IF(Variables!$Y$23=1,$AE126,$AF126) -> 0 | AT126: =Report!P314 -> 0
A127: 11 | D127: Hydro Production | H127: =H544 -> 16413240.32 | I127: 16413240.32 | J127: 0 | K127: 0 | L127: 0 | M127: 0 | N127: 0 | R127: Mining Plant | S127: P | T127: =Factors!C411 -> 0 | U127: =IF(Variables!$AO$3=12,Factors!H411+Factors!K411,CHOOSE(Variables!AO$3,Factors!D411,Factors!E411,Factors!F411,Factors!G411,Factors!H411,Factors!I411,Factors!J411,Factors!K411,Factors!L411,Factors!M411,Factors!N411)) -> 0 | V127: =VLOOKUP($S127,$E$4:$O$71,5,FALSE)*IF(Variables!$Y$23=1,$T127,$U127) -> 0 | W127: =VLOOKUP($S127,$E$4:$O$71,6,FALSE)*IF(Variables!$Y$23=1,$T127,$U127) -> 0 | X127: =VLOOKUP($S127,$E$4:$O$71,7,FALSE)*IF(Variables!$Y$23=1,$T127,$U127) -> 0 | Y127: =VLOOKUP($S127,$E$4:$O$71,8,FALSE)*IF(Variables!$Y$23=1,$T127,$U127) -> 0 | Z127: =VLOOKUP($S127,$E$4:$O$71,9,FALSE)*IF(Variables!$Y$23=1,$T127,$U127) -> 0 | AA127: =VLOOKUP($S127,$E$4:$O$71,10,FALSE)*IF(Variables!$Y$23=1,$T127,$U127) -> 0 | AC127: Mining Plant | AD127: P | AE127: 0 | AF127: 0 | AG127: =VLOOKUP($AD127,$E$4:$O$71,5,FALSE)*IF(Variables!$Y$23=1,$AE127,$AF127) -> 0 | AH127: =VLOOKUP($AD127,$E$4:$O$71,6,FALSE)*IF(Variables!$Y$23=1,$AE127,$AF127) -> 0 | AI127: =VLOOKUP($AD127,$E$4:$O$71,7,FALSE)*IF(Variables!$Y$23=1,$AE127,$AF127) -> 0 | AJ127: =VLOOKUP($AD127,$E$4:$O$71,8,FALSE)*IF(Variables!$Y$23=1,$AE127,$AF127) -> 0 | AK127: =VLOOKUP($AD127,$E$4:$O$71,9,FALSE)*IF(Variables!$Y$23=1,$AE127,$AF127) -> 0 | AL127: =VLOOKUP($AD127,$E$4:$O$71,10,FALSE)*IF(Variables!$Y$23=1,$AE127,$AF127) -> 0 | AT127: =Report!P315 -> 0
A128: 12 | D128: Other Power Supply | H128: =H600+H651 -> 496811089.2 | I128: 496811089.2 | J128: 0 | K128: 0 | L128: 0 | M128: 0 | N128: 0 | AT128: =Report!P316 -> 0
A129: 13 | D129: Transmission | H129: =H752 -> 87465469.99 | I129: 0 | J129: 87465469.99 | K129: 0 | L129: 0 | M129: 0 | N129: 0 | R129: Total PC (Post Merger) | T129: =SUM(T121:T127) -> 0 | U129: 0 | V129: 0 | W129: 0 | X129: 0 | Y129: 0 | Z129: 0 | AA129: 0 | AC129: Total PC (Post Merger) | AE129: =SUM(AE121:AE127) -> 0 | AF129: 0 | AG129: 0 | AH129: 0 | AI129: 0 | AJ129: 0 | AK129: 0 | AL129: 0 | AT129: =Report!P317 -> -8706.95
A130: 14 | D130: Distribution | H130: =H853 -> 87092561.37 | I130: 0 | J130: 0 | K130: 87092561.37 | L130: 87092561.37 | M130: 0 | N130: 0 | AT130: =Report!P318 -> 0
A131: 15 | D131: Customer Accounts | H131: =H888 -> 37538932.21 | I131: 0 | J131: 0 | K131: 37538932.21 | L131: 0 | M131: 37538932.21 | N131: 0 | R131: Total Deferred Taxes | T131: =T111+T118+T129 -> 0 | U131: 0 | V131: 0 | W131: 0 | X131: 0 | Y131: 0 | Z131: 0 | AA131: 0 | AC131: Total Deferred Taxes | AE131: =AE111+AE118+AE129 -> 0 | AF131: 0 | AG131: 0 | AH131: 0 | AI131: 0 | AJ131: 0 | AK131: 0 | AL131: 0 | AT131: =Report!P319 -> -11528.05279
A132: 16 | D132: Customer Service | H132: =H919 -> 5962391.712 | I132: 0 | J132: 0 | K132: 5962391.712 | L132: 0 | M132: 5962391.712 | N132: 0 | AT132: =Report!P320 -> 0
A133: 17 | D133: Sales | H133: =H949 -> 0 | I133: 0 | J133: 0 | K133: 0 | L133: 0 | M133: 0 | N133: 0 | R133: DITEXPRL FACTOR | T133: =T131/T131 ->  | U133: =U131/U131 ->  | V133: =V131/IF(Variables!$Y$23=2,$U131,$T131) ->  | W133: =W131/IF(Variables!$Y$23=2,$U131,$T131) ->  | X133: =X131/IF(Variables!$Y$23=2,$U131,$T131) ->  | Y133: =Y131/IF(Variables!$Y$23=2,$U131,$T131) ->  | Z133: =Z131/IF(Variables!$Y$23=2,$U131,$T131) ->  | AA133: =AA131/IF(Variables!$Y$23=2,$U131,$T131) ->  | AC133: DITEXPMA FACTOR | AE133: =AE131/AE131 ->  | AF133: =AF131/AF131 ->  | AG133: =AG131/IF(Variables!$Y$23=2,$AF131,$AE131) ->  | AH133: =AH131/IF(Variables!$Y$23=2,$AF131,$AE131) ->  | AI133: =AI131/IF(Variables!$Y$23=2,$AF131,$AE131) ->  | AJ133: =AJ131/IF(Variables!$Y$23=2,$AF131,$AE131) ->  | AK133: =AK131/IF(Variables!$Y$23=2,$AF131,$AE131) ->  | AL133: =AL131/IF(Variables!$Y$23=2,$AF131,$AE131) ->  | AT133: =Report!P321 -> 16293.32029
A134: 18 | D134: Administrative & General | H134: =H1033 -> 59356693.19 | I134: 23703659.71 | J134: 12372577.35 | K134: 23280456.13 | L134: 14980815.16 | M134: 619446.914 | N134: 7680194.061 | AT134: =Report!P322 -> -70546.64896
A135: 19 | AT135: =Report!P323 -> -74488.33146
A136: 20 | D136: Total O & M Expenses | H136: =SUM(H125:H134) -> 1225673461 | I136: 971961071.9 | J136: 99838047.34 | K136: 153874341.4 | L136: 102073376.5 | M136: 44120770.84 | N136: 7680194.061 | AT136: =Report!P324 -> 0
A137: 21 | AT137: =Report!P325 -> -1475411.072
A138: 22 | D138: Depreciation | H138: =H1122 -> 225037819.5 | I138: 118985736.8 | J138: 40552522.34 | K138: 65499560.4 | L138: 64643657.56 | M138: 855902.8393 | N138: 0 | AT138: =Report!P326 -> 0
A139: 23 | D139: Amortization Expense | H139: =H1202 -> 18006041.02 | I139: 10614357.01 | J139: 2342457.935 | K139: 5049226.078 | L139: 1970009.99 | M139: 3079216.088 | N139: 0 | AT139: =Report!P327 -> 0
A140: 24 | D140: Taxes Other Than Income | H140: =H1230 -> 54314747.86 | I140: 27858515.3 | J140: 11533084.97 | K140: 14923147.59 | L140: 14361566.79 | M140: 336669.2719 | N140: 224911.53 | AT140: =Report!P328 -> 977358.92
A141: 25 | D141: Income Taxes - Federal | H141: =H1439 -> -56141645.75 | I141: -139006376.4 | J141: -2018152.614 | K141: 25476483.18 | L141: 25280637.49 | M141: 18269059.06 | N141: -18073213.37 | AT141: =Report!P329 -> 977358.92
A142: 26 | D142: Income Taxes - State | H142: =H1406 -> -11663868.63 | I142: -14851466.15 | J142: -274233.4222 | K142: 3461830.943 | L142: 3435218.766 | M142: 2482461.708 | N142: -2455849.532 | AT142: =Report!P330 -> 977358.92
A143: 27 | D143: Income Taxes - Def Net | H143: =H1328 -> 157135953.3 | I143: 106233339.4 | J143: 33315179.7 | K143: 17587434.17 | L143: 17380368.6 | M143: 207065.5652 | N143: 0 | AT143: =Report!P331 -> 0
A144: 28 | D144: Investment Tax Credit Adj. | H144: =H1243 -> -1537975.334 | I144: -775489.0387 | J144: -338714.6125 | K144: -423771.6829 | L144: -423771.6829 | M144: 0 | N144: 0 | AT144: =Report!P332 -> -498052.1523
A145: 29 | D145: Misc Revenue & Expense | H145: =H332 -> -498052.1523 | I145: -1463253.854 | J145: -7939.708074 | K145: 973141.4099 | L145: -4217.510145 | M145: 977358.92 | N145: 0 | AT145: =Report!P333 -> 0
A146: 30 | AT146: =Report!P334 -> 0
A147: 31 | D147: Total Operating Expenses | H147: =SUM(H136:H145) -> 1610326480 | I147: 1079556435 | J147: 184942251.9 | K147: 286421393.5 | L147: 228716846.5 | M147: 70328504.29 | N147: -12623957.31 | AT147: =Report!P335 -> 7640042.378
A148: 32 | AT148: =Report!P336 -> 883732.3519
A149: 33 | C149: Operating Revenue for Return | H149: =H122-H147 -> 375112122.3 | I149: 94134656.72 | J149: 67463633.94 | K149: 105138162.4 | L149: 104060478.8 | M149: 34643142.04 | N149: -33565458.49 | AT149: =Report!P337 -> 8523774.73
A150: 34 | AT150: =Report!P338 -> 0
A151: 35 | C151: Rate Base: | AT151: =Report!P339 -> 0
A152: 36 | D152: Electric Plant in Service | H152: =H2065 -> 9672977055 | I152: 4887306511 | J152: 2094900343 | K152: 2690770200 | L152: 2618870361 | M152: 71899838.9 | N152: 0 | AT152: =Report!P340 -> 6809156.347
A153: 37 | D153: Plant Held for Future Use | H153: =H2088 -> 14536948.95 | I153: 14870262.18 | J153: -3294545.973 | K153: 2961232.742 | L153: 2961232.742 | M153: 0 | N153: 0 | AT153: =Report!P341 -> 0
A154: 38 | D154: Misc Deferred Debits | H154: =H2196+H2207 -> 37637117.06 | I154: 25179929.55 | J154: 8823413.673 | K154: 3633773.844 | L154: 916734.699 | M154: 227487.9856 | N154: 2489551.159 | AT154: =Report!P342 -> 0
A155: 39 | D155: Elec Plant Acq Adj | H155: =H2094+H2100 -> 22163328.02 | I155: 22163328.02 | J155: 0 | K155: 0 | L155: 0 | M155: 0 | N155: 0 | AT155: =Report!P343 -> 0
A156: 40 | D156: Nuclear Fuel | H156: =H2104 -> 0 | I156: 0 | J156: 0 | K156: 0 | L156: 0 | M156: 0 | N156: 0 | AT156: =Report!P344 -> 1375896.214
A157: 41 | D157: Prepayments | H157: =H2186 -> 13687891.38 | I157: 6637484.012 | J157: 2268108.495 | K157: 4782298.873 | L157: 2120347.651 | M157: 11166.34421 | N157: 2650784.878 | AT157: =Report!P345 -> 8185052.562
A158: 42 | D158: Fuel Stock | H158: =H2151 -> 98533441.7 | I158: 98533441.7 | J158: 0 | K158: 0 | L158: 0 | M158: 0 | N158: 0 | AT158: =Report!P346 -> 0
A159: 43 | D159: Material & Supplies | H159: =H2178 -> 82305591.52 | I159: 69391475.53 | J159: 533702.776 | K159: 12380413.22 | L159: 12380413.22 | M159: 0 | N159: 0 | AT159: =Report!P347 -> 0
A160: 44 | D160: Working Capital | H160: =H2234 -> 32443648.65 | I160: 17407265.03 | J160: 6240295.574 | K160: 8796088.044 | L160: 7938376.687 | M160: 1026383.471 | N160: -168672.1134 | AT160: =Report!P348 -> 0
A161: 45 | D161: Weatherization Loans | H161: =H2126 -> 4768445.435 | I161: 0 | J161: 0 | K161: 4768445.435 | L161: 0 | M161: 0 | N161: 4768445.435 | AT161: =Report!P349 -> 271567843.5
A162: 46 | D162: Miscellaneous Rate Base | H162: =H2254 -> 0 | I162: 0 | J162: 0 | K162: 0 | L162: 0 | M162: 0 | N162: 0 | AT162: =Report!P350 -> 0
A163: 47 | AT163: =Report!P351 -> 0
A164: 48 | D164: Total Electric Plant | H164: =SUM(H152:H163) -> 9979053467 | I164: 5141489697 | J164: 2109471318 | K164: 2728092452 | L164: 2645187466 | M164: 73164876.7 | N164: 9740109.358 | AT164: =Report!P352 -> 22781625.1
A165: 49 | AT165: =Report!P353 -> 294349468.6
A166: 50 | C166: Rate Base Deductions: | AT166: =Report!P354 -> 0
A167: 51 | D167: Accum Prov For Depr | H167: =H2556 -> -2819010927 | I167: -1459472234 | J167: -559587104.2 | K167: -799951588.2 | L167: -795968863.2 | M167: -3982724.924 | N167: 0 | AT167: =Report!P355 -> 302534521.1
A168: 52 | D168: Accum Prov For Amort | H168: =H2605 -> -203642585.2 | I168: -88138494.4 | J168: -31142888.37 | K168: -84361202.48 | L168: -33533280.71 | M168: -50827921.77 | N168: 0 | AT168: =Report!P356 -> 0
A169: 53 | D169: Accum Def Income Taxes | H169: =H2353 -> -1398243730 | I169: -719956000 | J169: -306065851.9 | K169: -372221877.7 | L169: -370130177.1 | M169: -2091700.569 | N169: 0 | AT169: =Report!P357 -> 0
A170: 54 | D170: Unamortized ITC | H170: =H2363 -> -122298.677 | I170: -61666.32284 | J170: -26934.33898 | K170: -33698.01519 | L170: -33698.01519 | M170: 0 | N170: 0 | AT170: =Report!P358 -> 12420836.31
A171: 55 | D171: Customer Adv for Const | H171: =H2286 -> -9312617.282 | I171: 0 | J171: -6622603.125 | K171: -2690014.157 | L171: -2690014.157 | M171: 0 | N171: 0 | AT171: =Report!P359 -> 3812258.643
A172: 56 | D172: Customer Service Deposits | H172: =H2260 -> -15463869.23 | I172: =I2260 -> 0 | J172: 0 | K172: -15463869.23 | L172: 0 | M172: -15463869.23 | N172: 0 | AT172: =Report!P360 -> 16233094.95
A173: 57 | D173: Misc. Rate Base Deductions | H173: =H2267+H2272+H2278+H2297+H2290 -> -14625684.27 | I173: =I2267+I2272+I2278+I2297+I2290 -> -11896844.7 | J173: -1116323.981 | K173: -1612515.595 | L173: -1535680.396 | M173: -76835.19928 | N173: 0 | AT173: =Report!P361 -> 0
A174: 58 | AT174: =Report!P362 -> 0
A175: 59 | D175: Total Rate Base Deductions | H175: =SUM(H167:H173) -> -4460421711 | I175: -2279525240 | J175: -904561705.9 | K175: -1276334765 | L175: -1203891714 | M175: -72443051.69 | N175: 0 | AT175: =Report!P363 -> 0
A176: 60 | P176: Functional Retail Revenue Spread | AT176: =Report!P364 -> 0
A177: 61 | C177: Total Rate Base | H177: =H164+H175 -> 5518631756 | I177: 2861964458 | J177: 1204909612 | K177: 1451757687 | L177: 1441295752 | M177: 721825.0115 | N177: 9740109.358 | Q177: =$I$115 -> Production | R177: =$J$115 -> Transmission | S177: =$K$115 -> Distribution | T177: =$L$115 -> Distribution | U177: Customer | V177: =$N$115 -> Misc | AT177: =Report!P365 -> 0
A178: 62 | P178: California | AT178: =Report!P366 -> 0
A179: 63 | C179: Return on Rate Base | H179: =H149/H177 -> 0.06797194284 | I179: 0.03289162326 | J179: 0.05599061811 | K179: 0.07242128857 | L179: 0.07219925449 | M179: 47.99382328 | N179: -3.446106943 | P179: Washington | AT179: =Report!P367 -> 1679183.89
A180: 64 | P180: Montana | AT180: =Report!P368 -> 1679183.89
A181: 65 | C181: Return on Equity | H181: =(+H179-Variables!$AT$3-Variables!$AT$4)/Variables!$AT$5 -> 0.07952196926 | I181: =(+I179-Variables!$AT$3-Variables!$AT$4)/Variables!$AT$5 -> 0.01205981622 | J181: =(+J179-Variables!$AT$3-Variables!$AT$4)/Variables!$AT$5 -> 0.05648096017 | K181: =(+K179-Variables!$AT$3-Variables!$AT$4)/Variables!$AT$5 -> 0.08807840337 | L181: =(+L179-Variables!$AT$3-Variables!$AT$4)/Variables!$AT$5 -> 0.08765141474 | M181: =(+M179-Variables!$AT$3-Variables!$AT$4)/Variables!$AT$5 -> 92.24462069 | N181: =(+N179-Variables!$AT$3-Variables!$AT$4)/Variables!$AT$5 -> -6.678322043 | P181: Wyoming - East | Q181: 127802829 | R181: 31696874 | S181: 50094096.44 | T181: 46928984 | U181: 1555189 | V181: 1610923.44 | AT181: =Report!P369 -> 0
A182: 66 | P182: Utah | Q182: 366003980 | R182: 104207074 | S182: 215005203.7 | T182: 197478510 | U182: 11984031 | V182: 5542662.72 | AT182: =Report!P370 -> 0
A183: 67 | C183: 100 Basis Points in Equity: | H183: =(H177*(Variables!$AT5*(H181+0.01)+Variables!$AT3+Variables!$AT4))-H149 -> 28696885.13 | I183: =(I177*(Variables!AT5*(I181+0.01)+Variables!AT3+Variables!AT4))-I149 -> 14882215.18 | J183: =(J177*(Variables!AU5*(J181+0.01)+Variables!AU3+Variables!AU4))-J149 -> 6265529.982 | K183: =(K177*(Variables!$AV5*(K181+0.01)+Variables!$AV3+Variables!$AV4))-K149 -> 7549139.971 | L183: =(L177*(Variables!$AV5*(L181+0.01)+Variables!$AV3+Variables!$AV4))-L149 -> 7494737.912 | M183: =(M177*(Variables!$AV5*(M181+0.01)+Variables!$AV3+Variables!$AV4))-M149 -> 3753.49006 | N183: =(N177*(Variables!$AV5*(N181+0.01)+Variables!$AV3+Variables!$AV4))-N149 -> 50648.56866 | P183: Idaho | Q183: 55561275 | R183: 14318016 | S183: 30397767.02 | T183: 27273473 | U183: 2038247 | V183: 1086047.02 | AT183: =Report!P371 -> 1326789.32
A184: 68 | D184: Revenue Requirement Impact | H184: =H183*(1/(1-(INDEX(Variables!$F$15:$Q$15,1,Variables!$AO$3)))) -> 46248747.17 | I184: =I183*(1/(1-(INDEX(Variables!$F$15:$Q$15,1,Variables!$AO$3)))) -> 23984617.29 | J184: =J183*(1/(1-(INDEX(Variables!$F$15:$Q$15,1,Variables!$AO$3)))) -> 10097713.07 | K184: =K183*(1/(1-(INDEX(Variables!$F$15:$Q$15,1,Variables!$AO$3)))) -> 12166416.82 | L184: =L183*(1/(1-(INDEX(Variables!$F$15:$Q$15,1,Variables!$AO$3)))) -> 12078740.85 | M184: =M183*(1/(1-(INDEX(Variables!$F$15:$Q$15,1,Variables!$AO$3)))) -> 6049.235378 | N184: =N183*(1/(1-(INDEX(Variables!$F$15:$Q$15,1,Variables!$AO$3)))) -> 81626.72833 | P184: Wyoming - West | Q184: 19756255.66 | R184: 5006765.992 | S184: 9963427.118 | T184: 8733400.13 | U184: 996768.2125 | V184: 233258.5417 | AT184: =Report!P372 -> 433924.986
A185: 69 | D185: Rate Base Decrease | H185: =(H149/(Variables!$AT5*(H181+0.01)+UTCR!$J7+UTCR!$J12))-H177 -> -392184272 | I185: =(I149/(Variables!$AT5*(I181+0.01)+UTCR!$J7+UTCR!$J12))-I177 -> -390695221.4 | J185: =(J149/(Variables!$AU5*(J181+0.01)+UTCR!$J7+UTCR!$J12))-J177 -> -102393637.7 | K185: =(K149/(Variables!$AV5*(K181+0.01)+UTCR!$J7+UTCR!$J12))-K177 -> -97256050.62 | L185: =(L149/(Variables!$AV5*(L181+0.01)+UTCR!$J7+UTCR!$J12))-L177 -> -96832171.86 | M185: =(M149/(Variables!$AV5*(M181+0.01)+UTCR!$J7+UTCR!$J12))-M177 -> -78.19930081 | N185: =(N149/(Variables!$AV5*(N181+0.01)+UTCR!$J7+UTCR!$J12))-N177 -> 14719.54037 | O185: Check | P185: Total Company | Q185: 1110556694 | R185: 308995072.2 | S185: 611877930.3 | T185: 566002564.9 | U185: 14881002.1 | V185: 30994363.59 | AT185: =Report!P373 -> 1760714.306
C186: =$C$109 -> 2010 PROTOCOL | W186: Check Total | AT186: =Report!P374 -> 0
C187: =$C$110 -> 13-Month Average | Q187: =($H179-I179)*I177*(1/(1-Variables!$F$15)) -> 161805392.2 | R187: =($H179-J179)*J177*(1/(1-Variables!$F$15)) -> 23266149.86 | S187: =($H179-K179)*K177*(1/(1-Variables!$F$15)) -> -10410114.37 | T187: =($H179-L179)*L177*(1/(1-Variables!$F$15)) -> -9819346.519 | U187: =($H179-M179)*M177*(1/(1-Variables!$F$15)) -> -55752837.58 | V187: =($H179-N179)*N177*(1/(1-Variables!$F$15)) -> 55162069.73 | W187: =ABS(SUM(Q187:V187)) -> 164251313.3 | AT187: =Report!P375 -> 0
C188: FERC | F188: BUSINESS | G188: PITA | H188: =$H$114 -> UTAH | Q188: =Q187+I192 -> 1138977760 | R188: 239649360.2 | S188: 370272831.8 | T188: 319081136.4 | U188: 42277734.65 | V188: 8913960.7 | W188: =SUM(Q188:V188,-S188) -> 1748899952 | AT188: =Report!P376 -> 24164750.62
C189: ACCT | E189: DESCRIPTION | F189: FUNCTION | G189: FACTOR | H189: =$H$115 -> Normalized | I189: =$I$115 -> Production | J189: =$J$115 -> Transmission | K189: =$K$115 -> Distribution | L189: =$L$115 -> Distribution | M189: =$M$115 -> Retail | N189: =$N$115 -> Misc | O189: Check | Q189: =$I$115 -> Production | R189: =$J$115 -> Transmission | S189: =$K$115 -> Distribution | T189: =$L$115 -> Distribution | U189: Customer | V189: =$N$115 -> Misc | AT189: =Report!P377 -> 0
A190: 70 | C190: Sales to Ultimate Customers | O190: Figure | AT190: =Report!P378 -> 780558.7145
A191: 71 | C191: 440 | D191: Residential Sales | I191: =($H179-I179)*I177*(1/(1-Variables!$F$15)) -> 161805392.2 | J191: =($H179-J179)*J177*(1/(1-Variables!$F$15)) -> 23266149.86 | K191: =($H179-K179)*K177*(1/(1-Variables!$F$15)) -> -10410114.37 | L191: =($H179-L179)*L177*(1/(1-Variables!$F$15)) -> -9819346.519 | M191: =($H179-M179)*M177*(1/(1-Variables!$F$15)) -> -55752837.58 | N191: =($H179-N179)*N177*(1/(1-Variables!$F$15)) -> 55162069.73 | O191: =H117 -> 1742020594 | AT191: =Report!P379 -> 24945309.33
A192: 72 | G192: =UTCR!H192 -> S | H192: =IF(Variables!$Y$23=2,Report!P192,NRO!I192) -> 649974944.8 | I192: 977172367.9 | J192: 216383210.4 | K192: 380682946.1 | L192: 328900482.9 | M192: 98030572.23 | N192: -46248109.03 | O192: =SUM(L192:N192)+J192+I192 -> 1574238524 | P192: =+O192-O191 -> -167782069.4 | Q192: =IF($F192=0,0,INDEX($I192:$N192,1,1)) -> 0 | R192: =IF($F192=0,0,INDEX($I192:$N192,1,2)) -> 0 | S192: =IF($F192=0,0,INDEX($I192:$N192,1,3)) -> 0 | T192: =IF($F192=0,0,INDEX($I192:$N192,1,4)) -> 0 | U192: =IF($F192=0,0,INDEX($I192:$N192,1,5)) -> 0 | V192: =IF($F192=0,0,INDEX($I192:$N192,1,6)) -> 0 | AT192: =Report!P380 -> 0
A193: 73 | Q193: 0 | R193: 0 | S193: 0 | T193: 0 | U193: 0 | V193: 0 | AT193: =Report!P381 -> 0
A194: 74 | H194: =SUBTOTAL(9,H192:H193) -> 649974944.8 | I194: 977172367.9 | J194: 216383210.4 | K194: 380682946.1 | L194: 328900482.9 | M194: 98030572.23 | N194: -46248109.03 | Q194: 0 | R194: 0 | S194: 0 | T194: 0 | U194: 0 | V194: 0 | AT194: =Report!P382 -> 142731.2177
A195: 75 | Q195: 0 | R195: 0 | S195: 0 | T195: 0 | U195: 0 | V195: 0 | AT195: =Report!P383 -> 0
A196: 76 | C196: 442 | D196: Commercial & Industrial Sales | Q196: 0 | R196: 0 | S196: 0 | T196: 0 | U196: 0 | V196: 0 | AT196: =Report!P384 -> 142731.2177
A197: 77 | G197: =UTCR!H197 -> S | H197: =IF(Variables!$Y$23=2,Report!P197,NRO!I197) -> 1064275002 | Q197: 0 | R197: 0 | S197: 0 | T197: 0 | U197: 0 | V197: 0 | AT197: =Report!P385 -> 0
A198: 78 | F198: P | G198: =UTCR!H198 -> SE | H198: =IF(Variables!$Y$23=2,Report!P198,NRO!I198) -> 0 | I198: =IF(F198=(VLOOKUP(F198,$E$4:$N$71,1)),VLOOKUP(F198,$E$4:$N$71,5),"#N/A")*H198 -> 0 | J198: =IF(F198=(VLOOKUP(F198,$E$4:$N$71,1)),VLOOKUP(F198,$E$4:$N$71,6),"#N/A")*H198 -> 0 | K198: =IF(F198=(VLOOKUP(F198,$E$4:$N$71,1)),VLOOKUP(F198,$E$4:$N$71,7),"#N/A")*H198 -> 0 | L198: =IF(F198=(VLOOKUP(F198,$E$4:$N$71,1)),VLOOKUP(F198,$E$4:$N$71,8),"#N/A")*H198 -> 0 | M198: =IF(F198=(VLOOKUP(F198,$E$4:$N$71,1)),VLOOKUP(F198,$E$4:$N$71,9),"#N/A")*H198 -> 0 | N198: =IF(F198=(VLOOKUP(F198,$E$4:$N$71,1)),VLOOKUP(F198,$E$4:$N$71,10),"#N/A")*H198 -> 0 | Q198: 0 | R198: 0 | S198: 0 | T198: 0 | U198: 0 | V198: 0 | AT198: =Report!P386 -> 0
A199: 79 | F199: PT | G199: =UTCR!H199 -> SG | H199: =IF(Variables!$Y$23=2,Report!P199,NRO!I199) -> 0 | I199: =(IF(F199=(VLOOKUP(F199,$E$4:$N$71,1)),VLOOKUP(F199,$E$4:$N$71,5),"#N/A")*H199)+0 -> 0 | J199: =(IF(F199=(VLOOKUP(F199,$E$4:$N$71,1)),VLOOKUP(F199,$E$4:$N$71,6),"#N/A")*H199)+0 -> 0 | K199: =(IF(F199=(VLOOKUP(F199,$E$4:$N$71,1)),VLOOKUP(F199,$E$4:$N$71,7),"#N/A")*H199)+0 -> 0 | L199: =(IF(F199=(VLOOKUP(F199,$E$4:$N$71,1)),VLOOKUP(F199,$E$4:$N$71,8),"#N/A")*H199)+0 -> 0 | M199: =(IF(F199=(VLOOKUP(F199,$E$4:$N$71,1)),VLOOKUP(F199,$E$4:$N$71,9),"#N/A")*H199)+0 -> 0 | N199: =(IF(F199=(VLOOKUP(F199,$E$4:$N$71,1)),VLOOKUP(F199,$E$4:$N$71,10),"#N/A")*H199)+0 -> 0 | Q199: 0 | R199: 0 | S199: 0 | T199: 0 | U199: 0 | V199: 0 | AT199: =Report!P387 -> -1286713.983
A200: 80 | Q200: 0 | R200: 0 | S200: 0 | T200: 0 | U200: 0 | V200: 0 | AT200: =Report!P388 -> 871965.8027
... 2047 more rows

Sheet Function1149 (hidden)
E1: =H114 -> UTAH | F1: =C111 -> RESULTS OF OPERATIONS SUMMARY | T1: UNADJUSTED RESULTS OF OPERATIONS
T2: =Variables!AE27 -> 2010 PROTOCOL
E3: Function | F3: Description | I3: Production | J3: Transmission | K3: Distribution | L3: Ancillary | M3: C_Billing | N3: C_Metering | O3: C_Service | P3: DSM | Q3: Total | T3: =Variables!AE28 -> 
F5: Internal Factors | W5: PACIFICORP | X5: PACIFICORP
E6: ACCMDIT | F6: Deferred Income Tax - Balance | I6: =X73 -> 0.749168677 | J6: 0.1201917297 | K6: 0.1236160069 | L6: 0 | M6: 0.00270273505 | N6: 0.004320851312 | O6: 0 | P6: 0 | Q6: =SUM(I6:P6) -> 1 | T6: FERC | U6: DESCRIPTION | W6: LABOR | X6: O&M
E7: CWC | F7: Cash Working Capital | I7: =IF(ISERROR(X$70/$W$70),1,X$70/$W$70) -> 0.7927965783 | J7: 0.05630650835 | K7: 0.09491169648 | L7: -0.001900307018 | M7: 0.02471339183 | N7: 0.01969024396 | O7: 0.01348188814 | P7: 0 | Q7: =SUM(I7:P7) -> 1 | T7: ACCT | W7: ONLY | X7: TOTAL | Y7: =Variables!X24 -> UTAH
E8: D_SPLIT | F8: Distribution Slit between Functions | I8: 0 | J8: 0 | K8: =Y62 -> 0.9696751913 | L8: 0 | M8: 0 | N8: =Y63 -> 0.03032480874 | O8: 0 | P8: 0 | Q8: 1
E9: DITEXP | F9: Deferred Income Tax - Expense | I9: =X74 -> 
E10: FIT | F10: Federal Income Taxes | I10: =I$1429/$H$1429 -> 6.466950152 | J10: =IF(ISERROR(J$1429/$H$1429),1,J$1429/$H$1429) -> 1.325567267 | K10: 1.053469636 | L10: 0.0395964861 | M10: -0.04448203351 | N10: -0.0563218518 | O10: 0.118793069 | P10: -4.410048054e-307 | Q10: 8.903572724 | T10: Production | W10: 90698845 | X10: =URO!I653 -> 2113111501 | Y10: =IF(Variables!AO3=12,URO!N653+URO!Q653,CHOOSE(Variables!AO3,URO!J653,URO!K653,URO!L653,URO!M653,URO!N653,URO!O653,URO!P653,URO!Q653,URO!R653,URO!S653,URO!T653)) -> 948257412.2 | AA10: Meter O&M Split
E11: GP | F11: Gross Plant | I11: =(I$152)/($H$152) -> 0.4595821125 | J11: =(J$152)/($H$152) -> 0.2192197779 | K11: 0.297227665 | L11: 0 | M11: 0.006474176121 | N11: 0.01331105254 | O11: 0.004185215907 | P11: 0 | Q11: 1 | T11: Transmission | W11: 10748429 | X11: =URO!I752 -> 204569251.7 | Y11: =IF(Variables!AO3=12,URO!N752+URO!Q752,CHOOSE(Variables!AO3,URO!J752,URO!K752,URO!L752,URO!M752,URO!N752,URO!O752,URO!P752,URO!Q752,URO!R752,URO!S752,URO!T752)) -> 87465469.99 | AB11: 1998 | AC11: 1997 | AD11: Total | AE11: Percent
E12: IBT | F12: Income Before Taxes | I12: =I$1414/$H$1414 -> 9.191573199 | J12: =IF(ISERROR(J$1414/$H$1414),1,J$1414/$H$1414) -> 2.17482383 | K12: 1.728400305 | L12: 0.06496492762 | M12: -0.07298051852 | N12: -0.09240580126 | O12: 0.1949007068 | P12: -7.235451445e-307 | Q12: 13.18927665 | T12: Distribution | W12: =W17 -> 41944504.6 | X12: 194655753.2 | Y12: 82078762.14 | AA12: Account 586 597 | AB12: =7716052+814586 -> 8530638 | AC12: =5317324+1141217 -> 6458541 | AD12: =AB12+AC12 -> 14989179 | AE12: =AD12/$AD$13 -> 0.0801081302
E13: NP | F13: Net Plant | I13: =(I$152+I$167+I$168)/($H$152+$H$167+$H$168) -> 0.4329544341 | J13: =(J$152+J$167+J$168)/($H$152+$H$167+$H$168) -> 0.2427651977 | K13: 0.3079880378 | L13: 0 | M13: 0.002757682462 | N13: 0.01131905616 | O13: 0.002215591818 | P13: 0 | Q13: 1 | T13: Customer Billing | W13: 35215299.05 | X13: 92471972.83 | Y13: 38275333.75 | AA13: TTL Dist Exp | AB13: 97117213 | AC13: 89994619 | AD13: =AB13+AC13 -> 187111832 | AE13: =AD13/$AD$13 -> 1
E14: PT | F14: Production / Transmission | I14: =IF(Variables!$Y$23=1,Function1149!X$51,Function1149!Y$51) -> 0.6960029595 | J14: =IF(Variables!$Y$23=1,Function1149!X$52,Function1149!Y$52) -> 0.3039970405 | K14: 0 | L14: 0 | M14: 0 | N14: 0 | O14: 0 | P14: 0 | Q14: 1 | T14: Customer Metering | W14: 15369458.98 | X14: 34727786.4 | Y14: 10239789.4
E15: PTD | F15: Prod, Trans, Dist Plant | I15: =IF(Variables!$Y$23=1,Function1149!X$44,Function1149!Y$44) -> 0.5042272275 | J15: =IF(Variables!$Y$23=1,Function1149!X$45,Function1149!Y$45) -> 0.2202340993 | K15: =IF(Variables!$Y$23=1,Function1149!X$46,Function1149!Y$46) -> 0.2671830156 | L15: 0 | M15: 0 | N15: =IF(Variables!$Y$23=1,Function1149!X$47,Function1149!Y$47) -> 0.008355657564 | O15: 0 | P15: 0 | Q15: 1 | T15: TOTAL | W15: =SUM(W10:W14) -> 193976536.6 | X15: =SUM(X10:X14) -> 2639536265 | Y15: =SUM(Y10:Y14) -> 1166316768 | AA15: Meter Reading Labor Split
E16: REVREQ | F16: Revenue Requirement | I16: =IF(ISERROR(I$122/$H$122),1,I$122/$H$122) -> 0.410351556 | J16: =IF(ISERROR(J$122/$H$122),1,J$122/$H$122) -> 0.06267943416 | K16: 0.1001281228 | L16: -0.002127855222 | M16: 0.01363945234 | N16: 0.01264015745 | O16: 0.003442694151 | P16: 2.369893065e-308 | Q16: =SUM(I16:P16) -> 0.6007535617 | AB16: 1998 | AC16: 1997 | AD16: Total | AE16: Percent
E17: T_SPLIT | F17: Transmission Split | I17: =I$1746/$H$1746 -> 0.030401407 | J17: =J$1746/$H$1746 -> 0.969598593 | K17: 0 | L17: 0 | M17: 0 | N17: 0 | O17: 0 | P17: 0 | Q17: 1 | T17: Poles & Wires | W17: =45597212*(1-AE12) -> 41944504.6 | X17: =URO!I853-URO!I846-URO!I792 -> 194655753.2 | Y17: =INDEX(URO!$J$853:$R$853,,Variables!$AO$3)-INDEX(URO!$J$846:$R$846,,Variables!$AO$3)-INDEX(URO!$J$792:$R$792,,Variables!$AO$3) -> 82078762.14 | AA17: Account 902 | AB17: 17740463 | AC17: 17582340 | AD17: =AB17+AC17 -> 35322803 | AE17: =AD17/$AD$18 -> 0.243929702
E18: TD | F18: Transmission / Distribution | I18: 0 | J18: =IF(Variables!$Y$23=1,Function1149!$X$56,Function1149!$Y$56) -> 0.4442238694 | K18: =IF(Variables!$Y$23=1,Function1149!$X$57,Function1149!$Y$57) -> 0.5389223257 | L18: 0 | M18: 0 | N18: =IF(Variables!$Y$23=1,Function1149!$X$58,Function1149!$Y$58) -> 0.01685380486 | O18: 0 | P18: 0 | Q18: =SUM(I18:P18) -> 1 | T18: Customer Billing | W18: =(38485186+6117793)-(38485186*$AE$17) -> 35215299.05 | X18: =URO!I888+URO!I957-URO!I870 -> 92471972.83 | Y18: =INDEX(URO!$J$888:$R$888,,Variables!$AO$3)+INDEX(URO!$J$957:$R$957,,Variables!$AO$3)-INDEX(URO!$J$870:$R$870,,Variables!$AO$3) -> 38275333.75 | AA18: Ttl Cust Service | AB18: 72030470 | AC18: 72776836 | AD18: =AB18+AC18 -> 144807306 | AE18: =AD18/$AD$18 -> 1
T19: Customer Metering | W19: =38485186*$AE$17+(74671310*AE12) -> 15369458.98 | X19: =URO!I846+URO!I792+URO!I870 -> 34727786.4 | Y19: =INDEX(URO!$J$846:$R$846,,Variables!$AO$3)+INDEX(URO!$J$792:$R$792,,Variables!$AO$3)+INDEX(URO!$J$870:$R$870,,Variables!$AO$3) -> 10239789.4
F20: External Factors | T20: Misc | AA20: Source: FERC FORM 1 Page 322
E21: ANC | F21: Ancillary Function | I21: 0 | J21: 0 | K21: 0 | L21: 1 | M21: 0 | N21: 0 | O21: 0 | P21: 0 | Q21: =SUM(I21:P21) -> 1 | T21: TOTAL DISTRIBUTION | W21: =SUM(W17:W20) -> 92529262.63 | X21: =SUM(X17:X20) -> 321855512.4 | Y21: =SUM(Y17:Y20) -> 130593885.3
E22: B_CENTER | F22: Business Centers | I22: 0 | J22: 0 | K22: 0 | L22: 0 | M22: 0.7453435853 | N22: 0 | O22: 0.2546564147 | P22: 0 | Q22: =SUM(I22:P22) -> 1
E23: BOOKDEPR | F23: Book Depreciation | I23: 0.4845650437 | J23: 0.1558154864 | K23: 0.3420665007 | L23: 0 | M23: 0.00362896348 | N23: 0.01392400566 | O23: 0 | P23: 0 | Q23: 1 | T23: Labor/O&M
E24: C_METER | F24: Customer Metering | I24: 0 | J24: 0 | K24: 0 | L24: 0 | M24: 0 | N24: 1 | O24: 0 | P24: 0 | Q24: 1 | T24: Production | W24: =W10/W$15 -> 0.4675763707 | X24: 0.8005616475 | Y24: 0.8130359081
E25: C_SERVICE | F25: Customer Other | I25: 0 | J25: 0 | K25: 0 | L25: 0 | M25: 0 | N25: 0 | O25: 1 | P25: 0 | Q25: 1 | T25: Transmission | W25: 0.05541097489 | X25: 0.07750196668 | Y25: 0.07499289424
E26: COM_EQ | F26: Communication Equipment Acct 397 | I26: 0.159434 | J26: 0.393847 | K26: 0.432754 | L26: 0 | M26: 0 | N26: 0 | O26: 0.013965 | P26: 0 | Q26: 1 | T26: Distribution | W26: 0.2162349392 | X26: 0.07374619389 | Y26: 0.07037433091
E27: CSS_SYS | F27: CSS System | I27: 0 | J27: 0 | K27: 0 | L27: 0 | M27: 0.55 | N27: 0.18 | O27: 0.27 | P27: 0 | Q27: 1 | T27: Customer Billing | W27: 0.1815441169 | X27: 0.03503341631 | Y27: 0.03281727127
E28: CUST | F28: Customer Billing | I28: 0 | J28: 0 | K28: 0 | L28: 0 | M28: 1 | N28: 0 | O28: 0 | P28: 0 | Q28: 1 | T28: Customer Metering | W28: 0.07923359827 | X28: 0.01315677563 | Y28: 0.008779595462
E29: CUST901 | F29: Supervision | I29: 0 | J29: 0 | K29: 0 | L29: 0 | M29: 0.6345753273 | N29: -0.06989238368 | O29: 0.4353170564 | P29: 0 | Q29: 1 | T29: TOTAL | W29: =SUM(W24:W28) -> 1 | X29: =SUM(X24:X28) -> 1 | Y29: =SUM(Y24:Y28) -> 1
E30: CUST903 | F30: Cust. Records & Coll. Exp. | I30: 0 | J30: 0 | K30: 0 | L30: 0 | M30: 0.5961416623 | N30: 0 | O30: 0.4038583377 | P30: 0 | Q30: 1
E31: CUST905 | F31: Misc. Customer Acct. Exp. | I31: 0 | J31: 0 | K31: 0 | L31: 0 | M31: 0.08871429249 | N31: 0.07696437586 | O31: 0.8343213317 | P31: 0 | Q31: 1 | T31: Distribution | W31: =W17/W$21 -> 0.4533106978 | X31: 0.6047923546 | Y31: 0.6285038688
E32: D | F32: Distribution Only | I32: 0 | J32: 0 | K32: 1 | L32: 0 | M32: 0 | N32: 0 | O32: 0 | P32: 0 | Q32: 1 | T32: Customer Billing | W32: 0.3805855364 | X32: 0.2873089609 | Y32: 0.293086722
E33: DDS2 | F33: Deferred Debits - Situs | I33: 0.5072219508 | J33: 0.1845855021 | K33: 0.2834051309 | L33: 0 | M33: 0.01256905969 | N33: 0.01221835658 | O33: 0 | P33: 0 | Q33: 1 | T33: Customer Metering | W33: 0.1661037659 | X33: 0.1078986845 | Y33: 0.07840940926
E34: DDS6 | F34: Deferred Debits - Situs | I34: 0 | J34: 1 | K34: 0 | L34: 0 | M34: 0 | N34: 0 | O34: 0 | P34: 0 | Q34: 1 | T34: Total Distribution | W34: =SUM(W31:W33) -> 1 | X34: =SUM(X31:X33) -> 1 | Y34: =SUM(Y31:Y33) -> 1
E35: DDSO2 | F35: Deferred Debits - System Overhead | I35: 0.4171842688 | J35: 0.06670748689 | K35: 0.512731016 | L35: 0 | M35: 0 | N35: 0.003377228292 | O35: 0 | P35: 0 | Q35: 1
E36: DDSO6 | F36: Deferred Debits - System Overhead | I36: 0 | J36: 0 | K36: 1 | L36: 0 | M36: 0 | N36: 0 | O36: 0 | P36: 0 | Q36: 1
E37: DEFSG | F37: Deferred Debit - System Generation | I37: 0.2424591015 | J37: 0.7575408985 | K37: 0 | L37: 0 | M37: 0 | N37: 0 | O37: 0 | P37: 0 | Q37: 1 | T37: Total Production Plant | X37: =URO!I1696 -> 1.030433738e+10 | Y37: =IF(Variables!AO3=12,URO!N1696+URO!Q1696,CHOOSE(Variables!AO3,URO!J1696,URO!K1696,URO!L1696,URO!M1696,URO!N1696,URO!O1696,URO!P1696,URO!Q1696,URO!R1696,URO!S1696,URO!T1696)) -> 4408315766
E38: DSM | F38: Demand Side Management | I38: 0 | J38: 0 | K38: 1 | L38: 0 | M38: 0 | N38: 0 | O38: 0 | P38: 0 | Q38: 1 | T38: Total Transmission Plant | X38: =URO!I1760 -> 4500682108 | Y38: =IF(Variables!AO3=12,URO!N1760+URO!Q1760,CHOOSE(Variables!AO3,URO!J1760,URO!K1760,URO!L1760,URO!M1760,URO!N1760,URO!O1760,URO!P1760,URO!Q1760,URO!R1760,URO!S1760,URO!T1760)) -> 1925444322
E39: DPW | F39: Distribution Poles & Wires | I39: 0 | J39: 0 | K39: 0.9608865815 | L39: 0 | M39: 0 | N39: 0.03911341851 | O39: 0 | P39: 0 | Q39: =SUM(I39:P39) -> 1 | T39: Total Distribution Plant | X39: =URO!I1834 -> 5665494307 | Y39: =IF(Variables!AO3=12,URO!N1834+URO!Q1834,CHOOSE(Variables!AO3,URO!J1834,URO!K1834,URO!L1834,URO!M1834,URO!N1834,URO!O1834,URO!P1834,URO!Q1834,URO!R1834,URO!S1834,URO!T1834)) -> 2408956539
E40: ESD | F40: Environmental Services Department | I40: 0.3 | J40: 0.1 | K40: 0.6 | L40: 0 | M40: 0 | N40: 0 | O40: 0 | P40: 0 | Q40: 1 | T40: Total Account 370 | X40: =URO!I1810 -> 176073662.4 | Y40: =H1796 -> 73051146.32
E41: FERC | F41: FERC Fees | I41: 0.514717736 | J41: 0.485282264 | K41: 0 | L41: 0 | M41: 0 | N41: 0 | O41: 0 | P41: 0 | Q41: 1 | T41: TOTAL | X41: =SUM(X37:X40) -> 2.064658745e+10 | Y41: =SUM(Y37:Y40) -> 8815767773
E42: G | F42: General Plant | I42: 0.2569188767 | J42: 0.2193639593 | K42: 0.4775233865 | L42: 0 | M42: 0.02675592464 | N42: 0.01943785294 | O42: 0 | P42: 0 | Q42: 1
E43: G-DGP | F43: General Plant - DGP Factor | I43: 0.6855986064 | J43: 0.3144013936 | K43: 0 | O43: 0 | P43: 0 | Q43: 1 | T43: PTD
E44: G-DGU | F44: General Plant - DGU Factor | I44: 0.6855986064 | J44: 0.3144013936 | K44: 0 | O44: 0 | P44: 0 | Q44: 1 | T44: Total Production Plant | X44: =X37/SUM(X$37:X$39) -> 0.5033746334 | Y44: =Y37/SUM(Y$37:Y$39) -> 0.5042272275
E45: G-SG | F45: General Plant - SG Factor | I45: 0.6863049829 | J45: 0.3070705956 | K45: 0.006365317742 | L45: 0 | M45: 0 | N45: 0.000259103771 | O45: 0 | P45: 0 | Q45: 1 | T45: Total Transmission Plant | X45: =X38/SUM(X$37:X$39) -> 0.2198617071 | Y45: =Y38/SUM(Y$37:Y$39) -> 0.2202340993
E46: G-SITUS | F46: General Plant - SITUS Factor | I46: 0.0001467575033 | J46: 0.209679849 | K46: 0.7592670109 | L46: 0 | M46: 0 | N46: 0.03090638263 | O46: 0 | P46: 0 | Q46: 1 | T46: Total Distribution Plant | X46: =(X39-X40)/SUM(X$37:X$39) -> 0.2681623285 | Y46: =(Y39-Y40)/SUM(Y$37:Y$39) -> 0.2671830156
E47: I | F47: Intangible Plant | I47: 0.4702230682 | J47: 0.1465189551 | K47: 0.1997512069 | L47: 0 | M47: 0.09641524389 | N47: 0.0397376888 | O47: 0.0473538371 | P47: 0 | Q47: 1 | T47: Total Account 370 | X47: =(X40)/SUM(X$37:X$39) -> 0.008601330879 | Y47: =(Y40)/SUM(Y$37:Y$39) -> 0.008355657564
E48: I-DGP | F48: Intangible Plant - DGP Factor | I48: 1 | J48: 0 | K48: 0 | L48: 0 | M48: 0 | N48: 0 | O48: 0 | P48: 0 | Q48: 1 | T48: TOTAL | X48: =SUM(X44:X47) -> 1 | Y48: =SUM(Y44:Y47) -> 1
E49: I-DGU | F49: Intangible Plant - DGU Factor | I49: 1 | J49: 0 | K49: 0 | L49: 0 | M49: 0 | N49: 0 | O49: 0 | P49: 0 | Q49: 1
E50: I-SG | F50: Intangible Plant - SG Factor | I50: 0.8952466433 | J50: 0.1044295446 | K50: 0.0003111467083 | L50: 0 | M50: 0 | N50: 1.266539845e-05 | O50: 0 | P50: 0 | Q50: 1 | T50: PT
E51: I-SITUS | F51: Intangible Plant - SITUS Factor | I51: 0 | J51: 0.3714231392 | K51: 0.603991071 | L51: 0 | M51: 0 | N51: 0.02458578982 | O51: 0 | P51: 0 | Q51: 1 | T51: Total Production Plant | X51: =X37/(X$37+X$38) -> 0.6960029595 | Y51: =Y37/(Y$37+Y$38) -> 0.6960029595
E52: LABOR | F52: Direct Labor Expense | I52: 0.4042442542 | J52: 0.04812701706 | K52: 0.3400063721 | L52: 0 | M52: 0.05441429262 | N52: 0.09789744243 | O52: 0.05531062156 | P52: 0 | Q52: 1 | T52: Total Transmission Plant | X52: =X38/(X$37+X$38) -> 0.3039970405 | Y52: =Y38/(Y$37+Y$38) -> 0.3039970405
E53: MSS | F53: Materials & Supplies | I53: 0.8033119538 | J53: 0.06755266468 | K53: 0.1247572377 | L53: 0 | M53: 0 | N53: 0.004378143827 | O53: 0 | P53: 0 | Q53: 1 | T53: TOTAL | X53: =SUM(X51:X52) -> 1 | Y53: =SUM(Y51:Y52) -> 1
E54: NONE | F54: Not Functionalized | I54: 0 | J54: 0 | K54: 0 | L54: 0 | M54: 0 | N54: 0 | O54: 0 | P54: 0 | Q54: 0
E55: NUTIL | F55: Non-Utility | I55: 0 | J55: 0 | K55: 0 | L55: 0 | M55: 0 | N55: 0 | O55: 0 | P55: 0 | Q55: 0 | T55: TD
E56: OTHDGP | F56: Other Revenues - DGP Factor | I56: 0.4625870645 | J56: 0.5374129355 | K56: 0 | L56: 0 | M56: 0 | N56: 0 | O56: 0 | P56: 0 | Q56: 1 | T56: Total Transmission Plant | X56: =X38/SUM(X$38:X$39) -> 0.4427113916 | Y56: =Y38/SUM(Y$38:Y$39) -> 0.4442238694
E57: OTHDGU | F57: Other Revenues - DGU Factor | I57: 0.4625870645 | J57: 0.5374129355 | K57: 0 | L57: 0 | M57: 0 | N57: 0 | O57: 0 | P57: 0 | Q57: 1 | T57: Total Distribution Plant | X57: =(X39-X40)/SUM(X$38:X$39) -> 0.5399690523 | Y57: =(Y39-Y40)/SUM(Y$38:Y$39) -> 0.5389223257
E58: OTHSE | F58: Other Revenues - SE Factor | I58: 0.0001727378942 | J58: 0.9998272621 | K58: 0 | L58: 0 | M58: 0 | N58: 0 | O58: 0 | P58: 0 | Q58: 1 | T58: Total Account 370 | X58: =X40/SUM(X$38:X$39) -> 0.01731955606 | Y58: =Y40/SUM(Y$38:Y$39) -> 0.01685380486
E59: OTHSG | F59: Other Revenues - SG Factor | I59: 0.4625870645 | J59: 0.5374129355 | K59: 0 | L59: 0 | M59: 0 | N59: 0 | O59: 0 | P59: 0 | Q59: 1 | T59: TOTAL | X59: =SUM(X56:X58) -> 1 | Y59: =SUM(Y56:Y58) -> 1
E60: OTHSGR | F60: Other Revenues - Rolled-In SG Factor | I60: 0.4625870645 | J60: 0.5374129355 | K60: 0 | L60: 0 | M60: 0 | N60: 0 | O60: 0 | P60: 0 | Q60: 1
E61: OTHSITUS | F61: Other Revenues - SITUS | I61: 0 | J61: 0 | K61: 1 | L61: 0 | M61: 0 | N61: 0 | O61: 0 | P61: 0 | Q61: 1 | T61: D_Split
E62: OTHSO | F62: Other Revenues - SO Factor | I62: 4.679293728e-05 | J62: 2.06904628e-05 | K62: 0.999931147 | L62: 0 | M62: 0 | N62: 0 | O62: 0 | P62: 0 | Q62: 0.9999986304 | T62: Total Distribution Plant | X62: =(X39-X40)/(X$39) -> 0.9689217475 | Y62: =(Y39-Y40)/(Y$39) -> 0.9696751913
E63: P | F63: Production | I63: 1 | J63: 0 | K63: 0 | L63: 0 | M63: 0 | N63: 0 | O63: 0 | P63: 0 | Q63: 1 | T63: Total Account 370 | X63: =X40/(X$39) -> 0.03107825246 | Y63: =Y40/(Y$39) -> 0.03032480874
E64: RETAIL | F64: Retail Function | I64: 0 | J64: 0 | K64: 0 | L64: 0 | M64: 0 | N64: 0 | O64: 0 | P64: 0 | Q64: 0 | T64: Total | X64: =SUM(X62:X63) -> 1 | Y64: =SUM(Y62:Y63) -> 1
E65: SCHMA | F65: Schedule M Additions | I65: 0.4190865141 | J65: 0.1641232291 | K65: 0.3761491918 | L65: 0 | M65: 0.005477940566 | N65: 0.01951171973 | O65: 0.0156514046 | P65: 0 | Q65: 1
E66: SCHMAF | F66: Schedule M Additions - Flow Through | I66: 1 | J66: 0 | K66: 0 | L66: 0 | M66: 0 | N66: 0 | O66: 0 | P66: 0 | Q66: 1
E67: SCHMAP | F67: Schedule M Additions - Permanent | I67: 0.4160970458 | J67: 0.06253452748 | K67: 0.3350010237 | L67: 0 | M67: 0.04850308641 | N67: 0.08856227243 | O67: 0.04930204415 | P67: 0 | Q67: 1 | X67: =I$3 -> Production | Y67: Transmission | Z67: Distribution | AA67: Ancillary | AB67: C_Billing | AC67: C_Metering | AD67: C_Service | AE67: DSM
E68: SCHMAP-SO | F68: Schedule M Additions - Permanent-SO | I68: 0.4059309643 | J68: 0.05308717123 | K68: 0.3396272537 | L68: 0 | M68: 0.05265863495 | N68: 0.09516993166 | O68: 0.05352604416 | P68: 0 | Q68: 1 | T68: (O&M + Taxes) / 365 | W68: =SUM(X68:AE68) -> 2383356.853 | X68: =((I1032+I1220+I1396+I1429)/365) -> 1889517.157 | Y68: 134198.5025 | Z68: 226208.4422 | AA68: -4529.109753 | AB68: 58900.83176 | AC68: 46928.87788 | AD68: 32132.15048 | AE68: 5.044283878e-302
E69: SCHMAT | F69: Schedule M Additions - Temporary | I69: 0.4191435536 | J69: 0.1660615541 | K69: 0.376934304 | L69: 0 | M69: 0.004657015452 | N69: 0.01819422663 | O69: 0.01500934623 | P69: 0 | Q69: 1 | T69: Net LAG Days | X69: =IF(Variables!$AO$3=12,Variables!$J20,IF(Variables!$Y23=2,CHOOSE(Variables!$AO3,Variables!$F20,Variables!$G20,Variables!$H20,Variables!$I20,Variables!$J20,Variables!$K20,Variables!$L20,Variables!$M20,Variables!$N20),Variables!$O20)) -> 4.762502313 | Y69: =IF(Variables!$AO$3=12,Variables!$J20,IF(Variables!$Y23=2,CHOOSE(Variables!$AO3,Variables!$F20,Variables!$G20,Variables!$H20,Variables!$I20,Variables!$J20,Variables!$K20,Variables!$L20,Variables!$M20,Variables!$N20),Variables!$O20)) -> 4.762502313 | Z69: =IF(Variables!$AO$3=12,Variables!$J20,IF(Variables!$Y23=2,CHOOSE(Variables!$AO3,Variables!$F20,Variables!$G20,Variables!$H20,Variables!$I20,Variables!$J20,Variables!$K20,Variables!$L20,Variables!$M20,Variables!$N20),Variables!$O20)) -> 4.762502313 | AA69: =IF(Variables!$AO$3=12,Variables!$J20,IF(Variables!$Y23=2,CHOOSE(Variables!$AO3,Variables!$F20,Variables!$G20,Variables!$H20,Variables!$I20,Variables!$J20,Variables!$K20,Variables!$L20,Variables!$M20,Variables!$N20),Variables!$O20)) -> 4.762502313 | AB69: =IF(Variables!$AO$3=12,Variables!$J20,IF(Variables!$Y23=2,CHOOSE(Variables!$AO3,Variables!$F20,Variables!$G20,Variables!$H20,Variables!$I20,Variables!$J20,Variables!$K20,Variables!$L20,Variables!$M20,Variables!$N20),Variables!$O20)) -> 4.762502313 | AC69: =IF(Variables!$AO$3=12,Variables!$J20,IF(Variables!$Y23=2,CHOOSE(Variables!$AO3,Variables!$F20,Variables!$G20,Variables!$H20,Variables!$I20,Variables!$J20,Variables!$K20,Variables!$L20,Variables!$M20,Variables!$N20),Variables!$O20)) -> 4.762502313 | AD69: =IF(Variables!$AO$3=12,Variables!$J20,IF(Variables!$Y23=2,CHOOSE(Variables!$AO3,Variables!$F20,Variables!$G20,Variables!$H20,Variables!$I20,Variables!$J20,Variables!$K20,Variables!$L20,Variables!$M20,Variables!$N20),Variables!$O20)) -> 4.762502313 | AE69: =IF(Variables!$AO$3=12,Variables!$J20,IF(Variables!$Y23=2,CHOOSE(Variables!$AO3,Variables!$F20,Variables!$G20,Variables!$H20,Variables!$I20,Variables!$J20,Variables!$K20,Variables!$L20,Variables!$M20,Variables!$N20),Variables!$O20)) -> 4.762502313
E70: SCHMAT-GPS | F70: Schedule M Additions - Temporary-GPS | I70: 0.4565079555 | J70: 0.2009823396 | K70: 0.3277488096 | L70: 0 | M70: 0.0008314080651 | N70: 0.0135501467 | O70: 0.0003793405869 | P70: 0 | Q70: 1 | T70: CWC | W70: =SUM(X70:AE70) -> 11350742.52 | X70: =X68*X69 -> 8998829.834 | Y70: 639120.6787 | Z70: 1077318.229 | AA70: -21569.89567 | AB70: 280515.3475 | AC70: 223498.8895 | AD70: 153029.441 | AE70: 2.402341364e-301
E71: SCHMAT-SE | F71: Schedule M Additions - Temporary-SE | I71: 0.9842508729 | J71: 0.001272263869 | K71: 0.00898825335 | L71: 0 | M71: 0.001438471417 | N71: 0.002587972129 | O71: 0.00146216636 | P71: 0 | Q71: =SUM(I71:P71) -> 1
E72: SCHMAT-SITUS | F72: Schedule M Additions - Temporary-SITUS | I72: 0.5055376977 | J72: 0.05463690133 | K72: 0.2959301989 | L72: 0 | M72: 0.0370623376 | N72: 0.0691600246 | O72: 0.0376728398 | P72: 0 | Q72: 1
E73: SCHMAT-SNP | F73: Schedule M Additions - Temporary-SNP | I73: 0.4565162898 | J73: 0.2015183426 | K73: 0.3280584593 | L73: 0 | M73: 0.0003239124031 | N73: 0.01343520669 | O73: 0.0001477891859 | P73: 0 | Q73: 1 | T73: ACCUMDIT | V73: =Variables!AE27 -> 2010 PROTOCOL | X73: =IF(Variables!$AD$24=2,Function1149!X110,Function1149!AK110) -> 0.749168677 | Y73: =IF(Variables!$AD$24=2,Function1149!Y110,Function1149!AL110) -> 0.1201917297 | Z73: =IF(Variables!$AD$24=2,Function1149!Z110,Function1149!AM110) -> 0.1236160069 | AA73: =IF(Variables!$AD$24=2,Function1149!AA110,Function1149!AN110) -> 0 | AB73: =IF(Variables!$AD$24=2,Function1149!AB110,Function1149!AO110) -> 0.00270273505 | AC73: =IF(Variables!$AD$24=2,Function1149!AC110,Function1149!AP110) -> 0.004320851312 | AD73: =IF(Variables!$AD$24=2,Function1149!AD110,Function1149!AQ110) -> 0 | AE73: =IF(Variables!$AD$24=2,Function1149!AE110,Function1149!AR110) -> 0
E74: SCHMAT-SO | F74: Schedule M Additions - Temporary-SO | I74: 0.4186955507 | J74: 0.154156412 | K74: 0.3574530733 | L74: 0 | M74: 0.01129494904 | N74: 0.02910680568 | O74: 0.02929320916 | P74: 0 | Q74: 1 | T74: DITEXP | V74: =Variables!AE27 -> 2010 PROTOCOL | X74: =IF(Variables!$AD$24=2,Function1149!X143,Function1149!AK143) ->  | Y74: =IF(Variables!$AD$24=2,Function1149!Y143,Function1149!AL143) ->  | Z74: =IF(Variables!$AD$24=2,Function1149!Z143,Function1149!AM143) ->  | AA74: =IF(Variables!$AD$24=2,Function1149!AA143,Function1149!AN143) ->  | AB74: =IF(Variables!$AD$24=2,Function1149!AB143,Function1149!AO143) ->  | AC74: =IF(Variables!$AD$24=2,Function1149!AC143,Function1149!AP143) ->  | AD74: =IF(Variables!$AD$24=2,Function1149!AD143,Function1149!AQ143) ->  | AE74: =IF(Variables!$AD$24=2,Function1149!AE143,Function1149!AR143) -> 
E75: SCHMD | F75: Schedule M Deductions | I75: 0.5227884621 | J75: 0.1552876126 | K75: 0.3019214664 | L75: 0 | M75: 0.003191548108 | N75: 0.008795786426 | O75: 0.008015124335 | P75: 0 | Q75: 1
E76: SCHMDF | F76: Schedule M Deductions - Flow Through | I76: 1 | J76: 0 | K76: 0 | L76: 0 | M76: 0 | N76: 0 | O76: 0 | P76: 0 | Q76: 1
E77: SCHMDP | F77: Schedule M Deductions - Permanent | I77: 0.4990425753 | J77: 0.04223817146 | K77: 0.2861061775 | L77: 0 | M77: 0.04519973017 | N77: 0.08146907158 | O77: 0.045944274 | P77: 0 | Q77: 1 | T77: DITBALRL | AG77: DITBALMA
E78: SCHMDP-SO | F78: Schedule M Deductions - Permanent- SO | I78: 0.4042442012 | J78: 0.04812686127 | K78: 0.340006384 | L78: 0 | M78: 0.05441434776 | N78: 0.0978975281 | O78: 0.05531067761 | P78: 0 | Q78: 1 | T78: Pacific Division | V78: Total | W78: =Variables!X24 -> UTAH | X78: =I$3 -> Production | Y78: Transmission | Z78: Distribution | AA78: Ancillary | AB78: C_Billing | AC78: C_Metering | AD78: C_Service | AE78: DSM | AG78: Pacific Division | AI78: Total | AJ78: =Variables!X24 -> UTAH | AK78: =I$3 -> Production | AL78: Transmission | AM78: Distribution | AN78: Ancillary | AO78: C_Billing | AP78: C_Metering | AQ78: C_Service | AR78: DSM
E79: SCHMDT | F79: Schedule M Deductions - Temporary | I79: 0.5234441071 | J79: 0.1584090078 | K79: 0.3023581405 | L79: 0 | M79: 0.00203166501 | N79: 0.006789212682 | O79: 0.006967866933 | P79: 0 | Q79: 1 | T79: Pacific Division | AG79: Pacific Division
E80: SCHMDT-GPS | F80: Schedule M Deductions - Temporary-GPS | I80: 0.4565216092 | J80: 0.20186045 | K80: 0.3282560953 | L80: 0 | M80: 0 | N80: 0.01336184549 | O80: 0 | P80: 0 | Q80: 1 | T80: Production | U80: P | V80: =Factors!C433 -> 53689800 | W80: =IF(Variables!$AO$3=12,Factors!H433+Factors!K433,CHOOSE(Variables!AO$3,Factors!D433,Factors!E433,Factors!F433,Factors!G433,Factors!H433,Factors!I433,Factors!J433,Factors!K433,Factors!L433,Factors!M433,Factors!N433)) -> 2043681 | X80: =VLOOKUP($U80,Func_Ftrs,I$90,0)*IF(Variables!$Y$23=1,$V80,$W80) -> 2043681 | Y80: =VLOOKUP($U80,Func_Ftrs,J$90,0)*IF(Variables!$Y$23=1,$V80,$W80) -> 0 | Z80: =VLOOKUP($U80,Func_Ftrs,K$90,0)*IF(Variables!$Y$23=1,$V80,$W80) -> 0 | AA80: =VLOOKUP($U80,Func_Ftrs,L$90,0)*IF(Variables!$Y$23=1,$V80,$W80) -> 0 | AB80: =VLOOKUP($U80,Func_Ftrs,M$90,0)*IF(Variables!$Y$23=1,$V80,$W80) -> 0 | AC80: =VLOOKUP($U80,Func_Ftrs,N$90,0)*IF(Variables!$Y$23=1,$V80,$W80) -> 0 | AD80: =VLOOKUP($U80,Func_Ftrs,O$90,0)*IF(Variables!$Y$23=1,$V80,$W80) -> 0 | AE80: =VLOOKUP($U80,Func_Ftrs,P$90,0)*IF(Variables!$Y$23=1,$V80,$W80) -> 0 | AG80: Production | AH80: P | AI80: =V80 -> 53689800 | AJ80: 2043681 | AK80: =VLOOKUP($AH80,Func_Ftrs,I$90,0)*IF(Variables!$Y$23=1,$AI80,$AJ80) -> 2043681 | AL80: =VLOOKUP($AH80,Func_Ftrs,J$90,0)*IF(Variables!$Y$23=1,$AI80,$AJ80) -> 0 | AM80: =VLOOKUP($AH80,Func_Ftrs,K$90,0)*IF(Variables!$Y$23=1,$AI80,$AJ80) -> 0 | AN80: =VLOOKUP($AH80,Func_Ftrs,L$90,0)*IF(Variables!$Y$23=1,$AI80,$AJ80) -> 0 | AO80: =VLOOKUP($AH80,Func_Ftrs,M$90,0)*IF(Variables!$Y$23=1,$AI80,$AJ80) -> 0 | AP80: =VLOOKUP($AH80,Func_Ftrs,N$90,0)*IF(Variables!$Y$23=1,$AI80,$AJ80) -> 0 | AQ80: =VLOOKUP($AH80,Func_Ftrs,O$90,0)*IF(Variables!$Y$23=1,$AI80,$AJ80) -> 0 | AR80: =VLOOKUP($AH80,Func_Ftrs,P$90,0)*IF(Variables!$Y$23=1,$AI80,$AJ80) -> 0
E81: SCHMDT-SG | F81: Schedule M Deductions - Temporary-SG | I81: 0.4608190971 | J81: 0.1948405389 | K81: 0.3224945048 | L81: 0 | M81: 0.005105776225 | N81: 0.01441050707 | O81: 0.00232957585 | P81: 0 | Q81: 1 | T81: Transmission | U81: T | V81: =Factors!C434 -> 20238170 | W81: =IF(Variables!$AO$3=12,Factors!H434+Factors!K434,CHOOSE(Variables!AO$3,Factors!D434,Factors!E434,Factors!F434,Factors!G434,Factors!H434,Factors!I434,Factors!J434,Factors!K434,Factors!L434,Factors!M434,Factors!N434)) -> 888638 | X81: =VLOOKUP($U81,Func_Ftrs,I$90,0)*IF(Variables!$Y$23=1,$V81,$W81) -> 0 | Y81: =VLOOKUP($U81,Func_Ftrs,J$90,0)*IF(Variables!$Y$23=1,$V81,$W81) -> 888638 | Z81: =VLOOKUP($U81,Func_Ftrs,K$90,0)*IF(Variables!$Y$23=1,$V81,$W81) -> 0 | AA81: =VLOOKUP($U81,Func_Ftrs,L$90,0)*IF(Variables!$Y$23=1,$V81,$W81) -> 0 | AB81: =VLOOKUP($U81,Func_Ftrs,M$90,0)*IF(Variables!$Y$23=1,$V81,$W81) -> 0 | AC81: =VLOOKUP($U81,Func_Ftrs,N$90,0)*IF(Variables!$Y$23=1,$V81,$W81) -> 0 | AD81: =VLOOKUP($U81,Func_Ftrs,O$90,0)*IF(Variables!$Y$23=1,$V81,$W81) -> 0 | AE81: =VLOOKUP($U81,Func_Ftrs,P$90,0)*IF(Variables!$Y$23=1,$V81,$W81) -> 0 | AG81: Transmission | AH81: T | AI81: 20238170 | AJ81: 888638 | AK81: =VLOOKUP($AH81,Func_Ftrs,I$90,0)*IF(Variables!$Y$23=1,$AI81,$AJ81) -> 0 | AL81: =VLOOKUP($AH81,Func_Ftrs,J$90,0)*IF(Variables!$Y$23=1,$AI81,$AJ81) -> 888638 | AM81: =VLOOKUP($AH81,Func_Ftrs,K$90,0)*IF(Variables!$Y$23=1,$AI81,$AJ81) -> 0 | AN81: =VLOOKUP($AH81,Func_Ftrs,L$90,0)*IF(Variables!$Y$23=1,$AI81,$AJ81) -> 0 | AO81: =VLOOKUP($AH81,Func_Ftrs,M$90,0)*IF(Variables!$Y$23=1,$AI81,$AJ81) -> 0 | AP81: =VLOOKUP($AH81,Func_Ftrs,N$90,0)*IF(Variables!$Y$23=1,$AI81,$AJ81) -> 0 | AQ81: =VLOOKUP($AH81,Func_Ftrs,O$90,0)*IF(Variables!$Y$23=1,$AI81,$AJ81) -> 0 | AR81: =VLOOKUP($AH81,Func_Ftrs,P$90,0)*IF(Variables!$Y$23=1,$AI81,$AJ81) -> 0
E82: SCHMDT-SITUS | F82: Schedule M Deductions - Temporary-SITUS | I82: 0.3410559312 | J82: 0.1427612088 | K82: 0.4141191546 | L82: 0 | M82: 0.006128821526 | N82: 0.02200440681 | O82: 0.07393047712 | P82: 0 | Q82: 1 | T82: Distribution | U82: D_SPLIT | V82: =Factors!C435 -> 35048821 | W82: =IF(Variables!$AO$3=12,Factors!H435+Factors!K435,CHOOSE(Variables!AO$3,Factors!D435,Factors!E435,Factors!F435,Factors!G435,Factors!H435,Factors!I435,Factors!J435,Factors!K435,Factors!L435,Factors!M435,Factors!N435)) -> 0 | X82: =VLOOKUP($U82,Func_Ftrs,I$90,0)*IF(Variables!$Y$23=1,$V82,$W82) -> 0 | Y82: =VLOOKUP($U82,Func_Ftrs,J$90,0)*IF(Variables!$Y$23=1,$V82,$W82) -> 0 | Z82: =VLOOKUP($U82,Func_Ftrs,K$90,0)*IF(Variables!$Y$23=1,$V82,$W82) -> 0 | AA82: =VLOOKUP($U82,Func_Ftrs,L$90,0)*IF(Variables!$Y$23=1,$V82,$W82) -> 0 | AB82: =VLOOKUP($U82,Func_Ftrs,M$90,0)*IF(Variables!$Y$23=1,$V82,$W82) -> 0 | AC82: =VLOOKUP($U82,Func_Ftrs,N$90,0)*IF(Variables!$Y$23=1,$V82,$W82) -> 0 | AD82: =VLOOKUP($U82,Func_Ftrs,O$90,0)*IF(Variables!$Y$23=1,$V82,$W82) -> 0 | AE82: =VLOOKUP($U82,Func_Ftrs,P$90,0)*IF(Variables!$Y$23=1,$V82,$W82) -> 0 | AG82: Distribution | AH82: D_SPLIT | AI82: 35048821 | AJ82: 0 | AK82: =VLOOKUP($AH82,Func_Ftrs,I$90,0)*IF(Variables!$Y$23=1,$AI82,$AJ82) -> 0 | AL82: =VLOOKUP($AH82,Func_Ftrs,J$90,0)*IF(Variables!$Y$23=1,$AI82,$AJ82) -> 0 | AM82: =VLOOKUP($AH82,Func_Ftrs,K$90,0)*IF(Variables!$Y$23=1,$AI82,$AJ82) -> 0 | AN82: =VLOOKUP($AH82,Func_Ftrs,L$90,0)*IF(Variables!$Y$23=1,$AI82,$AJ82) -> 0 | AO82: =VLOOKUP($AH82,Func_Ftrs,M$90,0)*IF(Variables!$Y$23=1,$AI82,$AJ82) -> 0 | AP82: =VLOOKUP($AH82,Func_Ftrs,N$90,0)*IF(Variables!$Y$23=1,$AI82,$AJ82) -> 0 | AQ82: =VLOOKUP($AH82,Func_Ftrs,O$90,0)*IF(Variables!$Y$23=1,$AI82,$AJ82) -> 0 | AR82: =VLOOKUP($AH82,Func_Ftrs,P$90,0)*IF(Variables!$Y$23=1,$AI82,$AJ82) -> 0
E83: SCHMDT-SNP | F83: Schedule M Deductions - Temporary-SNP | I83: 0.4565216092 | J83: 0.20186045 | K83: 0.3282560953 | L83: 0 | M83: 0 | N83: 0.01336184549 | O83: 0 | P83: 0 | Q83: 1 | T83: General | U83: G | V83: =Factors!C436 -> -490246 | W83: =IF(Variables!$AO$3=12,Factors!H436+Factors!K436,CHOOSE(Variables!AO$3,Factors!D436,Factors!E436,Factors!F436,Factors!G436,Factors!H436,Factors!I436,Factors!J436,Factors!K436,Factors!L436,Factors!M436,Factors!N436)) -> -55274 | X83: =VLOOKUP($U83,Func_Ftrs,I$90,0)*IF(Variables!$Y$23=1,$V83,$W83) -> -14200.93399 | Y83: =VLOOKUP($U83,Func_Ftrs,J$90,0)*IF(Variables!$Y$23=1,$V83,$W83) -> -12125.12348 | Z83: =VLOOKUP($U83,Func_Ftrs,K$90,0)*IF(Variables!$Y$23=1,$V83,$W83) -> -26394.62766 | AA83: =VLOOKUP($U83,Func_Ftrs,L$90,0)*IF(Variables!$Y$23=1,$V83,$W83) -> 0 | AB83: =VLOOKUP($U83,Func_Ftrs,M$90,0)*IF(Variables!$Y$23=1,$V83,$W83) -> -1478.906978 | AC83: =VLOOKUP($U83,Func_Ftrs,N$90,0)*IF(Variables!$Y$23=1,$V83,$W83) -> -1074.407883 | AD83: =VLOOKUP($U83,Func_Ftrs,O$90,0)*IF(Variables!$Y$23=1,$V83,$W83) -> 0 | AE83: =VLOOKUP($U83,Func_Ftrs,P$90,0)*IF(Variables!$Y$23=1,$V83,$W83) -> 0 | AG83: General | AH83: G | AI83: -490246 | AJ83: -55274 | AK83: =VLOOKUP($AH83,Func_Ftrs,I$90,0)*IF(Variables!$Y$23=1,$AI83,$AJ83) -> -14200.93399 | AL83: =VLOOKUP($AH83,Func_Ftrs,J$90,0)*IF(Variables!$Y$23=1,$AI83,$AJ83) -> -12125.12348 | AM83: =VLOOKUP($AH83,Func_Ftrs,K$90,0)*IF(Variables!$Y$23=1,$AI83,$AJ83) -> -26394.62766 | AN83: =VLOOKUP($AH83,Func_Ftrs,L$90,0)*IF(Variables!$Y$23=1,$AI83,$AJ83) -> 0 | AO83: =VLOOKUP($AH83,Func_Ftrs,M$90,0)*IF(Variables!$Y$23=1,$AI83,$AJ83) -> -1478.906978 | AP83: =VLOOKUP($AH83,Func_Ftrs,N$90,0)*IF(Variables!$Y$23=1,$AI83,$AJ83) -> -1074.407883 | AQ83: =VLOOKUP($AH83,Func_Ftrs,O$90,0)*IF(Variables!$Y$23=1,$AI83,$AJ83) -> 0 | AR83: =VLOOKUP($AH83,Func_Ftrs,P$90,0)*IF(Variables!$Y$23=1,$AI83,$AJ83) -> 0
E84: SCHMDT-SO | F84: Schedule M Deductions - Temporary-SO | I84: 0.3991307728 | J84: 0.1406406649 | K84: 0.3597395907 | L84: 0 | M84: 0.0138620858 | N84: 0.02934318126 | O84: 0.05728370445 | P84: 0 | Q84: 1 | T84: Mining Plant | U84: P | V84: =Factors!C437 -> 2565 | W84: =IF(Variables!$AO$3=12,Factors!H437+Factors!K437,CHOOSE(Variables!AO$3,Factors!D437,Factors!E437,Factors!F437,Factors!G437,Factors!H437,Factors!I437,Factors!J437,Factors!K437,Factors!L437,Factors!M437,Factors!N437)) -> 1059 | X84: =VLOOKUP($U84,Func_Ftrs,I$90,0)*IF(Variables!$Y$23=1,$V84,$W84) -> 1059 | Y84: =VLOOKUP($U84,Func_Ftrs,J$90,0)*IF(Variables!$Y$23=1,$V84,$W84) -> 0 | Z84: =VLOOKUP($U84,Func_Ftrs,K$90,0)*IF(Variables!$Y$23=1,$V84,$W84) -> 0 | AA84: =VLOOKUP($U84,Func_Ftrs,L$90,0)*IF(Variables!$Y$23=1,$V84,$W84) -> 0 | AB84: =VLOOKUP($U84,Func_Ftrs,M$90,0)*IF(Variables!$Y$23=1,$V84,$W84) -> 0 | AC84: =VLOOKUP($U84,Func_Ftrs,N$90,0)*IF(Variables!$Y$23=1,$V84,$W84) -> 0 | AD84: =VLOOKUP($U84,Func_Ftrs,O$90,0)*IF(Variables!$Y$23=1,$V84,$W84) -> 0 | AE84: =VLOOKUP($U84,Func_Ftrs,P$90,0)*IF(Variables!$Y$23=1,$V84,$W84) -> 0 | AG84: Mining Plant | AH84: P | AI84: 2565 | AJ84: 1059 | AK84: =VLOOKUP($AH84,Func_Ftrs,I$90,0)*IF(Variables!$Y$23=1,$AI84,$AJ84) -> 1059 | AL84: =VLOOKUP($AH84,Func_Ftrs,J$90,0)*IF(Variables!$Y$23=1,$AI84,$AJ84) -> 0 | AM84: =VLOOKUP($AH84,Func_Ftrs,K$90,0)*IF(Variables!$Y$23=1,$AI84,$AJ84) -> 0 | AN84: =VLOOKUP($AH84,Func_Ftrs,L$90,0)*IF(Variables!$Y$23=1,$AI84,$AJ84) -> 0 | AO84: =VLOOKUP($AH84,Func_Ftrs,M$90,0)*IF(Variables!$Y$23=1,$AI84,$AJ84) -> 0 | AP84: =VLOOKUP($AH84,Func_Ftrs,N$90,0)*IF(Variables!$Y$23=1,$AI84,$AJ84) -> 0 | AQ84: =VLOOKUP($AH84,Func_Ftrs,O$90,0)*IF(Variables!$Y$23=1,$AI84,$AJ84) -> 0 | AR84: =VLOOKUP($AH84,Func_Ftrs,P$90,0)*IF(Variables!$Y$23=1,$AI84,$AJ84) -> 0
E85: STEP_UP | F85: Step-up Transformers | I85: 0.08489055306 | J85: 0.9151094469 | K85: 0 | L85: 0 | M85: 0 | N85: 0 | O85: 0 | P85: 0 | Q85: 1
E86: T | F86: Transmission | I86: 0 | J86: 1 | K86: 0 | L86: 0 | M86: 0 | N86: 0 | O86: 0 | P86: 0 | Q86: 1 | T86: Total Pacific Division | V86: =SUM(V80:V85) -> 108489110 | W86: 2878104 | X86: =SUM(X80:X85) -> 2030539.066 | Y86: =SUM(Y80:Y85) -> 876512.8765 | Z86: =SUM(Z80:Z85) -> -26394.62766 | AA86: 0 | AB86: -1478.906978 | AC86: -1074.407883 | AD86: 0 | AE86: 0 | AG86: Total Pacific Division | AI86: =SUM(AI80:AI85) -> 108489110 | AJ86: 2878104 | AK86: 2030539.066 | AL86: 876512.8765 | AM86: -26394.62766 | AN86: 0 | AO86: -1478.906978 | AP86: -1074.407883 | AQ86: 0 | AR86: 0
E87: TAXDEPR | F87: Tax Depreciation | I87: 0.538093851 | J87: 0.1599673196 | K87: 0.2956423354 | L87: 0 | M87: 0.001573456926 | N87: 0.003540275144 | O87: 0.001182761924 | P87: 0 | Q87: 1
E88: WSF | F88: Wholesale Sales Firm | I88: 0.795370473 | J88: 0.204629527 | K88: 0 | L88: 0 | M88: 0 | N88: 0 | O88: 0 | P88: 0 | Q88: 1 | T88: Utah Division | AG88: Utah Division
T89: Production | U89: P | V89: =Factors!C443 -> 84854158 | W89: =IF(Variables!$AO$3=12,Factors!H443+Factors!K443,CHOOSE(Variables!AO$3,Factors!D443,Factors!E443,Factors!F443,Factors!G443,Factors!H443,Factors!I443,Factors!J443,Factors!K443,Factors!L443,Factors!M443,Factors!N443)) -> 66333521 | X89: =VLOOKUP($U89,Func_Ftrs,I$90,0)*IF(Variables!$Y$23=1,$V89,$W89) -> 66333521 | Y89: =VLOOKUP($U89,Func_Ftrs,J$90,0)*IF(Variables!$Y$23=1,$V89,$W89) -> 0 | Z89: =VLOOKUP($U89,Func_Ftrs,K$90,0)*IF(Variables!$Y$23=1,$V89,$W89) -> 0 | AA89: =VLOOKUP($U89,Func_Ftrs,L$90,0)*IF(Variables!$Y$23=1,$V89,$W89) -> 0 | AB89: =VLOOKUP($U89,Func_Ftrs,M$90,0)*IF(Variables!$Y$23=1,$V89,$W89) -> 0 | AC89: =VLOOKUP($U89,Func_Ftrs,N$90,0)*IF(Variables!$Y$23=1,$V89,$W89) -> 0 | AD89: =VLOOKUP($U89,Func_Ftrs,O$90,0)*IF(Variables!$Y$23=1,$V89,$W89) -> 0 | AE89: =VLOOKUP($U89,Func_Ftrs,P$90,0)*IF(Variables!$Y$23=1,$V89,$W89) -> 0 | AG89: Production | AH89: P | AI89: =V89 -> 84854158 | AJ89: 66333521 | AK89: =VLOOKUP($AH89,Func_Ftrs,I$90,0)*IF(Variables!$Y$23=1,$AI89,$AJ89) -> 66333521 | AL89: =VLOOKUP($AH89,Func_Ftrs,J$90,0)*IF(Variables!$Y$23=1,$AI89,$AJ89) -> 0 | AM89: =VLOOKUP($AH89,Func_Ftrs,K$90,0)*IF(Variables!$Y$23=1,$AI89,$AJ89) -> 0 | AN89: =VLOOKUP($AH89,Func_Ftrs,L$90,0)*IF(Variables!$Y$23=1,$AI89,$AJ89) -> 0 | AO89: =VLOOKUP($AH89,Func_Ftrs,M$90,0)*IF(Variables!$Y$23=1,$AI89,$AJ89) -> 0 | AP89: =VLOOKUP($AH89,Func_Ftrs,N$90,0)*IF(Variables!$Y$23=1,$AI89,$AJ89) -> 0 | AQ89: =VLOOKUP($AH89,Func_Ftrs,O$90,0)*IF(Variables!$Y$23=1,$AI89,$AJ89) -> 0 | AR89: =VLOOKUP($AH89,Func_Ftrs,P$90,0)*IF(Variables!$Y$23=1,$AI89,$AJ89) -> 0
E90: 1 | F90: =E90+1 -> 2 | G90: 3 | H90: 4 | I90: 5 | J90: 6 | K90: 7 | L90: 8 | M90: 9 | N90: 10 | O90: 11 | P90: 12 | Q90: 13 | T90: Transmission | U90: T | V90: =Factors!C444 -> 48065539 | W90: =IF(Variables!$AO$3=12,Factors!H444+Factors!K444,CHOOSE(Variables!AO$3,Factors!D444,Factors!E444,Factors!F444,Factors!G444,Factors!H444,Factors!I444,Factors!J444,Factors!K444,Factors!L444,Factors!M444,Factors!N444)) -> 40331079 | X90: =VLOOKUP($U90,Func_Ftrs,I$90,0)*IF(Variables!$Y$23=1,$V90,$W90) -> 0 | Y90: =VLOOKUP($U90,Func_Ftrs,J$90,0)*IF(Variables!$Y$23=1,$V90,$W90) -> 40331079 | Z90: =VLOOKUP($U90,Func_Ftrs,K$90,0)*IF(Variables!$Y$23=1,$V90,$W90) -> 0 | AA90: =VLOOKUP($U90,Func_Ftrs,L$90,0)*IF(Variables!$Y$23=1,$V90,$W90) -> 0 | AB90: =VLOOKUP($U90,Func_Ftrs,M$90,0)*IF(Variables!$Y$23=1,$V90,$W90) -> 0 | AC90: =VLOOKUP($U90,Func_Ftrs,N$90,0)*IF(Variables!$Y$23=1,$V90,$W90) -> 0 | AD90: =VLOOKUP($U90,Func_Ftrs,O$90,0)*IF(Variables!$Y$23=1,$V90,$W90) -> 0 | AE90: =VLOOKUP($U90,Func_Ftrs,P$90,0)*IF(Variables!$Y$23=1,$V90,$W90) -> 0 | AG90: Transmission | AH90: T | AI90: 48065539 | AJ90: 40331079 | AK90: =VLOOKUP($AH90,Func_Ftrs,I$90,0)*IF(Variables!$Y$23=1,$AI90,$AJ90) -> 0 | AL90: =VLOOKUP($AH90,Func_Ftrs,J$90,0)*IF(Variables!$Y$23=1,$AI90,$AJ90) -> 40331079 | AM90: =VLOOKUP($AH90,Func_Ftrs,K$90,0)*IF(Variables!$Y$23=1,$AI90,$AJ90) -> 0 | AN90: =VLOOKUP($AH90,Func_Ftrs,L$90,0)*IF(Variables!$Y$23=1,$AI90,$AJ90) -> 0 | AO90: =VLOOKUP($AH90,Func_Ftrs,M$90,0)*IF(Variables!$Y$23=1,$AI90,$AJ90) -> 0 | AP90: =VLOOKUP($AH90,Func_Ftrs,N$90,0)*IF(Variables!$Y$23=1,$AI90,$AJ90) -> 0 | AQ90: =VLOOKUP($AH90,Func_Ftrs,O$90,0)*IF(Variables!$Y$23=1,$AI90,$AJ90) -> 0 | AR90: =VLOOKUP($AH90,Func_Ftrs,P$90,0)*IF(Variables!$Y$23=1,$AI90,$AJ90) -> 0
T91: Distribution | U91: D_SPLIT | V91: =Factors!C445 -> 40497841 | W91: =IF(Variables!$AO$3=12,Factors!H445+Factors!K445,CHOOSE(Variables!AO$3,Factors!D445,Factors!E445,Factors!F445,Factors!G445,Factors!H445,Factors!I445,Factors!J445,Factors!K445,Factors!L445,Factors!M445,Factors!N445)) -> 32685798 | X91: =VLOOKUP($U91,Func_Ftrs,I$90,0)*IF(Variables!$Y$23=1,$V91,$W91) -> 0 | Y91: =VLOOKUP($U91,Func_Ftrs,J$90,0)*IF(Variables!$Y$23=1,$V91,$W91) -> 0 | Z91: =VLOOKUP($U91,Func_Ftrs,K$90,0)*IF(Variables!$Y$23=1,$V91,$W91) -> 31694607.43 | AA91: =VLOOKUP($U91,Func_Ftrs,L$90,0)*IF(Variables!$Y$23=1,$V91,$W91) -> 0 | AB91: =VLOOKUP($U91,Func_Ftrs,M$90,0)*IF(Variables!$Y$23=1,$V91,$W91) -> 0 | AC91: =VLOOKUP($U91,Func_Ftrs,N$90,0)*IF(Variables!$Y$23=1,$V91,$W91) -> 991190.573 | AD91: =VLOOKUP($U91,Func_Ftrs,O$90,0)*IF(Variables!$Y$23=1,$V91,$W91) -> 0 | AE91: =VLOOKUP($U91,Func_Ftrs,P$90,0)*IF(Variables!$Y$23=1,$V91,$W91) -> 0 | AG91: Distribution | AH91: D_SPLIT | AI91: 40497841 | AJ91: 32685798 | AK91: =VLOOKUP($AH91,Func_Ftrs,I$90,0)*IF(Variables!$Y$23=1,$AI91,$AJ91) -> 0 | AL91: =VLOOKUP($AH91,Func_Ftrs,J$90,0)*IF(Variables!$Y$23=1,$AI91,$AJ91) -> 0 | AM91: =VLOOKUP($AH91,Func_Ftrs,K$90,0)*IF(Variables!$Y$23=1,$AI91,$AJ91) -> 31694607.43 | AN91: =VLOOKUP($AH91,Func_Ftrs,L$90,0)*IF(Variables!$Y$23=1,$AI91,$AJ91) -> 0 | AO91: =VLOOKUP($AH91,Func_Ftrs,M$90,0)*IF(Variables!$Y$23=1,$AI91,$AJ91) -> 0 | AP91: =VLOOKUP($AH91,Func_Ftrs,N$90,0)*IF(Variables!$Y$23=1,$AI91,$AJ91) -> 991190.573 | AQ91: =VLOOKUP($AH91,Func_Ftrs,O$90,0)*IF(Variables!$Y$23=1,$AI91,$AJ91) -> 0 | AR91: =VLOOKUP($AH91,Func_Ftrs,P$90,0)*IF(Variables!$Y$23=1,$AI91,$AJ91) -> 0
T92: General | U92: G | V92: =Factors!C446 -> -780617 | W92: =IF(Variables!$AO$3=12,Factors!H446+Factors!K446,CHOOSE(Variables!AO$3,Factors!D446,Factors!E446,Factors!F446,Factors!G446,Factors!H446,Factors!I446,Factors!J446,Factors!K446,Factors!L446,Factors!M446,Factors!N446)) -> -163814 | X92: =VLOOKUP($U92,Func_Ftrs,I$90,0)*IF(Variables!$Y$23=1,$V92,$W92) -> -42086.90886 | Y92: =VLOOKUP($U92,Func_Ftrs,J$90,0)*IF(Variables!$Y$23=1,$V92,$W92) -> -35934.88762 | Z92: =VLOOKUP($U92,Func_Ftrs,K$90,0)*IF(Variables!$Y$23=1,$V92,$W92) -> -78225.01603 | AA92: =VLOOKUP($U92,Func_Ftrs,L$90,0)*IF(Variables!$Y$23=1,$V92,$W92) -> 0 | AB92: =VLOOKUP($U92,Func_Ftrs,M$90,0)*IF(Variables!$Y$23=1,$V92,$W92) -> -4382.995039 | AC92: =VLOOKUP($U92,Func_Ftrs,N$90,0)*IF(Variables!$Y$23=1,$V92,$W92) -> -3184.192441 | AD92: =VLOOKUP($U92,Func_Ftrs,O$90,0)*IF(Variables!$Y$23=1,$V92,$W92) -> 0 | AE92: =VLOOKUP($U92,Func_Ftrs,P$90,0)*IF(Variables!$Y$23=1,$V92,$W92) -> 0 | AG92: General | AH92: G | AI92: -780617 | AJ92: -163814 | AK92: =VLOOKUP($AH92,Func_Ftrs,I$90,0)*IF(Variables!$Y$23=1,$AI92,$AJ92) -> -42086.90886 | AL92: =VLOOKUP($AH92,Func_Ftrs,J$90,0)*IF(Variables!$Y$23=1,$AI92,$AJ92) -> -35934.88762 | AM92: =VLOOKUP($AH92,Func_Ftrs,K$90,0)*IF(Variables!$Y$23=1,$AI92,$AJ92) -> -78225.01603 | AN92: =VLOOKUP($AH92,Func_Ftrs,L$90,0)*IF(Variables!$Y$23=1,$AI92,$AJ92) -> 0 | AO92: =VLOOKUP($AH92,Func_Ftrs,M$90,0)*IF(Variables!$Y$23=1,$AI92,$AJ92) -> -4382.995039 | AP92: =VLOOKUP($AH92,Func_Ftrs,N$90,0)*IF(Variables!$Y$23=1,$AI92,$AJ92) -> -3184.192441 | AQ92: =VLOOKUP($AH92,Func_Ftrs,O$90,0)*IF(Variables!$Y$23=1,$AI92,$AJ92) -> 0 | AR92: =VLOOKUP($AH92,Func_Ftrs,P$90,0)*IF(Variables!$Y$23=1,$AI92,$AJ92) -> 0
T93: Mining Plant | U93: P | V93: =Factors!C447 -> 6820 | W93: =IF(Variables!$AO$3=12,Factors!H447+Factors!K447,CHOOSE(Variables!AO$3,Factors!D447,Factors!E447,Factors!F447,Factors!G447,Factors!H447,Factors!I447,Factors!J447,Factors!K447,Factors!L447,Factors!M447,Factors!N447)) -> 2815 | X93: =VLOOKUP($U93,Func_Ftrs,I$90,0)*IF(Variables!$Y$23=1,$V93,$W93) -> 2815 | Y93: =VLOOKUP($U93,Func_Ftrs,J$90,0)*IF(Variables!$Y$23=1,$V93,$W93) -> 0 | Z93: =VLOOKUP($U93,Func_Ftrs,K$90,0)*IF(Variables!$Y$23=1,$V93,$W93) -> 0 | AA93: =VLOOKUP($U93,Func_Ftrs,L$90,0)*IF(Variables!$Y$23=1,$V93,$W93) -> 0 | AB93: =VLOOKUP($U93,Func_Ftrs,M$90,0)*IF(Variables!$Y$23=1,$V93,$W93) -> 0 | AC93: =VLOOKUP($U93,Func_Ftrs,N$90,0)*IF(Variables!$Y$23=1,$V93,$W93) -> 0 | AD93: =VLOOKUP($U93,Func_Ftrs,O$90,0)*IF(Variables!$Y$23=1,$V93,$W93) -> 0 | AE93: =VLOOKUP($U93,Func_Ftrs,P$90,0)*IF(Variables!$Y$23=1,$V93,$W93) -> 0 | AG93: Mining Plant | AH93: P | AI93: 6820 | AJ93: 2815 | AK93: =VLOOKUP($AH93,Func_Ftrs,I$90,0)*IF(Variables!$Y$23=1,$AI93,$AJ93) -> 2815 | AL93: =VLOOKUP($AH93,Func_Ftrs,J$90,0)*IF(Variables!$Y$23=1,$AI93,$AJ93) -> 0 | AM93: =VLOOKUP($AH93,Func_Ftrs,K$90,0)*IF(Variables!$Y$23=1,$AI93,$AJ93) -> 0 | AN93: =VLOOKUP($AH93,Func_Ftrs,L$90,0)*IF(Variables!$Y$23=1,$AI93,$AJ93) -> 0 | AO93: =VLOOKUP($AH93,Func_Ftrs,M$90,0)*IF(Variables!$Y$23=1,$AI93,$AJ93) -> 0 | AP93: =VLOOKUP($AH93,Func_Ftrs,N$90,0)*IF(Variables!$Y$23=1,$AI93,$AJ93) -> 0 | AQ93: =VLOOKUP($AH93,Func_Ftrs,O$90,0)*IF(Variables!$Y$23=1,$AI93,$AJ93) -> 0 | AR93: =VLOOKUP($AH93,Func_Ftrs,P$90,0)*IF(Variables!$Y$23=1,$AI93,$AJ93) -> 0
T95: Total Utah Division | V95: =SUM(V89:V94) -> 172643741 | W95: 139189399 | X95: =SUM(X89:X94) -> 66294249.09 | Y95: 40295144.11 | Z95: 31616382.41 | AA95: 0 | AB95: -4382.995039 | AC95: 988006.3805 | AD95: 0 | AE95: 0 | AG95: Total Utah Division | AI95: =SUM(AI89:AI94) -> 172643741 | AJ95: 139189399 | AK95: 66294249.09 | AL95: 40295144.11 | AM95: 31616382.41 | AN95: 0 | AO95: -4382.995039 | AP95: 988006.3805 | AQ95: 0 | AR95: 0
T97: PACIFICORP | AG97: PACIFICORP
T98: Production | U98: P | V98: =Factors!C453 -> 507962754 | W98: =IF(Variables!$AO$3=12,Factors!H453+Factors!K453,CHOOSE(Variables!AO$3,Factors!D453,Factors!E453,Factors!F453,Factors!G453,Factors!H453,Factors!I453,Factors!J453,Factors!K453,Factors!L453,Factors!M453,Factors!N453)) -> 205418292 | X98: =VLOOKUP($U98,Func_Ftrs,I$90,0)*IF(Variables!$Y$23=1,$V98,$W98) -> 205418292 | Y98: =VLOOKUP($U98,Func_Ftrs,J$90,0)*IF(Variables!$Y$23=1,$V98,$W98) -> 0 | Z98: =VLOOKUP($U98,Func_Ftrs,K$90,0)*IF(Variables!$Y$23=1,$V98,$W98) -> 0 | AA98: =VLOOKUP($U98,Func_Ftrs,L$90,0)*IF(Variables!$Y$23=1,$V98,$W98) -> 0 | AB98: =VLOOKUP($U98,Func_Ftrs,M$90,0)*IF(Variables!$Y$23=1,$V98,$W98) -> 0 | AC98: =VLOOKUP($U98,Func_Ftrs,N$90,0)*IF(Variables!$Y$23=1,$V98,$W98) -> 0 | AD98: =VLOOKUP($U98,Func_Ftrs,O$90,0)*IF(Variables!$Y$23=1,$V98,$W98) -> 0 | AE98: =VLOOKUP($U98,Func_Ftrs,P$90,0)*IF(Variables!$Y$23=1,$V98,$W98) -> 0 | AG98: Production | AH98: P | AI98: =V98 -> 507962754 | AJ98: =W98 -> 205418292 | AK98: =VLOOKUP($AH98,Func_Ftrs,I$90,0)*IF(Variables!$Y$23=1,$AI98,$AJ98) -> 205418292 | AL98: =VLOOKUP($AH98,Func_Ftrs,J$90,0)*IF(Variables!$Y$23=1,$AI98,$AJ98) -> 0 | AM98: =VLOOKUP($AH98,Func_Ftrs,K$90,0)*IF(Variables!$Y$23=1,$AI98,$AJ98) -> 0 | AN98: =VLOOKUP($AH98,Func_Ftrs,L$90,0)*IF(Variables!$Y$23=1,$AI98,$AJ98) -> 0 | AO98: =VLOOKUP($AH98,Func_Ftrs,M$90,0)*IF(Variables!$Y$23=1,$AI98,$AJ98) -> 0 | AP98: =VLOOKUP($AH98,Func_Ftrs,N$90,0)*IF(Variables!$Y$23=1,$AI98,$AJ98) -> 0 | AQ98: =VLOOKUP($AH98,Func_Ftrs,O$90,0)*IF(Variables!$Y$23=1,$AI98,$AJ98) -> 0 | AR98: =VLOOKUP($AH98,Func_Ftrs,P$90,0)*IF(Variables!$Y$23=1,$AI98,$AJ98) -> 0
T99: Hydro - P | U99: P | V99: =Factors!C454 -> 7451084 | W99: =IF(Variables!$AO$3=12,Factors!H454+Factors!K454,CHOOSE(Variables!AO$3,Factors!D454,Factors!E454,Factors!F454,Factors!G454,Factors!H454,Factors!I454,Factors!J454,Factors!K454,Factors!L454,Factors!M454,Factors!N454)) -> 2443553 | X99: =VLOOKUP($U99,Func_Ftrs,I$90,0)*IF(Variables!$Y$23=1,$V99,$W99) -> 2443553 | Y99: =VLOOKUP($U99,Func_Ftrs,J$90,0)*IF(Variables!$Y$23=1,$V99,$W99) -> 0 | Z99: =VLOOKUP($U99,Func_Ftrs,K$90,0)*IF(Variables!$Y$23=1,$V99,$W99) -> 0 | AA99: =VLOOKUP($U99,Func_Ftrs,L$90,0)*IF(Variables!$Y$23=1,$V99,$W99) -> 0 | AB99: =VLOOKUP($U99,Func_Ftrs,M$90,0)*IF(Variables!$Y$23=1,$V99,$W99) -> 0 | AC99: =VLOOKUP($U99,Func_Ftrs,N$90,0)*IF(Variables!$Y$23=1,$V99,$W99) -> 0 | AD99: =VLOOKUP($U99,Func_Ftrs,O$90,0)*IF(Variables!$Y$23=1,$V99,$W99) -> 0 | AE99: =VLOOKUP($U99,Func_Ftrs,P$90,0)*IF(Variables!$Y$23=1,$V99,$W99) -> 0 | AG99: Hydro - P | AH99: P | AI99: 7451084 | AJ99: 2443553 | AK99: =VLOOKUP($AH99,Func_Ftrs,I$90,0)*IF(Variables!$Y$23=1,$AI99,$AJ99) -> 2443553 | AL99: =VLOOKUP($AH99,Func_Ftrs,J$90,0)*IF(Variables!$Y$23=1,$AI99,$AJ99) -> 0 | AM99: =VLOOKUP($AH99,Func_Ftrs,K$90,0)*IF(Variables!$Y$23=1,$AI99,$AJ99) -> 0 | AN99: =VLOOKUP($AH99,Func_Ftrs,L$90,0)*IF(Variables!$Y$23=1,$AI99,$AJ99) -> 0 | AO99: =VLOOKUP($AH99,Func_Ftrs,M$90,0)*IF(Variables!$Y$23=1,$AI99,$AJ99) -> 0 | AP99: =VLOOKUP($AH99,Func_Ftrs,N$90,0)*IF(Variables!$Y$23=1,$AI99,$AJ99) -> 0 | AQ99: =VLOOKUP($AH99,Func_Ftrs,O$90,0)*IF(Variables!$Y$23=1,$AI99,$AJ99) -> 0 | AR99: =VLOOKUP($AH99,Func_Ftrs,P$90,0)*IF(Variables!$Y$23=1,$AI99,$AJ99) -> 0
T100: Hydro - U | U100: P | V100: =Factors!C455 -> 3825269 | W100: =IF(Variables!$AO$3=12,Factors!H455+Factors!K455,CHOOSE(Variables!AO$3,Factors!D455,Factors!E455,Factors!F455,Factors!G455,Factors!H455,Factors!I455,Factors!J455,Factors!K455,Factors!L455,Factors!M455,Factors!N455)) -> 1684970 | X100: =VLOOKUP($U100,Func_Ftrs,I$90,0)*IF(Variables!$Y$23=1,$V100,$W100) -> 1684970 | Y100: =VLOOKUP($U100,Func_Ftrs,J$90,0)*IF(Variables!$Y$23=1,$V100,$W100) -> 0 | Z100: =VLOOKUP($U100,Func_Ftrs,K$90,0)*IF(Variables!$Y$23=1,$V100,$W100) -> 0 | AA100: =VLOOKUP($U100,Func_Ftrs,L$90,0)*IF(Variables!$Y$23=1,$V100,$W100) -> 0 | AB100: =VLOOKUP($U100,Func_Ftrs,M$90,0)*IF(Variables!$Y$23=1,$V100,$W100) -> 0 | AC100: =VLOOKUP($U100,Func_Ftrs,N$90,0)*IF(Variables!$Y$23=1,$V100,$W100) -> 0 | AD100: =VLOOKUP($U100,Func_Ftrs,O$90,0)*IF(Variables!$Y$23=1,$V100,$W100) -> 0 | AE100: =VLOOKUP($U100,Func_Ftrs,P$90,0)*IF(Variables!$Y$23=1,$V100,$W100) -> 0 | AG100: Hydro - U | AH100: P | AI100: 3825269 | AJ100: 1684970 | AK100: =VLOOKUP($AH100,Func_Ftrs,I$90,0)*IF(Variables!$Y$23=1,$AI100,$AJ100) -> 1684970 | AL100: =VLOOKUP($AH100,Func_Ftrs,J$90,0)*IF(Variables!$Y$23=1,$AI100,$AJ100) -> 0 | AM100: =VLOOKUP($AH100,Func_Ftrs,K$90,0)*IF(Variables!$Y$23=1,$AI100,$AJ100) -> 0 | AN100: =VLOOKUP($AH100,Func_Ftrs,L$90,0)*IF(Variables!$Y$23=1,$AI100,$AJ100) -> 0 | AO100: =VLOOKUP($AH100,Func_Ftrs,M$90,0)*IF(Variables!$Y$23=1,$AI100,$AJ100) -> 0 | AP100: =VLOOKUP($AH100,Func_Ftrs,N$90,0)*IF(Variables!$Y$23=1,$AI100,$AJ100) -> 0 | AQ100: =VLOOKUP($AH100,Func_Ftrs,O$90,0)*IF(Variables!$Y$23=1,$AI100,$AJ100) -> 0 | AR100: =VLOOKUP($AH100,Func_Ftrs,P$90,0)*IF(Variables!$Y$23=1,$AI100,$AJ100) -> 0
T101: Transmission | U101: T | V101: =Factors!C465 -> 0 | W101: =IF(Variables!$AO$3=12,Factors!H465+Factors!K465,CHOOSE(Variables!AO$3,Factors!D465,Factors!E465,Factors!F465,Factors!G465,Factors!H465,Factors!I465,Factors!J465,Factors!K465,Factors!L465,Factors!M465,Factors!N465)) -> 0 | X101: =VLOOKUP($U101,Func_Ftrs,I$90,0)*IF(Variables!$Y$23=1,$V101,$W101) -> 0 | Y101: =VLOOKUP($U101,Func_Ftrs,J$90,0)*IF(Variables!$Y$23=1,$V101,$W101) -> 0 | Z101: =VLOOKUP($U101,Func_Ftrs,K$90,0)*IF(Variables!$Y$23=1,$V101,$W101) -> 0 | AA101: =VLOOKUP($U101,Func_Ftrs,L$90,0)*IF(Variables!$Y$23=1,$V101,$W101) -> 0 | AB101: =VLOOKUP($U101,Func_Ftrs,M$90,0)*IF(Variables!$Y$23=1,$V101,$W101) -> 0 | AC101: =VLOOKUP($U101,Func_Ftrs,N$90,0)*IF(Variables!$Y$23=1,$V101,$W101) -> 0 | AD101: =VLOOKUP($U101,Func_Ftrs,O$90,0)*IF(Variables!$Y$23=1,$V101,$W101) -> 0 | AE101: =VLOOKUP($U101,Func_Ftrs,P$90,0)*IF(Variables!$Y$23=1,$V101,$W101) -> 0 | AG101: Transmission | AH101: T | AI101: 0 | AJ101: 0 | AK101: =VLOOKUP($AH101,Func_Ftrs,I$90,0)*IF(Variables!$Y$23=1,$AI101,$AJ101) -> 0 | AL101: =VLOOKUP($AH101,Func_Ftrs,J$90,0)*IF(Variables!$Y$23=1,$AI101,$AJ101) -> 0 | AM101: =VLOOKUP($AH101,Func_Ftrs,K$90,0)*IF(Variables!$Y$23=1,$AI101,$AJ101) -> 0 | AN101: =VLOOKUP($AH101,Func_Ftrs,L$90,0)*IF(Variables!$Y$23=1,$AI101,$AJ101) -> 0 | AO101: =VLOOKUP($AH101,Func_Ftrs,M$90,0)*IF(Variables!$Y$23=1,$AI101,$AJ101) -> 0 | AP101: =VLOOKUP($AH101,Func_Ftrs,N$90,0)*IF(Variables!$Y$23=1,$AI101,$AJ101) -> 0 | AQ101: =VLOOKUP($AH101,Func_Ftrs,O$90,0)*IF(Variables!$Y$23=1,$AI101,$AJ101) -> 0 | AR101: =VLOOKUP($AH101,Func_Ftrs,P$90,0)*IF(Variables!$Y$23=1,$AI101,$AJ101) -> 0
T102: Distribution | U102: D_SPLIT | V102: =Factors!C466 -> 0 | W102: =IF(Variables!$AO$3=12,Factors!H466+Factors!K466,CHOOSE(Variables!AO$3,Factors!D466,Factors!E466,Factors!F466,Factors!G466,Factors!H466,Factors!I466,Factors!J466,Factors!K466,Factors!L466,Factors!M466,Factors!N466)) -> 0 | X102: =VLOOKUP($U102,Func_Ftrs,I$90,0)*IF(Variables!$Y$23=1,$V102,$W102) -> 0 | Y102: =VLOOKUP($U102,Func_Ftrs,J$90,0)*IF(Variables!$Y$23=1,$V102,$W102) -> 0 | Z102: =VLOOKUP($U102,Func_Ftrs,K$90,0)*IF(Variables!$Y$23=1,$V102,$W102) -> 0 | AA102: =VLOOKUP($U102,Func_Ftrs,L$90,0)*IF(Variables!$Y$23=1,$V102,$W102) -> 0 | AB102: =VLOOKUP($U102,Func_Ftrs,M$90,0)*IF(Variables!$Y$23=1,$V102,$W102) -> 0 | AC102: =VLOOKUP($U102,Func_Ftrs,N$90,0)*IF(Variables!$Y$23=1,$V102,$W102) -> 0 | AD102: =VLOOKUP($U102,Func_Ftrs,O$90,0)*IF(Variables!$Y$23=1,$V102,$W102) -> 0 | AE102: =VLOOKUP($U102,Func_Ftrs,P$90,0)*IF(Variables!$Y$23=1,$V102,$W102) -> 0 | AG102: Distribution | AH102: D_SPLIT | AI102: 0 | AJ102: 0 | AK102: =VLOOKUP($AH102,Func_Ftrs,I$90,0)*IF(Variables!$Y$23=1,$AI102,$AJ102) -> 0 | AL102: =VLOOKUP($AH102,Func_Ftrs,J$90,0)*IF(Variables!$Y$23=1,$AI102,$AJ102) -> 0 | AM102: =VLOOKUP($AH102,Func_Ftrs,K$90,0)*IF(Variables!$Y$23=1,$AI102,$AJ102) -> 0 | AN102: =VLOOKUP($AH102,Func_Ftrs,L$90,0)*IF(Variables!$Y$23=1,$AI102,$AJ102) -> 0 | AO102: =VLOOKUP($AH102,Func_Ftrs,M$90,0)*IF(Variables!$Y$23=1,$AI102,$AJ102) -> 0 | AP102: =VLOOKUP($AH102,Func_Ftrs,N$90,0)*IF(Variables!$Y$23=1,$AI102,$AJ102) -> 0 | AQ102: =VLOOKUP($AH102,Func_Ftrs,O$90,0)*IF(Variables!$Y$23=1,$AI102,$AJ102) -> 0 | AR102: =VLOOKUP($AH102,Func_Ftrs,P$90,0)*IF(Variables!$Y$23=1,$AI102,$AJ102) -> 0
T103: General | U103: G | V103: =Factors!C467 -> 106944155 | W103: =IF(Variables!$AO$3=12,Factors!H467+Factors!K467,CHOOSE(Variables!AO$3,Factors!D467,Factors!E467,Factors!F467,Factors!G467,Factors!H467,Factors!I467,Factors!J467,Factors!K467,Factors!L467,Factors!M467,Factors!N467)) -> 42692496 | X103: =VLOOKUP($U103,Func_Ftrs,I$90,0)*IF(Variables!$Y$23=1,$V103,$W103) -> 10968508.11 | Y103: =VLOOKUP($U103,Func_Ftrs,J$90,0)*IF(Variables!$Y$23=1,$V103,$W103) -> 9365194.954 | Z103: =VLOOKUP($U103,Func_Ftrs,K$90,0)*IF(Variables!$Y$23=1,$V103,$W103) -> 20386665.27 | AA103: =VLOOKUP($U103,Func_Ftrs,L$90,0)*IF(Variables!$Y$23=1,$V103,$W103) -> 0 | AB103: =VLOOKUP($U103,Func_Ftrs,M$90,0)*IF(Variables!$Y$23=1,$V103,$W103) -> 1142277.206 | AC103: =VLOOKUP($U103,Func_Ftrs,N$90,0)*IF(Variables!$Y$23=1,$V103,$W103) -> 829850.4588 | AD103: =VLOOKUP($U103,Func_Ftrs,O$90,0)*IF(Variables!$Y$23=1,$V103,$W103) -> 0 | AE103: =VLOOKUP($U103,Func_Ftrs,P$90,0)*IF(Variables!$Y$23=1,$V103,$W103) -> 0 | AG103: General | AH103: G | AI103: 106944155 | AJ103: 42692496 | AK103: =VLOOKUP($AH103,Func_Ftrs,I$90,0)*IF(Variables!$Y$23=1,$AI103,$AJ103) -> 10968508.11 | AL103: =VLOOKUP($AH103,Func_Ftrs,J$90,0)*IF(Variables!$Y$23=1,$AI103,$AJ103) -> 9365194.954 | AM103: =VLOOKUP($AH103,Func_Ftrs,K$90,0)*IF(Variables!$Y$23=1,$AI103,$AJ103) -> 20386665.27 | AN103: =VLOOKUP($AH103,Func_Ftrs,L$90,0)*IF(Variables!$Y$23=1,$AI103,$AJ103) -> 0 | AO103: =VLOOKUP($AH103,Func_Ftrs,M$90,0)*IF(Variables!$Y$23=1,$AI103,$AJ103) -> 1142277.206 | AP103: =VLOOKUP($AH103,Func_Ftrs,N$90,0)*IF(Variables!$Y$23=1,$AI103,$AJ103) -> 829850.4588 | AQ103: =VLOOKUP($AH103,Func_Ftrs,O$90,0)*IF(Variables!$Y$23=1,$AI103,$AJ103) -> 0 | AR103: =VLOOKUP($AH103,Func_Ftrs,P$90,0)*IF(Variables!$Y$23=1,$AI103,$AJ103) -> 0
T104: Mining Plant | U104: P | V104: =Factors!C468 -> 62297566 | W104: =IF(Variables!$AO$3=12,Factors!H468+Factors!K468,CHOOSE(Variables!AO$3,Factors!D468,Factors!E468,Factors!F468,Factors!G468,Factors!H468,Factors!I468,Factors!J468,Factors!K468,Factors!L468,Factors!M468,Factors!N468)) -> 26161816 | X104: =VLOOKUP($U104,Func_Ftrs,I$90,0)*IF(Variables!$Y$23=1,$V104,$W104) -> 26161816 | Y104: =VLOOKUP($U104,Func_Ftrs,J$90,0)*IF(Variables!$Y$23=1,$V104,$W104) -> 0 | Z104: =VLOOKUP($U104,Func_Ftrs,K$90,0)*IF(Variables!$Y$23=1,$V104,$W104) -> 0 | AA104: =VLOOKUP($U104,Func_Ftrs,L$90,0)*IF(Variables!$Y$23=1,$V104,$W104) -> 0 | AB104: =VLOOKUP($U104,Func_Ftrs,M$90,0)*IF(Variables!$Y$23=1,$V104,$W104) -> 0 | AC104: =VLOOKUP($U104,Func_Ftrs,N$90,0)*IF(Variables!$Y$23=1,$V104,$W104) -> 0 | AD104: =VLOOKUP($U104,Func_Ftrs,O$90,0)*IF(Variables!$Y$23=1,$V104,$W104) -> 0 | AE104: =VLOOKUP($U104,Func_Ftrs,P$90,0)*IF(Variables!$Y$23=1,$V104,$W104) -> 0 | AG104: Mining Plant | AH104: P | AI104: 62297566 | AJ104: 26161816 | AK104: =VLOOKUP($AH104,Func_Ftrs,I$90,0)*IF(Variables!$Y$23=1,$AI104,$AJ104) -> 26161816 | AL104: =VLOOKUP($AH104,Func_Ftrs,J$90,0)*IF(Variables!$Y$23=1,$AI104,$AJ104) -> 0 | AM104: =VLOOKUP($AH104,Func_Ftrs,K$90,0)*IF(Variables!$Y$23=1,$AI104,$AJ104) -> 0 | AN104: =VLOOKUP($AH104,Func_Ftrs,L$90,0)*IF(Variables!$Y$23=1,$AI104,$AJ104) -> 0 | AO104: =VLOOKUP($AH104,Func_Ftrs,M$90,0)*IF(Variables!$Y$23=1,$AI104,$AJ104) -> 0 | AP104: =VLOOKUP($AH104,Func_Ftrs,N$90,0)*IF(Variables!$Y$23=1,$AI104,$AJ104) -> 0 | AQ104: =VLOOKUP($AH104,Func_Ftrs,O$90,0)*IF(Variables!$Y$23=1,$AI104,$AJ104) -> 0 | AR104: =VLOOKUP($AH104,Func_Ftrs,P$90,0)*IF(Variables!$Y$23=1,$AI104,$AJ104) -> 0
T106: Total PC (Post Merger) | V106: =SUM(V98:V105) -> 688480828 | W106: 278401127 | X106: 246677139.1 | Y106: 9365194.954 | Z106: 20386665.27 | AA106: 0 | AB106: 1142277.206 | AC106: 829850.4588 | AD106: 0 | AE106: 0 | AG106: Total PC (Post Merger) | AI106: =SUM(AI98:AI105) -> 688480828 | AJ106: 278401127 | AK106: 246677139.1 | AL106: 9365194.954 | AM106: 20386665.27 | AN106: 0 | AO106: 1142277.206 | AP106: 829850.4588 | AQ106: 0 | AR106: 0
T108: Total Deferred Taxes | V108: =V86+V95+V106 -> 969613679 | W108: 420468630 | X108: 315001927.3 | Y108: 50536851.94 | Z108: 51976653.05 | AA108: 0 | AB108: 1136415.304 | AC108: 1816782.431 | AD108: 0 | AE108: 0 | AG108: Total Deferred Taxes | AI108: =AI86+AI95+AI106 -> 969613679 | AJ108: 420468630 | AK108: 315001927.3 | AL108: 50536851.94 | AM108: 51976653.05 | AN108: 0 | AO108: 1136415.304 | AP108: 1816782.431 | AQ108: 0 | AR108: 0
C109: =Variables!AE27 -> 2010 PROTOCOL
C110: =IF(Variables!Y21=1," ",Variables!AO17) -> Year End | T110: ACCMDITRL FACTOR | V110: =V108/$V108 -> 1 | W110: =W108/$W108 -> 1 | X110: =X108/IF(Variables!$Y$23=2,$W108,$V108) -> 0.749168677 | Y110: =Y108/IF(Variables!$Y$23=2,$W108,$V108) -> 0.1201917297 | Z110: =Z108/IF(Variables!$Y$23=2,$W108,$V108) -> 0.1236160069 | AA110: =AA108/IF(Variables!$Y$23=2,$W108,$V108) -> 0 | AB110: =AB108/IF(Variables!$Y$23=2,$W108,$V108) -> 0.00270273505 | AC110: =AC108/IF(Variables!$Y$23=2,$W108,$V108) -> 0.004320851312 | AD110: =AD108/IF(Variables!$Y$23=2,$W108,$V108) -> 0 | AE110: =AE108/IF(Variables!$Y$23=2,$W108,$V108) -> 0 | AG110: ACCMDITMA FACTOR | AI110: =AI108/$AI108 -> 1 | AJ110: =AJ108/$AJ108 -> 1 | AK110: =AK108/IF(Variables!$Y23=2,$AJ108,$AI108) -> 0.749168677 | AL110: =AL108/IF(Variables!$Y23=2,$AJ108,$AI108) -> 0.1201917297 | AM110: =AM108/IF(Variables!$Y23=2,$AJ108,$AI108) -> 0.1236160069 | AN110: =AN108/IF(Variables!$Y23=2,$AJ108,$AI108) -> 0 | AO110: =AO108/IF(Variables!$Y23=2,$AJ108,$AI108) -> 0.00270273505 | AP110: =AP108/IF(Variables!$Y23=2,$AJ108,$AI108) -> 0.004320851312 | AQ110: =AQ108/IF(Variables!$Y23=2,$AJ108,$AI108) -> 0 | AR110: =AR108/IF(Variables!$Y23=2,$AJ108,$AI108) -> 0
C111: RESULTS OF OPERATIONS SUMMARY
T112: DITEXPRL | AG112: DITEXPMA
T113: Pacific Division | V113: Total | W113: =Variables!X24 -> UTAH | X113: =I$3 -> Production | Y113: Transmission | Z113: Distribution | AA113: Ancillary | AB113: C_Billing | AC113: C_Metering | AD113: C_Service | AE113: DSM | AG113: Pacific Division | AI113: Total | AJ113: =Variables!X24 -> UTAH | AK113: =I$3 -> Production | AL113: Transmission | AM113: Distribution | AN113: Ancillary | AO113: C_Billing | AP113: C_Metering | AQ113: C_Service | AR113: DSM
C114: =+Variables!AE29 -> 2010 PROTOCOL | H114: =IF(Variables!Y23=1,Variables!X23,Report!N115) -> UTAH | T114: Production | U114: P | V114: =Factors!C376 -> 0 | W114: =IF(Variables!$AO$3=12,Factors!H376+Factors!K376,CHOOSE(Variables!AO$3,Factors!D376,Factors!E376,Factors!F376,Factors!G376,Factors!H376,Factors!I376,Factors!J376,Factors!K376,Factors!L376,Factors!M376,Factors!N376)) -> 0 | X114: =VLOOKUP($U114,Func_Ftrs,I$90,0)*IF(Variables!$Y$23=1,$V114,$W114) -> 0 | Y114: =VLOOKUP($U114,Func_Ftrs,J$90,0)*IF(Variables!$Y$23=1,$V114,$W114) -> 0 | Z114: =VLOOKUP($U114,Func_Ftrs,K$90,0)*IF(Variables!$Y$23=1,$V114,$W114) -> 0 | AA114: =VLOOKUP($U114,Func_Ftrs,L$90,0)*IF(Variables!$Y$23=1,$V114,$W114) -> 0 | AB114: =VLOOKUP($U114,Func_Ftrs,M$90,0)*IF(Variables!$Y$23=1,$V114,$W114) -> 0 | AC114: =VLOOKUP($U114,Func_Ftrs,N$90,0)*IF(Variables!$Y$23=1,$V114,$W114) -> 0 | AD114: =VLOOKUP($U114,Func_Ftrs,O$90,0)*IF(Variables!$Y$23=1,$V114,$W114) -> 0 | AE114: =VLOOKUP($U114,Func_Ftrs,P$90,0)*IF(Variables!$Y$23=1,$V114,$W114) -> 0 | AG114: Production | AH114: P | AI114: =V114 -> 0 | AJ114: 0 | AK114: =VLOOKUP($AH114,Func_Ftrs,I$90,0)*IF(Variables!$Y$23=1,$AI114,$AJ114) -> 0 | AL114: =VLOOKUP($AH114,Func_Ftrs,J$90,0)*IF(Variables!$Y$23=1,$AI114,$AJ114) -> 0 | AM114: =VLOOKUP($AH114,Func_Ftrs,K$90,0)*IF(Variables!$Y$23=1,$AI114,$AJ114) -> 0 | AN114: =VLOOKUP($AH114,Func_Ftrs,L$90,0)*IF(Variables!$Y$23=1,$AI114,$AJ114) -> 0 | AO114: =VLOOKUP($AH114,Func_Ftrs,M$90,0)*IF(Variables!$Y$23=1,$AI114,$AJ114) -> 0 | AP114: =VLOOKUP($AH114,Func_Ftrs,N$90,0)*IF(Variables!$Y$23=1,$AI114,$AJ114) -> 0 | AQ114: =VLOOKUP($AH114,Func_Ftrs,O$90,0)*IF(Variables!$Y$23=1,$AI114,$AJ114) -> 0 | AR114: =VLOOKUP($AH114,Func_Ftrs,P$90,0)*IF(Variables!$Y$23=1,$AI114,$AJ114) -> 0
C115: Description of Account Summary: | H115: Normalized | I115: =I3 -> Production | J115: Transmission | K115: Distribution | L115: Ancillary | M115: C_Billing | N115: C_Metering | O115: C_Service | P115: DSM | T115: Transmission | U115: T | V115: =Factors!C377 -> 0 | W115: =IF(Variables!$AO$3=12,Factors!H377+Factors!K377,CHOOSE(Variables!AO$3,Factors!D377,Factors!E377,Factors!F377,Factors!G377,Factors!H377,Factors!I377,Factors!J377,Factors!K377,Factors!L377,Factors!M377,Factors!N377)) -> 0 | X115: =VLOOKUP($U115,Func_Ftrs,I$90,0)*IF(Variables!$Y$23=1,$V115,$W115) -> 0 | Y115: =VLOOKUP($U115,Func_Ftrs,J$90,0)*IF(Variables!$Y$23=1,$V115,$W115) -> 0 | Z115: =VLOOKUP($U115,Func_Ftrs,K$90,0)*IF(Variables!$Y$23=1,$V115,$W115) -> 0 | AA115: =VLOOKUP($U115,Func_Ftrs,L$90,0)*IF(Variables!$Y$23=1,$V115,$W115) -> 0 | AB115: =VLOOKUP($U115,Func_Ftrs,M$90,0)*IF(Variables!$Y$23=1,$V115,$W115) -> 0 | AC115: =VLOOKUP($U115,Func_Ftrs,N$90,0)*IF(Variables!$Y$23=1,$V115,$W115) -> 0 | AD115: =VLOOKUP($U115,Func_Ftrs,O$90,0)*IF(Variables!$Y$23=1,$V115,$W115) -> 0 | AE115: =VLOOKUP($U115,Func_Ftrs,P$90,0)*IF(Variables!$Y$23=1,$V115,$W115) -> 0 | AG115: Transmission | AH115: T | AI115: 0 | AJ115: 0 | AK115: =VLOOKUP($AH115,Func_Ftrs,I$90,0)*IF(Variables!$Y$23=1,$AI115,$AJ115) -> 0 | AL115: =VLOOKUP($AH115,Func_Ftrs,J$90,0)*IF(Variables!$Y$23=1,$AI115,$AJ115) -> 0 | AM115: =VLOOKUP($AH115,Func_Ftrs,K$90,0)*IF(Variables!$Y$23=1,$AI115,$AJ115) -> 0 | AN115: =VLOOKUP($AH115,Func_Ftrs,L$90,0)*IF(Variables!$Y$23=1,$AI115,$AJ115) -> 0 | AO115: =VLOOKUP($AH115,Func_Ftrs,M$90,0)*IF(Variables!$Y$23=1,$AI115,$AJ115) -> 0 | AP115: =VLOOKUP($AH115,Func_Ftrs,N$90,0)*IF(Variables!$Y$23=1,$AI115,$AJ115) -> 0 | AQ115: =VLOOKUP($AH115,Func_Ftrs,O$90,0)*IF(Variables!$Y$23=1,$AI115,$AJ115) -> 0 | AR115: =VLOOKUP($AH115,Func_Ftrs,P$90,0)*IF(Variables!$Y$23=1,$AI115,$AJ115) -> 0
T116: Distribution | U116: D_SPLIT | V116: =Factors!C378 -> 0 | W116: =IF(Variables!$AO$3=12,Factors!H378+Factors!K378,CHOOSE(Variables!AO$3,Factors!D378,Factors!E378,Factors!F378,Factors!G378,Factors!H378,Factors!I378,Factors!J378,Factors!K378,Factors!L378,Factors!M378,Factors!N378)) -> 0 | X116: =VLOOKUP($U116,Func_Ftrs,I$90,0)*IF(Variables!$Y$23=1,$V116,$W116) -> 0 | Y116: =VLOOKUP($U116,Func_Ftrs,J$90,0)*IF(Variables!$Y$23=1,$V116,$W116) -> 0 | Z116: =VLOOKUP($U116,Func_Ftrs,K$90,0)*IF(Variables!$Y$23=1,$V116,$W116) -> 0 | AA116: =VLOOKUP($U116,Func_Ftrs,L$90,0)*IF(Variables!$Y$23=1,$V116,$W116) -> 0 | AB116: =VLOOKUP($U116,Func_Ftrs,M$90,0)*IF(Variables!$Y$23=1,$V116,$W116) -> 0 | AC116: =VLOOKUP($U116,Func_Ftrs,N$90,0)*IF(Variables!$Y$23=1,$V116,$W116) -> 0 | AD116: =VLOOKUP($U116,Func_Ftrs,O$90,0)*IF(Variables!$Y$23=1,$V116,$W116) -> 0 | AE116: =VLOOKUP($U116,Func_Ftrs,P$90,0)*IF(Variables!$Y$23=1,$V116,$W116) -> 0 | AG116: Distribution | AH116: D_SPLIT | AI116: 0 | AJ116: 0 | AK116: =VLOOKUP($AH116,Func_Ftrs,I$90,0)*IF(Variables!$Y$23=1,$AI116,$AJ116) -> 0 | AL116: =VLOOKUP($AH116,Func_Ftrs,J$90,0)*IF(Variables!$Y$23=1,$AI116,$AJ116) -> 0 | AM116: =VLOOKUP($AH116,Func_Ftrs,K$90,0)*IF(Variables!$Y$23=1,$AI116,$AJ116) -> 0 | AN116: =VLOOKUP($AH116,Func_Ftrs,L$90,0)*IF(Variables!$Y$23=1,$AI116,$AJ116) -> 0 | AO116: =VLOOKUP($AH116,Func_Ftrs,M$90,0)*IF(Variables!$Y$23=1,$AI116,$AJ116) -> 0 | AP116: =VLOOKUP($AH116,Func_Ftrs,N$90,0)*IF(Variables!$Y$23=1,$AI116,$AJ116) -> 0 | AQ116: =VLOOKUP($AH116,Func_Ftrs,O$90,0)*IF(Variables!$Y$23=1,$AI116,$AJ116) -> 0 | AR116: =VLOOKUP($AH116,Func_Ftrs,P$90,0)*IF(Variables!$Y$23=1,$AI116,$AJ116) -> 0
A117: 1 | E117: General Business Revenues | H117: =H219-H118-H119 -> 1742020594 | I117: 652206238.2 | J117: 43324568.75 | K117: 194817363.5 | L117: 6949653.101 | M117: 20138960.93 | N117: 25075718.33 | O117: 6828800.312 | P117: 4.705277175e-299 | T117: Mining Plant | U117: P | V117: =Factors!C380 -> 0 | W117: =IF(Variables!$AO$3=12,Factors!H380+Factors!K380,CHOOSE(Variables!AO$3,Factors!D380,Factors!E380,Factors!F380,Factors!G380,Factors!H380,Factors!I380,Factors!J380,Factors!K380,Factors!L380,Factors!M380,Factors!N380)) -> 0 | X117: =VLOOKUP($U117,Func_Ftrs,I$90,0)*IF(Variables!$Y$23=1,$V117,$W117) -> 0 | Y117: =VLOOKUP($U117,Func_Ftrs,J$90,0)*IF(Variables!$Y$23=1,$V117,$W117) -> 0 | Z117: =VLOOKUP($U117,Func_Ftrs,K$90,0)*IF(Variables!$Y$23=1,$V117,$W117) -> 0 | AA117: =VLOOKUP($U117,Func_Ftrs,L$90,0)*IF(Variables!$Y$23=1,$V117,$W117) -> 0 | AB117: =VLOOKUP($U117,Func_Ftrs,M$90,0)*IF(Variables!$Y$23=1,$V117,$W117) -> 0 | AC117: =VLOOKUP($U117,Func_Ftrs,N$90,0)*IF(Variables!$Y$23=1,$V117,$W117) -> 0 | AD117: =VLOOKUP($U117,Func_Ftrs,O$90,0)*IF(Variables!$Y$23=1,$V117,$W117) -> 0 | AE117: =VLOOKUP($U117,Func_Ftrs,P$90,0)*IF(Variables!$Y$23=1,$V117,$W117) -> 0 | AG117: Mining Plant | AH117: P | AI117: 0 | AJ117: 0 | AK117: =VLOOKUP($AH117,Func_Ftrs,I$90,0)*IF(Variables!$Y$23=1,$AI117,$AJ117) -> 0 | AL117: =VLOOKUP($AH117,Func_Ftrs,J$90,0)*IF(Variables!$Y$23=1,$AI117,$AJ117) -> 0 | AM117: =VLOOKUP($AH117,Func_Ftrs,K$90,0)*IF(Variables!$Y$23=1,$AI117,$AJ117) -> 0 | AN117: =VLOOKUP($AH117,Func_Ftrs,L$90,0)*IF(Variables!$Y$23=1,$AI117,$AJ117) -> 0 | AO117: =VLOOKUP($AH117,Func_Ftrs,M$90,0)*IF(Variables!$Y$23=1,$AI117,$AJ117) -> 0 | AP117: =VLOOKUP($AH117,Func_Ftrs,N$90,0)*IF(Variables!$Y$23=1,$AI117,$AJ117) -> 0 | AQ117: =VLOOKUP($AH117,Func_Ftrs,O$90,0)*IF(Variables!$Y$23=1,$AI117,$AJ117) -> 0 | AR117: =VLOOKUP($AH117,Func_Ftrs,P$90,0)*IF(Variables!$Y$23=1,$AI117,$AJ117) -> 0
A118: 2 | E118: General Business Revenues | H118: =H198+H199 -> 0 | I118: 0 | J118: 0 | K118: 0 | L118: 0 | M118: 0 | N118: =N198+N199 -> 0 | O118: =O198+O199 -> 0 | P118: =P198+P199 -> 0
A119: 3 | E119: Interdepartmental | H119: =H217 -> 0 | I119: 0 | J119: 0 | K119: =K217 -> 0 | L119: 0 | M119: 0 | N119: =N217 -> 0 | O119: =O217 -> 0 | P119: =P217 -> 0 | T119: Total Pacific Division | V119: =SUM(V114:V117) -> 0 | W119: 0 | X119: 0 | Y119: 0 | Z119: 0 | AA119: 0 | AB119: 0 | AC119: 0 | AD119: 0 | AE119: 0 | AG119: Total Pacific Division | AI119: =SUM(AI114:AI117) -> 0 | AJ119: 0 | AK119: 0 | AL119: 0 | AM119: 0 | AN119: 0 | AO119: 0 | AP119: 0 | AQ119: 0 | AR119: 0
A120: 4 | E120: Special Sales | H120: =H233 -> 140981491.5 | I120: 112132515.6 | J120: 28848975.93 | K120: =K233 -> 0 | L120: 0 | M120: 0 | N120: =N233 -> 0 | O120: =O233 -> 0 | P120: =P233 -> 0
A121: 5 | E121: Other Operating Revenues | H121: =H276+H240 -> 102436517.5 | I121: 50389066.19 | J121: 52272623.51 | K121: 3980876.802 | L121: -11174379 | M121: 6941334.262 | N121: 20538.20969 | O121: 6457.554097 | P121: 0 | T121: Utah Division | AG121: Utah Division
A122: 6 | E122: Total Operating Revenues | H122: =SUM(H117:H121) -> 1985438603 | I122: 814727820 | J122: 124446168.2 | K122: 198798240.3 | L122: -4224725.899 | M122: 27080295.19 | N122: =SUM(N117:N121) -> 25096256.54 | O122: =SUM(O117:O121) -> 6835257.866 | P122: =SUM(P117:P121) -> 4.705277175e-299 | T122: Production | U122: P | V122: =Factors!C386 -> 0 | W122: =IF(Variables!$AO$3=12,Factors!H386+Factors!K386,CHOOSE(Variables!AO$3,Factors!D386,Factors!E386,Factors!F386,Factors!G386,Factors!H386,Factors!I386,Factors!J386,Factors!K386,Factors!L386,Factors!M386,Factors!N386)) -> 0 | X122: =VLOOKUP($U122,Func_Ftrs,I$90,0)*IF(Variables!$Y$23=1,$V122,$W122) -> 0 | Y122: =VLOOKUP($U122,Func_Ftrs,J$90,0)*IF(Variables!$Y$23=1,$V122,$W122) -> 0 | Z122: =VLOOKUP($U122,Func_Ftrs,K$90,0)*IF(Variables!$Y$23=1,$V122,$W122) -> 0 | AA122: =VLOOKUP($U122,Func_Ftrs,L$90,0)*IF(Variables!$Y$23=1,$V122,$W122) -> 0 | AB122: =VLOOKUP($U122,Func_Ftrs,M$90,0)*IF(Variables!$Y$23=1,$V122,$W122) -> 0 | AC122: =VLOOKUP($U122,Func_Ftrs,N$90,0)*IF(Variables!$Y$23=1,$V122,$W122) -> 0 | AD122: =VLOOKUP($U122,Func_Ftrs,O$90,0)*IF(Variables!$Y$23=1,$V122,$W122) -> 0 | AE122: =VLOOKUP($U122,Func_Ftrs,P$90,0)*IF(Variables!$Y$23=1,$V122,$W122) -> 0 | AG122: Production | AH122: P | AI122: =V122 -> 0 | AJ122: 0 | AK122: =VLOOKUP($AH122,Func_Ftrs,I$90,0)*IF(Variables!$Y$23=1,$AI122,$AJ122) -> 0 | AL122: =VLOOKUP($AH122,Func_Ftrs,J$90,0)*IF(Variables!$Y$23=1,$AI122,$AJ122) -> 0 | AM122: =VLOOKUP($AH122,Func_Ftrs,K$90,0)*IF(Variables!$Y$23=1,$AI122,$AJ122) -> 0 | AN122: =VLOOKUP($AH122,Func_Ftrs,L$90,0)*IF(Variables!$Y$23=1,$AI122,$AJ122) -> 0 | AO122: =VLOOKUP($AH122,Func_Ftrs,M$90,0)*IF(Variables!$Y$23=1,$AI122,$AJ122) -> 0 | AP122: =VLOOKUP($AH122,Func_Ftrs,N$90,0)*IF(Variables!$Y$23=1,$AI122,$AJ122) -> 0 | AQ122: =VLOOKUP($AH122,Func_Ftrs,O$90,0)*IF(Variables!$Y$23=1,$AI122,$AJ122) -> 0 | AR122: =VLOOKUP($AH122,Func_Ftrs,P$90,0)*IF(Variables!$Y$23=1,$AI122,$AJ122) -> 0
A123: 7 | T123: Transmission | U123: T | V123: =Factors!C387 -> 0 | W123: =IF(Variables!$AO$3=12,Factors!H387+Factors!K387,CHOOSE(Variables!AO$3,Factors!D387,Factors!E387,Factors!F387,Factors!G387,Factors!H387,Factors!I387,Factors!J387,Factors!K387,Factors!L387,Factors!M387,Factors!N387)) -> 0 | X123: =VLOOKUP($U123,Func_Ftrs,I$90,0)*IF(Variables!$Y$23=1,$V123,$W123) -> 0 | Y123: =VLOOKUP($U123,Func_Ftrs,J$90,0)*IF(Variables!$Y$23=1,$V123,$W123) -> 0 | Z123: =VLOOKUP($U123,Func_Ftrs,K$90,0)*IF(Variables!$Y$23=1,$V123,$W123) -> 0 | AA123: =VLOOKUP($U123,Func_Ftrs,L$90,0)*IF(Variables!$Y$23=1,$V123,$W123) -> 0 | AB123: =VLOOKUP($U123,Func_Ftrs,M$90,0)*IF(Variables!$Y$23=1,$V123,$W123) -> 0 | AC123: =VLOOKUP($U123,Func_Ftrs,N$90,0)*IF(Variables!$Y$23=1,$V123,$W123) -> 0 | AD123: =VLOOKUP($U123,Func_Ftrs,O$90,0)*IF(Variables!$Y$23=1,$V123,$W123) -> 0 | AE123: =VLOOKUP($U123,Func_Ftrs,P$90,0)*IF(Variables!$Y$23=1,$V123,$W123) -> 0 | AG123: Transmission | AH123: T | AI123: 0 | AJ123: 0 | AK123: =VLOOKUP($AH123,Func_Ftrs,I$90,0)*IF(Variables!$Y$23=1,$AI123,$AJ123) -> 0 | AL123: =VLOOKUP($AH123,Func_Ftrs,J$90,0)*IF(Variables!$Y$23=1,$AI123,$AJ123) -> 0 | AM123: =VLOOKUP($AH123,Func_Ftrs,K$90,0)*IF(Variables!$Y$23=1,$AI123,$AJ123) -> 0 | AN123: =VLOOKUP($AH123,Func_Ftrs,L$90,0)*IF(Variables!$Y$23=1,$AI123,$AJ123) -> 0 | AO123: =VLOOKUP($AH123,Func_Ftrs,M$90,0)*IF(Variables!$Y$23=1,$AI123,$AJ123) -> 0 | AP123: =VLOOKUP($AH123,Func_Ftrs,N$90,0)*IF(Variables!$Y$23=1,$AI123,$AJ123) -> 0 | AQ123: =VLOOKUP($AH123,Func_Ftrs,O$90,0)*IF(Variables!$Y$23=1,$AI123,$AJ123) -> 0 | AR123: =VLOOKUP($AH123,Func_Ftrs,P$90,0)*IF(Variables!$Y$23=1,$AI123,$AJ123) -> 0
A124: 8 | C124: Operating Expenses: | T124: Distribution | U124: D_SPLIT | V124: =Factors!C388 -> 0 | W124: =IF(Variables!$AO$3=12,Factors!H388+Factors!K388,CHOOSE(Variables!AO$3,Factors!D388,Factors!E388,Factors!F388,Factors!G388,Factors!H388,Factors!I388,Factors!J388,Factors!K388,Factors!L388,Factors!M388,Factors!N388)) -> 0 | X124: =VLOOKUP($U124,Func_Ftrs,I$90,0)*IF(Variables!$Y$23=1,$V124,$W124) -> 0 | Y124: =VLOOKUP($U124,Func_Ftrs,J$90,0)*IF(Variables!$Y$23=1,$V124,$W124) -> 0 | Z124: =VLOOKUP($U124,Func_Ftrs,K$90,0)*IF(Variables!$Y$23=1,$V124,$W124) -> 0 | AA124: =VLOOKUP($U124,Func_Ftrs,L$90,0)*IF(Variables!$Y$23=1,$V124,$W124) -> 0 | AB124: =VLOOKUP($U124,Func_Ftrs,M$90,0)*IF(Variables!$Y$23=1,$V124,$W124) -> 0 | AC124: =VLOOKUP($U124,Func_Ftrs,N$90,0)*IF(Variables!$Y$23=1,$V124,$W124) -> 0 | AD124: =VLOOKUP($U124,Func_Ftrs,O$90,0)*IF(Variables!$Y$23=1,$V124,$W124) -> 0 | AE124: =VLOOKUP($U124,Func_Ftrs,P$90,0)*IF(Variables!$Y$23=1,$V124,$W124) -> 0 | AG124: Distribution | AH124: D_SPLIT | AI124: 0 | AJ124: 0 | AK124: =VLOOKUP($AH124,Func_Ftrs,I$90,0)*IF(Variables!$Y$23=1,$AI124,$AJ124) -> 0 | AL124: =VLOOKUP($AH124,Func_Ftrs,J$90,0)*IF(Variables!$Y$23=1,$AI124,$AJ124) -> 0 | AM124: =VLOOKUP($AH124,Func_Ftrs,K$90,0)*IF(Variables!$Y$23=1,$AI124,$AJ124) -> 0 | AN124: =VLOOKUP($AH124,Func_Ftrs,L$90,0)*IF(Variables!$Y$23=1,$AI124,$AJ124) -> 0 | AO124: =VLOOKUP($AH124,Func_Ftrs,M$90,0)*IF(Variables!$Y$23=1,$AI124,$AJ124) -> 0 | AP124: =VLOOKUP($AH124,Func_Ftrs,N$90,0)*IF(Variables!$Y$23=1,$AI124,$AJ124) -> 0 | AQ124: =VLOOKUP($AH124,Func_Ftrs,O$90,0)*IF(Variables!$Y$23=1,$AI124,$AJ124) -> 0 | AR124: =VLOOKUP($AH124,Func_Ftrs,P$90,0)*IF(Variables!$Y$23=1,$AI124,$AJ124) -> 0
A125: 9 | D125: Steam Production | H125: =H413 -> 435033082.7 | I125: 435033082.7 | J125: 0 | K125: 0 | L125: 0 | M125: 0 | N125: =N413 -> 0 | O125: =O413 -> 0 | P125: =P413 -> 0 | T125: General | U125: G | V125: =Factors!C389 -> 0 | W125: =IF(Variables!$AO$3=12,Factors!H389+Factors!K389,CHOOSE(Variables!AO$3,Factors!D389,Factors!E389,Factors!F389,Factors!G389,Factors!H389,Factors!I389,Factors!J389,Factors!K389,Factors!L389,Factors!M389,Factors!N389)) -> 0 | X125: =VLOOKUP($U125,Func_Ftrs,I$90,0)*IF(Variables!$Y$23=1,$V125,$W125) -> 0 | Y125: =VLOOKUP($U125,Func_Ftrs,J$90,0)*IF(Variables!$Y$23=1,$V125,$W125) -> 0 | Z125: =VLOOKUP($U125,Func_Ftrs,K$90,0)*IF(Variables!$Y$23=1,$V125,$W125) -> 0 | AA125: =VLOOKUP($U125,Func_Ftrs,L$90,0)*IF(Variables!$Y$23=1,$V125,$W125) -> 0 | AB125: =VLOOKUP($U125,Func_Ftrs,M$90,0)*IF(Variables!$Y$23=1,$V125,$W125) -> 0 | AC125: =VLOOKUP($U125,Func_Ftrs,N$90,0)*IF(Variables!$Y$23=1,$V125,$W125) -> 0 | AD125: =VLOOKUP($U125,Func_Ftrs,O$90,0)*IF(Variables!$Y$23=1,$V125,$W125) -> 0 | AE125: =VLOOKUP($U125,Func_Ftrs,P$90,0)*IF(Variables!$Y$23=1,$V125,$W125) -> 0 | AG125: General | AH125: G | AI125: 0 | AJ125: 0 | AK125: =VLOOKUP($AH125,Func_Ftrs,I$90,0)*IF(Variables!$Y$23=1,$AI125,$AJ125) -> 0 | AL125: =VLOOKUP($AH125,Func_Ftrs,J$90,0)*IF(Variables!$Y$23=1,$AI125,$AJ125) -> 0 | AM125: =VLOOKUP($AH125,Func_Ftrs,K$90,0)*IF(Variables!$Y$23=1,$AI125,$AJ125) -> 0 | AN125: =VLOOKUP($AH125,Func_Ftrs,L$90,0)*IF(Variables!$Y$23=1,$AI125,$AJ125) -> 0 | AO125: =VLOOKUP($AH125,Func_Ftrs,M$90,0)*IF(Variables!$Y$23=1,$AI125,$AJ125) -> 0 | AP125: =VLOOKUP($AH125,Func_Ftrs,N$90,0)*IF(Variables!$Y$23=1,$AI125,$AJ125) -> 0 | AQ125: =VLOOKUP($AH125,Func_Ftrs,O$90,0)*IF(Variables!$Y$23=1,$AI125,$AJ125) -> 0 | AR125: =VLOOKUP($AH125,Func_Ftrs,P$90,0)*IF(Variables!$Y$23=1,$AI125,$AJ125) -> 0
A126: 10 | D126: Nuclear Production | H126: =H461 -> 0 | I126: 0 | J126: 0 | K126: 0 | L126: 0 | M126: 0 | N126: =N461 -> 0 | O126: =O461 -> 0 | P126: =P461 -> 0 | T126: Mining Plant | U126: P | V126: =Factors!C390 -> 0 | W126: =IF(Variables!$AO$3=12,Factors!H390+Factors!K390,CHOOSE(Variables!AO$3,Factors!D390,Factors!E390,Factors!F390,Factors!G390,Factors!H390,Factors!I390,Factors!J390,Factors!K390,Factors!L390,Factors!M390,Factors!N390)) -> 0 | X126: =VLOOKUP($U126,Func_Ftrs,I$90,0)*IF(Variables!$Y$23=1,$V126,$W126) -> 0 | Y126: =VLOOKUP($U126,Func_Ftrs,J$90,0)*IF(Variables!$Y$23=1,$V126,$W126) -> 0 | Z126: =VLOOKUP($U126,Func_Ftrs,K$90,0)*IF(Variables!$Y$23=1,$V126,$W126) -> 0 | AA126: =VLOOKUP($U126,Func_Ftrs,L$90,0)*IF(Variables!$Y$23=1,$V126,$W126) -> 0 | AB126: =VLOOKUP($U126,Func_Ftrs,M$90,0)*IF(Variables!$Y$23=1,$V126,$W126) -> 0 | AC126: =VLOOKUP($U126,Func_Ftrs,N$90,0)*IF(Variables!$Y$23=1,$V126,$W126) -> 0 | AD126: =VLOOKUP($U126,Func_Ftrs,O$90,0)*IF(Variables!$Y$23=1,$V126,$W126) -> 0 | AE126: =VLOOKUP($U126,Func_Ftrs,P$90,0)*IF(Variables!$Y$23=1,$V126,$W126) -> 0 | AG126: Mining Plant | AH126: P | AI126: 0 | AJ126: 0 | AK126: =VLOOKUP($AH126,Func_Ftrs,I$90,0)*IF(Variables!$Y$23=1,$AI126,$AJ126) -> 0 | AL126: =VLOOKUP($AH126,Func_Ftrs,J$90,0)*IF(Variables!$Y$23=1,$AI126,$AJ126) -> 0 | AM126: =VLOOKUP($AH126,Func_Ftrs,K$90,0)*IF(Variables!$Y$23=1,$AI126,$AJ126) -> 0 | AN126: =VLOOKUP($AH126,Func_Ftrs,L$90,0)*IF(Variables!$Y$23=1,$AI126,$AJ126) -> 0 | AO126: =VLOOKUP($AH126,Func_Ftrs,M$90,0)*IF(Variables!$Y$23=1,$AI126,$AJ126) -> 0 | AP126: =VLOOKUP($AH126,Func_Ftrs,N$90,0)*IF(Variables!$Y$23=1,$AI126,$AJ126) -> 0 | AQ126: =VLOOKUP($AH126,Func_Ftrs,O$90,0)*IF(Variables!$Y$23=1,$AI126,$AJ126) -> 0 | AR126: =VLOOKUP($AH126,Func_Ftrs,P$90,0)*IF(Variables!$Y$23=1,$AI126,$AJ126) -> 0
A127: 11 | D127: Hydro Production | H127: =H544 -> 16413240.32 | I127: 16413240.32 | J127: 0 | K127: 0 | L127: 0 | M127: 0 | N127: =N544 -> 0 | O127: =O544 -> 0 | P127: =P544 -> 0
A128: 12 | D128: Other Power Supply | H128: =H598+H641 -> 454583896.6 | I128: 454583896.6 | J128: 0 | K128: 0 | L128: 0 | M128: 0 | N128: 0 | O128: 0 | P128: 0 | T128: Total Utah Division | V128: =SUM(V122:V126) -> 0 | W128: 0 | X128: 0 | Y128: 0 | Z128: 0 | AA128: 0 | AB128: 0 | AC128: 0 | AD128: 0 | AE128: 0 | AG128: Total Utah Division | AI128: =SUM(AI122:AI126) -> 0 | AJ128: 0 | AK128: 0 | AL128: 0 | AM128: 0 | AN128: 0 | AO128: 0 | AP128: 0 | AQ128: 0 | AR128: 0
A129: 13 | D129: Transmission | H129: =H745 -> 87465469.99 | I129: 378394.9459 | J129: 87087075.05 | K129: 0 | L129: 0 | M129: 0 | N129: =N745 -> 0 | O129: =O745 -> 0 | P129: =P745 -> 0
A130: 14 | D130: Distribution | H130: =H846 -> 87092561.37 | I130: 0 | J130: 0 | K130: 81813320.57 | L130: 0 | M130: 0 | N130: =N846 -> 5279240.794 | O130: =O846 -> 0 | P130: =P846 -> 0 | T130: PACIFICORP | AG130: PACIFICORP
A131: 15 | D131: Customer Accounts | H131: =H881 -> 37538932.21 | I131: 1526163.729 | J131: 233114.9414 | K131: 372392.6643 | L131: -7913.837323 | M131: 17106350.36 | N131: =N881 -> 5180492.376 | O131: =O881 -> 11643469.98 | P131: =P881 -> 8.81401516e-302 | T131: Production | U131: P | V131: =Factors!C396 -> 0 | W131: =IF(Variables!$AO$3=12,Factors!H396+Factors!K396,CHOOSE(Variables!AO$3,Factors!D396,Factors!E396,Factors!F396,Factors!G396,Factors!H396,Factors!I396,Factors!J396,Factors!K396,Factors!L396,Factors!M396,Factors!N396)) -> 0 | X131: =VLOOKUP($U131,Func_Ftrs,I$90,0)*IF(Variables!$Y$23=1,$V131,$W131) -> 0 | Y131: =VLOOKUP($U131,Func_Ftrs,J$90,0)*IF(Variables!$Y$23=1,$V131,$W131) -> 0 | Z131: =VLOOKUP($U131,Func_Ftrs,K$90,0)*IF(Variables!$Y$23=1,$V131,$W131) -> 0 | AA131: =VLOOKUP($U131,Func_Ftrs,L$90,0)*IF(Variables!$Y$23=1,$V131,$W131) -> 0 | AB131: =VLOOKUP($U131,Func_Ftrs,M$90,0)*IF(Variables!$Y$23=1,$V131,$W131) -> 0 | AC131: =VLOOKUP($U131,Func_Ftrs,N$90,0)*IF(Variables!$Y$23=1,$V131,$W131) -> 0 | AD131: =VLOOKUP($U131,Func_Ftrs,O$90,0)*IF(Variables!$Y$23=1,$V131,$W131) -> 0 | AE131: =VLOOKUP($U131,Func_Ftrs,P$90,0)*IF(Variables!$Y$23=1,$V131,$W131) -> 0 | AG131: Production | AH131: P | AI131: =V131 -> 0 | AJ131: =W131 -> 0 | AK131: =VLOOKUP($AH131,Func_Ftrs,I$90,0)*IF(Variables!$Y$23=1,$AI131,$AJ131) -> 0 | AL131: =VLOOKUP($AH131,Func_Ftrs,J$90,0)*IF(Variables!$Y$23=1,$AI131,$AJ131) -> 0 | AM131: =VLOOKUP($AH131,Func_Ftrs,K$90,0)*IF(Variables!$Y$23=1,$AI131,$AJ131) -> 0 | AN131: =VLOOKUP($AH131,Func_Ftrs,L$90,0)*IF(Variables!$Y$23=1,$AI131,$AJ131) -> 0 | AO131: =VLOOKUP($AH131,Func_Ftrs,M$90,0)*IF(Variables!$Y$23=1,$AI131,$AJ131) -> 0 | AP131: =VLOOKUP($AH131,Func_Ftrs,N$90,0)*IF(Variables!$Y$23=1,$AI131,$AJ131) -> 0 | AQ131: =VLOOKUP($AH131,Func_Ftrs,O$90,0)*IF(Variables!$Y$23=1,$AI131,$AJ131) -> 0 | AR131: =VLOOKUP($AH131,Func_Ftrs,P$90,0)*IF(Variables!$Y$23=1,$AI131,$AJ131) -> 0
A132: 16 | D132: Customer Service | H132: =H912 -> 5962391.712 | I132: 0 | J132: 0 | K132: 3120326.53 | L132: 0 | M132: 0 | N132: =N912 -> 0 | O132: =O912 -> 2842065.182 | P132: =P912 -> 0 | T132: Hydro - P | U132: P | V132: =Factors!C397 -> 0 | W132: =IF(Variables!$AO$3=12,Factors!H397+Factors!K397,CHOOSE(Variables!AO$3,Factors!D397,Factors!E397,Factors!F397,Factors!G397,Factors!H397,Factors!I397,Factors!J397,Factors!K397,Factors!L397,Factors!M397,Factors!N397)) -> 0 | X132: =VLOOKUP($U132,Func_Ftrs,I$90,0)*IF(Variables!$Y$23=1,$V132,$W132) -> 0 | Y132: =VLOOKUP($U132,Func_Ftrs,J$90,0)*IF(Variables!$Y$23=1,$V132,$W132) -> 0 | Z132: =VLOOKUP($U132,Func_Ftrs,K$90,0)*IF(Variables!$Y$23=1,$V132,$W132) -> 0 | AA132: =VLOOKUP($U132,Func_Ftrs,L$90,0)*IF(Variables!$Y$23=1,$V132,$W132) -> 0 | AB132: =VLOOKUP($U132,Func_Ftrs,M$90,0)*IF(Variables!$Y$23=1,$V132,$W132) -> 0 | AC132: =VLOOKUP($U132,Func_Ftrs,N$90,0)*IF(Variables!$Y$23=1,$V132,$W132) -> 0 | AD132: =VLOOKUP($U132,Func_Ftrs,O$90,0)*IF(Variables!$Y$23=1,$V132,$W132) -> 0 | AE132: =VLOOKUP($U132,Func_Ftrs,P$90,0)*IF(Variables!$Y$23=1,$V132,$W132) -> 0 | AG132: Hydro - P | AH132: P | AI132: 0 | AJ132: 0 | AK132: =VLOOKUP($AH132,Func_Ftrs,I$90,0)*IF(Variables!$Y$23=1,$AI132,$AJ132) -> 0 | AL132: =VLOOKUP($AH132,Func_Ftrs,J$90,0)*IF(Variables!$Y$23=1,$AI132,$AJ132) -> 0 | AM132: =VLOOKUP($AH132,Func_Ftrs,K$90,0)*IF(Variables!$Y$23=1,$AI132,$AJ132) -> 0 | AN132: =VLOOKUP($AH132,Func_Ftrs,L$90,0)*IF(Variables!$Y$23=1,$AI132,$AJ132) -> 0 | AO132: =VLOOKUP($AH132,Func_Ftrs,M$90,0)*IF(Variables!$Y$23=1,$AI132,$AJ132) -> 0 | AP132: =VLOOKUP($AH132,Func_Ftrs,N$90,0)*IF(Variables!$Y$23=1,$AI132,$AJ132) -> 0 | AQ132: =VLOOKUP($AH132,Func_Ftrs,O$90,0)*IF(Variables!$Y$23=1,$AI132,$AJ132) -> 0 | AR132: =VLOOKUP($AH132,Func_Ftrs,P$90,0)*IF(Variables!$Y$23=1,$AI132,$AJ132) -> 0
A133: 17 | D133: Sales | H133: =H942 -> 0 | I133: 0 | J133: 0 | K133: 0 | L133: 0 | M133: 0 | N133: =N942 -> 0 | O133: =O942 -> 0 | P133: =P942 -> 0 | T133: Hydro - U | U133: P | V133: =Factors!C398 -> 0 | W133: =IF(Variables!$AO$3=12,Factors!H398+Factors!K398,CHOOSE(Variables!AO$3,Factors!D398,Factors!E398,Factors!F398,Factors!G398,Factors!H398,Factors!I398,Factors!J398,Factors!K398,Factors!L398,Factors!M398,Factors!N398)) -> 0 | X133: =VLOOKUP($U133,Func_Ftrs,I$90,0)*IF(Variables!$Y$23=1,$V133,$W133) -> 0 | Y133: =VLOOKUP($U133,Func_Ftrs,J$90,0)*IF(Variables!$Y$23=1,$V133,$W133) -> 0 | Z133: =VLOOKUP($U133,Func_Ftrs,K$90,0)*IF(Variables!$Y$23=1,$V133,$W133) -> 0 | AA133: =VLOOKUP($U133,Func_Ftrs,L$90,0)*IF(Variables!$Y$23=1,$V133,$W133) -> 0 | AB133: =VLOOKUP($U133,Func_Ftrs,M$90,0)*IF(Variables!$Y$23=1,$V133,$W133) -> 0 | AC133: =VLOOKUP($U133,Func_Ftrs,N$90,0)*IF(Variables!$Y$23=1,$V133,$W133) -> 0 | AD133: =VLOOKUP($U133,Func_Ftrs,O$90,0)*IF(Variables!$Y$23=1,$V133,$W133) -> 0 | AE133: =VLOOKUP($U133,Func_Ftrs,P$90,0)*IF(Variables!$Y$23=1,$V133,$W133) -> 0 | AG133: Hydro - U | AH133: P | AI133: 0 | AJ133: 0 | AK133: =VLOOKUP($AH133,Func_Ftrs,I$90,0)*IF(Variables!$Y$23=1,$AI133,$AJ133) -> 0 | AL133: =VLOOKUP($AH133,Func_Ftrs,J$90,0)*IF(Variables!$Y$23=1,$AI133,$AJ133) -> 0 | AM133: =VLOOKUP($AH133,Func_Ftrs,K$90,0)*IF(Variables!$Y$23=1,$AI133,$AJ133) -> 0 | AN133: =VLOOKUP($AH133,Func_Ftrs,L$90,0)*IF(Variables!$Y$23=1,$AI133,$AJ133) -> 0 | AO133: =VLOOKUP($AH133,Func_Ftrs,M$90,0)*IF(Variables!$Y$23=1,$AI133,$AJ133) -> 0 | AP133: =VLOOKUP($AH133,Func_Ftrs,N$90,0)*IF(Variables!$Y$23=1,$AI133,$AJ133) -> 0 | AQ133: =VLOOKUP($AH133,Func_Ftrs,O$90,0)*IF(Variables!$Y$23=1,$AI133,$AJ133) -> 0 | AR133: =VLOOKUP($AH133,Func_Ftrs,P$90,0)*IF(Variables!$Y$23=1,$AI133,$AJ133) -> 0
A134: 18 | D134: Administrative & General | H134: =H1023 -> 57203837.14 | I134: 18959185.44 | J134: 5342108.262 | K134: 25157247.4 | L134: 0 | M134: 2180199.826 | N134: =N1023 -> 3631573.943 | O134: =O1023 -> 1933522.271 | P134: =P1023 -> 0 | T134: Transmission | U134: T | V134: =Factors!C408 -> 0 | W134: =IF(Variables!$AO$3=12,Factors!H408+Factors!K408,CHOOSE(Variables!AO$3,Factors!D408,Factors!E408,Factors!F408,Factors!G408,Factors!H408,Factors!I408,Factors!J408,Factors!K408,Factors!L408,Factors!M408,Factors!N408)) -> 0 | X134: =VLOOKUP($U134,Func_Ftrs,I$90,0)*IF(Variables!$Y$23=1,$V134,$W134) -> 0 | Y134: =VLOOKUP($U134,Func_Ftrs,J$90,0)*IF(Variables!$Y$23=1,$V134,$W134) -> 0 | Z134: =VLOOKUP($U134,Func_Ftrs,K$90,0)*IF(Variables!$Y$23=1,$V134,$W134) -> 0 | AA134: =VLOOKUP($U134,Func_Ftrs,L$90,0)*IF(Variables!$Y$23=1,$V134,$W134) -> 0 | AB134: =VLOOKUP($U134,Func_Ftrs,M$90,0)*IF(Variables!$Y$23=1,$V134,$W134) -> 0 | AC134: =VLOOKUP($U134,Func_Ftrs,N$90,0)*IF(Variables!$Y$23=1,$V134,$W134) -> 0 | AD134: =VLOOKUP($U134,Func_Ftrs,O$90,0)*IF(Variables!$Y$23=1,$V134,$W134) -> 0 | AE134: =VLOOKUP($U134,Func_Ftrs,P$90,0)*IF(Variables!$Y$23=1,$V134,$W134) -> 0 | AG134: Transmission | AH134: T | AI134: 0 | AJ134: 0 | AK134: =VLOOKUP($AH134,Func_Ftrs,I$90,0)*IF(Variables!$Y$23=1,$AI134,$AJ134) -> 0 | AL134: =VLOOKUP($AH134,Func_Ftrs,J$90,0)*IF(Variables!$Y$23=1,$AI134,$AJ134) -> 0 | AM134: =VLOOKUP($AH134,Func_Ftrs,K$90,0)*IF(Variables!$Y$23=1,$AI134,$AJ134) -> 0 | AN134: =VLOOKUP($AH134,Func_Ftrs,L$90,0)*IF(Variables!$Y$23=1,$AI134,$AJ134) -> 0 | AO134: =VLOOKUP($AH134,Func_Ftrs,M$90,0)*IF(Variables!$Y$23=1,$AI134,$AJ134) -> 0 | AP134: =VLOOKUP($AH134,Func_Ftrs,N$90,0)*IF(Variables!$Y$23=1,$AI134,$AJ134) -> 0 | AQ134: =VLOOKUP($AH134,Func_Ftrs,O$90,0)*IF(Variables!$Y$23=1,$AI134,$AJ134) -> 0 | AR134: =VLOOKUP($AH134,Func_Ftrs,P$90,0)*IF(Variables!$Y$23=1,$AI134,$AJ134) -> 0
A135: 19 | T135: Distribution | U135: D_SPLIT | V135: =Factors!C409 -> 0 | W135: =IF(Variables!$AO$3=12,Factors!H409+Factors!K409,CHOOSE(Variables!AO$3,Factors!D409,Factors!E409,Factors!F409,Factors!G409,Factors!H409,Factors!I409,Factors!J409,Factors!K409,Factors!L409,Factors!M409,Factors!N409)) -> 0 | X135: =VLOOKUP($U135,Func_Ftrs,I$90,0)*IF(Variables!$Y$23=1,$V135,$W135) -> 0 | Y135: =VLOOKUP($U135,Func_Ftrs,J$90,0)*IF(Variables!$Y$23=1,$V135,$W135) -> 0 | Z135: =VLOOKUP($U135,Func_Ftrs,K$90,0)*IF(Variables!$Y$23=1,$V135,$W135) -> 0 | AA135: =VLOOKUP($U135,Func_Ftrs,L$90,0)*IF(Variables!$Y$23=1,$V135,$W135) -> 0 | AB135: =VLOOKUP($U135,Func_Ftrs,M$90,0)*IF(Variables!$Y$23=1,$V135,$W135) -> 0 | AC135: =VLOOKUP($U135,Func_Ftrs,N$90,0)*IF(Variables!$Y$23=1,$V135,$W135) -> 0 | AD135: =VLOOKUP($U135,Func_Ftrs,O$90,0)*IF(Variables!$Y$23=1,$V135,$W135) -> 0 | AE135: =VLOOKUP($U135,Func_Ftrs,P$90,0)*IF(Variables!$Y$23=1,$V135,$W135) -> 0 | AG135: Distribution | AH135: D_SPLIT | AI135: 0 | AJ135: 0 | AK135: =VLOOKUP($AH135,Func_Ftrs,I$90,0)*IF(Variables!$Y$23=1,$AI135,$AJ135) -> 0 | AL135: =VLOOKUP($AH135,Func_Ftrs,J$90,0)*IF(Variables!$Y$23=1,$AI135,$AJ135) -> 0 | AM135: =VLOOKUP($AH135,Func_Ftrs,K$90,0)*IF(Variables!$Y$23=1,$AI135,$AJ135) -> 0 | AN135: =VLOOKUP($AH135,Func_Ftrs,L$90,0)*IF(Variables!$Y$23=1,$AI135,$AJ135) -> 0 | AO135: =VLOOKUP($AH135,Func_Ftrs,M$90,0)*IF(Variables!$Y$23=1,$AI135,$AJ135) -> 0 | AP135: =VLOOKUP($AH135,Func_Ftrs,N$90,0)*IF(Variables!$Y$23=1,$AI135,$AJ135) -> 0 | AQ135: =VLOOKUP($AH135,Func_Ftrs,O$90,0)*IF(Variables!$Y$23=1,$AI135,$AJ135) -> 0 | AR135: =VLOOKUP($AH135,Func_Ftrs,P$90,0)*IF(Variables!$Y$23=1,$AI135,$AJ135) -> 0
A136: 20 | D136: Total O & M Expenses | H136: =SUM(H125:H134) -> 1181293412 | I136: 926893963.8 | J136: 92662298.25 | K136: 110463287.2 | L136: -7913.837323 | M136: 19286550.18 | N136: =SUM(N125:N134) -> 14091307.11 | O136: =SUM(O125:O134) -> 16419057.43 | P136: =SUM(P125:P134) -> 8.81401516e-302 | T136: General | U136: G | V136: =Factors!C410 -> 0 | W136: =IF(Variables!$AO$3=12,Factors!H410+Factors!K410,CHOOSE(Variables!AO$3,Factors!D410,Factors!E410,Factors!F410,Factors!G410,Factors!H410,Factors!I410,Factors!J410,Factors!K410,Factors!L410,Factors!M410,Factors!N410)) -> 0 | X136: =VLOOKUP($U136,Func_Ftrs,I$90,0)*IF(Variables!$Y$23=1,$V136,$W136) -> 0 | Y136: =VLOOKUP($U136,Func_Ftrs,J$90,0)*IF(Variables!$Y$23=1,$V136,$W136) -> 0 | Z136: =VLOOKUP($U136,Func_Ftrs,K$90,0)*IF(Variables!$Y$23=1,$V136,$W136) -> 0 | AA136: =VLOOKUP($U136,Func_Ftrs,L$90,0)*IF(Variables!$Y$23=1,$V136,$W136) -> 0 | AB136: =VLOOKUP($U136,Func_Ftrs,M$90,0)*IF(Variables!$Y$23=1,$V136,$W136) -> 0 | AC136: =VLOOKUP($U136,Func_Ftrs,N$90,0)*IF(Variables!$Y$23=1,$V136,$W136) -> 0 | AD136: =VLOOKUP($U136,Func_Ftrs,O$90,0)*IF(Variables!$Y$23=1,$V136,$W136) -> 0 | AE136: =VLOOKUP($U136,Func_Ftrs,P$90,0)*IF(Variables!$Y$23=1,$V136,$W136) -> 0 | AG136: General | AH136: G | AI136: 0 | AJ136: 0 | AK136: =VLOOKUP($AH136,Func_Ftrs,I$90,0)*IF(Variables!$Y$23=1,$AI136,$AJ136) -> 0 | AL136: =VLOOKUP($AH136,Func_Ftrs,J$90,0)*IF(Variables!$Y$23=1,$AI136,$AJ136) -> 0 | AM136: =VLOOKUP($AH136,Func_Ftrs,K$90,0)*IF(Variables!$Y$23=1,$AI136,$AJ136) -> 0 | AN136: =VLOOKUP($AH136,Func_Ftrs,L$90,0)*IF(Variables!$Y$23=1,$AI136,$AJ136) -> 0 | AO136: =VLOOKUP($AH136,Func_Ftrs,M$90,0)*IF(Variables!$Y$23=1,$AI136,$AJ136) -> 0 | AP136: =VLOOKUP($AH136,Func_Ftrs,N$90,0)*IF(Variables!$Y$23=1,$AI136,$AJ136) -> 0 | AQ136: =VLOOKUP($AH136,Func_Ftrs,O$90,0)*IF(Variables!$Y$23=1,$AI136,$AJ136) -> 0 | AR136: =VLOOKUP($AH136,Func_Ftrs,P$90,0)*IF(Variables!$Y$23=1,$AI136,$AJ136) -> 0
A137: 21 | T137: Mining Plant | U137: P | V137: =Factors!C411 -> 0 | W137: =IF(Variables!$AO$3=12,Factors!H411+Factors!K411,CHOOSE(Variables!AO$3,Factors!D411,Factors!E411,Factors!F411,Factors!G411,Factors!H411,Factors!I411,Factors!J411,Factors!K411,Factors!L411,Factors!M411,Factors!N411)) -> 0 | X137: =VLOOKUP($U137,Func_Ftrs,I$90,0)*IF(Variables!$Y$23=1,$V137,$W137) -> 0 | Y137: =VLOOKUP($U137,Func_Ftrs,J$90,0)*IF(Variables!$Y$23=1,$V137,$W137) -> 0 | Z137: =VLOOKUP($U137,Func_Ftrs,K$90,0)*IF(Variables!$Y$23=1,$V137,$W137) -> 0 | AA137: =VLOOKUP($U137,Func_Ftrs,L$90,0)*IF(Variables!$Y$23=1,$V137,$W137) -> 0 | AB137: =VLOOKUP($U137,Func_Ftrs,M$90,0)*IF(Variables!$Y$23=1,$V137,$W137) -> 0 | AC137: =VLOOKUP($U137,Func_Ftrs,N$90,0)*IF(Variables!$Y$23=1,$V137,$W137) -> 0 | AD137: =VLOOKUP($U137,Func_Ftrs,O$90,0)*IF(Variables!$Y$23=1,$V137,$W137) -> 0 | AE137: =VLOOKUP($U137,Func_Ftrs,P$90,0)*IF(Variables!$Y$23=1,$V137,$W137) -> 0 | AG137: Mining Plant | AH137: P | AI137: 0 | AJ137: 0 | AK137: =VLOOKUP($AH137,Func_Ftrs,I$90,0)*IF(Variables!$Y$23=1,$AI137,$AJ137) -> 0 | AL137: =VLOOKUP($AH137,Func_Ftrs,J$90,0)*IF(Variables!$Y$23=1,$AI137,$AJ137) -> 0 | AM137: =VLOOKUP($AH137,Func_Ftrs,K$90,0)*IF(Variables!$Y$23=1,$AI137,$AJ137) -> 0 | AN137: =VLOOKUP($AH137,Func_Ftrs,L$90,0)*IF(Variables!$Y$23=1,$AI137,$AJ137) -> 0 | AO137: =VLOOKUP($AH137,Func_Ftrs,M$90,0)*IF(Variables!$Y$23=1,$AI137,$AJ137) -> 0 | AP137: =VLOOKUP($AH137,Func_Ftrs,N$90,0)*IF(Variables!$Y$23=1,$AI137,$AJ137) -> 0 | AQ137: =VLOOKUP($AH137,Func_Ftrs,O$90,0)*IF(Variables!$Y$23=1,$AI137,$AJ137) -> 0 | AR137: =VLOOKUP($AH137,Func_Ftrs,P$90,0)*IF(Variables!$Y$23=1,$AI137,$AJ137) -> 0
A138: 22 | D138: Depreciation | H138: =H1112 -> 225037819.5 | I138: 120210950.7 | J138: 38810544.73 | K138: 62239714.14 | L138: 0 | M138: 346146.0354 | N138: =N1112 -> 3066663.331 | O138: =O1112 -> 363800.5423 | P138: =P1112 -> 0
A139: 23 | D139: Amortization Expense | H139: =H1192 -> 18006041.02 | I139: 10116040.03 | J139: 899779.4225 | K139: 2431440.111 | L139: 0 | M139: 2141491.238 | N139: =N1192 -> 1227962.807 | O139: =O1192 -> 1189327.416 | P139: =P1192 -> 0 | T139: Total PC (Post Merger) | V139: =SUM(V131:V137) -> 0 | W139: 0 | X139: 0 | Y139: 0 | Z139: 0 | AA139: 0 | AB139: 0 | AC139: 0 | AD139: 0 | AE139: 0 | AG139: Total PC (Post Merger) | AI139: =SUM(AI131:AI137) -> 0 | AJ139: 0 | AK139: 0 | AL139: 0 | AM139: 0 | AN139: 0 | AO139: 0 | AP139: 0 | AQ139: 0 | AR139: 0
A140: 24 | D140: Taxes Other Than Income | H140: =H1220 -> 54314747.86 | I140: 24727008.64 | J140: 11128411.01 | K140: 15660623.99 | L140: -8014.533051 | M140: 373053.8949 | N140: =N1220 -> 708992.5982 | O140: =O1220 -> 220916.8513 | P140: =P1220 -> 8.926164759e-302
A141: 25 | D141: Income Taxes - Federal | H141: =H1429 -> -34970480.47 | I141: -226152354 | J141: -46355724.23 | K141: -36840339.34 | L141: -1384708.144 | M141: 1555558.084 | N141: =N1429 -> 1969602.219 | O141: =O1429 -> -4154250.699 | P141: =P1429 -> 1.542214994e-299 | T141: Total Deferred Taxes | V141: =V119+V128+V139 -> 0 | W141: 0 | X141: 0 | Y141: 0 | Z141: 0 | AA141: 0 | AB141: 0 | AC141: 0 | AD141: 0 | AE141: 0 | AG141: Total Deferred Taxes | AI141: =AI119+AI128+AI139 -> 0 | AJ141: 0 | AK141: 0 | AL141: 0 | AM141: 0 | AN141: 0 | AO141: 0 | AP141: 0 | AQ141: 0 | AR141: 0
A142: 26 | D142: Income Taxes - State | H142: =H1396 -> -51332075.23 | I142: -35794855.93 | J142: -8452531.617 | K142: -6717490.412 | L142: -252488.5451 | M142: 283641.4296 | N142: =N1396 -> 359138.4948 | O142: =O1396 -> -757488.659 | P142: =P1396 -> 2.812084421e-300
A143: 27 | D143: Income Taxes - Def Net | H143: =H1318 -> 49361695.13 | N143: =N1318 ->  | O143: =O1318 ->  | P143: =P1318 ->  | T143: DITEXPRL FACTOR | V143: =V141/V141 ->  | W143: =W141/W141 ->  | X143: =X141/IF(Variables!$Y$23=2,$W141,$V141) ->  | Y143: =Y141/IF(Variables!$Y$23=2,$W141,$V141) ->  | Z143: =Z141/IF(Variables!$Y$23=2,$W141,$V141) ->  | AA143: =AA141/IF(Variables!$Y$23=2,$W141,$V141) ->  | AB143: =AB141/IF(Variables!$Y$23=2,$W141,$V141) ->  | AC143: =AC141/IF(Variables!$Y$23=2,$W141,$V141) ->  | AD143: =AD141/IF(Variables!$Y$23=2,$W141,$V141) ->  | AE143: =AE141/IF(Variables!$Y$23=2,$W141,$V141) ->  | AG143: DITEXPMA FACTOR | AI143: =AI141/AI141 ->  | AJ143: =AJ141/AJ141 ->  | AK143: =AK141/IF(Variables!$Y$23=2,$AJ141,$AI141) ->  | AL143: =AL141/IF(Variables!$Y$23=2,$AJ141,$AI141) ->  | AM143: =AM141/IF(Variables!$Y$23=2,$AJ141,$AI141) ->  | AN143: =AN141/IF(Variables!$Y$23=2,$AJ141,$AI141) ->  | AO143: =AO141/IF(Variables!$Y$23=2,$AJ141,$AI141) ->  | AP143: =AP141/IF(Variables!$Y$23=2,$AJ141,$AI141) ->  | AQ143: =AQ141/IF(Variables!$Y$23=2,$AJ141,$AI141) ->  | AR143: =AR141/IF(Variables!$Y$23=2,$AJ141,$AI141) -> 
A144: 28 | D144: Investment Tax Credit Adj. | H144: =H1233 -> -1537975.334 | I144: -775489.0387 | J144: -338714.6125 | K144: -410920.8876 | L144: 0 | M144: 0 | N144: =N1233 -> -12850.79523 | O144: =O1233 -> 0 | P144: =P1233 -> 0
A145: 29 | D145: Misc Revenue & Expense | H145: =H332 -> -498052.1523 | I145: -1463253.854 | J145: -7939.708074 | K145: -4353.65155 | L145: 0 | M145: 977358.92 | N145: =N332 -> 136.141405 | O145: =O332 -> 0 | P145: =P332 -> 0
A146: 30
A147: 31 | D147: Total Operating Expenses | H147: =SUM(H136:H145) -> 1439675132 | N147: =SUM(N136:N145) ->  | O147: =SUM(O136:O145) ->  | P147: =SUM(P136:P145) -> 
A148: 32
A149: 33 | C149: Operating Revenue for Return | H149: =H122-H147 -> 545763470.4 | N149: =N122-N147 ->  | O149: =O122-O147 ->  | P149: =P122-P147 -> 
A150: 34
A151: 35 | C151: Rate Base:
A152: 36 | D152: Electric Plant in Service | H152: =H2051 -> 8842125212 | I152: 4063682584 | J152: 1938368726 | K152: 2628124230 | L152: 0 | M152: 57245475.9 | N152: =N2051 -> 117697993.3 | O152: =O2051 -> 37006203.09 | P152: =P2051 -> 0
A153: 37 | D153: Plant Held for Future Use | H153: =H2074 -> 14536948.95 | I153: 14870262.18 | J153: -3294545.973 | K153: 2871433.926 | L153: 0 | M153: 0 | N153: =N2074 -> 89798.81656 | O153: =O2074 -> 0 | P153: =P2074 -> 0
A154: 38 | D154: Misc Deferred Debits | H154: =H2182+H2193 -> 37637117.06 | I154: 16512933.97 | J154: 18427661.74 | K154: 1817641.341 | L154: 0 | M154: 239802.4928 | N154: 415233.686 | O154: 223843.8405 | P154: 0
A155: 39 | D155: Elec Plant Acq Adj | H155: =H2080+H2086 -> 22163328.02 | I155: 22163328.02 | J155: 0 | K155: 0 | L155: 0 | M155: 0 | N155: 0 | O155: 0 | P155: 0
A156: 40 | D156: Nuclear Fuel | H156: =H2090 -> 0 | I156: 0 | J156: 0 | K156: 0 | L156: 0 | M156: 0 | N156: =N2090 -> 0 | O156: =O2090 -> 0 | P156: =P2090 -> 0
A157: 41 | D157: Prepayments | H157: =H2172 -> 13687891.38 | I157: 7024409.95 | J157: 1374930.521 | K157: 3456901.935 | L157: 0 | M157: 480384.3509 | N157: =N2172 -> 867214.3789 | O157: =O2172 -> 484050.2441 | P157: =P2172 -> 0
A158: 42 | D158: Fuel Stock | H158: =H2137 -> 98533441.7 | I158: 98533441.7 | J158: 0 | K158: 0 | L158: 0 | M158: 0 | N158: =N2137 -> 0 | O158: =O2137 -> 0 | P158: =P2137 -> 0
A159: 43 | D159: Material & Supplies | H159: =H2164 -> 82305591.52 | I159: 66117065.53 | J159: 5559962.025 | K159: 10268218.25 | L159: 0 | M159: 0 | N159: =N2164 -> 360345.7174 | O159: =O2164 -> 0 | P159: =P2164 -> 0
A160: 44 | D160: Working Capital | H160: =H2220 -> 32443648.65 | I160: 15916037.69 | J160: 1944600.064 | K160: 9073014.549 | L160: -29269.58591 | M160: 1598727.619 | N160: =N2220 -> 2494740.011 | O160: =O2220 -> 1445798.309 | P160: =P2220 -> 0
A161: 45 | D161: Weatherization Loans | H161: =H2112 -> 4768445.435 | I161: 0 | J161: 0 | K161: 4768445.435 | L161: 0 | M161: 0 | N161: =N2112 -> 0 | O161: =O2112 -> 0 | P161: =P2112 -> 0
A162: 46 | D162: Miscellaneous Rate Base | H162: =H2240 -> 0 | I162: 0 | J162: 0 | K162: 0 | L162: 0 | M162: 0 | N162: =N2240 -> 0 | O162: =O2240 -> 0 | P162: =P2240 -> 0
A163: 47
A164: 48 | D164: Total Electric Plant | H164: =SUM(H152:H163) -> 9148201625 | I164: 4304820063 | J164: 1962381334 | K164: 2660379886 | L164: -29269.58591 | M164: 59564390.37 | N164: =SUM(N152:N163) -> 121925325.9 | O164: =SUM(O152:O163) -> 39159895.48 | P164: =SUM(P152:P163) -> 0
A165: 49
A166: 50 | C166: Rate Base Deductions:
A167: 51 | D167: Accum Prov For Depr | H167: =H2540 -> -2819010506 | I167: -1477401168 | J167: -517816206.6 | K167: -787155978.8 | L167: 0 | M167: -4805282.255 | N167: =N2540 -> -28950603.92 | O167: =O2540 -> -2881266.297 | P167: =P2540 -> 0
A168: 52 | D168: Accum Prov For Amort | H168: =H2589 -> -203642585.2 | I168: -66715157.08 | J168: -7787218.87 | K168: -48640452.24 | L168: 0 | M168: -36391937.44 | N168: =N2589 -> -22876457.64 | O168: =O2589 -> -21231361.98 | P168: =P2589 -> 0
A169: 53 | D169: Accum Def Income Taxes | H169: =H2337 -> -1398243730 | I169: -649666987 | J169: -311496716.8 | K169: -411632582.7 | L169: 0 | M169: -6098956.972 | N169: =N2337 -> -15402096.18 | O169: =O2337 -> -3946389.803 | P169: =P2337 -> 0
A170: 54 | D170: Unamortized ITC | H170: =H2347 -> -122298.677 | I170: -49438.53748 | J170: -5885.870515 | K170: -41582.32949 | L170: 0 | M170: -6654.795998 | N170: =N2347 -> -11972.72769 | O170: =O2347 -> -6764.415841 | P170: =P2347 -> 0
A171: 55 | D171: Customer Adv for Const | H171: =H2272 -> -9312617.282 | I171: 0 | J171: -6622603.125 | K171: -2608439.992 | L171: 0 | M171: 0 | N171: =N2272 -> -81574.16483 | O171: =O2272 -> 0 | P171: =P2272 -> 0
A172: 56 | D172: Customer Service Deposits | H172: =H2246 -> -15463869.23 | I172: 0 | J172: 0 | K172: 0 | L172: 0 | M172: -15463869.23 | N172: =N2246 -> 0 | O172: =O2246 -> 0 | P172: =P2246 -> 0
A173: 57 | D173: Misc. Rate Base Deductions | H173: =H2253+H2258+H2264+H2283+H2276 -> -14625684.27 | I173: =I2253+I2258+I2264+I2283+I2276 -> -10739562.04 | J173: -261041.5115 | K173: -2479079.855 | L173: 0 | M173: -295143.7687 | N173: -550851.6332 | O173: -300005.4675 | P173: 0
A174: 58
A175: 59 | D175: Total Rate Base Deductions | H175: =SUM(H167:H173) -> -4460421290 | I175: -2204572313 | J175: -843989672.8 | K175: -1252558116 | L175: 0 | M175: -63061844.46 | N175: =SUM(N167:N173) -> -67873556.27 | O175: =SUM(O167:O173) -> -28365787.96 | P175: =SUM(P167:P173) -> 0
A176: 60 | R176: Functional Retail Revenue Spread
A177: 61 | C177: Total Rate Base | H177: =H164+H175 -> 4687780334 | I177: 2100247750 | J177: 1118391661 | K177: 1407821770 | L177: =MAX(L164+L175,1) -> 1 | M177: -3497454.097 | N177: =N164+N175 -> 54051769.63 | O177: =O164+O175 -> 10794107.52 | P177: =P164+P175 -> 0 | S177: =$I$115 -> Production | T177: =$J$115 -> Transmission | U177: =$K$115 -> Distribution | V177: =$L$115 -> Ancillary | W177: =$M$115 -> C_Billing | X177: =$N$115 -> C_Metering | Y177: =$O$115 -> C_Service | Z177: =$P$115 -> DSM
A178: 62 | R178: California
A179: 63 | C179: Return on Rate Base | H179: =H149/H177 -> 0.1164225777 | P179: 0 | R179: Washington
A180: 64 | R180: Montana
A181: 65 | C181: Return on Equity | H181: =(+H179-Variables!$AT$3-Variables!$AT$4)/Variables!$AT$5 -> 0.1726962671 | I181: =(+I179-Variables!$AT$3-Variables!$AT$4)/Variables!$AT$5 ->  | J181: =(+J179-Variables!$AT$3-Variables!$AT$4)/Variables!$AT$5 ->  | K181: =(+K179-Variables!$AT$3-Variables!$AT$4)/Variables!$AT$5 ->  | L181: =(+L179-Variables!$AT$3-Variables!$AT$4)/Variables!$AT$5 ->  | M181: =(+M179-Variables!$AT$3-Variables!$AT$4)/Variables!$AT$5 ->  | N181: =(+N179-Variables!$AT$3-Variables!$AT$4)/Variables!$AT$5 ->  | O181: =(+O179-Variables!$AT$3-Variables!$AT$4)/Variables!$AT$5 ->  | P181: 0 | R181: Wyoming - East | S181: 127802829 | T181: 31696874 | U181: 50094096.44 | V181: 46928984 | W181: 1555189 | X181: 1610923.44
A182: 66 | R182: Utah | S182: 366003980 | T182: 104207074 | U182: 215005203.7 | V182: 197478510 | W182: 11984031 | X182: 5542662.72
A183: 67 | C183: 100 Basis Points in Equity: | H183: =(H177*(Variables!$AT5*(H181+0.01)+Variables!$AT3+Variables!$AT4))-H149 -> 24376457.74 | I183: =(I177*(Variables!AT5*(I181+0.01)+Variables!AT3+Variables!AT4))-I149 ->  | J183: =(J177*(Variables!AU5*(J181+0.01)+Variables!AU3+Variables!AU4))-J149 ->  | K183: =(K177*(Variables!$AV5*(K181+0.01)+Variables!$AV3+Variables!$AV4))-K149 ->  | L183: =(L177*(Variables!$AV5*(L181+0.01)+Variables!$AV3+Variables!$AV4))-L149 ->  | M183: =(M177*(Variables!$AV5*(M181+0.01)+Variables!$AV3+Variables!$AV4))-M149 ->  | N183: =(N177*(Variables!$AV5*(N181+0.01)+Variables!$AV3+Variables!$AV4))-N149 ->  | O183: =(O177*(Variables!$AV5*(O181+0.01)+Variables!$AV3+Variables!$AV4))-O149 ->  | P183: =(P177*(Variables!$AV5*(P181+0.01)+Variables!$AV3+Variables!$AV4))-P149 ->  | R183: Idaho | S183: 55561275 | T183: 14318016 | U183: 30397767.02 | V183: 27273473 | W183: 2038247 | X183: 1086047.02
A184: 68 | D184: Revenue Requirement Impact | H184: =H183*(1/(1-(INDEX(Variables!$F$15:$Q$15,1,Variables!$AO$3)))) -> 39285818.85 | I184: =I183*(1/(1-(INDEX(Variables!$F$15:$Q$15,1,Variables!$AO$3)))) ->  | J184: =J183*(1/(1-(INDEX(Variables!$F$15:$Q$15,1,Variables!$AO$3)))) ->  | K184: =K183*(1/(1-(INDEX(Variables!$F$15:$Q$15,1,Variables!$AO$3)))) ->  | L184: =L183*(1/(1-(INDEX(Variables!$F$15:$Q$15,1,Variables!$AO$3)))) ->  | M184: =M183*(1/(1-(INDEX(Variables!$F$15:$Q$15,1,Variables!$AO$3)))) ->  | N184: =N183*(1/(1-(INDEX(Variables!$F$15:$Q$15,1,Variables!$AO$3)))) ->  | O184: =O183*(1/(1-(INDEX(Variables!$F$15:$Q$15,1,Variables!$AO$3)))) ->  | P184: =P183*(1/(1-(INDEX(Variables!$F$15:$Q$15,1,Variables!$AO$3)))) ->  | R184: Wyoming - West | S184: 19756255.66 | T184: 5006765.992 | U184: 9963427.118 | V184: 8733400.13 | W184: 996768.2125 | X184: 233258.5417
A185: 69 | D185: Rate Base Decrease | H185: =(H149/(Variables!$AT5*(H181+0.01)+UTCR!$J7+UTCR!$J12))-H177 -> -200427076.9 | I185: =(I149/(Variables!$AT5*(I181+0.01)+UTCR!$J7+UTCR!$J12))-I177 ->  | J185: =(J149/(Variables!$AU5*(J181+0.01)+UTCR!$J7+UTCR!$J12))-J177 ->  | K185: =(K149/(Variables!$AV5*(K181+0.01)+UTCR!$J7+UTCR!$J12))-K177 ->  | L185: =(L149/(Variables!$AV5*(L181+0.01)+UTCR!$J7+UTCR!$J12))-L177 ->  | M185: =(M149/(Variables!$AV5*(M181+0.01)+UTCR!$J7+UTCR!$J12))-M177 ->  | N185: =(N149/(Variables!$AV5*(N181+0.01)+UTCR!$J7+UTCR!$J12))-N177 ->  | O185: =(O149/(Variables!$AV5*(O181+0.01)+UTCR!$J7+UTCR!$J12))-O177 ->  | P185: =(P149/(Variables!$AV5*(P181+0.01)+UTCR!$J7+UTCR!$J12))-P177 ->  | R185: Total Company | S185: 1110556694 | T185: 308995072.2 | U185: 611877930.3 | V185: 566002564.9 | W185: 14881002.1 | X185: 30994363.59
C186: =$C$111 -> RESULTS OF OPERATIONS SUMMARY | AA186: Check Total
C187: =+$C$114 -> 2010 PROTOCOL | S187: =($H179-I179)*I177*(1/(1-Variables!$F$15)) ->  | T187: =($H179-J179)*J177*(1/(1-Variables!$F$15)) ->  | U187: =($H179-K179)*K177*(1/(1-Variables!$F$15)) ->  | V187: =($H179-L179)*L177*(1/(1-Variables!$F$15)) ->  | W187: =($H179-M179)*M177*(1/(1-Variables!$F$15)) ->  | X187: =($H179-N179)*N177*(1/(1-Variables!$F$15)) ->  | Y187: =($H179-O179)*O177*(1/(1-Variables!$F$15)) ->  | Z187: =($H179-P179)*P177*(1/(1-Variables!$F$15)) -> 0 | AA187: =ABS(SUM(S187:Z187)) -> 
C188: FERC | F188: BUSINESS | G188: PITA | H188: =$H$114 -> UTAH | S188: =S187+I192 ->  | Z188: 4.705277175e-299 | AA188: =SUM(S188:Z188) -> 
C189: ACCT | E189: DESCRIPTION | F189: FUNCTION | G189: FACTOR | H189: =$H$115 -> Normalized | I189: =$I$115 -> Production | J189: =$J$115 -> Transmission | K189: =$K$115 -> Distribution | L189: =$L$115 -> Ancillary | M189: =$M$115 -> C_Billing | N189: =$N$115 -> C_Metering | O189: =$O$115 -> C_Service | P189: =$P$115 -> DSM | Q189: Check | S189: =$I$115 -> Production | T189: =$J$115 -> Transmission | U189: =$K$115 -> Distribution | V189: =$L$115 -> Ancillary | W189: Customer | X189: DSM
A190: 70 | C190: Sales to Ultimate Customers | Q190: Figure | R190: Variance
A191: 71 | C191: 440 | D191: Residential Sales | I191: =($H179-I179)*I177*(1/(1-Variables!$F$15)) ->  | J191: =($H179-J179)*J177*(1/(1-Variables!$F$15)) ->  | K191: =($H179-K179)*K177*(1/(1-Variables!$F$15)) ->  | L191: =($H179-L179)*L177*(1/(1-Variables!$F$15)) ->  | M191: =($H179-M179)*M177*(1/(1-Variables!$F$15)) ->  | N191: =($H179-N179)*N177*(1/(1-Variables!$F$15)) ->  | O191: =($H179-O179)*O177*(1/(1-Variables!$F$15)) ->  | P191: =($H179-P179)*P177*(1/(1-Variables!$F$15)) -> 0 | Q191: =H117 -> 1742020594
A192: 72 | G192: =UTCR!H192 -> S | H192: =IF(Variables!$Y$23=2,Report!P192,NRO!I192) -> 649974944.8 | I192: 652206238.2 | J192: 43324568.75 | K192: 194817363.5 | L192: 6949653.101 | M192: 20138960.93 | N192: 25075718.33 | O192: 6828800.312 | P192: 4.705277175e-299 | Q192: =SUM(I192:P192) -> 949341303.1 | R192: =ROUND(Q191-Q192,0) -> 792679291 | S192: =IF($F192=0,0,INDEX($I192:$P192,1,1)) -> 0 | T192: =IF($F192=0,0,INDEX($I192:$P192,1,2)) -> 0 | U192: =IF($F192=0,0,INDEX($I192:$P192,1,3)) -> 0 | V192: =IF($F192=0,0,INDEX($I192:$P192,1,4)) -> 0 | W192: =IF($F192=0,0,INDEX($I192:$P192,1,5)) -> 0 | X192: =IF($F192=0,0,INDEX($I192:$P192,1,6)) -> 0
A193: 73 | S193: 0 | T193: 0 | U193: 0 | V193: 0 | W193: 0 | X193: 0
A194: 74 | H194: =SUBTOTAL(9,H192:H193) -> 649974944.8 | S194: 0 | T194: 0 | U194: 0 | V194: 0 | W194: 0 | X194: 0
A195: 75 | S195: 0 | T195: 0 | U195: 0 | V195: 0 | W195: 0 | X195: 0
A196: 76 | C196: 442 | D196: Commercial & Industrial Sales | S196: 0 | T196: 0 | U196: 0 | V196: 0 | W196: 0 | X196: 0
A197: 77 | G197: =UTCR!H197 -> S | H197: =IF(Variables!$Y$23=2,Report!P197,NRO!I197) -> 1064275002 | S197: 0 | T197: 0 | U197: 0 | V197: 0 | W197: 0 | X197: 0
A198: 78 | F198: P | G198: =UTCR!H198 -> SE | H198: =IF(Variables!$Y$23=2,Report!P198,NRO!I198) -> 0 | I198: =IF(F198=(VLOOKUP(F198,Func_Ftrs,1)),VLOOKUP(F198,Func_Ftrs,5),"#N/A")*H198 -> 0 | J198: =IF(F198=(VLOOKUP(F198,Func_Ftrs,1)),VLOOKUP(F198,Func_Ftrs,6),"#N/A")*H198 -> 0 | K198: =IF(F198=(VLOOKUP(F198,Func_Ftrs,1)),VLOOKUP(F198,Func_Ftrs,7),"#N/A")*H198 -> 0 | L198: =IF(F198=(VLOOKUP(F198,Func_Ftrs,1)),VLOOKUP(F198,Func_Ftrs,8),"#N/A")*H198 -> 0 | M198: =IF(F198=(VLOOKUP(F198,Func_Ftrs,1)),VLOOKUP(F198,Func_Ftrs,9),"#N/A")*H198 -> 0 | N198: =IF($F198=(VLOOKUP($F198,Func_Ftrs,1)),VLOOKUP($F198,Func_Ftrs,10),"#N/A")*$H198 -> 0 | O198: =IF($F198=(VLOOKUP($F198,Func_Ftrs,1)),VLOOKUP($F198,Func_Ftrs,11),"#N/A")*$H198 -> 0 | P198: =IF($F198=(VLOOKUP($F198,Func_Ftrs,1)),VLOOKUP($F198,Func_Ftrs,12),"#N/A")*$H198 -> 0 | S198: 0 | T198: 0 | U198: 0 | V198: 0 | W198: 0 | X198: 0
A199: 79 | F199: PT | G199: =UTCR!H199 -> SG | H199: =IF(Variables!$Y$23=2,Report!P199,NRO!I199) -> 0 | I199: =IF(F199=(VLOOKUP(F199,Func_Ftrs,1,0)),VLOOKUP(F199,Func_Ftrs,5,0),"#N/A")*H199 -> 0 | J199: =IF(F199=(VLOOKUP(F199,Func_Ftrs,1,0)),VLOOKUP(F199,Func_Ftrs,6,0),"#N/A")*H199 -> 0 | K199: =IF(F199=(VLOOKUP(F199,Func_Ftrs,1,0)),VLOOKUP(F199,Func_Ftrs,7,0),"#N/A")*H199 -> 0 | L199: =IF(F199=(VLOOKUP(F199,Func_Ftrs,1,0)),VLOOKUP(F199,Func_Ftrs,8,0),"#N/A")*H199 -> 0 | M199: =IF(F199=(VLOOKUP(F199,Func_Ftrs,1,0)),VLOOKUP(F199,Func_Ftrs,9,0),"#N/A")*H199 -> 0 | N199: =IF($F199=(VLOOKUP($F199,Func_Ftrs,1,0)),VLOOKUP($F199,Func_Ftrs,10,0),"#N/A")*$H199 -> 0 | O199: =IF($F199=(VLOOKUP($F199,Func_Ftrs,1,0)),VLOOKUP($F199,Func_Ftrs,11,0),"#N/A")*$H199 -> 0 | P199: =IF($F199=(VLOOKUP($F199,Func_Ftrs,1,0)),VLOOKUP($F199,Func_Ftrs,12,0),"#N/A")*$H199 -> 0 | S199: 0 | T199: 0 | U199: 0 | V199: 0 | W199: 0 | X199: 0
A200: 80 | S200: 0 | T200: 0 | U200: 0 | V200: 0 | W200: 0 | X200: 0
A201: 81 | S201: 0 | T201: 0 | U201: 0 | V201: 0 | W201: 0 | X201: 0
A202: 82 | H202: =SUBTOTAL(9,H197:H200) -> 1064275002 | I202: 0 | J202: 0 | K202: 0 | L202: 0 | M202: 0 | N202: =SUBTOTAL(9,N197:N200) -> 0 | O202: =SUBTOTAL(9,O197:O200) -> 0 | P202: =SUBTOTAL(9,P197:P200) -> 0 | S202: 0 | T202: 0 | U202: 0 | V202: 0 | W202: 0 | X202: 0
A203: 83 | S203: 0 | T203: 0 | U203: 0 | V203: 0 | W203: 0 | X203: 0
A204: 84 | C204: 444 | D204: Public Street & Highway Lighting | S204: 0 | T204: 0 | U204: 0 | V204: 0 | W204: 0 | X204: 0
A205: 85 | G205: =UTCR!H205 -> S | H205: =IF(Variables!$Y$23=2,Report!P205,NRO!I205) -> 10140626.13 | S205: 0 | T205: 0 | U205: 0 | V205: 0 | W205: 0 | X205: 0
... 2384 more rows

Sheet Results
A1: =VLOOKUP(VLOOKUP(Variables!$AO$3,Variables!$AL$3:'Variables'!$AL$14,1,FALSE),Variables!$AL$3:'Variables'!$AP$14,5,FALSE) -> Rocky Mountain Power | G1: Page 1.1
A2: =Report!I56 -> UTAH
A3: ="Normalized Results of Operations - "&Variables!AE27 -> Normalized Results of Operations - 2010 PROTOCOL
A4: =PROPER(Report!I57) -> Twelve Months Ended Jun 30, 2012
A7: (1) | B7: ="Test Period "& PROPER(Variables!AE27)&" Revenue Requirement" -> Test Period 2010 Protocol Revenue Requirement | E7: =E43 -> 1835744510 | F7: Page 1.2
A9: (2) | B9: Normalized General Business Revenues | E9: =C43 -> 1742020594 | F9: Page 1.2
A11: (3) | B11: =PROPER(Variables!AE27)&" Price Change" -> 2010 Protocol Price Change | E11: =D43 -> 93723916.19 | F11: Page 1.2
A34: =VLOOKUP(VLOOKUP(Variables!$AO$3,Variables!$AL$3:'Variables'!$AL$14,1,FALSE),Variables!$AL$3:'Variables'!$AP$14,5,FALSE) -> Rocky Mountain Power | G34: Page 1.2
A35: =Report!I56 -> UTAH
A36: ="Normalized Results of Operations - "&Variables!AE27 -> Normalized Results of Operations - 2010 PROTOCOL
A37: =A4 -> Twelve Months Ended Jun 30, 2012
C39: (1) | D39: (2) | E39: (3)
C40: Total Adjusted | E40: Results with | L40: PREVIOUS | M40: ADJUSTED
C41: Results | D41: Price Change | E41: Price Change | L41: RESULTS | M41: RESULTS | N41: DIFFERENCE
A42: 1 | B42: Operating Revenues: | J42: 1 | K42: Operating Revenues:
A43: 2 | B43: General Business Revenues | C43: =Report!P118 -> 1742020594 | D43: =-(C74-(C102*Report!J96))*(1/NetToGross) -> 93723916.19 | E43: =SUM(C43:D43) -> 1835744510 | J43: 2 | K43: General Business Revenues | L43: 1742020594 | M43: =C43 -> 1742020594 | N43: =M43-L43 -> 0
A44: 3 | B44: Interdepartmental | C44: =Report!P119 -> 0 | J44: 3 | K44: Interdepartmental | L44: 0 | M44: =C44 -> 0 | N44: =M44-L44 -> 0
A45: 4 | B45: Special Sales | C45: =Report!P120 -> 140981491.5 | J45: 4 | K45: Special Sales | L45: 140981491.5 | M45: =C45 -> 140981491.5 | N45: =M45-L45 -> 0
A46: 5 | B46: Other Operating Revenues | C46: =Report!P121 -> 102436517.5 | J46: 5 | K46: Other Operating Revenues | L46: 102436517.5 | M46: =C46 -> 102436517.5 | N46: =M46-L46 -> 0
A47: 6 | B47: Total Operating Revenues | C47: =SUM(C43:C46) -> 1985438603 | J47: 6 | K47: Total Operating Revenues | L47: 1985438603 | M47: =C47 -> 1985438603 | N47: =M47-L47 -> 0
A48: 7 | J48: 7
A49: 8 | B49: Operating Expenses: | J49: 8 | K49: Operating Expenses:
A50: 9 | B50: Steam Production | C50: =Report!P125 -> 435033082.7 | J50: 9 | K50: Steam Production | L50: 435033082.7 | M50: =C50 -> 435033082.7 | N50: =M50-L50 -> 0
A51: 10 | B51: Nuclear Production | C51: =Report!P126 -> 0 | J51: 10 | K51: Nuclear Production | L51: 0 | M51: 0 | N51: 0
A52: 11 | B52: Hydro Production | C52: =Report!P127 -> 16413240.32 | J52: 11 | K52: Hydro Production | L52: 16413240.32 | M52: 16413240.32 | N52: 0
A53: 12 | B53: Other Power Supply | C53: =Report!P128 -> 496811089.2 | J53: 12 | K53: Other Power Supply | L53: 496811089.2 | M53: 496811089.2 | N53: 0
A54: 13 | B54: Transmission | C54: =Report!P129 -> 87465469.99 | J54: 13 | K54: Transmission | L54: 87465469.99 | M54: 87465469.99 | N54: 0
A55: 14 | B55: Distribution | C55: =Report!P130 -> 87092561.37 | J55: 14 | K55: Distribution | L55: 87092561.37 | M55: 87092561.37 | N55: 0
A56: 15 | B56: Customer Accounting | C56: =Report!P131 -> 37538932.21 | D56: =D43*UncollectibleAccounts -> 192995.8774 | E56: =SUM(C56:D56) -> 37731928.09 | J56: 15 | K56: Customer Accounting | L56: 37538932.21 | M56: 37538932.21 | N56: 0
A57: 16 | B57: Customer Service & Info | C57: =Report!P132 -> 5962391.712 | J57: 16 | K57: Customer Service & Info | L57: 5962391.712 | M57: 5962391.712 | N57: 0
A58: 17 | B58: Sales | C58: =Report!P133 -> 0 | J58: 17 | K58: Sales | L58: 0 | M58: 0 | N58: 0
A59: 18 | B59: Administrative & General | C59: =Report!P134 -> 59356693.19 | J59: 18 | K59: Administrative & General | L59: 59356693.19 | M59: 59356693.19 | N59: 0
A60: 19 | J60: 19
A61: 20 | B61: Total O&M Expenses | C61: =Report!P136 -> 1225673461 | J61: 20 | K61: Total O&M Expenses | L61: 1225673461 | M61: =C61 -> 1225673461 | N61: =M61-L61 -> 0
A62: 21 | J62: 21
A63: 22 | B63: Depreciation | C63: =Report!P138 -> 225037819.5 | J63: 22 | K63: Depreciation | L63: 225037819.5 | M63: =C63 -> 225037819.5 | N63: =M63-L63 -> 0
A64: 23 | B64: Amortization | C64: =Report!P139 -> 18006041.02 | J64: 23 | K64: Amortization | L64: 18006041.02 | M64: 18006041.02 | N64: 0
A65: 24 | B65: Taxes Other Than Income | C65: =Report!P140 -> 54314747.86 | D65: =((D43)*(FranchiseTax+RevenueTax+ResourceSupplier+GrossReceipts)) -> 0 | E65: =SUM(C65:D65) -> 54314747.86 | J65: 24 | K65: Taxes Other Than Income | L65: 54314747.86 | M65: 54314747.86 | N65: 0
A66: 25 | B66: Income Taxes - Federal | C66: =Report!P141 -> -58838696.31 | D66: =(D43-D56-D65-D67)*Report!J78 -> 31249615.79 | E66: =SUM(C66:D66) -> -27589080.53 | J66: 25 | K66: Income Taxes - Federal | L66: -58838696.31 | M66: -58838696.31 | N66: 0
A67: 26 | B67: Income Taxes - State | C67: =Report!P142 -> -3958009.874 | D67: =(D43-D56-D65)*Report!J79 -> 4246303.782 | E67: =SUM(C67:D67) -> 288293.9082 | J67: 26 | K67: Income Taxes - State | L67: -3958009.874 | M67: -3958009.874 | N67: 0
A68: 27 | B68: Income Taxes - Def Net | C68: =Report!P143 -> 157135953.3 | J68: 27 | K68: Income Taxes - Def Net | L68: 157135953.3 | M68: 157135953.3 | N68: 0
A69: 28 | B69: Investment Tax Credit Adj. | C69: =Report!P144 -> -1537975.334 | J69: 28 | K69: Investment Tax Credit Adj. | L69: -1537975.334 | M69: -1537975.334 | N69: 0
A70: 29 | B70: Misc Revenue & Expense | C70: =Report!P145 -> -498052.1523 | J70: 29 | K70: Misc Revenue & Expense | L70: -498052.1523 | M70: =C70 -> -498052.1523 | N70: 0
A71: 30 | J71: 30
A72: 31 | B72: Total Operating Expenses: | C72: =Report!P147 -> 1615335289 | D72: =SUM(D56,D65:D67) -> 35688915.45 | E72: =C72+D72 -> 1651024204 | J72: 31 | K72: Total Operating Expenses: | L72: 1615335289 | M72: =C72 -> 1615335289 | N72: =M72-L72 -> 0
A73: 32 | J73: 32
A74: 33 | B74: Operating Rev For Return: | C74: =C47-C72 -> 370103314.1 | D74: =D43-D72 -> 58035000.74 | E74: =(C74+D43-D56-D65-D66-D67) -> 428138314.8 | J74: 33 | K74: Operating Rev For Return: | L74: 370103314.1 | M74: =C74 -> 370103314.1 | N74: =M74-L74 -> 0
A75: 34 | J75: 34
A76: 35 | B76: Rate Base: | J76: 35 | K76: Rate Base:
A77: 36 | B77: Electric Plant In Service | C77: =Report!P152 -> 9672977055 | J77: 36 | K77: Electric Plant In Service | L77: 9672977055 | M77: =C77 -> 9672977055 | N77: =M77-L77 -> 0
A78: 37 | B78: Plant Held for Future Use | C78: =Report!P153 -> 14536948.95 | J78: 37 | K78: Plant Held for Future Use | L78: 14536948.95 | M78: 14536948.95 | N78: 0
A79: 38 | B79: Misc Deferred Debits | C79: =Report!P154 -> 37637117.06 | J79: 38 | K79: Misc Deferred Debits | L79: 37637117.06 | M79: 37637117.06 | N79: 0
A80: 39 | B80: Elec Plant Acq Adj | C80: =Report!P155 -> 22163328.02 | J80: 39 | K80: Elec Plant Acq Adj | L80: 22163328.02 | M80: 22163328.02 | N80: 0
A81: 40 | B81: Nuclear Fuel | C81: =Report!P156 -> 0 | J81: 40 | K81: Nuclear Fuel | L81: 0 | M81: 0 | N81: 0
A82: 41 | B82: Prepayments | C82: =Report!P157 -> 13687891.38 | J82: 41 | K82: Prepayments | L82: 13687891.38 | M82: 13687891.38 | N82: 0
A83: 42 | B83: Fuel Stock | C83: =Report!P158 -> 98533441.7 | J83: 42 | K83: Fuel Stock | L83: 98533441.7 | M83: 98533441.7 | N83: 0
A84: 43 | B84: Material & Supplies | C84: =Report!P159 -> 82305591.52 | J84: 43 | K84: Material & Supplies | L84: 82305591.52 | M84: 82305591.52 | N84: 0
A85: 44 | B85: Working Capital | C85: =Report!P160 -> 32443648.65 | J85: 44 | K85: Working Capital | L85: 32443648.65 | M85: 32443648.65 | N85: 0
A86: 45 | B86: Weatherization Loans | C86: =Report!P161 -> 4768445.435 | J86: 45 | K86: Weatherization Loans | L86: 4768445.435 | M86: 4768445.435 | N86: 0
A87: 46 | B87: Misc Rate Base | C87: =Report!P162 -> 0 | J87: 46 | K87: Misc Rate Base | L87: 0 | M87: 0 | N87: 0
A88: 47 | J88: 47
A89: 48 | B89: Total Electric Plant: | C89: =Report!P164 -> 9979053467 | D89: 0 | E89: =SUM(C89:D89) -> 9979053467 | J89: 48 | K89: Total Electric Plant: | L89: 9979053467 | M89: =C89 -> 9979053467 | N89: =M89-L89 -> 0
A90: 49 | J90: 49
A91: 50 | B91: Rate Base Deductions: | J91: 50 | K91: Rate Base Deductions:
A92: 51 | B92: Accum Prov For Deprec | C92: =Report!P167 -> -2819010927 | J92: 51 | K92: Accum Prov For Deprec | L92: -2819010927 | M92: =C92 -> -2819010927 | N92: =M92-L92 -> 0
A93: 52 | B93: Accum Prov For Amort | C93: =Report!P168 -> -203642585.2 | J93: 52 | K93: Accum Prov For Amort | L93: -203642585.2 | M93: -203642585.2 | N93: 0
A94: 53 | B94: Accum Def Income Tax | C94: =Report!P169 -> -1398243730 | J94: 53 | K94: Accum Def Income Tax | L94: -1398243730 | M94: -1398243730 | N94: 0
A95: 54 | B95: Unamortized ITC | C95: =Report!P170 -> -122298.677 | J95: 54 | K95: Unamortized ITC | L95: -122298.677 | M95: -122298.677 | N95: 0
A96: 55 | B96: Customer Adv For Const | C96: =Report!P171 -> -9312617.282 | J96: 55 | K96: Customer Adv For Const | L96: -9312617.282 | M96: -9312617.282 | N96: 0
A97: 56 | B97: Customer Service Deposits | C97: =Report!P172 -> -15463869.23 | J97: 56 | K97: Customer Service Deposits | L97: -15463869.23 | M97: -15463869.23 | N97: 0
A98: 57 | B98: Misc Rate Base Deductions | C98: =Report!P173 -> -14625684.27 | J98: 57 | K98: Misc Rate Base Deductions | L98: -14625684.27 | M98: -14625684.27 | N98: 0
A99: 58 | J99: 58
A100: 59 | B100: Total Rate Base Deductions | C100: =Report!P175 -> -4460421711 | D100: 0 | E100: =SUM(C100:D100) -> -4460421711 | J100: 59 | K100: Total Rate Base Deductions | L100: -4460421711 | M100: =C100 -> -4460421711 | N100: =M100-L100 -> 0
A101: 60 | J101: 60
A102: 61 | B102: Total Rate Base: | C102: =SUM(C89,C100) -> 5518631756 | D102: 0 | E102: =SUM(C102:D102) -> 5518631756 | J102: 61 | K102: Total Rate Base: | L102: 5518631756 | M102: =C102 -> 5518631756 | N102: =M102-L102 -> 0
A103: 62 | J103: 62
A104: 63 | B104: Return on Rate Base | C104: =C74/C102 -> 0.06706432508 | E104: =E74/E102 -> 0.07758051882 | J104: 63 | K104: Return on Rate Base | L104: 0.06706432508 | M104: =C104 -> 0.06706432508 | N104: =M104-L104 -> 0
A105: 64 | J105: 64
A106: 65 | B106: Return on Equity | C106: =(+C104-UTCR!L7-UTCR!L12)/UTCR!L15 -> 0.07777655049 | E106: =(+E104-UTCR!L7-UTCR!L12)/UTCR!L15 -> 0.098 | J106: 65 | K106: Return on Equity | L106: 0.07777655049 | M106: =C106 -> 0.07777655049 | N106: =M106-L106 -> 0
A107: 66 | J107: 66
A108: 67 | B108: TAX CALCULATION: | J108: 67 | K108: TAX CALCULATION:
A109: 68 | B109: Operating Revenue | C109: =C47-C61-C63-C64-C65-C70 -> 462904585.8 | D109: =D43-D56-D65 -> 93530920.31 | E109: =SUM(C109:D109) -> 556435506.2 | J109: 68 | K109: Operating Revenue | L109: 462904585.8 | M109: =C109 -> 462904585.8 | N109: =M109-L109 -> 0
A110: 69 | B110: Other Deductions | J110: 69 | K110: Other Deductions
A111: 70 | B111: Interest (AFUDC) | C111: =Report!P1285 -> -23559211.6 | D111: 0 | E111: =SUM(C111:D111) -> -23559211.6 | J111: 70 | K111: Interest (AFUDC) | L111: -23559211.6 | M111: =C111 -> -23559211.6 | N111: =M111-L111 -> 0
A112: 71 | B112: Interest | C112: =Report!P1269 -> 142243831.9 | D112: 0 | E112: =SUM(C112:D112) -> 142243831.9 | J112: 71 | K112: Interest | L112: 142243831.9 | M112: =C112 -> 142243831.9 | N112: =M112-L112 -> 0
A113: 72 | B113: Schedule "M" Additions | C113: =Report!P1364 -> 326581036.3 | D113: 0 | E113: =SUM(C113:D113) -> 326581036.3 | J113: 72 | K113: Schedule "M" Additions | L113: 326581036.3 | M113: =C113 -> 326581036.3 | N113: =M113-L113 -> 0
A114: 73 | B114: Schedule "M" Deductions | C114: =Report!P1395 -> 756407526.8 | D114: 0 | E114: =SUM(C114:D114) -> 756407526.8 | J114: 73 | K114: Schedule "M" Deductions | L114: 756407526.8 | M114: =C114 -> 756407526.8 | N114: =M114-L114 -> 0
A115: 74 | B115: Income Before Tax | C115: =C109-C111-C112+C113-C114 -> -85606524.98 | D115: =D109-D111-D112+D113-D114 -> 93530920.31 | E115: =E109-E111-E112+E113-E114 -> 7924395.331 | J115: 74 | K115: Income Before Tax | L115: -85606524.98 | M115: =C115 -> -85606524.98 | N115: =M115-L115 -> 0
A116: 75 | J116: 75
A117: 76 | B117: State Income Taxes | C117: =C67 -> -3958009.874 | D117: =D67 -> 4246303.782 | E117: =SUM(C117:D117) -> 288293.9082 | J117: 76 | K117: State Income Taxes | L117: -3958009.874 | M117: =C117 -> -3958009.874 | N117: =M117-L117 -> 0
A118: 77 | B118: Taxable Income | C118: =C115-C117 -> -81648515.11 | D118: =D115-D117 -> 89284616.53 | E118: =E115-E117 -> 7636101.423 | J118: 77 | K118: Taxable Income | L118: -81648515.11 | M118: =C118 -> -81648515.11 | N118: =M118-L118 -> 0
A119: 78 | J119: 78
A120: 79 | B120: Federal Income Taxes + Other | C120: =C66 -> -58838696.31 | D120: =D66 -> 31249615.79 | E120: =SUM(C120:D120) -> -27589080.53 | J120: 79 | K120: Federal Income Taxes + Other | L120: -58838696.31 | M120: =C120 -> -58838696.31 | N120: =M120-L120 -> 0
C122: Ref. Page 2.2 | K122: PRICE CHANGE | L122: 93723916.19 | M122: =D43 -> 93723916.19 | N122: =M122-L122 -> 0
A124: =A34 -> Rocky Mountain Power | G124: Page 1.3
A125: =+A35 -> UTAH
A126: =A36 -> Normalized Results of Operations - 2010 PROTOCOL
A127: =A4 -> Twelve Months Ended Jun 30, 2012
B131: Net Rate Base | D131: =C102 -> 5518631756 | E131: Ref. Page 1.1
B132: Return on Rate Base Requested | D132: =Report!J96 -> 0.07758051882 | E132: Ref. Page 2.1
B134: Revenues Required to Earn Requested Return | D134: =E74 -> 428138314.8
B135: Less Current Operating Revenues | D135: =-C74 -> -370103314.1
B137: Increase to Current Revenues | D137: =D134+D135 -> 58035000.74
B138: Net to Gross Bump-up | D138: =1/NetToGross -> 1.614955027
B140: Price Change Required for Requested Return | D140: =D43 -> 93723916.19
B143: Requested Price Change | D143: =D140 -> 93723916.19
B144: Uncollectible Percent | D144: =UncollectibleAccounts -> 0.002059195616 | E144: Ref. Page 1.3
B145: Increased Uncollectible Expense | D145: =D143*D144 -> 192995.8774
B148: Requested Price Change | D148: =D140 -> 93723916.19
B149: Franchise Tax | D149: =FranchiseTax -> 0 | E149: Ref. Page 1.3
B150: Revenue Tax | D150: =RevenueTax -> 0 | E150: Ref. Page 1.3
B151: Resource Supplier Tax | D151: =ResourceSupplier -> 0 | E151: Ref. Page 1.3
B152: Gross Receipts | D152: =GrossReceipts -> 0 | E152: Ref. Page 1.3
B153: Increase Taxes Other Than Income | D153: =SUM(D149:D152)*D148 -> 0
B156: Requested Price Change | D156: =D140 -> 93723916.19
B157: Uncollectible Expense | D157: =-D145 -> -192995.8774
B158: Taxes Other Than Income | D158: =-D153 -> 0
B159: Income Before Taxes | D159: =SUM(D156:D158) -> 93530920.31
B161: State Effective Tax Rate | D161: =+Report!J79 -> 0.0454 | E161: Ref. Page 2.1
B162: State Income Taxes | D162: =D159*D161 -> 4246303.782
B164: Taxable Income | D164: =D159-D162 -> 89284616.53
B165: Federal Income Tax Rate | D165: =+Report!J78 -> 0.35 | E165: Ref. Page 2.1
B166: Federal Income Taxes | D166: =D164*D165 -> 31249615.79
B169: Operating Income | D169: 1
B170: Net Operating Income | D170: =D200 -> 0.6192122897 | E170: Ref. Page 1.3
B171: Net to Gross Bump-Up | D171: =D169/D170 -> 1.614955027
A176: =A$34 -> Rocky Mountain Power | G176: Page 1.4
A177: =A$35 -> UTAH
A178: =A$36 -> Normalized Results of Operations - 2010 PROTOCOL
A179: =A4 -> Twelve Months Ended Jun 30, 2012
A183: Operating Revenue | D183: 1
A185: Operating Deductions
A186: Uncollectible Accounts | D186: =UncollectibleAccounts -> 0.002059195616 | E186: See Note (1) Below
A187: Taxes Other - Franchise Tax | D187: =FranchiseTax -> 0
A188: Taxes Other - Revenue Tax | D188: =RevenueTax -> 0
A189: Taxes Other - Resource Supplier | D189: =ResourceSupplier -> 0
A190: Taxes Other - Gross Receipts | D190: =GrossReceipts -> 0
A192: Sub-Total | D192: =D183-SUM(D185:D190) -> 0.9979408044
A194: State Income Tax @ 4.54% | D194: =D192*Report!J79 -> 0.04530651252
A196: Sub-Total | D196: =D192-D194 -> 0.9526342919
A198: Federal Income Tax @ 35.00% | D198: =D196*Report!J78 -> 0.3334220022
A200: Net Operating Income | D200: =D196-D198 -> 0.6192122897
B203: (1) Uncollectible Accounts = | C203: =Report!N878 -> 3587161.17 | D203: =+"Pg 2.12, "& Report!I56&" Situs from Account 904" -> Pg 2.12, UTAH Situs from Account 904
C204: =Report!N118 -> 1742020594 | D204: Pg. 2.2, General Business Revenues

Sheet Report
C50: =VLOOKUP(VLOOKUP(Variables!$AO$3,Variables!$AL$3:'Variables'!$AL$14,1,FALSE),Variables!$AL$3:'Variables'!$AP$14,5,FALSE) -> Rocky Mountain Power
C51: RESULTS OF OPERATIONS
C54: USER SPECIFIC INFORMATION
F56: STATE: | I56: =VLOOKUP(VLOOKUP(Variables!$AO$3,Variables!$AL$3:'Variables'!$AM$14,1,FALSE),Variables!$AL$3:'Variables'!$AM$14,2,FALSE) -> UTAH
F57: PERIOD: | I57: =UPPER(TEXT(Variables!A5,"MMMM yyyy")) -> TWELVE MONTHS ENDED JUN 30, 2012
F59: FILE: | I59: =+Variables!A2 -> JAM UT Jun 2012 ROO
F60: PREPARED BY: | I60: Revenue Requirement Department
F61: DATE: | I61: =NOW() -> 2012-11-07T12:34:29.960
F62: TIME: | I62: =NOW() -> 41220.52396
F64: TYPE OF RATE BASE: | I64: =Variables!AO19 -> 13-Month Average
F65: ALLOCATION METHOD: | I65: =Variables!AE27 -> 2010 PROTOCOL
F67: FERC JURISDICTION: | I67: =IF(Variables!AD16=1,Variables!AC16,Variables!AC17) -> Separate Jurisdiction
F69: 8 OR 12 CP: | I69: =IF(Variables!AD20=1,Variables!AC20,Variables!AC21) -> 12 Coincidental Peaks
F71: DEMAND % | I71: =VLOOKUP(Variables!Y16,Variables!W16:X20,2) -> 75% Demand
F72: ENERGY % | I72: =VLOOKUP(Variables!Y16,Variables!T16:U20,2) -> 25% Energy
C75: TAX INFORMATION
F77: TAX RATE ASSUMPTIONS: | J77: TAX RATE
F78: FEDERAL RATE | J78: =IF(Variables!AO3=12,INDEX(Variables!F12:N12,5),INDEX(Variables!F12:N12,Variables!$AO$3)) -> 0.35
F79: STATE EFFECTIVE RATE | J79: =IF(Variables!AO3=12,INDEX(Variables!F14:N14,5),INDEX(Variables!F14:N14,Variables!$AO$3)) -> 0.0454
F80: TAX GROSS UP FACTOR | J80: =1/(+Results!D200) -> 1.614955027
F81: FEDERAL/STATE COMBINED RATE | J81: =IF(Variables!AO3=12,INDEX(Variables!$F15:$N15,5),INDEX(Variables!$F15:$N15,Variables!$AO$3)) -> 0.37951
C85: CAPITAL STRUCTURE INFORMATION
G89: CAPITAL | I89: EMBEDDED | J89: WEIGHTED
G90: STRUCTURE | I90: COST | J90: COST
D93: DEBT | G93: =IF(Variables!AO3=12,INDEX(Variables!F3:N3,5),INDEX(Variables!F3:N3,Variables!$AO$3)) -> 0.477 | I93: =IF(Variables!AO3=12,INDEX(Variables!F7:N7,5),INDEX(Variables!F7:N7,Variables!$AO$3)) -> 0.05546687097 | J93: =G93*I93 -> 0.02645769745
D94: PREFERRED | G94: =IF(Variables!AO3=12,INDEX(Variables!F4:N4,5),INDEX(Variables!F4:N4,Variables!$AO$3)) -> 0.003 | I94: =IF(Variables!AO3=12,INDEX(Variables!F8:N8,5),INDEX(Variables!F8:N8,Variables!$AO$3)) -> 0.05427378995 | J94: =G94*I94 -> 0.0001628213698
D95: COMMON | G95: =IF(Variables!AO3=12,INDEX(Variables!F5:N5,5),INDEX(Variables!F5:N5,Variables!$AO$3)) -> 0.52 | I95: =IF(Variables!AO3=12,INDEX(Variables!F9:N9,5),INDEX(Variables!F9:N9,Variables!$AO$3)) -> 0.098 | J95: =G95*I95 -> 0.05096
G96: =SUM(G93:G95) -> 1 | J96: =SUM(J93:J95) -> 0.07758051882
C99: OTHER INFORMATION
B109: =Variables!AE29 -> 2010 PROTOCOL
B110: =Variables!AO19 -> 13-Month Average
C111: RESULTS OF OPERATIONS SUMMARY
I113: JUNE 2012 | L113: JUNE 2012
I114: ACTUAL RESULTS | L114: NORMALIZED RESULTS | O114: =N115 -> UTAH
C115: Description of Account Summary: | H115: Ref | I115: TOTAL | J115: =VLOOKUP(Variables!$AO$3,Variables!$AL$3:$AM$14,2) -> UTAH | L115: TOTAL | M115: OTHER | N115: =VLOOKUP(Variables!$AO$3,Variables!$AL$3:$AM$14,2) -> UTAH | O115: ADJUSTMENTS | P115: ADJ TOTAL
A117: 1 | C117: Operating Revenues
A118: 2 | E118: General Business Revenues | H118: 10.3 | I118: 4092063041 | J118: 1709255383 | L118: =L219-L217 -> 4124828251 | M118: =M219-M217 -> 2382807658 | N118: =N219-N217 -> 1742020594 | O118: =O219-O217 -> 0 | P118: =P219-P217 -> 1742020594
A119: 3 | E119: Interdepartmental | H119: 10.3 | I119: 0 | J119: 0 | L119: =L217 -> 0 | M119: =M217 -> 0 | N119: =N217 -> 0 | O119: =O217 -> 0 | P119: =P217 -> 0
A120: 4 | E120: Special Sales | H120: 10.3 | I120: 339615341.8 | J120: 142006073.3 | L120: =L233 -> 339615341.8 | M120: =M233 -> 198633850.3 | N120: =N233 -> 140981491.5 | O120: =O233 -> 0 | P120: =P233 -> 140981491.5
A121: 5 | E121: Other Operating Revenues | H121: 10.4 | I121: 249987731.8 | J121: 100432717.1 | L121: =L276+L240 -> 246575032.7 | M121: =M276+M240 -> 144138515.2 | N121: =N276+N240 -> 102436517.5 | O121: =O276+O240 -> 0 | P121: =P276+P240 -> 102436517.5
A122: 6 | E122: Total Operating Revenues | H122: 10.4 | I122: 4681666114 | J122: 1951694173 | L122: =SUM(L118:L121) -> 4711018626 | M122: =SUM(M118:M121) -> 2725580023 | N122: =SUM(N118:N121) -> 1985438603 | O122: =SUM(O118:O121) -> 0 | P122: =SUM(P118:P121) -> 1985438603
A123: 7
A124: 8 | C124: Operating Expenses:
A125: 9 | D125: Steam Production | H125: 10.5 | I125: 1033981927 | J125: 440759426.1 | L125: =L413 -> 1026709790 | M125: =M413 -> 591676707.5 | N125: =N413 -> 435033082.7 | O125: =O413 -> 0 | P125: =P413 -> 435033082.7
A126: 10 | D126: Nuclear Production | H126: 10.6 | I126: 0 | J126: 0 | L126: =L461 -> 0 | M126: =M461 -> 0 | N126: =N461 -> 0 | O126: =O461 -> 0 | P126: =P461 -> 0
A127: 11 | D127: Hydro Production | H127: 10.7 | I127: 38494363.78 | J127: 16588021.67 | L127: =L544 -> 38365574.23 | M127: =M544 -> 21952333.91 | N127: =N544 -> 16413240.32 | O127: =O544 -> 0 | P127: =P544 -> 16413240.32
A128: 12 | D128: Other Power Supply | H128: 10.9 | I128: 958605486.1 | J128: 464924128.1 | L128: =L600+L651 -> 1048036137 | M128: =M600+M651 -> 551225047.4 | N128: =N600+N651 -> 496811089.2 | O128: =O600+O651 -> 0 | P128: =P600+P651 -> 496811089.2
A129: 13 | D129: Transmission | H129: 10.1 | I129: 205329189.2 | J129: 88421108.86 | L129: =L752 -> 204569251.7 | M129: =M752 -> 117103781.7 | N129: =N752 -> 87465469.99 | O129: =O752 -> 0 | P129: =P752 -> 87465469.99
A130: 14 | D130: Distribution | H130: 10.12 | I130: 208601620.8 | J130: 87092579.07 | L130: =L853 -> 208601620.8 | M130: =M853 -> 121509059.4 | N130: =N853 -> 87092561.37 | O130: =O853 -> 0 | P130: =P853 -> 87092561.37
A131: 15 | D131: Customer Accounting | H131: 10.12 | I131: 94659858.88 | J131: 37509627.41 | L131: =L888 -> 94685784.22 | M131: =M888 -> 57146852.01 | N131: =N888 -> 37538932.21 | O131: =O888 -> 0 | P131: =P888 -> 37538932.21
A132: 16 | D132: Customer Service & Infor | H132: 10.13 | I132: 109993565.9 | J132: 53459342.71 | L132: =L919 -> 18568107.44 | M132: =M919 -> 12605715.73 | N132: =N919 -> 5962391.712 | O132: =O919 -> 0 | P132: =P919 -> 5962391.712
A133: 17 | D133: Sales | H133: 10.13 | I133: 0 | J133: 0 | L133: =L949 -> 0 | M133: =M949 -> 0 | N133: =N949 -> 0 | O133: =O949 -> 0 | P133: =P949 -> 0
A134: 18 | D134: Administrative & General | H134: 10.14 | I134: 152548405.4 | J134: 61227177.38 | L134: =L1033 -> 146410771.7 | M134: =M1033 -> 87054078.54 | N134: =N1033 -> 59356693.19 | O134: =O1033 -> 0 | P134: =P1033 -> 59356693.19
A135: 19
A136: 20 | D136: Total O & M Expenses | H136: 10.14 | I136: 2802214417 | J136: 1249981411 | L136: =SUM(L125:L134) -> 2785947037 | M136: =SUM(M125:M134) -> 1560273576 | N136: =SUM(N125:N134) -> 1225673461 | O136: =SUM(O125:O134) -> 0 | P136: =SUM(P125:P134) -> 1225673461
A137: 21
A138: 22 | D138: Depreciation | H138: 10.16 | I138: 549502550 | J138: 229153437.8 | L138: =L1122 -> 542624975.3 | M138: =M1122 -> 317587155.8 | N138: =N1122 -> 225037819.5 | O138: =O1122 -> 0 | P138: =P1122 -> 225037819.5
A139: 23 | D139: Amortization | H139: 10.17 | I139: 52427145.73 | J139: 22024023.65 | L139: =L1202 -> 43321243.53 | M139: =M1202 -> 25315202.51 | N139: =N1202 -> 18006041.02 | O139: =O1202 -> 0 | P139: =P1202 -> 18006041.02
A140: 24 | D140: Taxes Other Than Income | H140: 10.17 | I140: 157778830.5 | J140: 54600080.6 | L140: =L1230 -> 157778830.5 | M140: =M1230 -> 103464082.6 | N140: =N1230 -> 54314747.86 | O140: =O1230 -> 0 | P140: =P1230 -> 54314747.86
A141: 25 | D141: Income Taxes - Federal | H141: 10.2 | I141: -124858638.7 | J141: -83501992.58 | L141: =L1439 -> -98858322.09 | M141: =M1439 -> -40019625.77 | N141: =N1439 -> -58838696.31 | O141: =O1439 -> 0 | P141: =P1439 -> -58838696.31
A142: 26 | D142: Income Taxes - State | H142: 10.2 | I142: -7529220.853 | J142: -7280013.413 | L142: =L1406 -> -3996209.647 | M142: =M1406 -> -38199.77345 | N142: =N1406 -> -3958009.874 | O142: =O1406 -> 0 | P142: =P1406 -> -3958009.874
A143: 27 | D143: Income Taxes - Def Net | H143: 10.19 | I143: 368714954 | J143: 153863266 | L143: =L1328 -> 375718885.1 | M143: =M1328 -> 218582931.9 | N143: =N1328 -> 157135953.3 | O143: =O1328 -> 0 | P143: =P1328 -> 157135953.3
A144: 28 | D144: Investment Tax Credit Adj. | H144: 10.17 | I144: -1862752 | J144: -1533566.624 | L144: =L1243 -> -1862752 | M144: =M1243 -> -324776.666 | N144: =N1243 -> -1537975.334 | O144: =O1243 -> 0 | P144: =P1243 -> -1537975.334
A145: 29 | D145: Misc Revenue & Expense | H145: 10.4 | I145: -764771.85 | J145: -345282.7038 | L145: =L332 -> -3102455.52 | M145: =M332 -> -2604403.368 | N145: =N332 -> -498052.1523 | O145: =O332 -> 0 | P145: =P332 -> -498052.1523
A146: 30
A147: 31 | D147: Total Operating Expenses | H147: 10.2 | I147: 3795622513 | J147: 1616961364 | L147: =SUM(L136:L145) -> 3797571232 | M147: =SUM(M136:M145) -> 2182235943 | N147: =SUM(N136:N145) -> 1615335289 | O147: =SUM(O136:O145) -> 0 | P147: =SUM(P136:P145) -> 1615335289
A148: 32
A149: 33 | C149: Operating Revenue for Return | I149: 886043600.8 | J149: 334732809.3 | L149: =L122-L147 -> 913447393.8 | M149: =M122-M147 -> 543344079.7 | N149: =N122-N147 -> 370103314.1 | O149: =O122-O147 -> 0 | P149: =P122-P147 -> 370103314.1
A150: 34
A151: 35 | C151: Rate Base:
A152: 36 | D152: Electric Plant in Service | H152: 10.3 | I152: 2.261661766e+10 | J152: 9677639167 | L152: =L2065 -> 2.272470875e+10 | M152: =M2065 -> 1.305173169e+10 | N152: =N2065 -> 9672977055 | O152: =O2065 -> 0 | P152: =P2065 -> 9672977055
A153: 37 | D153: Plant Held for Future Use | H153: 10.31 | I153: 45370439.65 | J153: 19216192.44 | L153: =L2088 -> 34658983.62 | M153: =M2088 -> 20122034.68 | N153: =N2088 -> 14536948.95 | O153: =O2088 -> 0 | P153: =P2088 -> 14536948.95
A154: 38 | D154: Misc Deferred Debits | H154: 10.33 | I154: 270562175.8 | J154: 37904415.15 | L154: =L2196+L2207 -> 270506713.7 | M154: =M2196+M2207 -> 232869596.6 | N154: =N2196+N2207 -> 37637117.06 | O154: =O2196+O2207 -> 0 | P154: =P2196+P2207 -> 37637117.06
A155: 39 | D155: Elec Plant Acq Adj | H155: 10.31 | I155: 51806272.84 | J155: 22324400.05 | L155: =L2094+L2100 -> 51806272.84 | M155: =M2094+M2100 -> 29642944.82 | N155: =N2094+N2100 -> 22163328.02 | O155: =O2094+O2100 -> 0 | P155: =P2094+P2100 -> 22163328.02
A156: 40 | D156: Nuclear Fuel | H156: 10.31 | I156: 0 | J156: 0 | L156: =L2104 -> 0 | M156: =M2104 -> 0 | N156: =N2104 -> 0 | O156: =O2104 -> 0 | P156: =P2104 -> 0
A157: 41 | D157: Prepayments | H157: 10.32 | I157: 31300617.1 | J157: 13749942.88 | L157: =L2186 -> 31300617.1 | M157: =M2186 -> 17612725.73 | N157: =N2186 -> 13687891.38 | O157: =O2186 -> 0 | P157: =P2186 -> 13687891.38
A158: 42 | D158: Fuel Stock | H158: 10.32 | I158: 233290005.4 | J158: 99065245.2 | L158: =L2151 -> 233290005.4 | M158: =M2151 -> 134756563.7 | N158: =N2151 -> 98533441.7 | O158: =O2151 -> 0 | P158: =P2151 -> 98533441.7
A159: 43 | D159: Material & Supplies | H159: 10.32 | I159: 196049828.7 | J159: 82635484.17 | L159: =L2178 -> 196049828.7 | M159: =M2178 -> 113744237.1 | N159: =N2178 -> 82305591.52 | O159: =O2178 -> 0 | P159: =P2178 -> 82305591.52
A160: 44 | D160: Working Capital | H160: 10.33 | I160: 78623862.29 | J160: 32484819.9 | L160: =L2234 -> 78693525.62 | M160: =M2234 -> 46249876.96 | N160: =N2234 -> 32443648.65 | O160: =O2234 -> 0 | P160: =P2234 -> 32443648.65
A161: 45 | D161: Weatherization Loans | H161: 10.31 | I161: -3246022.741 | J161: 4768435.457 | L161: =L2126 -> -3246022.741 | M161: =M2126 -> -8014468.176 | N161: =N2126 -> 4768445.435 | O161: =O2126 -> 0 | P161: =P2126 -> 4768445.435
A162: 46 | D162: Miscellaneous Rate Base | H162: 10.34 | I162: 0 | J162: 0 | L162: =L2254 -> 0 | M162: =M2254 -> 0 | N162: =N2254 -> 0 | O162: =O2254 -> 0 | P162: =P2254 -> 0
A163: 47
A164: 48 | D164: Total Electric Plant | I164: 2.352037484e+10 | J164: 9989788103 | L164: =SUM(L152:L163) -> 2.361776867e+10 | M164: =SUM(M152:M163) -> 1.36387152e+10 | N164: =SUM(N152:N163) -> 9979053467 | O164: =SUM(O152:O163) -> 0 | P164: =SUM(P152:P163) -> 9979053467
A165: 49
A166: 50 | C166: Rate Base Deductions:
A167: 51 | D167: Accum Prov For Depr | H167: 10.38 | I167: -7054286767 | J167: -2837082063 | L167: =L2556 -> -7045872808 | M167: =M2556 -> -4226861881 | N167: =N2556 -> -2819010927 | O167: =O2556 -> 0 | P167: =P2556 -> -2819010927
A168: 52 | D168: Accum Prov For Amort | H168: 10.39 | I168: -485134207.9 | J168: -208072947 | L168: =L2605 -> -476860979.4 | M168: =M2605 -> -273218394.2 | N168: =N2605 -> -203642585.2 | O168: =O2605 -> 0 | P168: =P2605 -> -203642585.2
A169: 53 | D169: Accum Def Income Taxes | H169: 10.35 | I169: -3273203725 | J169: -1391075516 | L169: =L2353 -> -3294382258 | M169: =M2353 -> -1896138529 | N169: =N2353 -> -1398243730 | O169: =O2353 -> 0 | P169: =P2353 -> -1398243730
A170: 54 | D170: Unamortized ITC | H170: 10.35 | I170: -4170279.077 | J170: -122298.677 | L170: =L2363 -> -4170279.077 | M170: =M2363 -> -4047980.4 | N170: =N2363 -> -122298.677 | O170: =O2363 -> 0 | P170: =P2363 -> -122298.677
A171: 55 | D171: Customer Adv for Const | H171: 10.34 | I171: -24720905.68 | J171: -8928039.738 | L171: =L2286 -> -24720905.68 | M171: =M2286 -> -15408288.39 | N171: =N2286 -> -9312617.282 | O171: =O2286 -> 0 | P171: =P2286 -> -9312617.282
A172: 56 | D172: Customer Service Deposits | H172: 10.34 | I172: 0 | J172: 0 | L172: =L2260 -> -15463869.23 | M172: =M2260 -> 0 | N172: =N2260 -> -15463869.23 | O172: =O2260 -> 0 | P172: =P2260 -> -15463869.23
A173: 57 | D173: Misc. Rate Base Deductions | H173: 10.34 | I173: -69216770.63 | J173: -12209693.04 | L173: =L2267+L2272+L2278+L2290+L2297 -> -75592248.45 | M173: =M2267+M2272+M2278+M2290+M2297 -> -60966564.18 | N173: =N2267+N2272+N2278+N2290+N2297 -> -14625684.27 | O173: =O2267+O2272+O2278+O2290+O2297 -> 0 | P173: =P2267+P2272+P2278+P2290+P2297 -> -14625684.27
A174: 58
A175: 59 | D175: Total Rate Base Deductions | I175: -1.091073266e+10 | J175: -4457490558 | L175: =SUM(L167:L173) -> -1.093706335e+10 | M175: =SUM(M167:M173) -> -6476641637 | N175: =SUM(N167:N173) -> -4460421711 | O175: =SUM(O167:O173) -> 0 | P175: =SUM(P167:P173) -> -4460421711
A176: 60
A177: 61 | C177: Total Rate Base | I177: 1.260964219e+10 | J177: 5532297545 | L177: =L164+L175 -> 1.268070532e+10 | M177: =M164+M175 -> 7162073566 | N177: =N164+N175 -> 5518631756 | O177: =O164+O175 -> 0 | P177: =P164+P175 -> 5518631756
A178: 62
A179: 63 | C179: Return on Rate Base | I179: 0.07026714856 | J179: 0.06050520722 | L179: =L149/L177 -> 0.0720344311 | N179: =N149/N177 -> 0.06706432508 | P179: =P149/P177 -> 0.06706432508
A180: 64
A181: 65 | C181: Return on Equity | I181: 0.08393582642 | J181: 0.06516286231 | L181: =(+L179-UTCR!J7-UTCR!J12)/UTCR!J15 -> 0.08733444669 | N181: =(+N179-Variables!$AT$3-Variables!$AT$4)/Variables!$AT$5 -> 0.07777655049 | P181: =(+P179-Variables!$AT$3-Variables!$AT$4)/Variables!$AT$5 -> 0.07777655049
A182: 66 | C182: Net Power Costs | I182: 1393001321 | J182: 593155640.8 | L182: =-L231+L353+L368+L559+L612+L708 -> 1473204102 | N182: =-N231+N353+N368+N559+N612+N708 -> 624041509.2 | P182: =-P231+P353+P368+P559+P612+P708 -> 624041509.2
A183: 67 | C183: 100 Basis Points in Equity: | I183: 65570139.37 | J183: 28767947.23 | L183: =(L177*(UTCR!J15*(L181+0.01)+UTCR!J7+UTCR!J12))-L149 -> 65939667.68 | N183: =(N177*(Variables!$AT$5*(N181+0.01)+Variables!$AT$3+Variables!$AT$4))-N149 -> 28696885.13 | P183: =(P177*(Variables!$AT$5*(P181+0.01)+Variables!$AT$3+Variables!$AT$4))-P149 -> 28696885.13
A184: 68 | D184: Revenue Requirement Impact | I184: 105674772.1 | J184: 46363272.95 | L184: =L183*(1/(1-(INDEX(Variables!$F$15:$N$15,1,IF(Variables!$AO$3=12,5,Variables!$AO$3))))) -> 106270314.9 | N184: =N183*(1/(1-(INDEX(Variables!$F$15:$N$15,1,IF(Variables!$AO$3=12,5,Variables!$AO$3))))) -> 46248747.17 | P184: =P183*(1/(1-(INDEX(Variables!$F$15:$N$15,1,IF(Variables!$AO$3=12,5,Variables!$AO$3))))) -> 46248747.17
A185: 69 | D185: Rate Base Decrease | I185: -868856722.7 | J185: -437833597.2 | L185: =(L149/(Variables!$AT$5*(L181+0.01)+UTCR!J7+UTCR!J12))-L177 -> -853759997.2 | N185: =(N149/(Variables!$AT$5*(N181+0.01)+(Variables!$H7*Variables!$H3)+(Variables!$H8*Variables!$H4)))-N177 -> -397109986.2 | P185: =(P149/(Variables!$AT$5*(P181+0.01)+(Variables!$H7*Variables!$H3)+(Variables!$H8*Variables!$H4)))-P177 -> -397109986.2
C186: =$B$109 -> 2010 PROTOCOL
C187: =$B$110 -> 13-Month Average | I187: JUNE 2012 | L187: =+L113 -> JUNE 2012
C188: FERC | F188: BUS | I188: ACTUAL RESULTS | L188: =+L114 -> NORMALIZED RESULTS | O188: =$N$115 -> UTAH
C189: ACCT | D189: DESCRIP | F189: FUNC | G189: FACTOR | H189: Ref | I189: TOTAL | J189: UTAH | L189: TOTAL | M189: OTHER | N189: =$N$115 -> UTAH | O189: ADJUSTMENT | P189: ADJ TOTAL
A190: 70 | C190: Sales to Ultimate Customers
A191: 71 | C191: 440 | D191: Residential Sales
A192: 72 | F192: =+Function!F192 -> 0 | G192: =UTCR!H192 -> S | I192: 1538606880 | J192: 642783365.3 | L192: =IF(VLOOKUP(Variables!$AO$3,Variables!$AL$3:$AN$14,3)=2,UTCR!J192,UTCR!AF192) -> 1545798459 | M192: =L192-N192 -> 895823514.6 | N192: =IF(Variables!$AO$3=12,IF(VLOOKUP(Variables!$AO$3,Variables!$AL$3:$AN$14,3)=2,INDEX(UTCR!K192:U192,1,5)+INDEX(UTCR!K192:U192,1,8),INDEX(UTCR!AG192:AQ192,1,5)+INDEX(UTCR!AG192:AQ192,1,8)),IF(VLOOKUP(Variables!$AO$3,Variables!$AL$3:$AN$14,3)=2,INDEX(UTCR!K192:U192,1,Variables!$AO$3),INDEX(UTCR!AG192:AQ192,1,Variables!$AO$3))) -> 649974944.8 | O192: =P192-N192 -> 0 | P192: =IF(Variables!$AO$3=12,INDEX(NRO!J192:T192,1,5)+INDEX(NRO!J192:T192,1,8),INDEX(NRO!J192:T192,1,Variables!$AO$3)) -> 649974944.8
A193: 73
A194: 74 | H194: B1 | I194: 1538606880 | J194: 642783365.3 | L194: =SUBTOTAL(9,L192:L193) -> 1545798459 | M194: =SUBTOTAL(9,M192:M193) -> 895823514.6 | N194: =SUBTOTAL(9,N192:N193) -> 649974944.8 | O194: =SUBTOTAL(9,O192:O193) -> 0 | P194: =SUBTOTAL(9,P192:P193) -> 649974944.8
A195: 75
A196: 76 | C196: 442 | D196: Commercial & Industrial Sales
A197: 77 | F197: =+Function!F197 -> 0 | G197: =UTCR!H197 -> S | I197: 2514992419 | J197: 1038802653 | L197: =IF(VLOOKUP(Variables!$AO$3,Variables!$AL$3:$AN$14,3)=2,UTCR!J197,UTCR!AF197) -> 2540464768 | M197: =L197-N197 -> 1476189766 | N197: =IF(Variables!$AO$3=12,IF(VLOOKUP(Variables!$AO$3,Variables!$AL$3:$AN$14,3)=2,INDEX(UTCR!K197:U197,1,5)+INDEX(UTCR!K197:U197,1,8),INDEX(UTCR!AG197:AQ197,1,5)+INDEX(UTCR!AG197:AQ197,1,8)),IF(VLOOKUP(Variables!$AO$3,Variables!$AL$3:$AN$14,3)=2,INDEX(UTCR!K197:U197,1,Variables!$AO$3),INDEX(UTCR!AG197:AQ197,1,Variables!$AO$3))) -> 1064275002 | O197: =P197-N197 -> 0 | P197: =IF(Variables!$AO$3=12,INDEX(NRO!J197:T197,1,5)+INDEX(NRO!J197:T197,1,8),INDEX(NRO!J197:T197,1,Variables!$AO$3)) -> 1064275002
A198: 78 | F198: =+Function!F198 -> P | G198: =UTCR!H198 -> SE | I198: 0 | J198: 0 | L198: =IF(VLOOKUP(Variables!$AO$3,Variables!$AL$3:$AN$14,3)=2,UTCR!J198,UTCR!AF198) -> 0 | M198: =L198-N198 -> 0 | N198: =IF(Variables!$AO$3=12,IF(VLOOKUP(Variables!$AO$3,Variables!$AL$3:$AN$14,3)=2,INDEX(UTCR!K198:U198,1,5)+INDEX(UTCR!K198:U198,1,8),INDEX(UTCR!AG198:AQ198,1,5)+INDEX(UTCR!AG198:AQ198,1,8)),IF(VLOOKUP(Variables!$AO$3,Variables!$AL$3:$AN$14,3)=2,INDEX(UTCR!K198:U198,1,Variables!$AO$3),INDEX(UTCR!AG198:AQ198,1,Variables!$AO$3))) -> 0 | O198: =P198-N198 -> 0 | P198: =IF(Variables!$AO$3=12,INDEX(NRO!J198:T198,1,5)+INDEX(NRO!J198:T198,1,8),INDEX(NRO!J198:T198,1,Variables!$AO$3)) -> 0
A199: 79 | F199: =+Function!F199 -> PT | G199: =UTCR!H199 -> SG | I199: 0 | J199: 0 | L199: =IF(VLOOKUP(Variables!$AO$3,Variables!$AL$3:$AN$14,3)=2,UTCR!J199,UTCR!AF199) -> 0 | M199: =L199-N199 -> 0 | N199: =IF(Variables!$AO$3=12,IF(VLOOKUP(Variables!$AO$3,Variables!$AL$3:$AN$14,3)=2,INDEX(UTCR!K199:U199,1,5)+INDEX(UTCR!K199:U199,1,8),INDEX(UTCR!AG199:AQ199,1,5)+INDEX(UTCR!AG199:AQ199,1,8)),IF(VLOOKUP(Variables!$AO$3,Variables!$AL$3:$AN$14,3)=2,INDEX(UTCR!K199:U199,1,Variables!$AO$3),INDEX(UTCR!AG199:AQ199,1,Variables!$AO$3))) -> 0 | O199: =P199-N199 -> 0 | P199: =IF(Variables!$AO$3=12,INDEX(NRO!J199:T199,1,5)+INDEX(NRO!J199:T199,1,8),INDEX(NRO!J199:T199,1,Variables!$AO$3)) -> 0
A200: 80
A201: 81
A202: 82 | H202: B1 | I202: 2514992419 | J202: 1038802653 | L202: =SUBTOTAL(9,L197:L200) -> 2540464768 | M202: =SUBTOTAL(9,M197:M200) -> 1476189766 | N202: =SUBTOTAL(9,N197:N200) -> 1064275002 | O202: =SUBTOTAL(9,O197:O200) -> 0 | P202: =SUBTOTAL(9,P197:P200) -> 1064275002
A203: 83
A204: 84 | C204: 444 | D204: Public Street & Highway Lighting
A205: 85 | F205: =+Function!F205 -> 0 | G205: =UTCR!H205 -> S | I205: 20929526.7 | J205: 10135149.75 | L205: =IF(VLOOKUP(Variables!$AO$3,Variables!$AL$3:$AN$14,3)=2,UTCR!J205,UTCR!AF205) -> 20935003.08 | M205: =L205-N205 -> 10794376.95 | N205: =IF(Variables!$AO$3=12,IF(VLOOKUP(Variables!$AO$3,Variables!$AL$3:$AN$14,3)=2,INDEX(UTCR!K205:U205,1,5)+INDEX(UTCR!K205:U205,1,8),INDEX(UTCR!AG205:AQ205,1,5)+INDEX(UTCR!AG205:AQ205,1,8)),IF(VLOOKUP(Variables!$AO$3,Variables!$AL$3:$AN$14,3)=2,INDEX(UTCR!K205:U205,1,Variables!$AO$3),INDEX(UTCR!AG205:AQ205,1,Variables!$AO$3))) -> 10140626.13 | O205: =P205-N205 -> 0 | P205: =IF(Variables!$AO$3=12,INDEX(NRO!J205:T205,1,5)+INDEX(NRO!J205:T205,1,8),INDEX(NRO!J205:T205,1,Variables!$AO$3)) -> 10140626.13
A206: 86 | F206: =+Function!F206 -> 0 | G206: =UTCR!H206 -> SO | I206: 0 | J206: 0 | L206: =IF(VLOOKUP(Variables!$AO$3,Variables!$AL$3:$AN$14,3)=2,UTCR!J206,UTCR!AF206) -> 0 | M206: =L206-N206 -> 0 | N206: =IF(Variables!$AO$3=12,IF(VLOOKUP(Variables!$AO$3,Variables!$AL$3:$AN$14,3)=2,INDEX(UTCR!K206:U206,1,5)+INDEX(UTCR!K206:U206,1,8),INDEX(UTCR!AG206:AQ206,1,5)+INDEX(UTCR!AG206:AQ206,1,8)),IF(VLOOKUP(Variables!$AO$3,Variables!$AL$3:$AN$14,3)=2,INDEX(UTCR!K206:U206,1,Variables!$AO$3),INDEX(UTCR!AG206:AQ206,1,Variables!$AO$3))) -> 0 | O206: =P206-N206 -> 0 | P206: =IF(Variables!$AO$3=12,INDEX(NRO!J206:T206,1,5)+INDEX(NRO!J206:T206,1,8),INDEX(NRO!J206:T206,1,Variables!$AO$3)) -> 0
A207: 87 | H207: B1 | I207: 20929526.7 | J207: 10135149.75 | L207: =SUBTOTAL(9,L205:L206) -> 20935003.08 | M207: =SUBTOTAL(9,M205:M206) -> 10794376.95 | N207: =SUBTOTAL(9,N205:N206) -> 10140626.13 | O207: =SUBTOTAL(9,O205:O206) -> 0 | P207: =SUBTOTAL(9,P205:P206) -> 10140626.13
A208: 88
A209: 89 | C209: 445 | D209: Other Sales to Public Authority
A210: 90 | F210: =+Function!F210 -> 0 | G210: =UTCR!H210 -> S | I210: 17534214.97 | J210: 17534214.97 | L210: =IF(VLOOKUP(Variables!$AO$3,Variables!$AL$3:$AN$14,3)=2,UTCR!J210,UTCR!AF210) -> 17630021.32 | M210: =L210-N210 -> 0 | N210: =IF(Variables!$AO$3=12,IF(VLOOKUP(Variables!$AO$3,Variables!$AL$3:$AN$14,3)=2,INDEX(UTCR!K210:U210,1,5)+INDEX(UTCR!K210:U210,1,8),INDEX(UTCR!AG210:AQ210,1,5)+INDEX(UTCR!AG210:AQ210,1,8)),IF(VLOOKUP(Variables!$AO$3,Variables!$AL$3:$AN$14,3)=2,INDEX(UTCR!K210:U210,1,Variables!$AO$3),INDEX(UTCR!AG210:AQ210,1,Variables!$AO$3))) -> 17630021.32 | O210: =P210-N210 -> 0 | P210: =IF(Variables!$AO$3=12,INDEX(NRO!J210:T210,1,5)+INDEX(NRO!J210:T210,1,8),INDEX(NRO!J210:T210,1,Variables!$AO$3)) -> 17630021.32
A211: 91
A212: 92 | H212: B1 | I212: 17534214.97 | J212: 17534214.97 | L212: =SUBTOTAL(9,L210) -> 17630021.32 | M212: =SUBTOTAL(9,M210) -> 0 | N212: =SUBTOTAL(9,N210) -> 17630021.32 | O212: =SUBTOTAL(9,O210) -> 0 | P212: =SUBTOTAL(9,P210) -> 17630021.32
A213: 93
A214: 94 | C214: 448 | D214: Interdepartmental
A215: 95 | F215: =+Function!F215 -> DPW | G215: =UTCR!H215 -> S | I215: 0 | J215: 0 | L215: =IF(VLOOKUP(Variables!$AO$3,Variables!$AL$3:$AN$14,3)=2,UTCR!J215,UTCR!AF215) -> 0 | M215: =L215-N215 -> 0 | N215: =IF(Variables!$AO$3=12,IF(VLOOKUP(Variables!$AO$3,Variables!$AL$3:$AN$14,3)=2,INDEX(UTCR!K215:U215,1,5)+INDEX(UTCR!K215:U215,1,8),INDEX(UTCR!AG215:AQ215,1,5)+INDEX(UTCR!AG215:AQ215,1,8)),IF(VLOOKUP(Variables!$AO$3,Variables!$AL$3:$AN$14,3)=2,INDEX(UTCR!K215:U215,1,Variables!$AO$3),INDEX(UTCR!AG215:AQ215,1,Variables!$AO$3))) -> 0 | O215: =P215-N215 -> 0 | P215: =IF(Variables!$AO$3=12,INDEX(NRO!J215:T215,1,5)+INDEX(NRO!J215:T215,1,8),INDEX(NRO!J215:T215,1,Variables!$AO$3)) -> 0
A216: 96 | F216: =+Function!F216 -> GP | G216: =UTCR!H216 -> SO | I216: 0 | J216: 0 | L216: =IF(VLOOKUP(Variables!$AO$3,Variables!$AL$3:$AN$14,3)=2,UTCR!J216,UTCR!AF216) -> 0 | M216: =L216-N216 -> 0 | N216: =IF(Variables!$AO$3=12,IF(VLOOKUP(Variables!$AO$3,Variables!$AL$3:$AN$14,3)=2,INDEX(UTCR!K216:U216,1,5)+INDEX(UTCR!K216:U216,1,8),INDEX(UTCR!AG216:AQ216,1,5)+INDEX(UTCR!AG216:AQ216,1,8)),IF(VLOOKUP(Variables!$AO$3,Variables!$AL$3:$AN$14,3)=2,INDEX(UTCR!K216:U216,1,Variables!$AO$3),INDEX(UTCR!AG216:AQ216,1,Variables!$AO$3))) -> 0 | O216: =P216-N216 -> 0 | P216: =IF(Variables!$AO$3=12,INDEX(NRO!J216:T216,1,5)+INDEX(NRO!J216:T216,1,8),INDEX(NRO!J216:T216,1,Variables!$AO$3)) -> 0
A217: 97 | H217: B1 | I217: 0 | J217: 0 | L217: =SUBTOTAL(9,L215:L216) -> 0 | M217: =SUBTOTAL(9,M215:M216) -> 0 | N217: =SUBTOTAL(9,N215:N216) -> 0 | O217: =SUBTOTAL(9,O215:O216) -> 0 | P217: =SUBTOTAL(9,P215:P216) -> 0
A218: 98
A219: 99 | C219: Total Sales to Ultimate Customers | H219: B1 | I219: 4092063041 | J219: 1709255383 | L219: =SUBTOTAL(9,L192:L217) -> 4124828251 | M219: =SUBTOTAL(9,M192:M217) -> 2382807658 | N219: =SUBTOTAL(9,N192:N217) -> 1742020594 | O219: =SUBTOTAL(9,O192:O217) -> 0 | P219: =SUBTOTAL(9,P192:P217) -> 1742020594
A220: 100
A221: 101
A222: 102
A223: 103 | C223: 447 | D223: Sales for Resale-Non NPC
A224: 104 | F224: =+Function!F224 -> P | G224: =UTCR!H224 -> S | I224: 10074302.91 | J224: 0 | L224: =IF(VLOOKUP(Variables!$AO$3,Variables!$AL$3:$AN$14,3)=2,UTCR!J224,UTCR!AF224) -> 10074302.91 | M224: =L224-N224 -> 10074302.91 | N224: =IF(Variables!$AO$3=12,IF(VLOOKUP(Variables!$AO$3,Variables!$AL$3:$AN$14,3)=2,INDEX(UTCR!K224:U224,1,5)+INDEX(UTCR!K224:U224,1,8),INDEX(UTCR!AG224:AQ224,1,5)+INDEX(UTCR!AG224:AQ224,1,8)),IF(VLOOKUP(Variables!$AO$3,Variables!$AL$3:$AN$14,3)=2,INDEX(UTCR!K224:U224,1,Variables!$AO$3),INDEX(UTCR!AG224:AQ224,1,Variables!$AO$3))) -> 0 | O224: =P224-N224 -> 0 | P224: =IF(Variables!$AO$3=12,INDEX(NRO!J224:T224,1,5)+INDEX(NRO!J224:T224,1,8),INDEX(NRO!J224:T224,1,Variables!$AO$3)) -> 0
A225: 105 | I225: 10074302.91 | J225: 0 | L225: =SUBTOTAL(9,L224:L224) -> 10074302.91 | M225: =SUBTOTAL(9,M224:M224) -> 10074302.91 | N225: =SUBTOTAL(9,N224:N224) -> 0 | O225: =SUBTOTAL(9,O224:O224) -> 0 | P225: =SUBTOTAL(9,P224:P224) -> 0
A226: 106
A227: 107 | C227: 447NPC | D227: Sales for Resale-NPC
A228: 108 | F228: =+Function!F228 -> P | G228: =UTCR!H228 -> SG | I228: 329539168.9 | J228: 142005279.2 | L228: =IF(VLOOKUP(Variables!$AO$3,Variables!$AL$3:$AN$14,3)=2,UTCR!J228,UTCR!AF228) -> 329539168.9 | M228: =L228-N228 -> 188558467.2 | N228: =IF(Variables!$AO$3=12,IF(VLOOKUP(Variables!$AO$3,Variables!$AL$3:$AN$14,3)=2,INDEX(UTCR!K228:U228,1,5)+INDEX(UTCR!K228:U228,1,8),INDEX(UTCR!AG228:AQ228,1,5)+INDEX(UTCR!AG228:AQ228,1,8)),IF(VLOOKUP(Variables!$AO$3,Variables!$AL$3:$AN$14,3)=2,INDEX(UTCR!K228:U228,1,Variables!$AO$3),INDEX(UTCR!AG228:AQ228,1,Variables!$AO$3))) -> 140980701.7 | O228: =P228-N228 -> 0 | P228: =IF(Variables!$AO$3=12,INDEX(NRO!J228:T228,1,5)+INDEX(NRO!J228:T228,1,8),INDEX(NRO!J228:T228,1,Variables!$AO$3)) -> 140980701.7
A229: 109 | F229: =+Function!F229 -> P | G229: =UTCR!H229 -> SE | I229: 1870 | J229: 794.0846339 | L229: =IF(VLOOKUP(Variables!$AO$3,Variables!$AL$3:$AN$14,3)=2,UTCR!J229,UTCR!AF229) -> 1870 | M229: =L229-N229 -> 1080.178183 | N229: =IF(Variables!$AO$3=12,IF(VLOOKUP(Variables!$AO$3,Variables!$AL$3:$AN$14,3)=2,INDEX(UTCR!K229:U229,1,5)+INDEX(UTCR!K229:U229,1,8),INDEX(UTCR!AG229:AQ229,1,5)+INDEX(UTCR!AG229:AQ229,1,8)),IF(VLOOKUP(Variables!$AO$3,Variables!$AL$3:$AN$14,3)=2,INDEX(UTCR!K229:U229,1,Variables!$AO$3),INDEX(UTCR!AG229:AQ229,1,Variables!$AO$3))) -> 789.8218172 | O229: =P229-N229 -> 0 | P229: =IF(Variables!$AO$3=12,INDEX(NRO!J229:T229,1,5)+INDEX(NRO!J229:T229,1,8),INDEX(NRO!J229:T229,1,Variables!$AO$3)) -> 789.8218172
A230: 110 | F230: =+Function!F230 -> P | G230: =UTCR!H230 -> SG | I230: 0 | J230: 0 | L230: =IF(VLOOKUP(Variables!$AO$3,Variables!$AL$3:$AN$14,3)=2,UTCR!J230,UTCR!AF230) -> 0 | M230: =L230-N230 -> 0 | N230: =IF(Variables!$AO$3=12,IF(VLOOKUP(Variables!$AO$3,Variables!$AL$3:$AN$14,3)=2,INDEX(UTCR!K230:U230,1,5)+INDEX(UTCR!K230:U230,1,8),INDEX(UTCR!AG230:AQ230,1,5)+INDEX(UTCR!AG230:AQ230,1,8)),IF(VLOOKUP(Variables!$AO$3,Variables!$AL$3:$AN$14,3)=2,INDEX(UTCR!K230:U230,1,Variables!$AO$3),INDEX(UTCR!AG230:AQ230,1,Variables!$AO$3))) -> 0 | O230: =P230-N230 -> 0 | P230: =IF(Variables!$AO$3=12,INDEX(NRO!J230:T230,1,5)+INDEX(NRO!J230:T230,1,8),INDEX(NRO!J230:T230,1,Variables!$AO$3)) -> 0
A231: 111 | I231: 329541038.9 | J231: 142006073.3 | L231: =SUBTOTAL(9,L228:L230) -> 329541038.9 | M231: =SUBTOTAL(9,M228:M230) -> 188559547.4 | N231: =SUBTOTAL(9,N228:N230) -> 140981491.5 | O231: =SUBTOTAL(9,O228:O230) -> 0 | P231: =SUBTOTAL(9,P228:P230) -> 140981491.5
A232: 112
A233: 113 | D233: Total Sales for Resale | H233: B1 | I233: 339615341.8 | J233: 142006073.3 | L233: =SUBTOTAL(9,L224:L231) -> 339615341.8 | M233: =SUBTOTAL(9,M224:M231) -> 198633850.3 | N233: =SUBTOTAL(9,N224:N231) -> 140981491.5 | O233: =SUBTOTAL(9,O224:O231) -> 0 | P233: =SUBTOTAL(9,P224:P231) -> 140981491.5
A234: 114
A235: 115 | C235: 449 | D235: Provision for Rate Refund
A236: 116 | F236: =+Function!F236 -> P | G236: =UTCR!H236 -> S | I236: 0 | J236: 0 | L236: =IF(VLOOKUP(Variables!$AO$3,Variables!$AL$3:$AN$14,3)=2,UTCR!J236,UTCR!AF236) -> 0 | M236: =L236-N236 -> 0 | N236: =IF(Variables!$AO$3=12,IF(VLOOKUP(Variables!$AO$3,Variables!$AL$3:$AN$14,3)=2,INDEX(UTCR!K236:U236,1,5)+INDEX(UTCR!K236:U236,1,8),INDEX(UTCR!AG236:AQ236,1,5)+INDEX(UTCR!AG236:AQ236,1,8)),IF(VLOOKUP(Variables!$AO$3,Variables!$AL$3:$AN$14,3)=2,INDEX(UTCR!K236:U236,1,Variables!$AO$3),INDEX(UTCR!AG236:AQ236,1,Variables!$AO$3))) -> 0 | O236: =P236-N236 -> 0 | P236: =IF(Variables!$AO$3=12,INDEX(NRO!J236:T236,1,5)+INDEX(NRO!J236:T236,1,8),INDEX(NRO!J236:T236,1,Variables!$AO$3)) -> 0
A237: 117 | F237: =+Function!F237 -> P | G237: =UTCR!H237 -> SG | I237: 0 | J237: 0 | L237: =IF(VLOOKUP(Variables!$AO$3,Variables!$AL$3:$AN$14,3)=2,UTCR!J237,UTCR!AF237) -> 0 | M237: =L237-N237 -> 0 | N237: =IF(Variables!$AO$3=12,IF(VLOOKUP(Variables!$AO$3,Variables!$AL$3:$AN$14,3)=2,INDEX(UTCR!K237:U237,1,5)+INDEX(UTCR!K237:U237,1,8),INDEX(UTCR!AG237:AQ237,1,5)+INDEX(UTCR!AG237:AQ237,1,8)),IF(VLOOKUP(Variables!$AO$3,Variables!$AL$3:$AN$14,3)=2,INDEX(UTCR!K237:U237,1,Variables!$AO$3),INDEX(UTCR!AG237:AQ237,1,Variables!$AO$3))) -> 0 | O237: =P237-N237 -> 0 | P237: =IF(Variables!$AO$3=12,INDEX(NRO!J237:T237,1,5)+INDEX(NRO!J237:T237,1,8),INDEX(NRO!J237:T237,1,Variables!$AO$3)) -> 0
A238: 118
A239: 119
A240: 120 | H240: B1 | I240: 0 | J240: 0 | L240: =SUBTOTAL(9,L236:L237) -> 0 | M240: =SUBTOTAL(9,M236:M237) -> 0 | N240: =SUBTOTAL(9,N236:N237) -> 0 | O240: =SUBTOTAL(9,O236:O237) -> 0 | P240: =SUBTOTAL(9,P236:P237) -> 0
A241: 121
A242: 122 | C242: Total Sales from Electricity | H242: B1 | I242: 4431678382 | J242: 1851261456 | L242: =SUBTOTAL(9,L224:L240)+L219 -> 4464443593 | M242: =SUBTOTAL(9,M224:M240)+M219 -> 2581441508 | N242: =SUBTOTAL(9,N224:N240)+N219 -> 1883002085 | O242: =SUBTOTAL(9,O224:O240)+O219 -> 0 | P242: =SUBTOTAL(9,P224:P240)+P219 -> 1883002085
A243: 123 | C243: 450 | D243: Forfeited Discounts & Interest
A244: 124 | F244: =+Function!F244 -> CUST | G244: =UTCR!H244 -> S | I244: 8704074.42 | J244: 3027295.35 | L244: =IF(VLOOKUP(Variables!$AO$3,Variables!$AL$3:$AN$14,3)=2,UTCR!J244,UTCR!AF244) -> 8704074.42 | M244: =L244-N244 -> 5676779.07 | N244: =IF(Variables!$AO$3=12,IF(VLOOKUP(Variables!$AO$3,Variables!$AL$3:$AN$14,3)=2,INDEX(UTCR!K244:U244,1,5)+INDEX(UTCR!K244:U244,1,8),INDEX(UTCR!AG244:AQ244,1,5)+INDEX(UTCR!AG244:AQ244,1,8)),IF(VLOOKUP(Variables!$AO$3,Variables!$AL$3:$AN$14,3)=2,INDEX(UTCR!K244:U244,1,Variables!$AO$3),INDEX(UTCR!AG244:AQ244,1,Variables!$AO$3))) -> 3027295.35 | O244: =P244-N244 -> 0 | P244: =IF(Variables!$AO$3=12,INDEX(NRO!J244:T244,1,5)+INDEX(NRO!J244:T244,1,8),INDEX(NRO!J244:T244,1,Variables!$AO$3)) -> 3027295.35
A245: 125 | F245: =+Function!F245 -> CUST | G245: =UTCR!H245 -> SO | I245: 0 | J245: 0 | L245: =IF(VLOOKUP(Variables!$AO$3,Variables!$AL$3:$AN$14,3)=2,UTCR!J245,UTCR!AF245) -> 0 | M245: =L245-N245 -> 0 | N245: =IF(Variables!$AO$3=12,IF(VLOOKUP(Variables!$AO$3,Variables!$AL$3:$AN$14,3)=2,INDEX(UTCR!K245:U245,1,5)+INDEX(UTCR!K245:U245,1,8),INDEX(UTCR!AG245:AQ245,1,5)+INDEX(UTCR!AG245:AQ245,1,8)),IF(VLOOKUP(Variables!$AO$3,Variables!$AL$3:$AN$14,3)=2,INDEX(UTCR!K245:U245,1,Variables!$AO$3),INDEX(UTCR!AG245:AQ245,1,Variables!$AO$3))) -> 0 | O245: =P245-N245 -> 0 | P245: =IF(Variables!$AO$3=12,INDEX(NRO!J245:T245,1,5)+INDEX(NRO!J245:T245,1,8),INDEX(NRO!J245:T245,1,Variables!$AO$3)) -> 0
A246: 126 | H246: B1 | I246: 8704074.42 | J246: 3027295.35 | L246: =SUBTOTAL(9,L244:L245) -> 8704074.42 | M246: =SUBTOTAL(9,M244:M245) -> 5676779.07 | N246: =SUBTOTAL(9,N244:N245) -> 3027295.35 | O246: =SUBTOTAL(9,O244:O245) -> 0 | P246: =SUBTOTAL(9,P244:P245) -> 3027295.35
A247: 127
A248: 128 | C248: 451 | D248: Misc Electric Revenue
A249: 129 | F249: =+Function!F249 -> CUST | G249: =UTCR!H249 -> S | I249: 6239418.58 | J249: 3904049.62 | L249: =IF(VLOOKUP(Variables!$AO$3,Variables!$AL$3:$AN$14,3)=2,UTCR!J249,UTCR!AF249) -> 6239418.58 | M249: =L249-N249 -> 2335368.96 | N249: =IF(Variables!$AO$3=12,IF(VLOOKUP(Variables!$AO$3,Variables!$AL$3:$AN$14,3)=2,INDEX(UTCR!K249:U249,1,5)+INDEX(UTCR!K249:U249,1,8),INDEX(UTCR!AG249:AQ249,1,5)+INDEX(UTCR!AG249:AQ249,1,8)),IF(VLOOKUP(Variables!$AO$3,Variables!$AL$3:$AN$14,3)=2,INDEX(UTCR!K249:U249,1,Variables!$AO$3),INDEX(UTCR!AG249:AQ249,1,Variables!$AO$3))) -> 3904049.62 | O249: =P249-N249 -> 0 | P249: =IF(Variables!$AO$3=12,INDEX(NRO!J249:T249,1,5)+INDEX(NRO!J249:T249,1,8),INDEX(NRO!J249:T249,1,Variables!$AO$3)) -> 3904049.62
A250: 130 | F250: =+Function!F250 -> GP | G250: =UTCR!H250 -> SG | I250: 0 | J250: 0 | L250: =IF(VLOOKUP(Variables!$AO$3,Variables!$AL$3:$AN$14,3)=2,UTCR!J250,UTCR!AF250) -> 0 | M250: =L250-N250 -> 0 | N250: =IF(Variables!$AO$3=12,IF(VLOOKUP(Variables!$AO$3,Variables!$AL$3:$AN$14,3)=2,INDEX(UTCR!K250:U250,1,5)+INDEX(UTCR!K250:U250,1,8),INDEX(UTCR!AG250:AQ250,1,5)+INDEX(UTCR!AG250:AQ250,1,8)),IF(VLOOKUP(Variables!$AO$3,Variables!$AL$3:$AN$14,3)=2,INDEX(UTCR!K250:U250,1,Variables!$AO$3),INDEX(UTCR!AG250:AQ250,1,Variables!$AO$3))) -> 0 | O250: =P250-N250 -> 0 | P250: =IF(Variables!$AO$3=12,INDEX(NRO!J250:T250,1,5)+INDEX(NRO!J250:T250,1,8),INDEX(NRO!J250:T250,1,Variables!$AO$3)) -> 0
A251: 131 | F251: =+Function!F251 -> GP | G251: =UTCR!H251 -> SO | I251: 4129.08 | J251: 1766.831227 | L251: =IF(VLOOKUP(Variables!$AO$3,Variables!$AL$3:$AN$14,3)=2,UTCR!J251,UTCR!AF251) -> 4129.08 | M251: =L251-N251 -> 2371.49989 | N251: =IF(Variables!$AO$3=12,IF(VLOOKUP(Variables!$AO$3,Variables!$AL$3:$AN$14,3)=2,INDEX(UTCR!K251:U251,1,5)+INDEX(UTCR!K251:U251,1,8),INDEX(UTCR!AG251:AQ251,1,5)+INDEX(UTCR!AG251:AQ251,1,8)),IF(VLOOKUP(Variables!$AO$3,Variables!$AL$3:$AN$14,3)=2,INDEX(UTCR!K251:U251,1,Variables!$AO$3),INDEX(UTCR!AG251:AQ251,1,Variables!$AO$3))) -> 1757.58011 | O251: =P251-N251 -> 0 | P251: =IF(Variables!$AO$3=12,INDEX(NRO!J251:T251,1,5)+INDEX(NRO!J251:T251,1,8),INDEX(NRO!J251:T251,1,Variables!$AO$3)) -> 1757.58011
A252: 132 | H252: B1 | I252: 6243547.66 | J252: 3905816.451 | L252: =SUBTOTAL(9,L249:L251) -> 6243547.66 | M252: =SUBTOTAL(9,M249:M251) -> 2337740.46 | N252: =SUBTOTAL(9,N249:N251) -> 3905807.2 | O252: =SUBTOTAL(9,O249:O251) -> 0 | P252: =SUBTOTAL(9,P249:P251) -> 3905807.2
A253: 133
A254: 134 | C254: 453 | D254: Water Sales
A255: 135 | F255: =+Function!F255 -> P | G255: =UTCR!H255 -> SG | I255: 12096.3 | J255: 5212.547159 | L255: =IF(VLOOKUP(Variables!$AO$3,Variables!$AL$3:$AN$14,3)=2,UTCR!J255,UTCR!AF255) -> 12096.3 | M255: =L255-N255 -> 6921.361714 | N255: =IF(Variables!$AO$3=12,IF(VLOOKUP(Variables!$AO$3,Variables!$AL$3:$AN$14,3)=2,INDEX(UTCR!K255:U255,1,5)+INDEX(UTCR!K255:U255,1,8),INDEX(UTCR!AG255:AQ255,1,5)+INDEX(UTCR!AG255:AQ255,1,8)),IF(VLOOKUP(Variables!$AO$3,Variables!$AL$3:$AN$14,3)=2,INDEX(UTCR!K255:U255,1,Variables!$AO$3),INDEX(UTCR!AG255:AQ255,1,Variables!$AO$3))) -> 5174.938286 | O255: =P255-N255 -> 0 | P255: =IF(Variables!$AO$3=12,INDEX(NRO!J255:T255,1,5)+INDEX(NRO!J255:T255,1,8),INDEX(NRO!J255:T255,1,Variables!$AO$3)) -> 5174.938286
A256: 136 | H256: B1 | I256: 12096.3 | J256: 5212.547159 | L256: =SUBTOTAL(9,L255) -> 12096.3 | M256: =SUBTOTAL(9,M255) -> 6921.361714 | N256: =SUBTOTAL(9,N255) -> 5174.938286 | O256: =SUBTOTAL(9,O255) -> 0 | P256: =SUBTOTAL(9,P255) -> 5174.938286
A257: 137
A258: 138 | C258: 454 | D258: Rent of Electric Property
A259: 139 | F259: =+Function!F259 -> DPW | G259: =UTCR!H259 -> S | I259: 10740535.89 | J259: 3461819.55 | L259: =IF(VLOOKUP(Variables!$AO$3,Variables!$AL$3:$AN$14,3)=2,UTCR!J259,UTCR!AF259) -> 10740535.89 | M259: =L259-N259 -> 7278716.34 | N259: =IF(Variables!$AO$3=12,IF(VLOOKUP(Variables!$AO$3,Variables!$AL$3:$AN$14,3)=2,INDEX(UTCR!K259:U259,1,5)+INDEX(UTCR!K259:U259,1,8),INDEX(UTCR!AG259:AQ259,1,5)+INDEX(UTCR!AG259:AQ259,1,8)),IF(VLOOKUP(Variables!$AO$3,Variables!$AL$3:$AN$14,3)=2,INDEX(UTCR!K259:U259,1,Variables!$AO$3),INDEX(UTCR!AG259:AQ259,1,Variables!$AO$3))) -> 3461819.55 | O259: =P259-N259 -> 0 | P259: =IF(Variables!$AO$3=12,INDEX(NRO!J259:T259,1,5)+INDEX(NRO!J259:T259,1,8),INDEX(NRO!J259:T259,1,Variables!$AO$3)) -> 3461819.55
A260: 140 | F260: =+Function!F260 -> T | G260: =UTCR!H260 -> SG | I260: 5635964.34 | J260: 2428654.209 | L260: =IF(VLOOKUP(Variables!$AO$3,Variables!$AL$3:$AN$14,3)=2,UTCR!J260,UTCR!AF260) -> 5635964.34 | M260: =L260-N260 -> 3224833.032 | N260: =IF(Variables!$AO$3=12,IF(VLOOKUP(Variables!$AO$3,Variables!$AL$3:$AN$14,3)=2,INDEX(UTCR!K260:U260,1,5)+INDEX(UTCR!K260:U260,1,8),INDEX(UTCR!AG260:AQ260,1,5)+INDEX(UTCR!AG260:AQ260,1,8)),IF(VLOOKUP(Variables!$AO$3,Variables!$AL$3:$AN$14,3)=2,INDEX(UTCR!K260:U260,1,Variables!$AO$3),INDEX(UTCR!AG260:AQ260,1,Variables!$AO$3))) -> 2411131.308 | O260: =P260-N260 -> 0 | P260: =IF(Variables!$AO$3=12,INDEX(NRO!J260:T260,1,5)+INDEX(NRO!J260:T260,1,8),INDEX(NRO!J260:T260,1,Variables!$AO$3)) -> 2411131.308
A261: 141 | F261: =+Function!F261 -> GP | G261: =UTCR!H261 -> SO | I261: 3624835.93 | J261: 1551065.446 | L261: =IF(VLOOKUP(Variables!$AO$3,Variables!$AL$3:$AN$14,3)=2,UTCR!J261,UTCR!AF261) -> 3624835.93 | M261: =L261-N261 -> 2081891.852 | N261: =IF(Variables!$AO$3=12,IF(VLOOKUP(Variables!$AO$3,Variables!$AL$3:$AN$14,3)=2,INDEX(UTCR!K261:U261,1,5)+INDEX(UTCR!K261:U261,1,8),INDEX(UTCR!AG261:AQ261,1,5)+INDEX(UTCR!AG261:AQ261,1,8)),IF(VLOOKUP(Variables!$AO$3,Variables!$AL$3:$AN$14,3)=2,INDEX(UTCR!K261:U261,1,Variables!$AO$3),INDEX(UTCR!AG261:AQ261,1,Variables!$AO$3))) -> 1542944.078 | O261: =P261-N261 -> 0 | P261: =IF(Variables!$AO$3=12,INDEX(NRO!J261:T261,1,5)+INDEX(NRO!J261:T261,1,8),INDEX(NRO!J261:T261,1,Variables!$AO$3)) -> 1542944.078
A262: 142 | H262: B1 | I262: 20001336.16 | J262: 7441539.205 | L262: =SUBTOTAL(9,L259:L261) -> 20001336.16 | M262: =SUBTOTAL(9,M259:M261) -> 12585441.22 | N262: =SUBTOTAL(9,N259:N261) -> 7415894.936 | O262: =SUBTOTAL(9,O259:O261) -> 0 | P262: =SUBTOTAL(9,P259:P261) -> 7415894.936
A263: 143
A264: 144
A265: 145
A266: 146 | C266: 456 | D266: Other Electric Revenue
A267: 147 | F267: =+Function!F267 -> DMSC | G267: =UTCR!H267 -> S | I267: 85315923.2 | J267: 30228998.87 | L267: =IF(VLOOKUP(Variables!$AO$3,Variables!$AL$3:$AN$14,3)=2,UTCR!J267,UTCR!AF267) -> 5742667.662 | M267: =L267-N267 -> 5672663.772 | N267: =IF(Variables!$AO$3=12,IF(VLOOKUP(Variables!$AO$3,Variables!$AL$3:$AN$14,3)=2,INDEX(UTCR!K267:U267,1,5)+INDEX(UTCR!K267:U267,1,8),INDEX(UTCR!AG267:AQ267,1,5)+INDEX(UTCR!AG267:AQ267,1,8)),IF(VLOOKUP(Variables!$AO$3,Variables!$AL$3:$AN$14,3)=2,INDEX(UTCR!K267:U267,1,Variables!$AO$3),INDEX(UTCR!AG267:AQ267,1,Variables!$AO$3))) -> 70003.89 | O267: =P267-N267 -> 0 | P267: =IF(Variables!$AO$3=12,INDEX(NRO!J267:T267,1,5)+INDEX(NRO!J267:T267,1,8),INDEX(NRO!J267:T267,1,Variables!$AO$3)) -> 70003.89
A268: 148 | F268: =+Function!F268 -> CUST | G268: =UTCR!H268 -> CN | I268: 0 | J268: 0 | L268: =IF(VLOOKUP(Variables!$AO$3,Variables!$AL$3:$AN$14,3)=2,UTCR!J268,UTCR!AF268) -> 0 | M268: =L268-N268 -> 0 | N268: =IF(Variables!$AO$3=12,IF(VLOOKUP(Variables!$AO$3,Variables!$AL$3:$AN$14,3)=2,INDEX(UTCR!K268:U268,1,5)+INDEX(UTCR!K268:U268,1,8),INDEX(UTCR!AG268:AQ268,1,5)+INDEX(UTCR!AG268:AQ268,1,8)),IF(VLOOKUP(Variables!$AO$3,Variables!$AL$3:$AN$14,3)=2,INDEX(UTCR!K268:U268,1,Variables!$AO$3),INDEX(UTCR!AG268:AQ268,1,Variables!$AO$3))) -> 0 | O268: =P268-N268 -> 0 | P268: =IF(Variables!$AO$3=12,INDEX(NRO!J268:T268,1,5)+INDEX(NRO!J268:T268,1,8),INDEX(NRO!J268:T268,1,Variables!$AO$3)) -> 0
A269: 149 | F269: =+Function!F269 -> OTHSE | G269: =UTCR!H269 -> SE | I269: 11357475.02 | J269: 4822885.772 | L269: =IF(VLOOKUP(Variables!$AO$3,Variables!$AL$3:$AN$14,3)=2,UTCR!J269,UTCR!AF269) -> 11357475.02 | M269: =L269-N269 -> 6560479.534 | N269: =IF(Variables!$AO$3=12,IF(VLOOKUP(Variables!$AO$3,Variables!$AL$3:$AN$14,3)=2,INDEX(UTCR!K269:U269,1,5)+INDEX(UTCR!K269:U269,1,8),INDEX(UTCR!AG269:AQ269,1,5)+INDEX(UTCR!AG269:AQ269,1,8)),IF(VLOOKUP(Variables!$AO$3,Variables!$AL$3:$AN$14,3)=2,INDEX(UTCR!K269:U269,1,Variables!$AO$3),INDEX(UTCR!AG269:AQ269,1,Variables!$AO$3))) -> 4796995.486 | O269: =P269-N269 -> 0 | P269: =IF(Variables!$AO$3=12,INDEX(NRO!J269:T269,1,5)+INDEX(NRO!J269:T269,1,8),INDEX(NRO!J269:T269,1,Variables!$AO$3)) -> 4796995.486
A270: 150 | F270: =+Function!F270 -> OTHSO | G270: =UTCR!H270 -> SO | I270: -26572.12 | J270: -11370.1966 | L270: =IF(VLOOKUP(Variables!$AO$3,Variables!$AL$3:$AN$14,3)=2,UTCR!J270,UTCR!AF270) -> -26572.12 | M270: =L270-N270 -> -15261.45768 | N270: =IF(Variables!$AO$3=12,IF(VLOOKUP(Variables!$AO$3,Variables!$AL$3:$AN$14,3)=2,INDEX(UTCR!K270:U270,1,5)+INDEX(UTCR!K270:U270,1,8),INDEX(UTCR!AG270:AQ270,1,5)+INDEX(UTCR!AG270:AQ270,1,8)),IF(VLOOKUP(Variables!$AO$3,Variables!$AL$3:$AN$14,3)=2,INDEX(UTCR!K270:U270,1,Variables!$AO$3),INDEX(UTCR!AG270:AQ270,1,Variables!$AO$3))) -> -11310.66232 | O270: =P270-N270 -> 0 | P270: =IF(Variables!$AO$3=12,INDEX(NRO!J270:T270,1,5)+INDEX(NRO!J270:T270,1,8),INDEX(NRO!J270:T270,1,Variables!$AO$3)) -> -11310.66232
A271: 151 | F271: =+Function!F271 -> OTHSGR | G271: =UTCR!H271 -> SG | I271: 118379851.2 | J271: 51012339.05 | L271: =IF(VLOOKUP(Variables!$AO$3,Variables!$AL$3:$AN$14,3)=2,UTCR!J271,UTCR!AF271) -> 194540407.6 | M271: =L271-N271 -> 111313751.2 | N271: =IF(Variables!$AO$3=12,IF(VLOOKUP(Variables!$AO$3,Variables!$AL$3:$AN$14,3)=2,INDEX(UTCR!K271:U271,1,5)+INDEX(UTCR!K271:U271,1,8),INDEX(UTCR!AG271:AQ271,1,5)+INDEX(UTCR!AG271:AQ271,1,8)),IF(VLOOKUP(Variables!$AO$3,Variables!$AL$3:$AN$14,3)=2,INDEX(UTCR!K271:U271,1,Variables!$AO$3),INDEX(UTCR!AG271:AQ271,1,Variables!$AO$3))) -> 83226656.37 | O271: =P271-N271 -> 0 | P271: =IF(Variables!$AO$3=12,INDEX(NRO!J271:T271,1,5)+INDEX(NRO!J271:T271,1,8),INDEX(NRO!J271:T271,1,Variables!$AO$3)) -> 83226656.37
A272: 152
A273: 153
A274: 154 | H274: B1 | I274: 215026677.3 | J274: 86052853.5 | L274: =SUBTOTAL(9,L267:L273) -> 211613978.2 | M274: =SUBTOTAL(9,M267:M273) -> 123531633.1 | N274: =SUBTOTAL(9,N267:N273) -> 88082345.08 | O274: =SUBTOTAL(9,O267:O273) -> 0 | P274: =SUBTOTAL(9,P267:P273) -> 88082345.08
A275: 155
A276: 156 | C276: Total Other Electric Revenues | H276: B1 | I276: 249987731.8 | J276: 100432717.1 | L276: =SUBTOTAL(9,L244:L274) -> 246575032.7 | M276: =SUBTOTAL(9,M244:M274) -> 144138515.2 | N276: =SUBTOTAL(9,N244:N274) -> 102436517.5 | O276: =SUBTOTAL(9,O244:O274) -> 0 | P276: =SUBTOTAL(9,P244:P274) -> 102436517.5
A277: 157
A278: 158 | C278: Total Electric Operating Revenues | H278: B1 | I278: 4681666114 | J278: 1951694173 | L278: =L276+L242 -> 4711018626 | M278: =M276+M242 -> 2725580023 | N278: =N276+N242 -> 1985438603 | O278: =O276+O242 -> 0 | P278: =P276+P242 -> 1985438603
A279: 159
A280: 160 | C280: Summary of Revenues by Factor
A281: 161 | E281: S | I281: 4213137296 | J281: 1749877546 | L281: =IF(VLOOKUP(Variables!$AO$3,Variables!$AL$3:$AN$14,3)=2,UTCR!J281,UTCR!AF281) -> 4166329251 | M281: =L281-N281 -> 2413845489 | N281: =IF(Variables!$AO$3=12,IF(VLOOKUP(Variables!$AO$3,Variables!$AL$3:$AN$14,3)=2,INDEX(UTCR!K281:U281,1,5)+INDEX(UTCR!K281:U281,1,8),INDEX(UTCR!AG281:AQ281,1,5)+INDEX(UTCR!AG281:AQ281,1,8)),IF(VLOOKUP(Variables!$AO$3,Variables!$AL$3:$AN$14,3)=2,INDEX(UTCR!K281:U281,1,Variables!$AO$3),INDEX(UTCR!AG281:AQ281,1,Variables!$AO$3))) -> 1752483762 | O281: =P281-N281 -> 0 | P281: =IF(Variables!$AO$3=12,INDEX(NRO!J281:T281,1,5)+INDEX(NRO!J281:T281,1,8),INDEX(NRO!J281:T281,1,Variables!$AO$3)) -> 1752483762
... 2341 more rows

Sheet NRO (hidden)
C110: =Variables!AE29 -> 2010 PROTOCOL
C111: BALANCE BASED ON JURISDICTION
C112: RESULTS OF OPERATIONS SUMMARY
C115: Description of Account Summary: | I115: Total | J115: California | K115: Oregon | L115: Washington | M115: Montana | N115: Wyo-PPL | O115: Utah | P115: Idaho | Q115: Wyo-UPL | R115: FERC | S115: OTHER | T115: NON-UTILITY
A117: 1 | C117: Operating Revenues
A118: 2 | E118: General Business Revenues | I118: =I219-I217 -> 4124828251 | J118: =J219-J217 -> 99817922.69 | K118: =K219-K217 -> 1128512328 | L118: 291874412.4 | M118: 0 | N118: 492259509.1 | O118: 1742020594 | P118: 249649183.2 | Q118: 119343516.3 | R118: 0 | S118: 1350786.17 | T118: 0
A119: 3 | E119: Interdepartmental | I119: =I217 -> 0 | J119: 0 | K119: 0 | L119: 0 | M119: 0 | N119: 0 | O119: 0 | P119: 0 | Q119: 0 | R119: 0 | S119: 0 | T119: 0
A120: 4 | E120: Special Sales | I120: =I233 -> 339615341.8 | J120: 5179714.531 | K120: 86200551.2 | L120: 25956960.06 | M120: 0 | N120: 42501232.3 | O120: 140981491.5 | P120: 19293609.24 | Q120: 9242673.156 | R120: 10259109.83 | S120: 0 | T120: 0
A121: 5 | E121: Other Operating Revenues | I121: =I276+I240 -> 246575032.7 | J121: 2669480.705 | K121: 40097881.03 | L121: 16569139.88 | M121: 0 | N121: 29397510.87 | O121: 102436517.5 | P121: 13323203.37 | Q121: 6290285.35 | R121: 798067.6817 | S121: 34992946.3 | T121: 0
A122: 6 | E122: Total Operating Revenues | G122: 2.4 | I122: =SUM(I118:I121) -> 4711018626 | J122: =SUM(J118:J121) -> 107667117.9 | K122: =SUM(K118:K121) -> 1254810760 | L122: 334400512.3 | M122: 0 | N122: 564158252.3 | O122: 1985438603 | P122: 282265995.9 | Q122: 134876474.8 | R122: 11057177.52 | S122: 36343732.47 | T122: 0
A123: 7
A124: 8 | C124: Operating Expenses:
A125: 9 | D125: Steam Production | G125: 2.6 | I125: =I413 -> 1026709790 | J125: 15921104.09 | K125: 255644217.6 | L125: 78533894.91 | M125: 0 | N125: 142077601 | O125: 435033082.7 | P125: 64439274.63 | Q125: 31490671.2 | R125: 3569944.129 | S125: 0 | T125: 0
A126: 10 | D126: Nuclear Production | G126: 2.7 | I126: =I461 -> 0 | J126: 0 | K126: 0 | L126: 0 | M126: 0 | N126: 0 | O126: 0 | P126: 0 | Q126: 0 | R126: 0 | S126: 0 | T126: 0
A127: 11 | D127: Hydro Production | G127: 2.8 | I127: =I544 -> 38365574.23 | J127: 603028.8171 | K127: 9916268.051 | L127: 3021941.998 | M127: 0 | N127: 4945085.31 | O127: 16413240.32 | P127: 2246184.519 | Q127: 1076042.589 | R127: 143782.6204 | S127: 0 | T127: 0
A128: 12 | D128: Other Power Supply | I128: =I600+I651 -> 1048036137 | J128: 15481387.51 | K128: 219286419.2 | L128: 68986334.03 | M128: 0 | N128: 132749990.5 | O128: 496811089.2 | P128: 76466015.58 | Q128: 34044972.47 | R128: 4209928.095 | S128: 0 | T128: 0
A129: 13 | D129: Transmission | G129: 2.11 | I129: =I752 -> 204569251.7 | J129: 3212696.818 | K129: 52748779.84 | L129: 16083232.3 | M129: 0 | N129: 26490721.81 | O129: 87465469.99 | P129: 12032029.65 | Q129: 5773282.191 | R129: 763039.0563 | S129: 0 | T129: 0
A130: 14 | D130: Distribution | G130: 2.13 | I130: =I853 -> 208601620.8 | J130: 10183875.71 | K130: 66128585.61 | L130: 11776692.07 | M130: 0 | N130: 18979115.57 | O130: 87092561.37 | P130: 11521617.71 | Q130: 2919172.718 | R130: 0 | S130: 0 | T130: 0
A131: 15 | D131: Customer Accounting | G131: 2.13 | I131: =I888 -> 94685784.22 | J131: 2991249.037 | K131: 35153738.27 | L131: 7341594.187 | M131: 0 | N131: 6184001.369 | O131: 37538932.21 | P131: 4727295.099 | Q131: 748974.0529 | R131: 0 | S131: 0 | T131: 0
A132: 16 | D132: Customer Service & Info | G132: 2.14 | I132: =I919 -> 18568107.44 | J132: 660404.3092 | K132: 3965957.771 | L132: 910814.8468 | M132: 0 | N132: 1820644.91 | O132: 5962391.712 | P132: 1101652.087 | Q132: 43169.88402 | R132: 0 | S132: 4103071.92 | T132: 0
A133: 17 | D133: Sales | G133: 2.14 | I133: =I949 -> 0 | J133: 0 | K133: 0 | L133: 0 | M133: 0 | N133: 0 | O133: 0 | P133: 0 | Q133: 0 | R133: 0 | S133: 0 | T133: 0
A134: 18 | D134: Administrative & General | G134: 2.15 | I134: =I1033 -> 146410771.7 | J134: 3418394.307 | K134: 45148109.58 | L134: 9805571.917 | M134: 0 | N134: 17249556.78 | O134: 59356693.19 | P134: 8051551.565 | Q134: 3056988.241 | R134: 323906.1442 | S134: 0 | T134: 0
A135: 19
A136: 20 | D136: Total O & M Expenses | G136: 2.15 | I136: =SUM(I125:I134) -> 2785947037 | J136: =SUM(J125:J134) -> 52472140.6 | K136: 687992075.9 | L136: 196460076.3 | M136: 0 | N136: 350496717.2 | O136: 1225673461 | P136: 180585620.8 | Q136: 79153273.34 | R136: 9010600.045 | S136: 4103071.92 | T136: 0
A137: 21
A138: 22 | D138: Depreciation | G138: 2.17 | I138: =I1122 -> 542624975.3 | J138: 12788507.25 | K138: 151505124.3 | L138: 43688677.73 | M138: 0 | N138: 64504911.03 | O138: 225037819.5 | P138: 30028557.1 | Q138: 13683493.57 | R138: 1387884.824 | S138: 0 | T138: 0
A139: 23 | D139: Amortization | G139: 2.18 | I139: =I1202 -> 43321243.53 | J139: 956120.5953 | K139: 11637927.5 | L139: 3362552.354 | M139: 0 | N139: 5419031.37 | O139: 18006041.02 | P139: 2276359.492 | Q139: 990656.1614 | R139: 112813.1007 | S139: 559741.94 | T139: 0
A140: 24 | D140: Taxes Other Than Income | G140: 2.19 | I140: =I1230 -> 157778830.5 | J140: 4155859.436 | K140: 61912226.09 | L140: 9825140.155 | M140: 0 | N140: 16823537.32 | O140: 54314747.86 | P140: 7197671.489 | Q140: 3209709.255 | R140: 339938.8887 | S140: 0 | T140: 0
A141: 25 | D141: Income Taxes - Federal | G141: 2.22 | I141: =I1439 -> -98858322.09 | J141: 3905026.367 | K141: -7651481.537 | L141: -304021.8693 | M141: 0 | N141: =N1439 -> -16848357.41 | O141: -58838696.31 | P141: -6461074.864 | Q141: -1942874.821 | R141: -1510786.055 | S141: 1255115.492 | T141: -10461171.08
A142: 26 | D142: Income Taxes - State | G142: 2.22 | I142: =I1406 -> -3996209.647 | J142: 678981.0459 | K142: 1399370.023 | L142: 701972.8761 | M142: 0 | N142: -1072951.225 | O142: -3958009.874 | P142: -325393.9773 | Q142: 703.4490964 | R142: -169931.9084 | S142: 170549.3501 | T142: -1421499.407
A143: 27 | D143: Income Taxes - Def Net | G143: 2.20 | I143: =I1328 -> 375718885.1 | J143: 6175457.934 | K143: 93065357.85 | L143: 18314817.43 | M143: 0 | N143: 46455826.23 | O143: 157135953.3 | P143: 19737215.31 | Q143: 10928179.47 | R143: 1225195.661 | S143: 10568888 | T143: 12111993.99
A144: 28 | D144: Investment Tax Credit Adj. | G144: 2.19 | I144: =I1243 -> -1862752 | J144: 0 | K144: 0 | L144: 0 | M144: 0 | N144: 0 | O144: -1537975.334 | P144: -210474.9774 | Q144: -100828.7777 | R144: -13472.91085 | S144: 0 | T144: 0
A145: 29 | D145: Misc Revenue & Expense | G145: 2.5 | I145: =I332 -> -3102455.52 | J145: -53349.93664 | K145: -852269.1954 | L145: -259996.1338 | M145: 0 | N145: -490010.8822 | O145: -498052.1523 | P145: -222548.1375 | Q145: -109937.5798 | R145: -11779.40237 | S145: -250 | T145: -604262.1
A146: 30
A147: 31 | D147: Total Operating Expenses | G147: 2.22 | I147: =SUM(I136:I145) -> 3797571232 | J147: =SUM(J136:J145) -> 81078743.29 | K147: 999008331 | L147: 271789218.8 | M147: 0 | N147: 465288703.6 | O147: 1615335289 | P147: 232605932.3 | Q147: 105812374.1 | R147: 10370462.24 | S147: 16657116.7 | T147: -374938.5954
A148: 32
A149: 33 | C149: Operating Revenue for Return | I149: =I122-I147 -> 913447393.8 | J149: =J122-J147 -> 26588374.64 | K149: 255802429 | L149: 62611293.48 | M149: 0 | N149: 98869548.71 | O149: 370103314.1 | P149: 49660063.58 | Q149: 29064100.71 | R149: 686715.2734 | S149: 19686615.77 | T149: 374938.5954
A150: 34
A151: 35 | C151: Rate Base:
A152: 36 | D152: Electric Plant in Service | G152: 2.31 | I152: =I2065 -> 2.272470875e+10 | J152: 504401063.4 | K152: 6199662494 | L152: 1750349796 | M152: 0 | N152: 2678329798 | O152: 9672977055 | P152: 1285762608 | Q152: 572669591.8 | R152: 60556340.74 | S152: 0 | T152: 0
A153: 37 | D153: Plant Held for Future Use | G153: 2.32 | I153: =I2088 -> 34658983.62 | J153: 475518.8288 | K153: 10986618.64 | L153: 2074499.27 | M153: 0 | N153: 3870079.882 | O153: 14536948.95 | P153: 1755859.929 | Q153: 866809.6341 | R153: 92648.4953 | S153: 0 | T153: 0
A154: 38 | D154: Misc Deferred Debits | G154: 2.33 | I154: =I2196+I2207 -> 270506713.7 | J154: 1471217.194 | K154: 21560934.66 | L154: 18436620.3 | M154: 0 | N154: 12913562.48 | O154: 37637117.06 | P154: 5130327.455 | Q154: 2478875.693 | R154: 277887.2101 | S154: 170600171.6 | T154: 0
A155: 39 | D155: Elec Plant Acq Adj | G155: 2.32 | I155: =I2094+I2100 -> 51806272.84 | J155: 814289.2698 | K155: 13390256.72 | L155: 4080625.79 | M155: 0 | N155: 6677508.258 | O155: 22163328.02 | P155: 3033095.435 | Q155: 1453015.029 | R155: 194154.3118 | S155: 0 | T155: 0
A156: 40 | D156: Nuclear Fuel | G156: 2.32 | I156: =I2104 -> 0 | J156: 0 | K156: 0 | L156: 0 | M156: 0 | N156: 0 | O156: 0 | P156: 0 | Q156: 0 | R156: 0 | S156: 0 | T156: 0
A157: 41 | D157: Prepayments | G157: 2.33 | I157: =I2186 -> 31300617.1 | J157: 524443.9015 | K157: 8641272.441 | L157: 2000343.148 | M157: 0 | N157: 3304518.477 | O157: 13687891.38 | P157: 1689491.799 | Q157: 688231.4249 | R157: 76216.71891 | S157: 688207.8154 | T157: 0
A158: 42 | D158: Fuel Stock | G158: 2.32 | I158: =I2151 -> 233290005.4 | J158: 3600017.008 | K158: 57202539.84 | L158: 17635441.15 | M158: 0 | N158: 33096472.83 | O158: 98533441.7 | P158: 15015173.2 | Q158: 7421814.731 | R158: 785104.9331 | S158: 0 | T158: 0
A159: 43 | D159: Material & Supplies | G159: 2.33 | I159: =I2178 -> 196049828.7 | J159: 2936362.66 | K159: 56592525.3 | L159: 14390884.34 | M159: 0 | N159: 23515598.26 | O159: 82305591.52 | P159: 11516262.69 | Q159: 4391149.265 | R159: 401454.6212 | S159: 0 | T159: 0
A160: 44 | D160: Working Capital | G160: 2.33 | I160: =I2234 -> 78693525.62 | J160: 1133432.846 | K160: 26416115.17 | L160: 6650620.237 | M160: 0 | N160: 7298540.357 | O160: 32443648.65 | P160: 3099802.41 | Q160: 1549561.679 | R160: 108183.0099 | S160: -6378.75 | T160: 0
A161: 45 | D161: Weatherization Loans | G161: 2.32 | I161: =I2126 -> -3246022.741 | J161: 394491.7737 | K161: -1214.867568 | L161: 1957800.166 | M161: 0 | N161: 223209.8305 | O161: 4768445.435 | P161: 2885539.994 | Q161: 7680.412577 | R161: -11.86810235 | S161: -13481963.62 | T161: 0
A162: 46 | D162: Miscellaneous Rate Base | G162: 2.33 | I162: =I2254 -> 0 | J162: 0 | K162: 0 | L162: 0 | M162: 0 | N162: 0 | O162: 0 | P162: 0 | Q162: 0 | R162: 0 | S162: 0 | T162: 0
A163: 47
A164: 48 | D164: Total Electric Plant | I164: =SUM(I152:I163) -> 2.361776867e+10 | J164: =SUM(J152:J163) -> 515750836.9 | K164: 6394451542 | L164: 1817576630 | M164: 0 | N164: 2769229288 | O164: 9979053467 | P164: 1329888161 | Q164: 591526729.7 | R164: 62491978.17 | S164: 157800037.1 | T164: 0
A165: 49
A166: 50 | C166: Rate Base Deductions:
A167: 51 | D167: Accum Prov For Depr | G167: 2.38 | I167: =I2556 -> -7045872808 | J167: -181261549 | K167: -2060202246 | L167: -568224854.8 | M167: 0 | N167: -817417560.5 | O167: -2819010927 | P167: -407282803.7 | Q167: -174968670.5 | R167: -17504196.75 | S167: 0 | T167: 0
A168: 52 | D168: Accum Prov For Amort | G168: 2.39 | I168: =I2605 -> -476860979.4 | J168: -10783540.46 | K168: -133459526.1 | L168: -36537313.98 | M168: 0 | N168: -56019535.14 | O168: -203642585.2 | P168: -25218885.12 | Q168: -10165868.45 | R168: -1033724.95 | S168: 0 | T168: 0
A169: 53 | D169: Accum Def Income Taxes | G169: 2.35 | I169: =I2353 -> -3294382258 | J169: -73433811.66 | K169: -888368735.9 | L169: -202770199.8 | M169: 0 | N169: -452325314 | O169: -1398243730 | P169: -184662516.5 | Q169: 1272471.954 | R169: -9139909.652 | S169: -86710513.27 | T169: 7.522446209e-08
A170: 54 | D170: Unamortized ITC | G170: 2.36 | I170: =I2363 -> -4170279.077 | J170: -192204.4261 | K170: -2624546.305 | L170: -545091.7706 | M170: 0 | N170: -541080.8234 | O170: -122298.677 | P170: -36431.25039 | Q170: -35276.67563 | R170: 0 | S170: 0 | T170: -73349.14852
A171: 55 | D171: Customer Adv for Const | G171: 2.35 | I171: =I2286 -> -24720905.68 | J171: -315982.7004 | K171: -9065461.36 | L171: -1387138.739 | M171: 0 | N171: -2633798.052 | O171: -9312617.282 | P171: -1062142.084 | Q171: -885750.394 | R171: -58015.06663 | S171: 0 | T171: 0
A172: 56 | D172: Customer Service Deposits | G172: 2.35 | I172: =I2260 -> -15463869.23 | J172: =J2260 -> 0 | K172: 0 | L172: 0 | M172: 0 | N172: 0 | O172: -15463869.23 | P172: 0 | Q172: 0 | R172: 0 | S172: 0 | T172: 0
A173: 57 | D173: Misc. Rate Base Deductions | G173: 2.35 | I173: =I2267+I2272+I2278+I2290+I2297 -> -75592248.45 | J173: =J2267+J2272+J2278+J2290+J2297 -> -785150.6652 | K173: -12978881.01 | L173: -2827155.756 | M173: 0 | N173: -4515597.506 | O173: -14625684.27 | P173: -2052182.79 | Q173: -896669.7187 | R173: -105099.5945 | S173: -36805827.14 | T173: 0
A174: 58
A175: 59 | D175: Total Rate Base Deductions | I175: =SUM(I167:I173) -> -1.093706335e+10 | J175: =SUM(J167:J173) -> -266772239 | K175: -3106699396 | L175: -812291754.9 | M175: 0 | N175: -1333452886 | O175: -4460421711 | P175: -620314961.5 | Q175: -185679763.8 | R175: -27840946.02 | S175: -123516340.4 | T175: -73349.14852
A176: 60
A177: 61 | C177: Total Rate Base | I177: =I164+I175 -> 1.268070532e+10 | J177: =J164+J175 -> 248978597.9 | K177: 3287752146 | L177: 1005284875 | M177: 0 | N177: 1435776402 | O177: 5518631756 | P177: 709573199.9 | Q177: 405846966 | R177: 34651032.16 | S177: 34283696.67 | T177: -73349.14852
A178: 62
A179: 63 | C179: Return on Rate Base | I179: =I149/I177 -> 0.0720344311 | J179: 0.1067897998 | K179: 0.0778046573 | L179: 0.06228214015 | N179: 0.068861383 | O179: 0.06706432508 | P179: 0.06998582188 | Q179: 0.07161344828 | R179: 0.01981803227
A180: 64
A181: 65 | C181: Return on Equity | I181: =(+I179-UTCR!J7-UTCR!J12)/UTCR!J15 -> 0.08733444669 | J181: =(+J179-UTCR!K7-UTCR!K12)/UTCR!K15 -> 0.1541716943 | K181: =(+K179-UTCR!L7-UTCR!L12)/UTCR!L15 -> 0.09843103553 | L181: =(+L179-UTCR!M7-UTCR!M12)/UTCR!M15 -> 0.06858004101 | M181: =(+M179-UTCR!N7-UTCR!N12)/UTCR!N15 ->  | N181: =(+N179-UTCR!O7-UTCR!O12)/UTCR!O15 -> 0.08123243111 | O181: =(+O179-UTCR!P7-UTCR!P12)/UTCR!P15 -> 0.07777655049 | P181: =(+P179-UTCR!Q7-UTCR!Q12)/UTCR!Q15 -> 0.08339481357 | Q181: =(+Q179-UTCR!R7-UTCR!R12)/UTCR!R15 -> 0.08652486434 | R181: =(+R179-UTCR!S7-UTCR!S12)/UTCR!S15 -> -0.01308170491
A182: 66
A183: 67 | C183: 100 Basis Points in Equity: | I183: =(I177*(UTCR!J15*(I181+0.01)+UTCR!J7+UTCR!J12))-I149 -> 65939667.68 | J183: =(J177*(UTCR!K15*(J181+0.01)+UTCR!K7+UTCR!K12))-J149 -> 1294688.709 | K183: =(K177*(UTCR!L15*(K181+0.01)+UTCR!L7+UTCR!L12))-K149 -> 17096311.16 | L183: =(L177*(UTCR!M15*(L181+0.01)+UTCR!M7+UTCR!M12))-L149 -> 5227481.351 | M183: =(M177*(UTCR!N15*(M181+0.01)+UTCR!N7+UTCR!N12))-M149 ->  | N183: =(N177*(UTCR!O15*(N181+0.01)+UTCR!O7+UTCR!O12))-N149 -> 7466037.29 | O183: =(O177*(UTCR!P15*(O181+0.01)+UTCR!P7+UTCR!P12))-O149 -> 28696885.13 | P183: =(P177*(UTCR!Q15*(P181+0.01)+UTCR!Q7+UTCR!Q12))-P149 -> 3689780.639 | Q183: =(Q177*(UTCR!R15*(Q181+0.01)+UTCR!R7+UTCR!R12))-Q149 -> 2110404.223 | R183: =(R177*(UTCR!S15*(R181+0.01)+UTCR!S7+UTCR!S12))-R149 -> 180185.3672
A184: 68 | D184: Revenue Requirement Impact | I184: =I183*(1/(1-Variables!$E15)) -> 106270314.9 | J184: =J183*(1/(1-Variables!$F15)) -> 2086558.541 | K184: =K183*(1/(1-Variables!$G15)) -> 27552919.72 | L184: =L183*(1/(1-Variables!$H15)) -> 8424763.253 | M184: =M183*(1/(1-Variables!$I15)) ->  | N184: =N183*(1/(1-Variables!$J15)) -> 12032486.08 | O184: =O183*(1/(1-Variables!$K15)) -> 46248747.17 | P184: =P183*(1/(1-Variables!$L15)) -> 5946559.395 | Q184: =Q183*(1/(1-Variables!$M15)) -> 3401189.742 | R184: =R183*(1/(1-Variables!$N15)) -> 290392.0566
A185: 69 | D185: Rate Base Decrease | I185: =(I149/(UTCR!J15*(I181+0.01)+UTCR!J7+UTCR!J12))-I177 -> -853759997.2 | J185: =(J149/(UTCR!K15*(J181+0.01)+UTCR!K7+UTCR!K12))-J177 -> -11560773.49 | K185: =(K149/(UTCR!L15*(K181+0.01)+UTCR!L7+UTCR!L12))-K177 -> -205968095.2 | L185: =(L149/(UTCR!M15*(L181+0.01)+UTCR!M7+UTCR!M12))-L177 -> -77464664.57 | M185: =(M149/(UTCR!N15*(M181+0.01)+UTCR!N7+UTCR!N12))-M177 ->  | N185: =(N149/(UTCR!O15*(N181+0.01)+UTCR!O7+UTCR!O12))-N177 -> -100808774.9 | O185: =(O149/(UTCR!P15*(O181+0.01)+UTCR!P7+UTCR!P12))-O177 -> -397109986.2 | P185: =(P149/(UTCR!Q15*(P181+0.01)+UTCR!Q7+UTCR!Q12))-P177 -> -49075484.54 | Q185: =(Q149/(UTCR!R15*(Q181+0.01)+UTCR!R7+UTCR!R12))-Q177 -> -27474410.67 | R185: =(R149/(UTCR!S15*(R181+0.01)+UTCR!S7+UTCR!S12))-R177 -> -7202219.794
C186: =Variables!AE29 -> 2010 PROTOCOL | H186: ELECTRIC REVENUES
C187: =Variables!AO19 -> 13-Month Average | I187: ELECTRIC REVENUES
C188: FERC | I188: NORMALIZED RESULTS
C189: ACCT | E189: DESCRIPTION | G189: FACTOR | H189: Ref | I189: TOTAL | J189: CALIFORNIA | K189: OREGON | L189: WASHINGTON | M189: MONTANA | N189: WY-PPL | O189: UTAH | P189: Idaho | Q189: WY-UPL | R189: FERC | S189: OTH | T189: NUTIL
A190: 70 | C190: Sales to Ultimate Customers
A191: 71 | C191: 440 | D191: Residential Sales
A192: 72 | G192: =UTCR!H192 -> S | I192: =SUM(J192:T192) -> 1545798459 | J192: =+URO!J192+ADJ!N192 -> 51379016.23 | K192: =URO!K192+ADJ!R192 -> 548352336.5 | L192: =URO!L192+ADJ!V192 -> 126577406.1 | M192: =URO!M192+ADJ!Z192 -> 0 | N192: =URO!N192+ADJ!AD192 -> 88598135.83 | O192: =URO!O192+ADJ!AH192 -> 649974944.8 | P192: =URO!P192+ADJ!AL192 -> 67482372.52 | Q192: =URO!Q192+ADJ!AP192 -> 12615847.83 | R192: =URO!R192+ADJ!AT192 -> 0 | S192: =URO!S192+ADJ!AX192 -> 818399.54 | T192: =URO!T192+ADJ!BB192 -> 0
A193: 73
A194: 74 | H194: B1.1 | I194: =SUBTOTAL(9,I192:I193) -> 1545798459 | J194: =SUBTOTAL(9,J192:J193) -> 51379016.23 | K194: 548352336.5 | L194: 126577406.1 | M194: 0 | N194: 88598135.83 | O194: 649974944.8 | P194: 67482372.52 | Q194: 12615847.83 | R194: 0 | S194: 818399.54 | T194: 0
A195: 75
A196: 76 | C196: 442 | D196: Commercial & Industrial Sales
A197: 77 | G197: =UTCR!H197 -> S | I197: =SUM(J197:T197) -> 2540464768 | J197: =+URO!J197+ADJ!N197 -> 48010527.52 | K197: =URO!K197+ADJ!R197 -> 573646674.8 | L197: =URO!L197+ADJ!V197 -> 164154929.3 | M197: =URO!M197+ADJ!Z197 -> 0 | N197: =URO!N197+ADJ!AD197 -> 401856141.3 | O197: =URO!O197+ADJ!AH197 -> 1064275002 | P197: =URO!P197+ADJ!AL197 -> 181662015.5 | Q197: =URO!Q197+ADJ!AP197 -> 106327090.9 | R197: =URO!R197+ADJ!AT197 -> 0 | S197: =URO!S197+ADJ!AX197 -> 532386.63 | T197: =URO!T197+ADJ!BB197 -> 0
A198: 78 | G198: =UTCR!H198 -> SE | I198: =SUM(J198:T198) -> 0 | J198: =+URO!J198+ADJ!N198 -> 0 | K198: =URO!K198+ADJ!R198 -> 0 | L198: =URO!L198+ADJ!V198 -> 0 | M198: =URO!M198+ADJ!Z198 -> 0 | N198: =URO!N198+ADJ!AD198 -> 0 | O198: =URO!O198+ADJ!AH198 -> 0 | P198: =URO!P198+ADJ!AL198 -> 0 | Q198: =URO!Q198+ADJ!AP198 -> 0 | R198: =URO!R198+ADJ!AT198 -> 0 | S198: =URO!S198+ADJ!AX198 -> 0 | T198: =URO!T198+ADJ!BB198 -> 0
A199: 79 | G199: =UTCR!H199 -> SG | I199: =SUM(J199:T199) -> 0 | J199: =+URO!J199+ADJ!N199 -> 0 | K199: =URO!K199+ADJ!R199 -> 0 | L199: =URO!L199+ADJ!V199 -> 0 | M199: =URO!M199+ADJ!Z199 -> 0 | N199: =URO!N199+ADJ!AD199 -> 0 | O199: =URO!O199+ADJ!AH199 -> 0 | P199: =URO!P199+ADJ!AL199 -> 0 | Q199: =URO!Q199+ADJ!AP199 -> 0 | R199: =URO!R199+ADJ!AT199 -> 0 | S199: =URO!S199+ADJ!AX199 -> 0 | T199: =URO!T199+ADJ!BB199 -> 0
A200: 80
A201: 81
A202: 82 | H202: B1.2 | I202: =SUBTOTAL(9,I197:I200) -> 2540464768 | J202: =SUBTOTAL(9,J197:J200) -> 48010527.52 | K202: 573646674.8 | L202: 164154929.3 | M202: 0 | N202: 401856141.3 | O202: 1064275002 | P202: 181662015.5 | Q202: 106327090.9 | R202: 0 | S202: 532386.63 | T202: 0
A203: 83
A204: 84 | C204: 444 | D204: Public Street & Highway Lighting
A205: 85 | G205: =UTCR!H205 -> S | I205: =SUM(J205:T205) -> 20935003.08 | J205: =+URO!J205+ADJ!N205 -> 428378.94 | K205: =URO!K205+ADJ!R205 -> 6513316.4 | L205: =URO!L205+ADJ!V205 -> 1142076.91 | M205: =URO!M205+ADJ!Z205 -> 0 | N205: =URO!N205+ADJ!AD205 -> 1805231.96 | O205: =URO!O205+ADJ!AH205 -> 10140626.13 | P205: =URO!P205+ADJ!AL205 -> 504795.23 | Q205: =URO!Q205+ADJ!AP205 -> 400577.51 | R205: =URO!R205+ADJ!AT205 -> 0 | S205: =URO!S205+ADJ!AX205 -> 0 | T205: =URO!T205+ADJ!BB205 -> 0
A206: 86 | G206: =UTCR!H206 -> SO | I206: =SUM(J206:T206) -> 0 | J206: =+URO!J206+ADJ!N206 -> 0 | K206: =URO!K206+ADJ!R206 -> 0 | L206: =URO!L206+ADJ!V206 -> 0 | M206: =URO!M206+ADJ!Z206 -> 0 | N206: =URO!N206+ADJ!AD206 -> 0 | O206: =URO!O206+ADJ!AH206 -> 0 | P206: =URO!P206+ADJ!AL206 -> 0 | Q206: =URO!Q206+ADJ!AP206 -> 0 | R206: =URO!R206+ADJ!AT206 -> 0 | S206: =URO!S206+ADJ!AX206 -> 0 | T206: =URO!T206+ADJ!BB206 -> 0
A207: 87 | H207: B1.3 | I207: =SUBTOTAL(9,I205:I206) -> 20935003.08 | J207: =SUBTOTAL(9,J205:J206) -> 428378.94 | K207: 6513316.4 | L207: 1142076.91 | M207: 0 | N207: 1805231.96 | O207: 10140626.13 | P207: 504795.23 | Q207: 400577.51 | R207: 0 | S207: 0 | T207: 0
A208: 88
A209: 89 | C209: 445 | D209: Other Sales to Public Authority
A210: 90 | G210: =UTCR!H210 -> S | I210: =SUM(J210:T210) -> 17630021.32 | J210: =+URO!J210+ADJ!N210 -> 0 | K210: =URO!K210+ADJ!R210 -> 0 | L210: =URO!L210+ADJ!V210 -> 0 | M210: =URO!M210+ADJ!Z210 -> 0 | N210: =URO!N210+ADJ!AD210 -> 0 | O210: =URO!O210+ADJ!AH210 -> 17630021.32 | P210: =URO!P210+ADJ!AL210 -> 0 | Q210: =URO!Q210+ADJ!AP210 -> 0 | R210: =URO!R210+ADJ!AT210 -> 0 | S210: =URO!S210+ADJ!AX210 -> 0 | T210: =URO!T210+ADJ!BB210 -> 0
A211: 91
A212: 92 | H212: B1.3 | I212: =SUBTOTAL(9,I210) -> 17630021.32 | J212: =SUBTOTAL(9,J210) -> 0 | K212: 0 | L212: 0 | M212: 0 | N212: 0 | O212: 17630021.32 | P212: 0 | Q212: 0 | R212: 0 | S212: 0 | T212: 0
A213: 93
A214: 94 | C214: 448 | D214: Interdepartmental
A215: 95 | G215: =UTCR!H215 -> S | I215: =SUM(J215:T215) -> 0 | J215: =+URO!J215+ADJ!N215 -> 0 | K215: =URO!K215+ADJ!R215 -> 0 | L215: =URO!L215+ADJ!V215 -> 0 | M215: =URO!M215+ADJ!Z215 -> 0 | N215: =URO!N215+ADJ!AD215 -> 0 | O215: =URO!O215+ADJ!AH215 -> 0 | P215: =URO!P215+ADJ!AL215 -> 0 | Q215: =URO!Q215+ADJ!AP215 -> 0 | R215: =URO!R215+ADJ!AT215 -> 0 | S215: =URO!S215+ADJ!AX215 -> 0 | T215: =URO!T215+ADJ!BB215 -> 0
A216: 96 | G216: =UTCR!H216 -> SO | I216: =SUM(J216:T216) -> 0 | J216: =+URO!J216+ADJ!N216 -> 0 | K216: =URO!K216+ADJ!R216 -> 0 | L216: =URO!L216+ADJ!V216 -> 0 | M216: =URO!M216+ADJ!Z216 -> 0 | N216: =URO!N216+ADJ!AD216 -> 0 | O216: =URO!O216+ADJ!AH216 -> 0 | P216: =URO!P216+ADJ!AL216 -> 0 | Q216: =URO!Q216+ADJ!AP216 -> 0 | R216: =URO!R216+ADJ!AT216 -> 0 | S216: =URO!S216+ADJ!AX216 -> 0 | T216: =URO!T216+ADJ!BB216 -> 0
A217: 97 | H217: B1.3 | I217: =SUBTOTAL(9,I215:I216) -> 0 | J217: 0 | K217: 0 | L217: 0 | M217: 0 | N217: 0 | O217: 0 | P217: 0 | Q217: 0 | R217: 0 | S217: 0 | T217: 0
A218: 98
A219: 99 | C219: Total Sales to Ultimate Customers | I219: =SUBTOTAL(9,I192:I217) -> 4124828251 | J219: =SUBTOTAL(9,J192:J217) -> 99817922.69 | K219: 1128512328 | L219: 291874412.4 | M219: 0 | N219: 492259509.1 | O219: 1742020594 | P219: 249649183.2 | Q219: 119343516.3 | R219: 0 | S219: 1350786.17 | T219: 0
A220: 100 | C220: =$C$187 -> 13-Month Average | I220: ELECTRIC REVENUES
A221: 101 | C221: FERC | I221: NORMALIZED RESULTS
A222: 102 | C222: ACCT | E222: DESCRIPTION | G222: FACTOR | I222: TOTAL | J222: CALIFORNIA | K222: OREGON | L222: WASHINGTON | M222: MONTANA | N222: WY-PPL | O222: UTAH | P222: Idaho | Q222: WY-UPL | R222: FERC | S222: OTHER | T222: NON-UTILITY
A223: 103 | C223: 447 | D223: Sales for Resale-Non NPC
A224: 104 | G224: =UTCR!H224 -> S | I224: =SUM(J224:T224) -> 10074302.91 | J224: =+URO!J224+ADJ!N224 -> 0 | K224: =URO!K224+ADJ!R224 -> 1024807.33 | L224: =URO!L224+ADJ!V224 -> 0 | M224: =URO!M224+ADJ!Z224 -> 0 | N224: =URO!N224+ADJ!AD224 -> 25405.62 | O224: =URO!O224+ADJ!AH224 -> 0 | P224: =URO!P224+ADJ!AL224 -> 0 | Q224: =URO!Q224+ADJ!AP224 -> 0 | R224: =URO!R224+ADJ!AT224 -> 9024089.96 | S224: =URO!S224+ADJ!AX224 -> 0 | T224: =URO!T224+ADJ!BB224 -> 0
A225: 105 | I225: =SUBTOTAL(9,I224:I224) -> 10074302.91 | J225: =SUBTOTAL(9,J224:J224) -> 0 | K225: 1024807.33 | L225: 0 | M225: 0 | N225: 25405.62 | O225: 0 | P225: 0 | Q225: 0 | R225: 9024089.96 | S225: 0 | T225: 0
A226: 106
A227: 107 | C227: 447NPC | D227: Sales for Resale-NPC
A228: 108 | G228: =UTCR!H228 -> SG | I228: =SUM(J228:T228) -> 329539168.9 | J228: =+URO!J228+ADJ!N228 -> 5179685.674 | K228: =URO!K228+ADJ!R228 -> 85175285.34 | L228: =URO!L228+ADJ!V228 -> 25956818.7 | M228: =URO!M228+ADJ!Z228 -> 0 | N228: =URO!N228+ADJ!AD228 -> 42475561.38 | O228: =URO!O228+ADJ!AH228 -> 140980701.7 | P228: =URO!P228+ADJ!AL228 -> 19293488.88 | Q228: =URO!Q228+ADJ!AP228 -> 9242613.664 | R228: =URO!R228+ADJ!AT228 -> 1235013.581 | S228: =URO!S228+ADJ!AX228 -> 0 | T228: =URO!T228+ADJ!BB228 -> 0
A229: 109 | G229: =UTCR!H229 -> SE | I229: =SUM(J229:T229) -> 1870 | J229: =+URO!J229+ADJ!N229 -> 28.85692336 | K229: =URO!K229+ADJ!R229 -> 458.5226415 | L229: =URO!L229+ADJ!V229 -> 141.3617137 | M229: =URO!M229+ADJ!Z229 -> 0 | N229: =URO!N229+ADJ!AD229 -> 265.2938521 | O229: =URO!O229+ADJ!AH229 -> 789.8218172 | P229: =URO!P229+ADJ!AL229 -> 120.3582376 | Q229: =URO!Q229+ADJ!AP229 -> 59.49159084 | R229: =URO!R229+ADJ!AT229 -> 6.293223845 | S229: =URO!S229+ADJ!AX229 -> 0 | T229: =URO!T229+ADJ!BB229 -> 0
A230: 110 | G230: =UTCR!H230 -> SG | I230: =SUM(J230:T230) -> 0 | J230: =+URO!J230+ADJ!N230 -> 0 | K230: =URO!K230+ADJ!R230 -> 0 | L230: =URO!L230+ADJ!V230 -> 0 | M230: =URO!M230+ADJ!Z230 -> 0 | N230: =URO!N230+ADJ!AD230 -> 0 | O230: =URO!O230+ADJ!AH230 -> 0 | P230: =URO!P230+ADJ!AL230 -> 0 | Q230: =URO!Q230+ADJ!AP230 -> 0 | R230: =URO!R230+ADJ!AT230 -> 0 | S230: =URO!S230+ADJ!AX230 -> 0 | T230: =URO!T230+ADJ!BB230 -> 0
A231: 111 | I231: =SUBTOTAL(9,I228:I230) -> 329541038.9 | J231: =SUBTOTAL(9,J228:J230) -> 5179714.531 | K231: 85175743.87 | L231: 25956960.06 | M231: 0 | N231: 42475826.68 | O231: 140981491.5 | P231: 19293609.24 | Q231: 9242673.156 | R231: 1235019.875 | S231: 0 | T231: 0
A232: 112
A233: 113 | D233: Total Sales for Resale | H233: B1.3 | I233: =SUBTOTAL(9,I224:I231) -> 339615341.8 | J233: =SUBTOTAL(9,J224:J231) -> 5179714.531 | K233: 86200551.2 | L233: 25956960.06 | M233: 0 | N233: 42501232.3 | O233: 140981491.5 | P233: 19293609.24 | Q233: 9242673.156 | R233: 10259109.83 | S233: 0 | T233: 0
A234: 114
A235: 115 | C235: 449 | D235: Provision for Rate Refund
A236: 116 | G236: =UTCR!H236 -> S | I236: =SUM(J236:T236) -> 0 | J236: =+URO!J236+ADJ!N236 -> 0 | K236: =URO!K236+ADJ!R236 -> 0 | L236: =URO!L236+ADJ!V236 -> 0 | M236: =URO!M236+ADJ!Z236 -> 0 | N236: =URO!N236+ADJ!AD236 -> 0 | O236: =URO!O236+ADJ!AH236 -> 0 | P236: =URO!P236+ADJ!AL236 -> 0 | Q236: =URO!Q236+ADJ!AP236 -> 0 | R236: =URO!R236+ADJ!AT236 -> 0 | S236: =URO!S236+ADJ!AX236 -> 0 | T236: =URO!T236+ADJ!BB236 -> 0
A237: 117 | G237: =UTCR!H237 -> SG | I237: =SUM(J237:T237) -> 0 | J237: =+URO!J237+ADJ!N237 -> 0 | K237: =URO!K237+ADJ!R237 -> 0 | L237: =URO!L237+ADJ!V237 -> 0 | M237: =URO!M237+ADJ!Z237 -> 0 | N237: =URO!N237+ADJ!AD237 -> 0 | O237: =URO!O237+ADJ!AH237 -> 0 | P237: =URO!P237+ADJ!AL237 -> 0 | Q237: =URO!Q237+ADJ!AP237 -> 0 | R237: =URO!R237+ADJ!AT237 -> 0 | S237: =URO!S237+ADJ!AX237 -> 0 | T237: =URO!T237+ADJ!BB237 -> 0
A238: 118
A239: 119
A240: 120 | H240: B1.3 | I240: =SUBTOTAL(9,I236:I237) -> 0 | J240: =SUBTOTAL(9,J236:J237) -> 0 | K240: 0 | L240: 0 | M240: 0 | N240: 0 | O240: 0 | P240: 0 | Q240: 0 | R240: 0 | S240: 0 | T240: 0
A241: 121
A242: 122 | C242: Total Sales from Electricity | I242: =SUBTOTAL(9,I224:I240)+I219 -> 4464443593 | J242: =SUBTOTAL(9,J224:J240)+J219 -> 104997637.2 | K242: 1214712879 | L242: 317831372.4 | M242: 0 | N242: 534760741.4 | O242: 1883002085 | P242: 268942792.5 | Q242: 128586189.4 | R242: 10259109.83 | S242: 1350786.17 | T242: 0
A243: 123 | C243: 450 | D243: Forfeited Discounts & Interest
A244: 124 | G244: =UTCR!H244 -> S | I244: =SUM(J244:T244) -> 8704074.42 | J244: =+URO!J244+ADJ!N244 -> 283236.76 | K244: =URO!K244+ADJ!R244 -> 3713450.9 | L244: =URO!L244+ADJ!V244 -> 678122.06 | M244: =URO!M244+ADJ!Z244 -> 0 | N244: =URO!N244+ADJ!AD244 -> 523520.08 | O244: =URO!O244+ADJ!AH244 -> 3027295.35 | P244: =URO!P244+ADJ!AL244 -> 387244.52 | Q244: =URO!Q244+ADJ!AP244 -> 91204.75 | R244: =URO!R244+ADJ!AT244 -> 0 | S244: =URO!S244+ADJ!AX244 -> 0 | T244: =URO!T244+ADJ!BB244 -> 0
A245: 125 | G245: =UTCR!H245 -> SO | I245: =SUM(J245:T245) -> 0 | J245: =+URO!J245+ADJ!N245 -> 0 | K245: =URO!K245+ADJ!R245 -> 0 | L245: =URO!L245+ADJ!V245 -> 0 | M245: =URO!M245+ADJ!Z245 -> 0 | N245: =URO!N245+ADJ!AD245 -> 0 | O245: =URO!O245+ADJ!AH245 -> 0 | P245: =URO!P245+ADJ!AL245 -> 0 | Q245: =URO!Q245+ADJ!AP245 -> 0 | R245: =URO!R245+ADJ!AT245 -> 0 | S245: =URO!S245+ADJ!AX245 -> 0 | T245: =URO!T245+ADJ!BB245 -> 0
A246: 126 | H246: B1.4 | I246: =SUBTOTAL(9,I244:I245) -> 8704074.42 | J246: =SUBTOTAL(9,J244:J245) -> 283236.76 | K246: 3713450.9 | L246: 678122.06 | M246: 0 | N246: 523520.08 | O246: 3027295.35 | P246: 387244.52 | Q246: 91204.75 | R246: 0 | S246: 0 | T246: 0
A247: 127
A248: 128 | C248: 451 | D248: Misc Electric Revenue
A249: 129 | G249: =UTCR!H249 -> S | I249: =SUM(J249:T249) -> 6239418.58 | J249: =+URO!J249+ADJ!N249 -> 111410.62 | K249: =URO!K249+ADJ!R249 -> 1449104.42 | L249: =URO!L249+ADJ!V249 -> 162036.34 | M249: =URO!M249+ADJ!Z249 -> 0 | N249: =URO!N249+ADJ!AD249 -> 401704.1 | O249: =URO!O249+ADJ!AH249 -> 3904049.62 | P249: =URO!P249+ADJ!AL249 -> 97052.96 | Q249: =URO!Q249+ADJ!AP249 -> 114060.52 | R249: =URO!R249+ADJ!AT249 -> 0 | S249: =URO!S249+ADJ!AX249 -> 0 | T249: =URO!T249+ADJ!BB249 -> 0
A250: 130 | G250: =UTCR!H250 -> SG | I250: =SUM(J250:T250) -> 0 | J250: =+URO!J250+ADJ!N250 -> 0 | K250: =URO!K250+ADJ!R250 -> 0 | L250: =URO!L250+ADJ!V250 -> 0 | M250: =URO!M250+ADJ!Z250 -> 0 | N250: =URO!N250+ADJ!AD250 -> 0 | O250: =URO!O250+ADJ!AH250 -> 0 | P250: =URO!P250+ADJ!AL250 -> 0 | Q250: =URO!Q250+ADJ!AP250 -> 0 | R250: =URO!R250+ADJ!AT250 -> 0 | S250: =URO!S250+ADJ!AX250 -> 0 | T250: =URO!T250+ADJ!BB250 -> 0
A251: 131 | G251: =UTCR!H251 -> SO | I251: =SUM(J251:T251) -> 4129.08 | J251: =+URO!J251+ADJ!N251 -> 91.64968256 | K251: =URO!K251+ADJ!R251 -> 1126.47879 | L251: =URO!L251+ADJ!V251 -> 318.0385903 | M251: =URO!M251+ADJ!Z251 -> 0 | N251: =URO!N251+ADJ!AD251 -> 486.6525738 | O251: =URO!O251+ADJ!AH251 -> 1757.58011 | P251: =URO!P251+ADJ!AL251 -> 233.6230898 | Q251: =URO!Q251+ADJ!AP251 -> 104.0540754 | R251: =URO!R251+ADJ!AT251 -> 11.00308823 | S251: =URO!S251+ADJ!AX251 -> 0 | T251: =URO!T251+ADJ!BB251 -> 0
A252: 132 | H252: B1.5 | I252: =SUBTOTAL(9,I249:I251) -> 6243547.66 | J252: =SUBTOTAL(9,J249:J251) -> 111502.2697 | K252: 1450230.899 | L252: 162354.3786 | M252: 0 | N252: 402190.7526 | O252: 3905807.2 | P252: 97286.58309 | Q252: 114164.5741 | R252: 11.00308823 | S252: 0 | T252: 0
A253: 133
A254: 134 | C254: 453 | D254: Water Sales
A255: 135 | G255: =UTCR!H255 -> SG | I255: =SUM(J255:T255) -> 12096.3 | J255: =+URO!J255+ADJ!N255 -> 190.1292402 | K255: =URO!K255+ADJ!R255 -> 3126.504832 | L255: =URO!L255+ADJ!V255 -> 952.7895183 | M255: =URO!M255+ADJ!Z255 -> 0 | N255: =URO!N255+ADJ!AD255 -> 1559.13828 | O255: =URO!O255+ADJ!AH255 -> 5174.938286 | P255: =URO!P255+ADJ!AL255 -> 708.2005769 | Q255: =URO!Q255+ADJ!AP255 -> 339.2659757 | R255: =URO!R255+ADJ!AT255 -> 45.33329022 | S255: =URO!S255+ADJ!AX255 -> 0 | T255: =URO!T255+ADJ!BB255 -> 0
A256: 136 | I256: =SUBTOTAL(9,I255) -> 12096.3 | J256: =SUBTOTAL(9,J255) -> 190.1292402 | K256: 3126.504832 | L256: 952.7895183 | M256: 0 | N256: 1559.13828 | O256: 5174.938286 | P256: 708.2005769 | Q256: 339.2659757 | R256: 45.33329022 | S256: 0 | T256: 0
A257: 137
A258: 138 | C258: 454 | D258: Rent of Electric Property
A259: 139 | G259: =UTCR!H259 -> S | I259: =SUM(J259:T259) -> 10740535.89 | J259: =+URO!J259+ADJ!N259 -> 565437.32 | K259: =URO!K259+ADJ!R259 -> 5032337.33 | L259: =URO!L259+ADJ!V259 -> 1090881.68 | M259: =URO!M259+ADJ!Z259 -> 0 | N259: =URO!N259+ADJ!AD259 -> 387984.04 | O259: =URO!O259+ADJ!AH259 -> 3461819.55 | P259: =URO!P259+ADJ!AL259 -> 183675.6 | Q259: =URO!Q259+ADJ!AP259 -> 18400.37 | R259: =URO!R259+ADJ!AT259 -> 0 | S259: =URO!S259+ADJ!AX259 -> 0 | T259: =URO!T259+ADJ!BB259 -> 0
A260: 140 | G260: =UTCR!H260 -> SG | I260: =SUM(J260:T260) -> 5635964.34 | J260: =+URO!J260+ADJ!N260 -> 88585.89966 | K260: =URO!K260+ADJ!R260 -> 1456715.669 | L260: =URO!L260+ADJ!V260 -> 443928.1225 | M260: =URO!M260+ADJ!Z260 -> 0 | N260: =URO!N260+ADJ!AD260 -> 726440.9571 | O260: =URO!O260+ADJ!AH260 -> 2411131.308 | P260: =URO!P260+ADJ!AL260 -> 329968.1057 | Q260: =URO!Q260+ADJ!AP260 -> 158072.3809 | R260: =URO!R260+ADJ!AT260 -> 21121.89736 | S260: =URO!S260+ADJ!AX260 -> 0 | T260: =URO!T260+ADJ!BB260 -> 0
A261: 141 | G261: =UTCR!H261 -> SO | I261: =SUM(J261:T261) -> 3624835.93 | J261: =+URO!J261+ADJ!N261 -> 80457.40512 | K261: =URO!K261+ADJ!R261 -> 988912.9763 | L261: =URO!L261+ADJ!V261 -> 279199.6544 | M261: =URO!M261+ADJ!Z261 -> 0 | N261: =URO!N261+ADJ!AD261 -> 427222.4648 | O261: =URO!O261+ADJ!AH261 -> 1542944.078 | P261: =URO!P261+ADJ!AL261 -> 205092.9916 | Q261: =URO!Q261+ADJ!AP261 -> 91346.97108 | R261: =URO!R261+ADJ!AT261 -> 9659.388912 | S261: =URO!S261+ADJ!AX261 -> 0 | T261: =URO!T261+ADJ!BB261 -> 0
A262: 142 | H262: B1.7 | I262: =SUBTOTAL(9,I259:I261) -> 20001336.16 | J262: =SUBTOTAL(9,J259:J261) -> 734480.6248 | K262: 7477965.975 | L262: 1814009.457 | M262: 0 | N262: 1541647.462 | O262: 7415894.936 | P262: 718736.6973 | Q262: 267819.7219 | R262: 30781.28628 | S262: 0 | T262: 0
A263: 143 | C263: =$C$187 -> 13-Month Average | I263: ELECTRIC REVENUES
A264: 144 | C264: FERC | I264: NORMALIZED RESULTS
A265: 145 | C265: ACCT | E265: DESCRIPTION | G265: FACTOR | I265: TOTAL | J265: CALIFORNIA | K265: OREGON | L265: WASHINGTON | M265: MONTANA | N265: WY-PPL | O265: UTAH | P265: Idaho | Q265: WY-UPL | R265: FERC | S265: OTHER | T265: NON-UTILITY
A266: 146 | C266: 456 | D266: Other Electric Revenue
A267: 147 | G267: =UTCR!H267 -> S | I267: =SUM(J267:T267) -> 5742667.662 | J267: =+URO!J267+ADJ!N267 -> -1692381.91 | K267: =URO!K267+ADJ!R267 -> -25606932.34 | L267: =URO!L267+ADJ!V267 -> -2266183.155 | M267: =URO!M267+ADJ!Z267 -> 0 | N267: =URO!N267+ADJ!AD267 -> 245403.03 | O267: =URO!O267+ADJ!AH267 -> 70003.89 | P267: =URO!P267+ADJ!AL267 -> 0 | Q267: =URO!Q267+ADJ!AP267 -> -188.16 | R267: =URO!R267+ADJ!AT267 -> 0 | S267: =URO!S267+ADJ!AX267 -> 34992946.3 | T267: =URO!T267+ADJ!BB267 -> 0
A268: 148 | G268: =UTCR!H268 -> CN | I268: =SUM(J268:T268) -> 0 | J268: =+URO!J268+ADJ!N268 -> 0 | K268: =URO!K268+ADJ!R268 -> 0 | L268: =URO!L268+ADJ!V268 -> 0 | M268: =URO!M268+ADJ!Z268 -> 0 | N268: =URO!N268+ADJ!AD268 -> 0 | O268: =URO!O268+ADJ!AH268 -> 0 | P268: =URO!P268+ADJ!AL268 -> 0 | Q268: =URO!Q268+ADJ!AP268 -> 0 | R268: =URO!R268+ADJ!AT268 -> 0 | S268: =URO!S268+ADJ!AX268 -> 0 | T268: =URO!T268+ADJ!BB268 -> 0
A269: 149 | G269: =UTCR!H269 -> SE | I269: =SUM(J269:T269) -> 11357475.02 | J269: =+URO!J269+ADJ!N269 -> 175262.9873 | K269: =URO!K269+ADJ!R269 -> 2784844.624 | L269: =URO!L269+ADJ!V269 -> 858562.6374 | M269: =URO!M269+ADJ!Z269 -> 0 | N269: =URO!N269+ADJ!AD269 -> 1611266.47 | O269: =URO!O269+ADJ!AH269 -> 4796995.486 | P269: =URO!P269+ADJ!AL269 -> 730997.688 | Q269: =URO!Q269+ADJ!AP269 -> 361323.132 | R269: =URO!R269+ADJ!AT269 -> 38221.99605 | S269: =URO!S269+ADJ!AX269 -> 0 | T269: =URO!T269+ADJ!BB269 -> 0
A270: 150 | G270: =UTCR!H270 -> SO | I270: =SUM(J270:T270) -> -26572.12 | J270: =+URO!J270+ADJ!N270 -> -589.798784 | K270: =URO!K270+ADJ!R270 -> -7249.297564 | L270: =URO!L270+ADJ!V270 -> -2046.69311 | M270: =URO!M270+ADJ!Z270 -> 0 | N270: =URO!N270+ADJ!AD270 -> -3131.784947 | O270: =URO!O270+ADJ!AH270 -> -11310.66232 | P270: =URO!P270+ADJ!AL270 -> -1503.448898 | Q270: =URO!Q270+ADJ!AP270 -> -669.625529 | R270: =URO!R270+ADJ!AT270 -> -70.80884384 | S270: =URO!S270+ADJ!AX270 -> 0 | T270: =URO!T270+ADJ!BB270 -> 0
